Workbook

Sheet 2021P Draft - ReadMe

Sheet Info
B2: Industrial Tool for the 2021 Power Plan
B5: Worksheet Name | C5: Description
B6: Program Summary | C6: The total techncial potential results by measure (sums up the totals from each Industry tab). These results are passed to Ind-AllMeasures workbook.
B7: MeasureSort | C7: This sorts the Retro and NR measures prior to passing them to the Ind-All measures workbook
B8: Industry worksheets | C8: Sums up the total technical potential by industry and by measure - greeen tabs (MechPulp, KraftPulp, Paper…)
B9: Inventory | C9: Creates "inventory" factors for discounting loads for adopted measures. Eliminates possible double counting.
B10: ECMs | C10: This is the primary measure input worksheet. It also includes applicability and achievability factors.
B11: Measure Data | C11: This is the landing page for data from external measure workbooks. These data passed to the ECMs tab
B12: Load Forecast | C12: Pulls in the medium, high, and low industrial load forecasts by segment
B13: Forecast | C13: Pulls the forecast used in the model (typically the medium forecast). The potential is built up from this forecast
B14: 8P Segments and End-Uses | C14: Includes segment definitions, base loads, and end-use shares.
B15: Other worksheets | C15: Contain supporting information that feeds into the measure definition or other inputs
B17: Notes:
B18: 1 | C18: Water and wastewater segments are treated separately (external workbooks), but can also be integrated with the industrial tool. There is a Flag on the ECMs worksheet in Cell BI2. If this flag is set to "External" the tool will used data from the external file for most of the potential in these segments (except lighting). If the flag is something else, then these segments will be treated like the others. For the 2021 Plan the flat is "External"
B19: 2 | C19: This tool handles both Natural Replacement (NR) and Retrofit (Retro) measures. However, all of the NR measures have been developed in external file including their supply curves, and these supply curves are passed directly to the Ind-All measures "SC NR" tab and/or the forRPM tab. The Retro measures from this tool are passed to the Ind-All measures "SC Retro" tab. All of the NR measure data are also passed into this tool in the form of a percent savings, so that total technical potential by industry can be summed and displayed in other ways.

Sheet Procost Report (hidden)
A1: Procost Output Table | C1: Run with Achievable for NWPPC | I1: replace column I with Procost results | M1: Supply Curve By Sub-Sectors
A2: Category Name | B2: Measure Name | C2: Savings (kwh/yr) | D2: Life (yrs) | E2: Capital Cost | F2: Annual O&M | G2: Shape Pointer | H2: Non-E Val ($/yr) | I2: Levelized Cost | J2: Cum % Saved | M2: Sector Name | N2: Weight | O2: Sub-Sector Name | P2: Levelized Cost | Q2: Cum % Saved
A3: =MechPulp!$H$1 -> MechPulp | B3: =MechPulp!#REF! ->  | C3: =MechPulp!#REF!*1000 ->  | D3: =MechPulp!#REF! ->  | E3: =MechPulp!#REF!*1000 ->  | F3: =MechPulp!#REF!*1000 ->  | G3: =VLOOKUP(MechPulp!#REF!,Summary_Table,9) ->  | H3: =MechPulp!#REF!*1000 ->  | I3: -0.03058184814 | J3: =MechPulp!#REF! ->  | K3: =CONCATENATE(A3,"-",B3) ->  | M3: Paper | N3: =MechPulp!$H$2/SUM(MechPulp!$H$2,#REF!,Paper!$H$2) ->  | O3: =$A$3 -> MechPulp | P3: 0 | Q3: =IF(ISNA(VLOOKUP(P3,$I$3:$J$32,2)),0,VLOOKUP(P3,$I$3:$J$32,2)) -> 
A4: =MechPulp!$H$1 -> MechPulp | B4: =MechPulp!#REF! ->  | C4: =MechPulp!#REF!*1000 ->  | D4: =MechPulp!#REF! ->  | E4: =MechPulp!#REF!*1000 ->  | F4: =MechPulp!#REF!*1000 ->  | G4: =VLOOKUP(MechPulp!#REF!,Summary_Table,9) ->  | H4: =MechPulp!#REF!*1000 ->  | I4: -0.01201855278 | J4: =MechPulp!#REF! ->  | P4: 0.005
A5: =MechPulp!$H$1 -> MechPulp | B5: =MechPulp!#REF! ->  | C5: =MechPulp!#REF!*1000 ->  | D5: =MechPulp!#REF! ->  | E5: =MechPulp!#REF!*1000 ->  | F5: =MechPulp!#REF!*1000 ->  | G5: =VLOOKUP(MechPulp!#REF!,Summary_Table,9) ->  | H5: =MechPulp!#REF!*1000 ->  | I5: -0.002564080954 | J5: =MechPulp!#REF! ->  | P5: 0.01
A6: =MechPulp!$H$1 -> MechPulp | B6: =MechPulp!#REF! ->  | C6: =MechPulp!#REF!*1000 ->  | D6: =MechPulp!#REF! ->  | E6: =MechPulp!#REF!*1000 ->  | F6: =MechPulp!#REF!*1000 ->  | G6: =VLOOKUP(MechPulp!#REF!,Summary_Table,9) ->  | H6: =MechPulp!#REF!*1000 ->  | I6: -0.00393457365 | J6: =MechPulp!#REF! ->  | P6: 0.015
A7: =MechPulp!$H$1 -> MechPulp | B7: =MechPulp!#REF! ->  | C7: =MechPulp!#REF!*1000 ->  | D7: =MechPulp!#REF! ->  | E7: =MechPulp!#REF!*1000 ->  | F7: =MechPulp!#REF!*1000 ->  | G7: =VLOOKUP(MechPulp!#REF!,Summary_Table,9) ->  | H7: =MechPulp!#REF!*1000 ->  | I7: 0.00521268177 | J7: =MechPulp!#REF! ->  | P7: 0.02
A8: =MechPulp!$H$1 -> MechPulp | B8: =MechPulp!#REF! ->  | C8: =MechPulp!#REF!*1000 ->  | D8: =MechPulp!#REF! ->  | E8: =MechPulp!#REF!*1000 ->  | F8: =MechPulp!#REF!*1000 ->  | G8: =VLOOKUP(MechPulp!#REF!,Summary_Table,9) ->  | H8: =MechPulp!#REF!*1000 ->  | I8: 0.009358001709 | J8: =MechPulp!#REF! ->  | P8: 0.025
A9: =MechPulp!$H$1 -> MechPulp | B9: =MechPulp!#REF! ->  | C9: =MechPulp!#REF!*1000 ->  | D9: =MechPulp!#REF! ->  | E9: =MechPulp!#REF!*1000 ->  | F9: =MechPulp!#REF!*1000 ->  | G9: =VLOOKUP(MechPulp!#REF!,Summary_Table,9) ->  | H9: =MechPulp!#REF!*1000 ->  | I9: 0.008138313293 | J9: =MechPulp!#REF! ->  | P9: 0.03
A10: =MechPulp!$H$1 -> MechPulp | B10: =MechPulp!#REF! ->  | C10: =MechPulp!#REF!*1000 ->  | D10: =MechPulp!#REF! ->  | E10: =MechPulp!#REF!*1000 ->  | F10: =MechPulp!#REF!*1000 ->  | G10: =VLOOKUP(MechPulp!#REF!,Summary_Table,9) ->  | H10: =MechPulp!#REF!*1000 ->  | I10: 0.00755145216 | J10: =MechPulp!#REF! ->  | P10: 0.035
A11: =MechPulp!$H$1 -> MechPulp | B11: =MechPulp!#REF! ->  | C11: =MechPulp!#REF!*1000 ->  | D11: =MechPulp!#REF! ->  | E11: =MechPulp!#REF!*1000 ->  | F11: =MechPulp!#REF!*1000 ->  | G11: =VLOOKUP(MechPulp!#REF!,Summary_Table,9) ->  | H11: =MechPulp!#REF!*1000 ->  | I11: 0.0138368082 | J11: =MechPulp!#REF! ->  | P11: 0.04
A12: =MechPulp!$H$1 -> MechPulp | B12: =MechPulp!#REF! ->  | C12: =MechPulp!#REF!*1000 ->  | D12: =MechPulp!#REF! ->  | E12: =MechPulp!#REF!*1000 ->  | F12: =MechPulp!#REF!*1000 ->  | G12: =VLOOKUP(MechPulp!#REF!,Summary_Table,9) ->  | H12: =MechPulp!#REF!*1000 ->  | I12: 0.02784613991 | J12: =MechPulp!#REF! ->  | P12: 0.045
A13: =MechPulp!$H$1 -> MechPulp | B13: =MechPulp!#REF! ->  | C13: =MechPulp!#REF!*1000 ->  | D13: =MechPulp!#REF! ->  | E13: =MechPulp!#REF!*1000 ->  | F13: =MechPulp!#REF!*1000 ->  | G13: =VLOOKUP(MechPulp!#REF!,Summary_Table,9) ->  | H13: =MechPulp!#REF!*1000 ->  | I13: 0.0230594883 | J13: =MechPulp!#REF! ->  | P13: 0.05
A14: =MechPulp!$H$1 -> MechPulp | B14: =MechPulp!#REF! ->  | C14: =MechPulp!#REF!*1000 ->  | D14: =MechPulp!#REF! ->  | E14: =MechPulp!#REF!*1000 ->  | F14: =MechPulp!#REF!*1000 ->  | G14: =VLOOKUP(MechPulp!#REF!,Summary_Table,9) ->  | H14: =MechPulp!#REF!*1000 ->  | I14: 0.02535074615 | J14: =MechPulp!#REF! ->  | P14: 0.055
A15: =MechPulp!$H$1 -> MechPulp | B15: =MechPulp!#REF! ->  | C15: =MechPulp!#REF!*1000 ->  | D15: =MechPulp!#REF! ->  | E15: =MechPulp!#REF!*1000 ->  | F15: =MechPulp!#REF!*1000 ->  | G15: =VLOOKUP(MechPulp!#REF!,Summary_Table,9) ->  | H15: =MechPulp!#REF!*1000 ->  | I15: 0.02161421394 | J15: =MechPulp!#REF! ->  | P15: 0.06
A16: =MechPulp!$H$1 -> MechPulp | B16: =MechPulp!#REF! ->  | C16: =MechPulp!#REF!*1000 ->  | D16: =MechPulp!#REF! ->  | E16: =MechPulp!#REF!*1000 ->  | F16: =MechPulp!#REF!*1000 ->  | G16: =VLOOKUP(MechPulp!#REF!,Summary_Table,9) ->  | H16: =MechPulp!#REF!*1000 ->  | I16: 0.03183527184 | J16: =MechPulp!#REF! ->  | P16: 0.065
A17: =MechPulp!$H$1 -> MechPulp | B17: =MechPulp!#REF! ->  | C17: =MechPulp!#REF!*1000 ->  | D17: =MechPulp!#REF! ->  | E17: =MechPulp!#REF!*1000 ->  | F17: =MechPulp!#REF!*1000 ->  | G17: =VLOOKUP(MechPulp!#REF!,Summary_Table,9) ->  | H17: =MechPulp!#REF!*1000 ->  | J17: =MechPulp!#REF! ->  | P17: 0.07
A18: =MechPulp!$H$1 -> MechPulp | B18: =MechPulp!#REF! ->  | C18: =MechPulp!#REF!*1000 ->  | D18: =MechPulp!#REF! ->  | E18: =MechPulp!#REF!*1000 ->  | F18: =MechPulp!#REF!*1000 ->  | G18: =VLOOKUP(MechPulp!#REF!,Summary_Table,9) ->  | H18: =MechPulp!#REF!*1000 ->  | I18: 0.01850826263 | J18: =MechPulp!#REF! ->  | P18: 0.075
A19: =MechPulp!$H$1 -> MechPulp | B19: =MechPulp!#REF! ->  | C19: =MechPulp!#REF!*1000 ->  | D19: =MechPulp!#REF! ->  | E19: =MechPulp!#REF!*1000 ->  | F19: =MechPulp!#REF!*1000 ->  | G19: =VLOOKUP(MechPulp!#REF!,Summary_Table,9) ->  | H19: =MechPulp!#REF!*1000 ->  | I19: 0.02176546478 | J19: =MechPulp!#REF! ->  | P19: 0.08
A20: =MechPulp!$H$1 -> MechPulp | B20: =MechPulp!#REF! ->  | C20: =MechPulp!#REF!*1000 ->  | D20: =MechPulp!#REF! ->  | E20: =MechPulp!#REF!*1000 ->  | F20: =MechPulp!#REF!*1000 ->  | G20: =VLOOKUP(MechPulp!#REF!,Summary_Table,9) ->  | H20: =MechPulp!#REF!*1000 ->  | I20: 0.02492929268 | J20: =MechPulp!#REF! ->  | P20: 0.085
A21: =MechPulp!$H$1 -> MechPulp | B21: =MechPulp!#REF! ->  | C21: =MechPulp!#REF!*1000 ->  | D21: =MechPulp!#REF! ->  | E21: =MechPulp!#REF!*1000 ->  | F21: =MechPulp!#REF!*1000 ->  | G21: =VLOOKUP(MechPulp!#REF!,Summary_Table,9) ->  | H21: =MechPulp!#REF!*1000 ->  | I21: 0.03678841019 | J21: =MechPulp!#REF! ->  | P21: 0.09
A22: =MechPulp!$H$1 -> MechPulp | B22: =MechPulp!#REF! ->  | C22: =MechPulp!#REF!*1000 ->  | D22: =MechPulp!#REF! ->  | E22: =MechPulp!#REF!*1000 ->  | F22: =MechPulp!#REF!*1000 ->  | G22: =VLOOKUP(MechPulp!#REF!,Summary_Table,9) ->  | H22: =MechPulp!#REF!*1000 ->  | I22: 0.02685925674 | J22: =MechPulp!#REF! ->  | P22: 0.095
A23: =MechPulp!$H$1 -> MechPulp | B23: =MechPulp!#REF! ->  | C23: =MechPulp!#REF!*1000 ->  | D23: =MechPulp!#REF! ->  | E23: =MechPulp!#REF!*1000 ->  | F23: =MechPulp!#REF!*1000 ->  | G23: =VLOOKUP(MechPulp!#REF!,Summary_Table,9) ->  | H23: =MechPulp!#REF!*1000 ->  | I23: 0.04428505707 | J23: =MechPulp!#REF! ->  | P23: 0.1
A24: =MechPulp!$H$1 -> MechPulp | B24: =MechPulp!#REF! ->  | C24: =MechPulp!#REF!*1000 ->  | D24: =MechPulp!#REF! ->  | E24: =MechPulp!#REF!*1000 ->  | F24: =MechPulp!#REF!*1000 ->  | G24: =VLOOKUP(MechPulp!#REF!,Summary_Table,9) ->  | H24: =MechPulp!#REF!*1000 ->  | I24: 0.03480896759 | J24: =MechPulp!#REF! -> 
A25: =MechPulp!$H$1 -> MechPulp | B25: =MechPulp!#REF! ->  | C25: =MechPulp!#REF!*1000 ->  | D25: =MechPulp!#REF! ->  | E25: =MechPulp!#REF!*1000 ->  | F25: =MechPulp!#REF!*1000 ->  | G25: =VLOOKUP(MechPulp!#REF!,Summary_Table,9) ->  | H25: =MechPulp!#REF!*1000 ->  | I25: 0.05603602219 | J25: =MechPulp!#REF! -> 
A26: =MechPulp!$H$1 -> MechPulp | B26: =MechPulp!#REF! ->  | C26: =MechPulp!#REF!*1000 ->  | D26: =MechPulp!#REF! ->  | E26: =MechPulp!#REF!*1000 ->  | F26: =MechPulp!#REF!*1000 ->  | G26: =VLOOKUP(MechPulp!#REF!,Summary_Table,9) ->  | H26: =MechPulp!#REF!*1000 ->  | I26: 0.04393695068 | J26: =MechPulp!#REF! -> 
A27: =MechPulp!$H$1 -> MechPulp | B27: =MechPulp!#REF! ->  | C27: =MechPulp!#REF!*1000 ->  | D27: =MechPulp!#REF! ->  | E27: =MechPulp!#REF!*1000 ->  | F27: =MechPulp!#REF!*1000 ->  | G27: =VLOOKUP(MechPulp!#REF!,Summary_Table,9) ->  | H27: =MechPulp!#REF!*1000 ->  | I27: 0.03252043152 | J27: =MechPulp!#REF! -> 
A28: =MechPulp!$H$1 -> MechPulp | B28: =MechPulp!#REF! ->  | C28: =MechPulp!#REF!*1000 ->  | D28: =MechPulp!#REF! ->  | E28: =MechPulp!#REF!*1000 ->  | F28: =MechPulp!#REF!*1000 ->  | G28: =VLOOKUP(MechPulp!#REF!,Summary_Table,9) ->  | H28: =MechPulp!#REF!*1000 ->  | I28: 9.999 | J28: =MechPulp!#REF! -> 
A29: =MechPulp!$H$1 -> MechPulp | B29: =MechPulp!#REF! ->  | C29: =MechPulp!#REF!*1000 ->  | D29: =MechPulp!#REF! ->  | E29: =MechPulp!#REF!*1000 ->  | F29: =MechPulp!#REF!*1000 ->  | G29: =VLOOKUP(MechPulp!#REF!,Summary_Table,9) ->  | H29: =MechPulp!#REF!*1000 ->  | I29: 0.03532701111 | J29: =MechPulp!#REF! -> 
A30: =MechPulp!$H$1 -> MechPulp | B30: =MechPulp!#REF! ->  | C30: =MechPulp!#REF!*1000 ->  | D30: =MechPulp!#REF! ->  | E30: =MechPulp!#REF!*1000 ->  | F30: =MechPulp!#REF!*1000 ->  | G30: =VLOOKUP(MechPulp!#REF!,Summary_Table,9) ->  | H30: =MechPulp!#REF!*1000 ->  | I30: 0.03673547363 | J30: =MechPulp!#REF! -> 
A31: =MechPulp!$H$1 -> MechPulp | B31: =MechPulp!#REF! ->  | C31: =MechPulp!#REF!*1000 ->  | D31: =MechPulp!#REF! ->  | E31: =MechPulp!#REF!*1000 ->  | F31: =MechPulp!#REF!*1000 ->  | G31: =VLOOKUP(MechPulp!#REF!,Summary_Table,9) ->  | H31: =MechPulp!#REF!*1000 ->  | I31: 0.08023169708 | J31: =MechPulp!#REF! -> 
... 31 more rows

Sheet Log (hidden)
B3: Item | C3: Description | D3: Who | E3: When | F3: Note
B4: 1 | C4: Update End-Uses, including lookups from the Segment tabs | D4: KS | E4: 2019-06-04
B5: 2 | C5: Need to review all refrigeration measures and end-uses. Confusion with Med and Low temp. Impacts Inventory
B6: 3 | C6: Created Preliminary_V3 which includes the new water and wastewater tabs, linkd, no errors. | D6: KS | E6: 2019-06-06
B7: 4 | C7: Need to make Inventory Tab more dynamic | D7: KS | E7: 2019-06-01
B8: 5 | C8: Updated the "Program Summary" tab with links to new W/WW tabs | D8: KS | E8: 2019-06-07
B9: 6 | C9: Created a "Proxy" lighting workbook as a template - dummy data for W/WW segments for now | D9: KS | E9: 2019-06-06
B10: 7 | C10: Fix Inventory lists - check to make sure the column numbers match (industry tab and Inventory tab)
B11: 8 | C11: Charlie to review and verify Inventory methodology, especially the motor rewind measures | D11: CG
B12: 9 | C12: Why are the End-use Apps different than the End uses (processes)??? | D12: CG
B13: 10 | C13: Need to add Fork Lift battery charger as a measure, per ETO | D13: KS
B14: 11 | C14: Make sure the new segments are in the forecast | D14: KS
B15: 12 | C15: Possibly combine all energy management measures - see below
B16: 13 | C16: NEED COMPLETE AND THOROUGH REVIEW OF INVENTORY TAB
B17: 14 | C17: Removed Transformers measure because federal standards have captured the majority of potential (per Ryan Firestone) | D17: AH | E17: 2020-02-04
B18: 15 | C18: Removed Air Compressor Optimization, Fan Optimization, and Pump Optimization measures because they're covered in the new Energy Management measure | D18: AH | E18: 2020-02-04
B19: 16 | C19: Added duplicate measures so the refrigeration measures would apply to low temp refer and med temp refer end uses | D19: AH | E19: 2020-02-05
B20: 17 | C20: On the segment sheets, adjusted O&M and NEB ($1,000's) to divide by inventory factor to account for fact that the costs (or benefits) don't change just because there's less savings. This matches the logic that was already in place for the cost ($1,000's). | D20: AH | E20: 2020-02-05
B21: 18 | C21: Major overhaul of Inventory sheet and ECMs sheet (removed Detail sheet - moved notes to comment boxes in cells in ECMs sheet; moved applicability and acheivable potential, by segment, to ECMs) | D21: AH | E21: 2020-02-06 | F21: Removed "EndUse App" and use the 18 "Process Shares" or "Enduse Codes" instead
B22: 19 | C22: Removed Sort macro from ProgramSummary sheet and replaced with a ranking table | D22: AH | E22: 2020-02-06
B23: 20 | C23: Need to check ElecFab, Silicon, MiscManf sheets for proper measures/inventories being populated. Custom calcs were used in earlier edition that may need to be re-employed. | D23: AH
B24: 21 | C24: Need to review Cement, WaterSupply, and Wastewater sheets. | D24: AH
B25: 22 | C25: Does the "achievable" and "technical" toggle on the ProgramSummary sheet need to work? This logic needs to be updated (if needed) or removed (if not). | D25: AH
B26: 23 | C26: LoadForecast and Forecast sheets and associated logic should be updated as necessary and consolidated. | D26: AH
B27: 24 | C27: Recommend moving any applicable Measure Data to ECMs (as equations and/or comments) and remove Measure Data tab. This will keep things clean for future versions. | D27: AH
B28: 25 | C28: Delete column Q on segment sheets
B29: 26 | C29: Remove Forecast sheet - double check which sheet should be removed
B30: 27 | C30: Fixed bug on Inventory sheet, fixed Results sheet to show graphs | D30: AH | E30: 2020-02-06
C34: =ECMs!B66 -> 
C35: Energy Management Measures
C36: =ECMs!B7 -> Energy Management
C37: =ECMs!B21 -> Fan Optimization
C38: =ECMs!B23 -> Fan Variable Speed
C39: =ECMs!B24 -> Fan VS Trim
C40: =ECMs!B26 -> Pump Variable Speed
C41: =ECMs!B57 -> 0
C42: =ECMs!B61 -> 0
C43: =ECMs!B63 -> 0
C44: =ECMs!B64 -> 0
C45: =ECMs!B65 -> 0

Sheet Program Summary
B1: Resource Assessment Worksheet -- Industrial | Y1: SUM(MechPulp!N25,KraftPulp1!M25,Paper!M25,Foundries!M25,FrozenFood!M25,OtherFood!M25,Cement!M25,Lumber!M25,Panel!M25,Wood!M25,ElecFab!M25,Silicon!M25,MetalFab!M25,Transportation!M25,ColdStorage!M25,FruitStorage!M25,Refinery!M25,Chemical!M25,MiscManf!M25,WaterSupply!M25,Wastewater!M25)
B2: Year: | C2: 2041 | D2: Territory: | E2: Region | F2: MWh: | G2: =HLOOKUP(ReportYear,Forecast,23) -> 36471432.87 | H2: =G2/8760 -> 4163.405579 | S2: Oregon | T2: Achievable | U2: Replace Only
B3: Date of Run: | C3: =NOW() -> 2020-05-02T16:52:03.780 | E3: Penetration Assumption | G3: Technical | H3: =C6/H2 -> 0.1821482319 | K3: =CONCATENATE("Industrial Supply Curve for Year ",ReportYear) -> Industrial Supply Curve for Year 2041 | S3: Washington | T3: Technical | U3: Retrofit Only
E4: Deployment | F4: Replace and Retrofit | K4: Data do not include line losses | S4: Idaho | U4: Replace and Retrofit
C5: Tech | D5: Ach | G5: Discount rate | H5: 0.0375 | K5: Levelized costs here are not TRC | S5: Montana
B6: Total Technical Potential (aMW) | C6: =SUM(C8:C70)/8760 -> 758.3569649 | D6: =C6*0.85 -> 644.6034201 | M6: TRUE | N6: =10000000/G2 -> 0.2741871984 | O6: Achievable | S6: Region
A7: # | B7: Conservation Measure | C7: Potential Savings (MWh/yr) | D7: Measure Life, yr | E7: Initial Cost (1000$) 2016$ | F7: Annual Fuel Impact (1000 therm) | G7: Annual O&M Cost (1000$) | H7: Levelized Cost ($/kWh) | I7: Loadshape | J7: Annual Non-Energy Benefit ($1000) | K7: End-Use | L7: Deployment (Retrofit or NR) | M7: pre-Rank | N7: Levelized Cost Rank | O7: pre-Rank Retro | P7: Retro or LO Rank
A8: 1 | B8: =ECMs!B4 -> Air Compressor Demand Reduction | C8: =SUM(MechPulp!N25,KraftPulp!N25,Paper!N25,Foundries!N25,FrozenFood!N25,OtherFood!N25,Cement!N25,Lumber!N25,Panel!N25,Wood!N25,ElecFab!N25,Silicon!N25,MetalFab!N25,Transportation!N25,ColdStorage!N25,FruitStorage!N25,Refinery!N25,Chemical!N25,MiscManf!N25,WaterSupply!N25,Wastewater!N25) -> 78084.92794 | D8: =ECMs!E4 -> 10 | E8: =SUM(MechPulp!O25,KraftPulp!O25,Paper!O25,Foundries!O25,FrozenFood!O25,OtherFood!O25,Cement!O25,Lumber!O25,Panel!O25,Wood!O25,ElecFab!O25,Silicon!O25,MetalFab!O25,Transportation!O25,ColdStorage!O25,FruitStorage!O25,Refinery!O25,Chemical!O25,MiscManf!O25,WaterSupply!O25,Wastewater!O25) -> 7970.519615 | G8: =SUM(MechPulp!M25,KraftPulp!M25,Paper!M25,Foundries!M25,FrozenFood!M25,OtherFood!M25,Cement!M25,Lumber!M25,Panel!M25,Wood!M25,ElecFab!M25,Silicon!M25,MetalFab!M25,Transportation!M25,ColdStorage!M25,FruitStorage!M25,Refinery!M25,Chemical!M25,MiscManf!M25,WaterSupply!M25,Wastewater!M25) -> 2475.316651 | H8: =IF(C8<>0,PMT(Discount_rate,D8,-(E8+PV(Discount_rate,D8,J8-G8)))/C8,ECMs!O4) -> 0.04412910288 | I8: =ECMs!G4 -> I-All-Other-Shift3-All-All-S | J8: =SUM(MechPulp!L25,KraftPulp!L25,Paper!L25,Foundries!L25,FrozenFood!L25,OtherFood!L25,Cement!L25,Lumber!L25,Panel!L25,Wood!L25,ElecFab!L25,Silicon!L25,MetalFab!L25,Transportation!L25,ColdStorage!L25,FruitStorage!L25,Refinery!L25,Chemical!L25,MiscManf!L25,WaterSupply!L25,Wastewater!L25) -> 0 | K8: =ECMs!C4 -> Compressed Air | L8: Retro | M8: =IFERROR(IF(C8=0,1000,RANK(H8,$H$8:$H$70,1)),1000)+ROW()/1000 -> 35.008 | N8: =RANK(M8,$M$8:$M$70,1) -> 32 | O8: =IF(L8="retro",A8,A8+100) -> 1 | P8: =RANK(O8,$O$8:$O$53,5) -> 1 | S8: =MATCH(E2,S2:S6,FALSE) -> 5 | T8: =MATCH(G3,T2:T6,FALSE) -> 2 | U8: =MATCH(F4,U2:U6,FALSE) -> 3
A9: 2 | B9: =ECMs!B5 -> Air Compressor Variable Speed | C9: =SUM(MechPulp!N26,KraftPulp!N26,Paper!N26,Foundries!N26,FrozenFood!N26,OtherFood!N26,Cement!N26,Lumber!N26,Panel!N26,Wood!N26,ElecFab!N26,Silicon!N26,MetalFab!N26,Transportation!N26,ColdStorage!N26,FruitStorage!N26,Refinery!N26,Chemical!N26,MiscManf!N26,WaterSupply!N26,Wastewater!N26) -> 214738.2496 | D9: =ECMs!E5 -> 13 | E9: =SUM(MechPulp!O26,KraftPulp!O26,Paper!O26,Foundries!O26,FrozenFood!O26,OtherFood!O26,Cement!O26,Lumber!O26,Panel!O26,Wood!O26,ElecFab!O26,Silicon!O26,MetalFab!O26,Transportation!O26,ColdStorage!O26,FruitStorage!O26,Refinery!O26,Chemical!O26,MiscManf!O26,WaterSupply!O26,Wastewater!O26) -> 148808.8744 | G9: =SUM(MechPulp!M26,KraftPulp!M26,Paper!M26,Foundries!M26,FrozenFood!M26,OtherFood!M26,Cement!M26,Lumber!M26,Panel!M26,Wood!M26,ElecFab!M26,Silicon!M26,MetalFab!M26,Transportation!M26,ColdStorage!M26,FruitStorage!M26,Refinery!M26,Chemical!M26,MiscManf!M26,WaterSupply!M26,Wastewater!M26) -> 0 | H9: =IF(C9<>0,PMT(Discount_rate,D9,-(E9+PV(Discount_rate,D9,J9-G9)))/C9,ECMs!O5) -> 0.06832514946 | I9: =ECMs!G5 -> I-All-Other-Shift3-All-All-S | J9: =SUM(MechPulp!L26,KraftPulp!L26,Paper!L26,Foundries!L26,FrozenFood!L26,OtherFood!L26,Cement!L26,Lumber!L26,Panel!L26,Wood!L26,ElecFab!L26,Silicon!L26,MetalFab!L26,Transportation!L26,ColdStorage!L26,FruitStorage!L26,Refinery!L26,Chemical!L26,MiscManf!L26,WaterSupply!L26,Wastewater!L26) -> 0 | K9: =ECMs!C5 -> Compressed Air | L9: NR | M9: =IFERROR(IF(C9=0,1000,RANK(H9,$H$8:$H$70,1)),1000)+ROW()/1000 -> 43.009 | N9: =RANK(M9,$M$8:$M$70,1) -> 40 | O9: =IF(L9="retro",A9,A9+100) -> 102 | P9: =RANK(O9,$O$8:$O$53,5) -> 37
A10: 3 | B10: =ECMs!B6 -> Air Compressor Equipment | C10: =SUM(MechPulp!N27,KraftPulp!N27,Paper!N27,Foundries!N27,FrozenFood!N27,OtherFood!N27,Cement!N27,Lumber!N27,Panel!N27,Wood!N27,ElecFab!N27,Silicon!N27,MetalFab!N27,Transportation!N27,ColdStorage!N27,FruitStorage!N27,Refinery!N27,Chemical!N27,MiscManf!N27,WaterSupply!N27,Wastewater!N27) -> 318857.387 | D10: =ECMs!E6 -> 13 | E10: =SUM(MechPulp!O27,KraftPulp!O27,Paper!O27,Foundries!O27,FrozenFood!O27,OtherFood!O27,Cement!O27,Lumber!O27,Panel!O27,Wood!O27,ElecFab!O27,Silicon!O27,MetalFab!O27,Transportation!O27,ColdStorage!O27,FruitStorage!O27,Refinery!O27,Chemical!O27,MiscManf!O27,WaterSupply!O27,Wastewater!O27) -> 264575.3991 | G10: =SUM(MechPulp!M27,KraftPulp!M27,Paper!M27,Foundries!M27,FrozenFood!M27,OtherFood!M27,Cement!M27,Lumber!M27,Panel!M27,Wood!M27,ElecFab!M27,Silicon!M27,MetalFab!M27,Transportation!M27,ColdStorage!M27,FruitStorage!M27,Refinery!M27,Chemical!M27,MiscManf!M27,WaterSupply!M27,Wastewater!M27) -> 0 | H10: =IF(C10<>0,PMT(Discount_rate,D10,-(E10+PV(Discount_rate,D10,J10-G10)))/C10,ECMs!O6) -> 0.08181146027 | I10: =ECMs!G6 -> I-All-Other-Shift3-All-All-S | J10: =SUM(MechPulp!L27,KraftPulp!L27,Paper!L27,Foundries!L27,FrozenFood!L27,OtherFood!L27,Cement!L27,Lumber!L27,Panel!L27,Wood!L27,ElecFab!L27,Silicon!L27,MetalFab!L27,Transportation!L27,ColdStorage!L27,FruitStorage!L27,Refinery!L27,Chemical!L27,MiscManf!L27,WaterSupply!L27,Wastewater!L27) -> 0 | K10: =ECMs!C6 -> Compressed Air | L10: NR | M10: 45.01 | N10: 42 | O10: 103 | P10: 38
A11: 4 | B11: =ECMs!B7 -> Energy Management | C11: =SUM(MechPulp!N28,KraftPulp!N28,Paper!N28,Foundries!N28,FrozenFood!N28,OtherFood!N28,Cement!N28,Lumber!N28,Panel!N28,Wood!N28,ElecFab!N28,Silicon!N28,MetalFab!N28,Transportation!N28,ColdStorage!N28,FruitStorage!N28,Refinery!N28,Chemical!N28,MiscManf!N28,WaterSupply!N28,Wastewater!N28) -> 871096.305 | D11: =ECMs!E7 -> 3 | E11: =SUM(MechPulp!O28,KraftPulp!O28,Paper!O28,Foundries!O28,FrozenFood!O28,OtherFood!O28,Cement!O28,Lumber!O28,Panel!O28,Wood!O28,ElecFab!O28,Silicon!O28,MetalFab!O28,Transportation!O28,ColdStorage!O28,FruitStorage!O28,Refinery!O28,Chemical!O28,MiscManf!O28,WaterSupply!O28,Wastewater!O28) -> 72448.1879 | F11: =C11*'Measure Data'!$H$8 -> 52972.23311 | G11: =SUM(MechPulp!M28,KraftPulp!M28,Paper!M28,Foundries!M28,FrozenFood!M28,OtherFood!M28,Cement!M28,Lumber!M28,Panel!M28,Wood!M28,ElecFab!M28,Silicon!M28,MetalFab!M28,Transportation!M28,ColdStorage!M28,FruitStorage!M28,Refinery!M28,Chemical!M28,MiscManf!M28,WaterSupply!M28,Wastewater!M28) -> 0 | H11: =IF(C11<>0,PMT(Discount_rate,D11,-(E11+PV(Discount_rate,D11,J11-G11)))/C11,ECMs!O7) -> 0.02982772556 | I11: =ECMs!G7 -> I-All-Other-Shift3-All-All-S | J11: =SUM(MechPulp!L28,KraftPulp!L28,Paper!L28,Foundries!L28,FrozenFood!L28,OtherFood!L28,Cement!L28,Lumber!L28,Panel!L28,Wood!L28,ElecFab!L28,Silicon!L28,MetalFab!L28,Transportation!L28,ColdStorage!L28,FruitStorage!L28,Refinery!L28,Chemical!L28,MiscManf!L28,WaterSupply!L28,Wastewater!L28) -> 0 | K11: =ECMs!C7 -> All Electric | L11: Retro | M11: 27.011 | N11: 24 | O11: 4 | P11: 2
A12: 5 | B12: =ECMs!B8 -> HighBay Lighting 1 Shift | C12: =SUM(MechPulp!N29,KraftPulp!N29,Paper!N29,Foundries!N29,FrozenFood!N29,OtherFood!N29,Cement!N29,Lumber!N29,Panel!N29,Wood!N29,ElecFab!N29,Silicon!N29,MetalFab!N29,Transportation!N29,ColdStorage!N29,FruitStorage!N29,Refinery!N29,Chemical!N29,MiscManf!N29,WaterSupply!N29,Wastewater!N29) -> 104073.2709 | D12: =ECMs!E8 -> 19.54658495 | E12: =SUM(MechPulp!O29,KraftPulp!O29,Paper!O29,Foundries!O29,FrozenFood!O29,OtherFood!O29,Cement!O29,Lumber!O29,Panel!O29,Wood!O29,ElecFab!O29,Silicon!O29,MetalFab!O29,Transportation!O29,ColdStorage!O29,FruitStorage!O29,Refinery!O29,Chemical!O29,MiscManf!O29,WaterSupply!O29,Wastewater!O29) -> 105421.8656 | G12: =SUM(MechPulp!M29,KraftPulp!M29,Paper!M29,Foundries!M29,FrozenFood!M29,OtherFood!M29,Cement!M29,Lumber!M29,Panel!M29,Wood!M29,ElecFab!M29,Silicon!M29,MetalFab!M29,Transportation!M29,ColdStorage!M29,FruitStorage!M29,Refinery!M29,Chemical!M29,MiscManf!M29,WaterSupply!M29,Wastewater!M29) -> -1666.221273 | H12: =IF(C12<>0,PMT(Discount_rate,D12,-(E12+PV(Discount_rate,D12,J12-G12)))/C12,ECMs!O8) -> 0.05802979975 | I12: =ECMs!G8 -> I-All-Other-Shift1-All-All-S | J12: =SUM(MechPulp!L29,KraftPulp!L29,Paper!L29,Foundries!L29,FrozenFood!L29,OtherFood!L29,Cement!L29,Lumber!L29,Panel!L29,Wood!L29,ElecFab!L29,Silicon!L29,MetalFab!L29,Transportation!L29,ColdStorage!L29,FruitStorage!L29,Refinery!L29,Chemical!L29,MiscManf!L29,WaterSupply!L29,Wastewater!L29) -> 0 | K12: =ECMs!C8 -> Lighting | L12: Retro | M12: 37.012 | N12: 34 | O12: 5 | P12: 3
A13: 6 | B13: =ECMs!B9 -> HighBay Lighting 2 Shift | C13: =SUM(MechPulp!N30,KraftPulp!N30,Paper!N30,Foundries!N30,FrozenFood!N30,OtherFood!N30,Cement!N30,Lumber!N30,Panel!N30,Wood!N30,ElecFab!N30,Silicon!N30,MetalFab!N30,Transportation!N30,ColdStorage!N30,FruitStorage!N30,Refinery!N30,Chemical!N30,MiscManf!N30,WaterSupply!N30,Wastewater!N30) -> 141718.364 | D13: =ECMs!E9 -> 11.43683162 | E13: =SUM(MechPulp!O30,KraftPulp!O30,Paper!O30,Foundries!O30,FrozenFood!O30,OtherFood!O30,Cement!O30,Lumber!O30,Panel!O30,Wood!O30,ElecFab!O30,Silicon!O30,MetalFab!O30,Transportation!O30,ColdStorage!O30,FruitStorage!O30,Refinery!O30,Chemical!O30,MiscManf!O30,WaterSupply!O30,Wastewater!O30) -> 76858.87702 | G13: =SUM(MechPulp!M30,KraftPulp!M30,Paper!M30,Foundries!M30,FrozenFood!M30,OtherFood!M30,Cement!M30,Lumber!M30,Panel!M30,Wood!M30,ElecFab!M30,Silicon!M30,MetalFab!M30,Transportation!M30,ColdStorage!M30,FruitStorage!M30,Refinery!M30,Chemical!M30,MiscManf!M30,WaterSupply!M30,Wastewater!M30) -> -2075.147526 | H13: =IF(C13<>0,PMT(Discount_rate,D13,-(E13+PV(Discount_rate,D13,J13-G13)))/C13,ECMs!O9) -> 0.04454124069 | I13: =ECMs!G9 -> I-All-Other-Shift2-All-All-S | J13: =SUM(MechPulp!L30,KraftPulp!L30,Paper!L30,Foundries!L30,FrozenFood!L30,OtherFood!L30,Cement!L30,Lumber!L30,Panel!L30,Wood!L30,ElecFab!L30,Silicon!L30,MetalFab!L30,Transportation!L30,ColdStorage!L30,FruitStorage!L30,Refinery!L30,Chemical!L30,MiscManf!L30,WaterSupply!L30,Wastewater!L30) -> 0 | K13: =ECMs!C9 -> Lighting | L13: Retro | M13: 36.013 | N13: 33 | O13: 6 | P13: 4
A14: 7 | B14: =ECMs!B10 -> HighBay Lighting 3 Shift | C14: =SUM(MechPulp!N31,KraftPulp!N31,Paper!N31,Foundries!N31,FrozenFood!N31,OtherFood!N31,Cement!N31,Lumber!N31,Panel!N31,Wood!N31,ElecFab!N31,Silicon!N31,MetalFab!N31,Transportation!N31,ColdStorage!N31,FruitStorage!N31,Refinery!N31,Chemical!N31,MiscManf!N31,WaterSupply!N31,Wastewater!N31) -> 223638.5259 | D14: =ECMs!E10 -> 6.381647596 | E14: =SUM(MechPulp!O31,KraftPulp!O31,Paper!O31,Foundries!O31,FrozenFood!O31,OtherFood!O31,Cement!O31,Lumber!O31,Panel!O31,Wood!O31,ElecFab!O31,Silicon!O31,MetalFab!O31,Transportation!O31,ColdStorage!O31,FruitStorage!O31,Refinery!O31,Chemical!O31,MiscManf!O31,WaterSupply!O31,Wastewater!O31) -> 64583.31469 | G14: =SUM(MechPulp!M31,KraftPulp!M31,Paper!M31,Foundries!M31,FrozenFood!M31,OtherFood!M31,Cement!M31,Lumber!M31,Panel!M31,Wood!M31,ElecFab!M31,Silicon!M31,MetalFab!M31,Transportation!M31,ColdStorage!M31,FruitStorage!M31,Refinery!M31,Chemical!M31,MiscManf!M31,WaterSupply!M31,Wastewater!M31) -> -3119.807 | H14: =IF(C14<>0,PMT(Discount_rate,D14,-(E14+PV(Discount_rate,D14,J14-G14)))/C14,ECMs!O10) -> 0.03777190678 | I14: =ECMs!G10 -> I-All-Other-Shift3-All-All-S | J14: =SUM(MechPulp!L31,KraftPulp!L31,Paper!L31,Foundries!L31,FrozenFood!L31,OtherFood!L31,Cement!L31,Lumber!L31,Panel!L31,Wood!L31,ElecFab!L31,Silicon!L31,MetalFab!L31,Transportation!L31,ColdStorage!L31,FruitStorage!L31,Refinery!L31,Chemical!L31,MiscManf!L31,WaterSupply!L31,Wastewater!L31) -> 0 | K14: =ECMs!C10 -> Lighting | L14: Retro | M14: 31.014 | N14: 28 | O14: 7 | P14: 5
A15: 8 | B15: =ECMs!B11 -> Efficient Lighting 1 Shift | C15: =SUM(MechPulp!N32,KraftPulp!N32,Paper!N32,Foundries!N32,FrozenFood!N32,OtherFood!N32,Cement!N32,Lumber!N32,Panel!N32,Wood!N32,ElecFab!N32,Silicon!N32,MetalFab!N32,Transportation!N32,ColdStorage!N32,FruitStorage!N32,Refinery!N32,Chemical!N32,MiscManf!N32,WaterSupply!N32,Wastewater!N32) -> 67303.76691 | D15: =ECMs!E11 -> 18.97135194 | E15: =SUM(MechPulp!O32,KraftPulp!O32,Paper!O32,Foundries!O32,FrozenFood!O32,OtherFood!O32,Cement!O32,Lumber!O32,Panel!O32,Wood!O32,ElecFab!O32,Silicon!O32,MetalFab!O32,Transportation!O32,ColdStorage!O32,FruitStorage!O32,Refinery!O32,Chemical!O32,MiscManf!O32,WaterSupply!O32,Wastewater!O32) -> 17253.41847 | G15: =SUM(MechPulp!M32,KraftPulp!M32,Paper!M32,Foundries!M32,FrozenFood!M32,OtherFood!M32,Cement!M32,Lumber!M32,Panel!M32,Wood!M32,ElecFab!M32,Silicon!M32,MetalFab!M32,Transportation!M32,ColdStorage!M32,FruitStorage!M32,Refinery!M32,Chemical!M32,MiscManf!M32,WaterSupply!M32,Wastewater!M32) -> -37.79457811 | H15: =IF(C15<>0,PMT(Discount_rate,D15,-(E15+PV(Discount_rate,D15,J15-G15)))/C15,ECMs!O11) -> 0.0185643988 | I15: =ECMs!G11 -> I-All-Other-Shift1-All-All-S | J15: =SUM(MechPulp!L32,KraftPulp!L32,Paper!L32,Foundries!L32,FrozenFood!L32,OtherFood!L32,Cement!L32,Lumber!L32,Panel!L32,Wood!L32,ElecFab!L32,Silicon!L32,MetalFab!L32,Transportation!L32,ColdStorage!L32,FruitStorage!L32,Refinery!L32,Chemical!L32,MiscManf!L32,WaterSupply!L32,Wastewater!L32) -> 0 | K15: =ECMs!C11 -> Lighting | L15: Retro | M15: 19.015 | N15: 16 | O15: 8 | P15: 6
A16: 9 | B16: =ECMs!B12 -> Efficient Lighting 2 Shift | C16: =SUM(MechPulp!N33,KraftPulp!N33,Paper!N33,Foundries!N33,FrozenFood!N33,OtherFood!N33,Cement!N33,Lumber!N33,Panel!N33,Wood!N33,ElecFab!N33,Silicon!N33,MetalFab!N33,Transportation!N33,ColdStorage!N33,FruitStorage!N33,Refinery!N33,Chemical!N33,MiscManf!N33,WaterSupply!N33,Wastewater!N33) -> 97486.06362 | D16: =ECMs!E12 -> 11.10025912 | E16: =SUM(MechPulp!O33,KraftPulp!O33,Paper!O33,Foundries!O33,FrozenFood!O33,OtherFood!O33,Cement!O33,Lumber!O33,Panel!O33,Wood!O33,ElecFab!O33,Silicon!O33,MetalFab!O33,Transportation!O33,ColdStorage!O33,FruitStorage!O33,Refinery!O33,Chemical!O33,MiscManf!O33,WaterSupply!O33,Wastewater!O33) -> 13816.38622 | G16: =SUM(MechPulp!M33,KraftPulp!M33,Paper!M33,Foundries!M33,FrozenFood!M33,OtherFood!M33,Cement!M33,Lumber!M33,Panel!M33,Wood!M33,ElecFab!M33,Silicon!M33,MetalFab!M33,Transportation!M33,ColdStorage!M33,FruitStorage!M33,Refinery!M33,Chemical!M33,MiscManf!M33,WaterSupply!M33,Wastewater!M33) -> -51.70427611 | H16: =IF(C16<>0,PMT(Discount_rate,D16,-(E16+PV(Discount_rate,D16,J16-G16)))/C16,ECMs!O12) -> 0.01531329611 | I16: =ECMs!G12 -> I-All-Other-Shift2-All-All-S | J16: =SUM(MechPulp!L33,KraftPulp!L33,Paper!L33,Foundries!L33,FrozenFood!L33,OtherFood!L33,Cement!L33,Lumber!L33,Panel!L33,Wood!L33,ElecFab!L33,Silicon!L33,MetalFab!L33,Transportation!L33,ColdStorage!L33,FruitStorage!L33,Refinery!L33,Chemical!L33,MiscManf!L33,WaterSupply!L33,Wastewater!L33) -> 0 | K16: =ECMs!C12 -> Lighting | L16: Retro | M16: 17.016 | N16: 14 | O16: 9 | P16: 7
A17: 10 | B17: =ECMs!B13 -> Efficient Lighting 3 Shift | C17: =SUM(MechPulp!N34,KraftPulp!N34,Paper!N34,Foundries!N34,FrozenFood!N34,OtherFood!N34,Cement!N34,Lumber!N34,Panel!N34,Wood!N34,ElecFab!N34,Silicon!N34,MetalFab!N34,Transportation!N34,ColdStorage!N34,FruitStorage!N34,Refinery!N34,Chemical!N34,MiscManf!N34,WaterSupply!N34,Wastewater!N34) -> 169000.8178 | D17: =ECMs!E13 -> 6.381647596 | E17: =SUM(MechPulp!O34,KraftPulp!O34,Paper!O34,Foundries!O34,FrozenFood!O34,OtherFood!O34,Cement!O34,Lumber!O34,Panel!O34,Wood!O34,ElecFab!O34,Silicon!O34,MetalFab!O34,Transportation!O34,ColdStorage!O34,FruitStorage!O34,Refinery!O34,Chemical!O34,MiscManf!O34,WaterSupply!O34,Wastewater!O34) -> 12907.14146 | G17: =SUM(MechPulp!M34,KraftPulp!M34,Paper!M34,Foundries!M34,FrozenFood!M34,OtherFood!M34,Cement!M34,Lumber!M34,Panel!M34,Wood!M34,ElecFab!M34,Silicon!M34,MetalFab!M34,Transportation!M34,ColdStorage!M34,FruitStorage!M34,Refinery!M34,Chemical!M34,MiscManf!M34,WaterSupply!M34,Wastewater!M34) -> -86.43671588 | H17: =IF(C17<>0,PMT(Discount_rate,D17,-(E17+PV(Discount_rate,D17,J17-G17)))/C17,ECMs!O13) -> 0.0131672148 | I17: =ECMs!G13 -> I-All-Other-Shift3-All-All-S | J17: =SUM(MechPulp!L34,KraftPulp!L34,Paper!L34,Foundries!L34,FrozenFood!L34,OtherFood!L34,Cement!L34,Lumber!L34,Panel!L34,Wood!L34,ElecFab!L34,Silicon!L34,MetalFab!L34,Transportation!L34,ColdStorage!L34,FruitStorage!L34,Refinery!L34,Chemical!L34,MiscManf!L34,WaterSupply!L34,Wastewater!L34) -> 0 | K17: =ECMs!C13 -> Lighting | L17: Retro | M17: 13.017 | N17: 10 | O17: 10 | P17: 8
A18: 11 | B18: =ECMs!B14 -> Lighting Controls | C18: =SUM(MechPulp!N35,KraftPulp!N35,Paper!N35,Foundries!N35,FrozenFood!N35,OtherFood!N35,Cement!N35,Lumber!N35,Panel!N35,Wood!N35,ElecFab!N35,Silicon!N35,MetalFab!N35,Transportation!N35,ColdStorage!N35,FruitStorage!N35,Refinery!N35,Chemical!N35,MiscManf!N35,WaterSupply!N35,Wastewater!N35) -> 332234.8299 | D18: =ECMs!E14 -> 11 | E18: =SUM(MechPulp!O35,KraftPulp!O35,Paper!O35,Foundries!O35,FrozenFood!O35,OtherFood!O35,Cement!O35,Lumber!O35,Panel!O35,Wood!O35,ElecFab!O35,Silicon!O35,MetalFab!O35,Transportation!O35,ColdStorage!O35,FruitStorage!O35,Refinery!O35,Chemical!O35,MiscManf!O35,WaterSupply!O35,Wastewater!O35) -> 186582.6574 | G18: =SUM(MechPulp!M35,KraftPulp!M35,Paper!M35,Foundries!M35,FrozenFood!M35,OtherFood!M35,Cement!M35,Lumber!M35,Panel!M35,Wood!M35,ElecFab!M35,Silicon!M35,MetalFab!M35,Transportation!M35,ColdStorage!M35,FruitStorage!M35,Refinery!M35,Chemical!M35,MiscManf!M35,WaterSupply!M35,Wastewater!M35) -> 485.6546172 | H18: =IF(C18<>0,PMT(Discount_rate,D18,-(E18+PV(Discount_rate,D18,J18-G18)))/C18,ECMs!O14) -> 0.06470634147 | I18: =ECMs!G14 -> I-All-Other-Shift3-All-All-S | J18: =SUM(MechPulp!L35,KraftPulp!L35,Paper!L35,Foundries!L35,FrozenFood!L35,OtherFood!L35,Cement!L35,Lumber!L35,Panel!L35,Wood!L35,ElecFab!L35,Silicon!L35,MetalFab!L35,Transportation!L35,ColdStorage!L35,FruitStorage!L35,Refinery!L35,Chemical!L35,MiscManf!L35,WaterSupply!L35,Wastewater!L35) -> 0 | K18: =ECMs!C14 -> Lighting | L18: Retro | M18: 42.018 | N18: 39 | O18: 11 | P18: 9
A19: 12 | B19: =ECMs!B15 -> Refrigeration Retrofit (low temp) | C19: =SUM(MechPulp!N36,KraftPulp!N36,Paper!N36,Foundries!N36,FrozenFood!N36,OtherFood!N36,Cement!N36,Lumber!N36,Panel!N36,Wood!N36,ElecFab!N36,Silicon!N36,MetalFab!N36,Transportation!N36,ColdStorage!N36,FruitStorage!N36,Refinery!N36,Chemical!N36,MiscManf!N36,WaterSupply!N36,Wastewater!N36) -> 164637.7712 | D19: =ECMs!E15 -> 10 | E19: =SUM(MechPulp!O36,KraftPulp!O36,Paper!O36,Foundries!O36,FrozenFood!O36,OtherFood!O36,Cement!O36,Lumber!O36,Panel!O36,Wood!O36,ElecFab!O36,Silicon!O36,MetalFab!O36,Transportation!O36,ColdStorage!O36,FruitStorage!O36,Refinery!O36,Chemical!O36,MiscManf!O36,WaterSupply!O36,Wastewater!O36) -> 57082.92057 | G19: =SUM(MechPulp!M36,KraftPulp!M36,Paper!M36,Foundries!M36,FrozenFood!M36,OtherFood!M36,Cement!M36,Lumber!M36,Panel!M36,Wood!M36,ElecFab!M36,Silicon!M36,MetalFab!M36,Transportation!M36,ColdStorage!M36,FruitStorage!M36,Refinery!M36,Chemical!M36,MiscManf!M36,WaterSupply!M36,Wastewater!M36) -> 0 | H19: =IF(C19<>0,PMT(Discount_rate,D19,-(E19+PV(Discount_rate,D19,J19-G19)))/C19,ECMs!O15) -> 0.04221688001 | I19: =ECMs!G15 -> C-War-Ref-All-All-All-C | J19: =SUM(MechPulp!L36,KraftPulp!L36,Paper!L36,Foundries!L36,FrozenFood!L36,OtherFood!L36,Cement!L36,Lumber!L36,Panel!L36,Wood!L36,ElecFab!L36,Silicon!L36,MetalFab!L36,Transportation!L36,ColdStorage!L36,FruitStorage!L36,Refinery!L36,Chemical!L36,MiscManf!L36,WaterSupply!L36,Wastewater!L36) -> 0 | K19: =ECMs!C15 -> Low Temp Refer | L19: Retro | M19: 34.019 | N19: 31 | O19: 12 | P19: 10
A20: 13 | B20: =ECMs!B16 -> Refrigeration Tuneup (low temp) | C20: =SUM(MechPulp!N37,KraftPulp!N37,Paper!N37,Foundries!N37,FrozenFood!N37,OtherFood!N37,Cement!N37,Lumber!N37,Panel!N37,Wood!N37,ElecFab!N37,Silicon!N37,MetalFab!N37,Transportation!N37,ColdStorage!N37,FruitStorage!N37,Refinery!N37,Chemical!N37,MiscManf!N37,WaterSupply!N37,Wastewater!N37) -> 0 | D20: =ECMs!E16 -> 3 | E20: =SUM(MechPulp!O37,KraftPulp!O37,Paper!O37,Foundries!O37,FrozenFood!O37,OtherFood!O37,Cement!O37,Lumber!O37,Panel!O37,Wood!O37,ElecFab!O37,Silicon!O37,MetalFab!O37,Transportation!O37,ColdStorage!O37,FruitStorage!O37,Refinery!O37,Chemical!O37,MiscManf!O37,WaterSupply!O37,Wastewater!O37) -> 0 | G20: =SUM(MechPulp!M37,KraftPulp!M37,Paper!M37,Foundries!M37,FrozenFood!M37,OtherFood!M37,Cement!M37,Lumber!M37,Panel!M37,Wood!M37,ElecFab!M37,Silicon!M37,MetalFab!M37,Transportation!M37,ColdStorage!M37,FruitStorage!M37,Refinery!M37,Chemical!M37,MiscManf!M37,WaterSupply!M37,Wastewater!M37) -> 0 | H20: =IF(C20<>0,PMT(Discount_rate,D20,-(E20+PV(Discount_rate,D20,J20-G20)))/C20,ECMs!O16) -> 4.029238748e-05 | I20: =ECMs!G16 -> C-War-Ref-All-All-All-C | J20: =SUM(MechPulp!L37,KraftPulp!L37,Paper!L37,Foundries!L37,FrozenFood!L37,OtherFood!L37,Cement!L37,Lumber!L37,Panel!L37,Wood!L37,ElecFab!L37,Silicon!L37,MetalFab!L37,Transportation!L37,ColdStorage!L37,FruitStorage!L37,Refinery!L37,Chemical!L37,MiscManf!L37,WaterSupply!L37,Wastewater!L37) -> 0 | K20: =ECMs!C16 -> Low Temp Refer | L20: Retro | M20: 1000.02 | N20: 44 | O20: 13 | P20: 11
A21: 14 | B21: =ECMs!B17 -> Refrigeration Retrofit (med temp) | C21: =SUM(MechPulp!N38,KraftPulp!N38,Paper!N38,Foundries!N38,FrozenFood!N38,OtherFood!N38,Cement!N38,Lumber!N38,Panel!N38,Wood!N38,ElecFab!N38,Silicon!N38,MetalFab!N38,Transportation!N38,ColdStorage!N38,FruitStorage!N38,Refinery!N38,Chemical!N38,MiscManf!N38,WaterSupply!N38,Wastewater!N38) -> 79208.98056 | D21: =ECMs!E17 -> 10 | E21: =SUM(MechPulp!O38,KraftPulp!O38,Paper!O38,Foundries!O38,FrozenFood!O38,OtherFood!O38,Cement!O38,Lumber!O38,Panel!O38,Wood!O38,ElecFab!O38,Silicon!O38,MetalFab!O38,Transportation!O38,ColdStorage!O38,FruitStorage!O38,Refinery!O38,Chemical!O38,MiscManf!O38,WaterSupply!O38,Wastewater!O38) -> 27463.19944 | G21: =SUM(MechPulp!M38,KraftPulp!M38,Paper!M38,Foundries!M38,FrozenFood!M38,OtherFood!M38,Cement!M38,Lumber!M38,Panel!M38,Wood!M38,ElecFab!M38,Silicon!M38,MetalFab!M38,Transportation!M38,ColdStorage!M38,FruitStorage!M38,Refinery!M38,Chemical!M38,MiscManf!M38,WaterSupply!M38,Wastewater!M38) -> 0 | H21: =IF(C21<>0,PMT(Discount_rate,D21,-(E21+PV(Discount_rate,D21,J21-G21)))/C21,ECMs!O17) -> 0.04221688001 | I21: =ECMs!G17 -> C-War-Ref-All-All-All-C | J21: =SUM(MechPulp!L38,KraftPulp!L38,Paper!L38,Foundries!L38,FrozenFood!L38,OtherFood!L38,Cement!L38,Lumber!L38,Panel!L38,Wood!L38,ElecFab!L38,Silicon!L38,MetalFab!L38,Transportation!L38,ColdStorage!L38,FruitStorage!L38,Refinery!L38,Chemical!L38,MiscManf!L38,WaterSupply!L38,Wastewater!L38) -> 0 | K21: =ECMs!C17 -> Med Temp Refer | L21: Retro | M21: 33.021 | N21: 30 | O21: 14 | P21: 12
A22: 15 | B22: =ECMs!B18 -> Refrigeration Tuneup (med temp) | C22: =SUM(MechPulp!N39,KraftPulp!N39,Paper!N39,Foundries!N39,FrozenFood!N39,OtherFood!N39,Cement!N39,Lumber!N39,Panel!N39,Wood!N39,ElecFab!N39,Silicon!N39,MetalFab!N39,Transportation!N39,ColdStorage!N39,FruitStorage!N39,Refinery!N39,Chemical!N39,MiscManf!N39,WaterSupply!N39,Wastewater!N39) -> 0 | D22: =ECMs!E18 -> 3 | E22: =SUM(MechPulp!O39,KraftPulp!O39,Paper!O39,Foundries!O39,FrozenFood!O39,OtherFood!O39,Cement!O39,Lumber!O39,Panel!O39,Wood!O39,ElecFab!O39,Silicon!O39,MetalFab!O39,Transportation!O39,ColdStorage!O39,FruitStorage!O39,Refinery!O39,Chemical!O39,MiscManf!O39,WaterSupply!O39,Wastewater!O39) -> 0 | G22: =SUM(MechPulp!M39,KraftPulp!M39,Paper!M39,Foundries!M39,FrozenFood!M39,OtherFood!M39,Cement!M39,Lumber!M39,Panel!M39,Wood!M39,ElecFab!M39,Silicon!M39,MetalFab!M39,Transportation!M39,ColdStorage!M39,FruitStorage!M39,Refinery!M39,Chemical!M39,MiscManf!M39,WaterSupply!M39,Wastewater!M39) -> 0 | H22: =IF(C22<>0,PMT(Discount_rate,D22,-(E22+PV(Discount_rate,D22,J22-G22)))/C22,ECMs!O18) -> 4.029238748e-05 | I22: =ECMs!G18 -> C-War-Ref-All-All-All-C | J22: =SUM(MechPulp!L39,KraftPulp!L39,Paper!L39,Foundries!L39,FrozenFood!L39,OtherFood!L39,Cement!L39,Lumber!L39,Panel!L39,Wood!L39,ElecFab!L39,Silicon!L39,MetalFab!L39,Transportation!L39,ColdStorage!L39,FruitStorage!L39,Refinery!L39,Chemical!L39,MiscManf!L39,WaterSupply!L39,Wastewater!L39) -> 0 | K22: =ECMs!C18 -> Med Temp Refer | L22: Retro | M22: 1000.022 | N22: 45 | O22: 15 | P22: 13
A23: 16 | B23: =ECMs!B19 -> WaterSupply | C23: =SUM(MechPulp!N40,KraftPulp!N40,Paper!N40,Foundries!N40,FrozenFood!N40,OtherFood!N40,Cement!N40,Lumber!N40,Panel!N40,Wood!N40,ElecFab!N40,Silicon!N40,MetalFab!N40,Transportation!N40,ColdStorage!N40,FruitStorage!N40,Refinery!N40,Chemical!N40,MiscManf!N40,WaterSupply!N40,Wastewater!N40) -> 119008.2428 | D23: =ECMs!E19 -> 10 | E23: =SUM(MechPulp!O40,KraftPulp!O40,Paper!O40,Foundries!O40,FrozenFood!O40,OtherFood!O40,Cement!O40,Lumber!O40,Panel!O40,Wood!O40,ElecFab!O40,Silicon!O40,MetalFab!O40,Transportation!O40,ColdStorage!O40,FruitStorage!O40,Refinery!O40,Chemical!O40,MiscManf!O40,WaterSupply!O40,Wastewater!O40) -> 38411.90545 | G23: =SUM(MechPulp!M40,KraftPulp!M40,Paper!M40,Foundries!M40,FrozenFood!M40,OtherFood!M40,Cement!M40,Lumber!M40,Panel!M40,Wood!M40,ElecFab!M40,Silicon!M40,MetalFab!M40,Transportation!M40,ColdStorage!M40,FruitStorage!M40,Refinery!M40,Chemical!M40,MiscManf!M40,WaterSupply!M40,Wastewater!M40) -> 0 | H23: =IF(C23<>0,PMT(Discount_rate,D23,-(E23+PV(Discount_rate,D23,J23-G23)))/C23,ECMs!O19) -> 0.03930051447 | I23: =ECMs!G19 -> I-WaterSupply-Mot-All-All-All-U | J23: =SUM(MechPulp!L40,KraftPulp!L40,Paper!L40,Foundries!L40,FrozenFood!L40,OtherFood!L40,Cement!L40,Lumber!L40,Panel!L40,Wood!L40,ElecFab!L40,Silicon!L40,MetalFab!L40,Transportation!L40,ColdStorage!L40,FruitStorage!L40,Refinery!L40,Chemical!L40,MiscManf!L40,WaterSupply!L40,Wastewater!L40) -> 0 | K23: =ECMs!C19 -> All Electric | L23: Retro | M23: 32.023 | N23: 29 | O23: 16 | P23: 14
A24: 17 | B24: =ECMs!B20 -> Wastewater | C24: =SUM(MechPulp!N41,KraftPulp!N41,Paper!N41,Foundries!N41,FrozenFood!N41,OtherFood!N41,Cement!N41,Lumber!N41,Panel!N41,Wood!N41,ElecFab!N41,Silicon!N41,MetalFab!N41,Transportation!N41,ColdStorage!N41,FruitStorage!N41,Refinery!N41,Chemical!N41,MiscManf!N41,WaterSupply!N41,Wastewater!N41) -> 328538.523 | D24: =ECMs!E20 -> 12 | E24: =SUM(MechPulp!O41,KraftPulp!O41,Paper!O41,Foundries!O41,FrozenFood!O41,OtherFood!O41,Cement!O41,Lumber!O41,Panel!O41,Wood!O41,ElecFab!O41,Silicon!O41,MetalFab!O41,Transportation!O41,ColdStorage!O41,FruitStorage!O41,Refinery!O41,Chemical!O41,MiscManf!O41,WaterSupply!O41,Wastewater!O41) -> 190191.4136 | G24: =SUM(MechPulp!M41,KraftPulp!M41,Paper!M41,Foundries!M41,FrozenFood!M41,OtherFood!M41,Cement!M41,Lumber!M41,Panel!M41,Wood!M41,ElecFab!M41,Silicon!M41,MetalFab!M41,Transportation!M41,ColdStorage!M41,FruitStorage!M41,Refinery!M41,Chemical!M41,MiscManf!M41,WaterSupply!M41,Wastewater!M41) -> 0 | H24: =IF(C24<>0,PMT(Discount_rate,D24,-(E24+PV(Discount_rate,D24,J24-G24)))/C24,ECMs!O20) -> 0.06079176891 | I24: =ECMs!G20 -> I-Wastewater-Mot-All-All-All-U | J24: =SUM(MechPulp!L41,KraftPulp!L41,Paper!L41,Foundries!L41,FrozenFood!L41,OtherFood!L41,Cement!L41,Lumber!L41,Panel!L41,Wood!L41,ElecFab!L41,Silicon!L41,MetalFab!L41,Transportation!L41,ColdStorage!L41,FruitStorage!L41,Refinery!L41,Chemical!L41,MiscManf!L41,WaterSupply!L41,Wastewater!L41) -> 0 | K24: =ECMs!C20 -> All Electric | L24: Retro | M24: 39.024 | N24: 36 | O24: 17 | P24: 15
A25: 18 | B25: =ECMs!B21 -> Fan Optimization | C25: =SUM(MechPulp!N42,KraftPulp!N42,Paper!N42,Foundries!N42,FrozenFood!N42,OtherFood!N42,Cement!N42,Lumber!N42,Panel!N42,Wood!N42,ElecFab!N42,Silicon!N42,MetalFab!N42,Transportation!N42,ColdStorage!N42,FruitStorage!N42,Refinery!N42,Chemical!N42,MiscManf!N42,WaterSupply!N42,Wastewater!N42) -> 120812.6402 | D25: =ECMs!E21 -> 13 | E25: =SUM(MechPulp!O42,KraftPulp!O42,Paper!O42,Foundries!O42,FrozenFood!O42,OtherFood!O42,Cement!O42,Lumber!O42,Panel!O42,Wood!O42,ElecFab!O42,Silicon!O42,MetalFab!O42,Transportation!O42,ColdStorage!O42,FruitStorage!O42,Refinery!O42,Chemical!O42,MiscManf!O42,WaterSupply!O42,Wastewater!O42) -> 76886.0088 | G25: =SUM(MechPulp!M42,KraftPulp!M42,Paper!M42,Foundries!M42,FrozenFood!M42,OtherFood!M42,Cement!M42,Lumber!M42,Panel!M42,Wood!M42,ElecFab!M42,Silicon!M42,MetalFab!M42,Transportation!M42,ColdStorage!M42,FruitStorage!M42,Refinery!M42,Chemical!M42,MiscManf!M42,WaterSupply!M42,Wastewater!M42) -> 0 | H25: =IF(C25<>0,PMT(Discount_rate,D25,-(E25+PV(Discount_rate,D25,J25-G25)))/C25,ECMs!O21) -> 0.06274745405 | I25: =ECMs!G21 -> I-All-Other-Shift3-All-All-S | J25: =SUM(MechPulp!L42,KraftPulp!L42,Paper!L42,Foundries!L42,FrozenFood!L42,OtherFood!L42,Cement!L42,Lumber!L42,Panel!L42,Wood!L42,ElecFab!L42,Silicon!L42,MetalFab!L42,Transportation!L42,ColdStorage!L42,FruitStorage!L42,Refinery!L42,Chemical!L42,MiscManf!L42,WaterSupply!L42,Wastewater!L42) -> 0 | K25: =ECMs!C21 -> Fans and Blowers | L25: Retro | M25: 41.025 | N25: 38 | O25: 18 | P25: 16
A26: 19 | B26: =ECMs!B22 -> Fan Equipment Upgrade | C26: =SUM(MechPulp!N43,KraftPulp!N43,Paper!N43,Foundries!N43,FrozenFood!N43,OtherFood!N43,Cement!N43,Lumber!N43,Panel!N43,Wood!N43,ElecFab!N43,Silicon!N43,MetalFab!N43,Transportation!N43,ColdStorage!N43,FruitStorage!N43,Refinery!N43,Chemical!N43,MiscManf!N43,WaterSupply!N43,Wastewater!N43) -> 431825.246 | D26: =ECMs!E22 -> 22 | E26: =SUM(MechPulp!O43,KraftPulp!O43,Paper!O43,Foundries!O43,FrozenFood!O43,OtherFood!O43,Cement!O43,Lumber!O43,Panel!O43,Wood!O43,ElecFab!O43,Silicon!O43,MetalFab!O43,Transportation!O43,ColdStorage!O43,FruitStorage!O43,Refinery!O43,Chemical!O43,MiscManf!O43,WaterSupply!O43,Wastewater!O43) -> 2891.095904 | G26: =SUM(MechPulp!M43,KraftPulp!M43,Paper!M43,Foundries!M43,FrozenFood!M43,OtherFood!M43,Cement!M43,Lumber!M43,Panel!M43,Wood!M43,ElecFab!M43,Silicon!M43,MetalFab!M43,Transportation!M43,ColdStorage!M43,FruitStorage!M43,Refinery!M43,Chemical!M43,MiscManf!M43,WaterSupply!M43,Wastewater!M43) -> 0 | H26: =IF(C26<>0,PMT(Discount_rate,D26,-(E26+PV(Discount_rate,D26,J26-G26)))/C26,ECMs!O22) -> 0.000452286817 | I26: =ECMs!G22 -> I-All-Other-Shift3-All-All-S | J26: =SUM(MechPulp!L43,KraftPulp!L43,Paper!L43,Foundries!L43,FrozenFood!L43,OtherFood!L43,Cement!L43,Lumber!L43,Panel!L43,Wood!L43,ElecFab!L43,Silicon!L43,MetalFab!L43,Transportation!L43,ColdStorage!L43,FruitStorage!L43,Refinery!L43,Chemical!L43,MiscManf!L43,WaterSupply!L43,Wastewater!L43) -> 0 | K26: =ECMs!C22 -> Fans and Blowers | L26: NR | M26: 5.026 | N26: 3 | O26: 119 | P26: 39
A27: 20 | B27: =ECMs!B23 -> Fan Variable Speed | C27: =SUM(MechPulp!N44,KraftPulp!N44,Paper!N44,Foundries!N44,FrozenFood!N44,OtherFood!N44,Cement!N44,Lumber!N44,Panel!N44,Wood!N44,ElecFab!N44,Silicon!N44,MetalFab!N44,Transportation!N44,ColdStorage!N44,FruitStorage!N44,Refinery!N44,Chemical!N44,MiscManf!N44,WaterSupply!N44,Wastewater!N44) -> 110752.4822 | D27: =ECMs!E23 -> 22 | E27: =SUM(MechPulp!O44,KraftPulp!O44,Paper!O44,Foundries!O44,FrozenFood!O44,OtherFood!O44,Cement!O44,Lumber!O44,Panel!O44,Wood!O44,ElecFab!O44,Silicon!O44,MetalFab!O44,Transportation!O44,ColdStorage!O44,FruitStorage!O44,Refinery!O44,Chemical!O44,MiscManf!O44,WaterSupply!O44,Wastewater!O44) -> 15613.86422 | G27: =SUM(MechPulp!M44,KraftPulp!M44,Paper!M44,Foundries!M44,FrozenFood!M44,OtherFood!M44,Cement!M44,Lumber!M44,Panel!M44,Wood!M44,ElecFab!M44,Silicon!M44,MetalFab!M44,Transportation!M44,ColdStorage!M44,FruitStorage!M44,Refinery!M44,Chemical!M44,MiscManf!M44,WaterSupply!M44,Wastewater!M44) -> 0 | H27: =IF(C27<>0,PMT(Discount_rate,D27,-(E27+PV(Discount_rate,D27,J27-G27)))/C27,ECMs!O23) -> 0.009523934283 | I27: =ECMs!G23 -> I-All-Other-Shift3-All-All-S | J27: =SUM(MechPulp!L44,KraftPulp!L44,Paper!L44,Foundries!L44,FrozenFood!L44,OtherFood!L44,Cement!L44,Lumber!L44,Panel!L44,Wood!L44,ElecFab!L44,Silicon!L44,MetalFab!L44,Transportation!L44,ColdStorage!L44,FruitStorage!L44,Refinery!L44,Chemical!L44,MiscManf!L44,WaterSupply!L44,Wastewater!L44) -> 0 | K27: =ECMs!C23 -> Fans and Blowers | L27: NR | M27: 9.027 | N27: 7 | O27: 120 | P27: 40
A28: 21 | B28: =ECMs!B24 -> Fan VS Trim | C28: =SUM(MechPulp!N45,KraftPulp!N45,Paper!N45,Foundries!N45,FrozenFood!N45,OtherFood!N45,Cement!N45,Lumber!N45,Panel!N45,Wood!N45,ElecFab!N45,Silicon!N45,MetalFab!N45,Transportation!N45,ColdStorage!N45,FruitStorage!N45,Refinery!N45,Chemical!N45,MiscManf!N45,WaterSupply!N45,Wastewater!N45) -> 109114.9498 | D28: =ECMs!E24 -> 22 | E28: =SUM(MechPulp!O45,KraftPulp!O45,Paper!O45,Foundries!O45,FrozenFood!O45,OtherFood!O45,Cement!O45,Lumber!O45,Panel!O45,Wood!O45,ElecFab!O45,Silicon!O45,MetalFab!O45,Transportation!O45,ColdStorage!O45,FruitStorage!O45,Refinery!O45,Chemical!O45,MiscManf!O45,WaterSupply!O45,Wastewater!O45) -> 31227.72844 | G28: =SUM(MechPulp!M45,KraftPulp!M45,Paper!M45,Foundries!M45,FrozenFood!M45,OtherFood!M45,Cement!M45,Lumber!M45,Panel!M45,Wood!M45,ElecFab!M45,Silicon!M45,MetalFab!M45,Transportation!M45,ColdStorage!M45,FruitStorage!M45,Refinery!M45,Chemical!M45,MiscManf!M45,WaterSupply!M45,Wastewater!M45) -> 0 | H28: =IF(C28<>0,PMT(Discount_rate,D28,-(E28+PV(Discount_rate,D28,J28-G28)))/C28,ECMs!O24) -> 0.01933372766 | I28: =ECMs!G24 -> I-All-Other-Shift3-All-All-S | J28: =SUM(MechPulp!L45,KraftPulp!L45,Paper!L45,Foundries!L45,FrozenFood!L45,OtherFood!L45,Cement!L45,Lumber!L45,Panel!L45,Wood!L45,ElecFab!L45,Silicon!L45,MetalFab!L45,Transportation!L45,ColdStorage!L45,FruitStorage!L45,Refinery!L45,Chemical!L45,MiscManf!L45,WaterSupply!L45,Wastewater!L45) -> 0 | K28: =ECMs!C24 -> Fans and Blowers | L28: NR | M28: 20.028 | N28: 17 | O28: 121 | P28: 41
A29: 22 | B29: =ECMs!B25 -> Pump Equipment Upgrade | C29: =SUM(MechPulp!N46,KraftPulp!N46,Paper!N46,Foundries!N46,FrozenFood!N46,OtherFood!N46,Cement!N46,Lumber!N46,Panel!N46,Wood!N46,ElecFab!N46,Silicon!N46,MetalFab!N46,Transportation!N46,ColdStorage!N46,FruitStorage!N46,Refinery!N46,Chemical!N46,MiscManf!N46,WaterSupply!N46,Wastewater!N46) -> 130859.9404 | D29: =ECMs!E25 -> 13 | E29: =SUM(MechPulp!O46,KraftPulp!O46,Paper!O46,Foundries!O46,FrozenFood!O46,OtherFood!O46,Cement!O46,Lumber!O46,Panel!O46,Wood!O46,ElecFab!O46,Silicon!O46,MetalFab!O46,Transportation!O46,ColdStorage!O46,FruitStorage!O46,Refinery!O46,Chemical!O46,MiscManf!O46,WaterSupply!O46,Wastewater!O46) -> 34181.47131 | G29: =SUM(MechPulp!M46,KraftPulp!M46,Paper!M46,Foundries!M46,FrozenFood!M46,OtherFood!M46,Cement!M46,Lumber!M46,Panel!M46,Wood!M46,ElecFab!M46,Silicon!M46,MetalFab!M46,Transportation!M46,ColdStorage!M46,FruitStorage!M46,Refinery!M46,Chemical!M46,MiscManf!M46,WaterSupply!M46,Wastewater!M46) -> 0 | H29: =IF(C29<>0,PMT(Discount_rate,D29,-(E29+PV(Discount_rate,D29,J29-G29)))/C29,ECMs!O25) -> 0.02575403026 | I29: =ECMs!G25 -> I-All-Other-Shift3-All-All-S | J29: =SUM(MechPulp!L46,KraftPulp!L46,Paper!L46,Foundries!L46,FrozenFood!L46,OtherFood!L46,Cement!L46,Lumber!L46,Panel!L46,Wood!L46,ElecFab!L46,Silicon!L46,MetalFab!L46,Transportation!L46,ColdStorage!L46,FruitStorage!L46,Refinery!L46,Chemical!L46,MiscManf!L46,WaterSupply!L46,Wastewater!L46) -> 0 | K29: =ECMs!C25 -> Pumps | L29: NR | M29: 22.029 | N29: 19 | O29: 122 | P29: 42
A30: 23 | B30: =ECMs!B26 -> Pump Variable Speed | C30: =SUM(MechPulp!N47,KraftPulp!N47,Paper!N47,Foundries!N47,FrozenFood!N47,OtherFood!N47,Cement!N47,Lumber!N47,Panel!N47,Wood!N47,ElecFab!N47,Silicon!N47,MetalFab!N47,Transportation!N47,ColdStorage!N47,FruitStorage!N47,Refinery!N47,Chemical!N47,MiscManf!N47,WaterSupply!N47,Wastewater!N47) -> 179785.8503 | D30: =ECMs!E26 -> 13 | E30: =SUM(MechPulp!O47,KraftPulp!O47,Paper!O47,Foundries!O47,FrozenFood!O47,OtherFood!O47,Cement!O47,Lumber!O47,Panel!O47,Wood!O47,ElecFab!O47,Silicon!O47,MetalFab!O47,Transportation!O47,ColdStorage!O47,FruitStorage!O47,Refinery!O47,Chemical!O47,MiscManf!O47,WaterSupply!O47,Wastewater!O47) -> 30777.87765 | G30: =SUM(MechPulp!M47,KraftPulp!M47,Paper!M47,Foundries!M47,FrozenFood!M47,OtherFood!M47,Cement!M47,Lumber!M47,Panel!M47,Wood!M47,ElecFab!M47,Silicon!M47,MetalFab!M47,Transportation!M47,ColdStorage!M47,FruitStorage!M47,Refinery!M47,Chemical!M47,MiscManf!M47,WaterSupply!M47,Wastewater!M47) -> 0 | H30: =IF(C30<>0,PMT(Discount_rate,D30,-(E30+PV(Discount_rate,D30,J30-G30)))/C30,ECMs!O26) -> 0.0168789073 | I30: =ECMs!G26 -> I-All-Other-Shift3-All-All-S | J30: =SUM(MechPulp!L47,KraftPulp!L47,Paper!L47,Foundries!L47,FrozenFood!L47,OtherFood!L47,Cement!L47,Lumber!L47,Panel!L47,Wood!L47,ElecFab!L47,Silicon!L47,MetalFab!L47,Transportation!L47,ColdStorage!L47,FruitStorage!L47,Refinery!L47,Chemical!L47,MiscManf!L47,WaterSupply!L47,Wastewater!L47) -> 0 | K30: =ECMs!C26 -> Pumps | L30: NR | M30: 18.03 | N30: 15 | O30: 123 | P30: 43
A31: 24 | B31: =ECMs!B27 -> Pump Optimization | C31: =SUM(MechPulp!N48,KraftPulp!N48,Paper!N48,Foundries!N48,FrozenFood!N48,OtherFood!N48,Cement!N48,Lumber!N48,Panel!N48,Wood!N48,ElecFab!N48,Silicon!N48,MetalFab!N48,Transportation!N48,ColdStorage!N48,FruitStorage!N48,Refinery!N48,Chemical!N48,MiscManf!N48,WaterSupply!N48,Wastewater!N48) -> 425075.7348 | D31: =ECMs!E27 -> 13 | E31: =SUM(MechPulp!O48,KraftPulp!O48,Paper!O48,Foundries!O48,FrozenFood!O48,OtherFood!O48,Cement!O48,Lumber!O48,Panel!O48,Wood!O48,ElecFab!O48,Silicon!O48,MetalFab!O48,Transportation!O48,ColdStorage!O48,FruitStorage!O48,Refinery!O48,Chemical!O48,MiscManf!O48,WaterSupply!O48,Wastewater!O48) -> 29048.80088 | G31: =SUM(MechPulp!M48,KraftPulp!M48,Paper!M48,Foundries!M48,FrozenFood!M48,OtherFood!M48,Cement!M48,Lumber!M48,Panel!M48,Wood!M48,ElecFab!M48,Silicon!M48,MetalFab!M48,Transportation!M48,ColdStorage!M48,FruitStorage!M48,Refinery!M48,Chemical!M48,MiscManf!M48,WaterSupply!M48,Wastewater!M48) -> 0 | H31: =IF(C31<>0,PMT(Discount_rate,D31,-(E31+PV(Discount_rate,D31,J31-G31)))/C31,ECMs!O27) -> 0.006737876754 | I31: =ECMs!G27 -> I-All-Other-Shift3-All-All-S | J31: =SUM(MechPulp!L48,KraftPulp!L48,Paper!L48,Foundries!L48,FrozenFood!L48,OtherFood!L48,Cement!L48,Lumber!L48,Panel!L48,Wood!L48,ElecFab!L48,Silicon!L48,MetalFab!L48,Transportation!L48,ColdStorage!L48,FruitStorage!L48,Refinery!L48,Chemical!L48,MiscManf!L48,WaterSupply!L48,Wastewater!L48) -> 0 | K31: =ECMs!C27 -> Pumps | L31: Retro | M31: 8.031 | N31: 6 | O31: 24 | P31: 17
... 37 more rows

Sheet MeasureSort
B2: This worksheet sorts the measures for input to the IND-All Measures workbook and ProCost.
B3: It puts the NR measures at the bottom; they are handled separately in the supply curves.
J5: Natural Gas
D6: 2 | E6: 3 | F6: 4 | G6: 6 | H6: 8 | I6: 9 | J6: 5 | K6: 8 | L6: 10
B7: Measure Application | C7: Retro or LO | D7: Savings for Period 1 (MWh/yr) | E7: Measure Life (yrs) | F7: Capital Cost (1000$) | G7: Annual O&M (1000$) | H7: Shape Pointer | I7: Non-E Val (1000$/yr) | J7: Savings (1000therms/yr) | K7: Shape Pointer | L7: End-Use
A8: 1 | B8: =INDEX(ProgramSum,MATCH($A8,'Program Summary'!$P$8:$P$65,0),1) -> Air Compressor Demand Reduction | C8: =VLOOKUP($B8,ProgramSum,11,FALSE) -> Retro | D8: =VLOOKUP($B8,ProgramSum,D$6,FALSE) -> 78084.92794 | E8: 10 | F8: 7970.519615 | G8: 2475.316651 | H8: I-All-Other-Shift3-All-All-S | I8: 0 | J8: 0 | K8: I-All-Other-Shift3-All-All-S | L8: Compressed Air
A9: =A8+1 -> 2 | B9: =INDEX(ProgramSum,MATCH($A9,'Program Summary'!$P$8:$P$65,0),1) -> Energy Management | C9: =VLOOKUP(B9,ProgramSum,11,FALSE) -> Retro | D9: 871096.305 | E9: 3 | F9: 72448.1879 | G9: 0 | H9: I-All-Other-Shift3-All-All-S | I9: 0 | J9: 52972.23311 | K9: I-All-Other-Shift3-All-All-S | L9: All Electric
A10: =A9+1 -> 3 | B10: =INDEX(ProgramSum,MATCH($A10,'Program Summary'!$P$8:$P$65,0),1) -> HighBay Lighting 1 Shift | C10: Retro | D10: 104073.2709 | E10: 19.54658495 | F10: 105421.8656 | G10: -1666.221273 | H10: I-All-Other-Shift1-All-All-S | I10: 0 | J10: 0 | K10: I-All-Other-Shift1-All-All-S | L10: Lighting
A11: 4 | B11: =INDEX(ProgramSum,MATCH($A11,'Program Summary'!$P$8:$P$65,0),1) -> HighBay Lighting 2 Shift | C11: Retro | D11: 141718.364 | E11: 11.43683162 | F11: 76858.87702 | G11: -2075.147526 | H11: I-All-Other-Shift2-All-All-S | I11: 0 | J11: 0 | K11: I-All-Other-Shift2-All-All-S | L11: Lighting
A12: 5 | B12: =INDEX(ProgramSum,MATCH($A12,'Program Summary'!$P$8:$P$65,0),1) -> HighBay Lighting 3 Shift | C12: Retro | D12: 223638.5259 | E12: 6.381647596 | F12: 64583.31469 | G12: -3119.807 | H12: I-All-Other-Shift3-All-All-S | I12: 0 | J12: 0 | K12: I-All-Other-Shift3-All-All-S | L12: Lighting
A13: 6 | B13: =INDEX(ProgramSum,MATCH($A13,'Program Summary'!$P$8:$P$65,0),1) -> Efficient Lighting 1 Shift | C13: Retro | D13: 67303.76691 | E13: 18.97135194 | F13: 17253.41847 | G13: -37.79457811 | H13: I-All-Other-Shift1-All-All-S | I13: 0 | J13: 0 | K13: I-All-Other-Shift1-All-All-S | L13: Lighting
A14: 7 | B14: =INDEX(ProgramSum,MATCH($A14,'Program Summary'!$P$8:$P$65,0),1) -> Efficient Lighting 2 Shift | C14: Retro | D14: 97486.06362 | E14: 11.10025912 | F14: 13816.38622 | G14: -51.70427611 | H14: I-All-Other-Shift2-All-All-S | I14: 0 | J14: 0 | K14: I-All-Other-Shift2-All-All-S | L14: Lighting
A15: 8 | B15: =INDEX(ProgramSum,MATCH($A15,'Program Summary'!$P$8:$P$65,0),1) -> Efficient Lighting 3 Shift | C15: Retro | D15: 169000.8178 | E15: 6.381647596 | F15: 12907.14146 | G15: -86.43671588 | H15: I-All-Other-Shift3-All-All-S | I15: 0 | J15: 0 | K15: I-All-Other-Shift3-All-All-S | L15: Lighting
A16: 9 | B16: =INDEX(ProgramSum,MATCH($A16,'Program Summary'!$P$8:$P$65,0),1) -> Lighting Controls | C16: Retro | D16: 332234.8299 | E16: 11 | F16: 186582.6574 | G16: 485.6546172 | H16: I-All-Other-Shift3-All-All-S | I16: 0 | J16: 0 | K16: I-All-Other-Shift3-All-All-S | L16: Lighting
A17: 10 | B17: =INDEX(ProgramSum,MATCH($A17,'Program Summary'!$P$8:$P$65,0),1) -> Refrigeration Retrofit (low temp) | C17: Retro | D17: 164637.7712 | E17: 10 | F17: 57082.92057 | G17: 0 | H17: C-War-Ref-All-All-All-C | I17: 0 | J17: 0 | K17: C-War-Ref-All-All-All-C | L17: Low Temp Refer
A18: 11 | B18: =INDEX(ProgramSum,MATCH($A18,'Program Summary'!$P$8:$P$65,0),1) -> Refrigeration Tuneup (low temp) | C18: Retro | D18: =VLOOKUP($B18,ProgramSum,D$6,FALSE) -> 0 | E18: 3 | F18: 0 | G18: 0 | H18: C-War-Ref-All-All-All-C | I18: 0 | J18: 0 | K18: C-War-Ref-All-All-All-C | L18: Low Temp Refer
A19: 12 | B19: =INDEX(ProgramSum,MATCH($A19,'Program Summary'!$P$8:$P$65,0),1) -> Refrigeration Retrofit (med temp) | C19: Retro | D19: 79208.98056 | E19: 10 | F19: 27463.19944 | G19: 0 | H19: C-War-Ref-All-All-All-C | I19: 0 | J19: 0 | K19: C-War-Ref-All-All-All-C | L19: Med Temp Refer
A20: 13 | B20: =INDEX(ProgramSum,MATCH($A20,'Program Summary'!$P$8:$P$65,0),1) -> Refrigeration Tuneup (med temp) | C20: Retro | D20: 0 | E20: 3 | F20: 0 | G20: 0 | H20: C-War-Ref-All-All-All-C | I20: 0 | J20: 0 | K20: C-War-Ref-All-All-All-C | L20: Med Temp Refer
A21: 14 | B21: =INDEX(ProgramSum,MATCH($A21,'Program Summary'!$P$8:$P$65,0),1) -> WaterSupply | C21: Retro | D21: 119008.2428 | E21: 10 | F21: 38411.90545 | G21: 0 | H21: I-WaterSupply-Mot-All-All-All-U | I21: 0 | J21: 0 | K21: I-WaterSupply-Mot-All-All-All-U | L21: All Electric
A22: 15 | B22: =INDEX(ProgramSum,MATCH($A22,'Program Summary'!$P$8:$P$65,0),1) -> Wastewater | C22: Retro | D22: 328538.523 | E22: 12 | F22: 190191.4136 | G22: 0 | H22: I-Wastewater-Mot-All-All-All-U | I22: 0 | J22: 0 | K22: I-Wastewater-Mot-All-All-All-U | L22: All Electric
A23: 16 | B23: =INDEX(ProgramSum,MATCH($A23,'Program Summary'!$P$8:$P$65,0),1) -> Fan Optimization | C23: Retro | D23: 120812.6402 | E23: 13 | F23: 76886.0088 | G23: 0 | H23: I-All-Other-Shift3-All-All-S | I23: 0 | J23: 0 | K23: I-All-Other-Shift3-All-All-S | L23: Fans and Blowers
A24: 17 | B24: =INDEX(ProgramSum,MATCH($A24,'Program Summary'!$P$8:$P$65,0),1) -> Pump Optimization | C24: Retro | D24: 425075.7348 | E24: 13 | F24: 29048.80088 | G24: 0 | H24: I-All-Other-Shift3-All-All-S | I24: 0 | J24: 0 | K24: I-All-Other-Shift3-All-All-S | L24: Pumps
A25: 18 | B25: =INDEX(ProgramSum,MATCH($A25,'Program Summary'!$P$8:$P$65,0),1) -> Fork Lift Battery Charger | C25: Retro | D25: 22852.46365 | E25: 10 | F25: 11692.54053 | G25: 0 | H25: I-All-Other-Shift3-All-All-S | I25: 0 | J25: 0 | K25: I-All-Other-Shift3-All-All-S | L25: All Electric
A26: 19 | B26: =INDEX(ProgramSum,MATCH($A26,'Program Summary'!$P$8:$P$65,0),1) -> HVAC | C26: Retro | D26: 253566.565 | E26: 15 | F26: 56625.04053 | G26: 0 | H26: C-All-HVAC-Vent-All-All-E | I26: 0 | J26: 0 | K26: C-All-HVAC-Vent-All-All-E | L26: HVAC
A27: 20 | B27: =INDEX(ProgramSum,MATCH($A27,'Program Summary'!$P$8:$P$65,0),1) -> Elec Chip Fab: Exhaust Injector | C27: Retro | D27: 41610.20044 | E27: 10 | F27: 22012.10064 | G27: 0 | H27: I-All-Other-Shift3-All-All-S | I27: 6790.733048 | J27: 0 | K27: I-All-Other-Shift3-All-All-S | L27: Material Processing
A28: 21 | B28: =INDEX(ProgramSum,MATCH($A28,'Program Summary'!$P$8:$P$65,0),1) -> Elec Chip Fab: Solidstate Chiller | C28: Retro | D28: =VLOOKUP($B28,ProgramSum,D$6,FALSE) -> 15943.04679 | E28: 10 | F28: 11363.32444 | G28: 0 | H28: I-All-Other-Shift3-All-All-S | I28: 2840.83111 | J28: 0 | K28: I-All-Other-Shift3-All-All-S | L28: Material Processing
A29: 22 | B29: =INDEX(ProgramSum,MATCH($A29,'Program Summary'!$P$8:$P$65,0),1) -> Fruit Storage Refer Retrofit | C29: Retro | D29: 164439.3425 | E29: 10 | F29: 45998.96053 | G29: 0 | H29: C-War-Ref-All-All-All-C | I29: 0 | J29: 0 | K29: C-War-Ref-All-All-All-C | L29: Med Temp Refer
A30: 23 | B30: =INDEX(ProgramSum,MATCH($A30,'Program Summary'!$P$8:$P$65,0),1) -> Panel: Hydraulic Press | C30: Retro | D30: 11759.72231 | E30: 10 | F30: 3013.349921 | G30: 0 | H30: I-SIC24-Proc-All-All-All-E | I30: 0 | J30: 0 | K30: I-SIC24-Proc-All-All-All-E | L30: Material Processing
A31: 24 | B31: =INDEX(ProgramSum,MATCH($A31,'Program Summary'!$P$8:$P$65,0),1) -> Wood: Replace Pneumatic Conveyor | C31: Retro | D31: 62423.10409 | E31: 10 | F31: 1064.602384 | G31: 0 | H31: I-SIC24-Proc-All-All-All-E | I31: 0 | J31: 0 | K31: I-SIC24-Proc-All-All-All-E | L31: Material Handling
A32: 25 | B32: =INDEX(ProgramSum,MATCH($A32,'Program Summary'!$P$8:$P$65,0),1) -> Wood: Process Optimization | C32: Retro | D32: 6831.192189 | E32: 10 | F32: 128.21669 | G32: 0 | H32: I-SIC24-Proc-All-All-All-E | I32: 0 | J32: 0 | K32: I-SIC24-Proc-All-All-All-E | L32: Material Handling
A33: =A32+1 -> 26 | B33: =INDEX(ProgramSum,MATCH($A33,'Program Summary'!$P$8:$P$65,0),1) -> Metal: New Arc Furnace | C33: Retro | D33: 1022.921046 | E33: 10 | F33: 111.0829804 | G33: 0 | H33: I-All-Other-Shift3-All-All-S | I33: 0 | J33: 0 | K33: I-All-Other-Shift3-All-All-S | L33: Melting and Casting
A34: 27 | B34: =INDEX(ProgramSum,MATCH($A34,'Program Summary'!$P$8:$P$65,0),1) -> Mech Pulp: Refiner Optimization | C34: Retro | D34: 16498.18865 | E34: 12 | F34: 12611.07944 | G34: 0 | H34: I-All-Other-Shift3-All-All-S | I34: 0 | J34: 0 | K34: I-All-Other-Shift3-All-All-S | L34: Material Processing
A35: 28 | B35: =INDEX(ProgramSum,MATCH($A35,'Program Summary'!$P$8:$P$65,0),1) -> Kraft: Effluent Treatment System | C35: Retro | D35: 33927.14199 | E35: 10 | F35: 3264.77282 | G35: 0 | H35: I-All-Other-Shift3-All-All-S | I35: 0 | J35: 0 | K35: I-All-Other-Shift3-All-All-S | L35: Pumps
A36: 29 | B36: =INDEX(ProgramSum,MATCH($A36,'Program Summary'!$P$8:$P$65,0),1) -> Kraft: Efficient Agitator | C36: Retro | D36: 11338.17575 | E36: 10 | F36: 1117.520462 | G36: 0 | H36: I-All-Other-Shift3-All-All-S | I36: 0 | J36: 0 | K36: I-All-Other-Shift3-All-All-S | L36: Material Processing
A37: 30 | B37: =INDEX(ProgramSum,MATCH($A37,'Program Summary'!$P$8:$P$65,0),1) -> Paper: Efficient Pulp Screen | C37: Retro | D37: 2091.471446 | E37: 10 | F37: 493.4816634 | G37: 0 | H37: I-All-Other-Shift3-All-All-S | I37: 0 | J37: 0 | K37: I-All-Other-Shift3-All-All-S | L37: Material Processing
A38: 31 | B38: =INDEX(ProgramSum,MATCH($A38,'Program Summary'!$P$8:$P$65,0),1) -> Paper: Vacuum Updgrades | C38: Retro | D38: =VLOOKUP($B38,ProgramSum,D$6,FALSE) -> 3181.814318 | E38: 10 | F38: 677.2133979 | G38: 0 | H38: I-All-Other-Shift3-All-All-S | I38: 0 | J38: 0 | K38: I-All-Other-Shift3-All-All-S | L38: Material Processing
A39: 32 | B39: =INDEX(ProgramSum,MATCH($A39,'Program Summary'!$P$8:$P$65,0),1) -> Paper: Process Efficiency | C39: Retro | D39: 1312.498406 | E39: 10 | F39: 292.6529327 | G39: 0 | H39: I-All-Other-Shift3-All-All-S | I39: 0 | J39: 0 | K39: I-All-Other-Shift3-All-All-S | L39: Material Handling
A40: 33 | B40: =INDEX(ProgramSum,MATCH($A40,'Program Summary'!$P$8:$P$65,0),1) -> Mech and Kraft: Hydraulic Power Units | C40: Retro | D40: 791.467094 | E40: 15 | F40: 312.5408427 | G40: 0 | H40: I-All-Other-Shift3-All-All-S | I40: 0 | J40: 0 | K40: I-All-Other-Shift3-All-All-S | L40: Other
A41: 34 | B41: =INDEX(ProgramSum,MATCH($A41,'Program Summary'!$P$8:$P$65,0),1) -> UV Controls | C41: Retro | D41: 0 | E41: 15 | F41: 0 | G41: 0 | H41: I-Wastewater-Mot-All-All-All-U | I41: 0 | J41: 0 | K41: I-Wastewater-Mot-All-All-All-U | L41: Other
A42: 35 | B42: =INDEX(ProgramSum,MATCH($A42,'Program Summary'!$P$8:$P$65,0),1) -> Energy Management2 | C42: Retro | D42: 375599.5252 | E42: 3 | F42: 63101.76878 | G42: 0 | H42: I-All-Other-Shift3-All-All-S | I42: 0 | J42: 22840.58087 | K42: I-All-Other-Shift3-All-All-S | L42: All Electric
A43: =A42+1 -> 36 | B43: =INDEX(ProgramSum,MATCH($A43,'Program Summary'!$P$8:$P$65,0),1) -> Air Compressor (Large) System Optimization | C43: Retro | D43: 133974.917 | E43: 13 | F43: 36640.60691 | G43: 0 | H43: I-All-Other-Shift3-All-All-S | I43: 0 | J43: 0 | K43: I-All-Other-Shift3-All-All-S | L43: Compressed Air
A44: 37 | B44: =INDEX(ProgramSum,MATCH($A44,'Program Summary'!$P$8:$P$65,0),1) -> Air Compressor Variable Speed | C44: NR | D44: 214738.2496 | E44: 13 | F44: 148808.8744 | G44: 0 | H44: I-All-Other-Shift3-All-All-S | I44: 0 | J44: 0 | K44: I-All-Other-Shift3-All-All-S | L44: Compressed Air
A45: 38 | B45: =INDEX(ProgramSum,MATCH($A45,'Program Summary'!$P$8:$P$65,0),1) -> Air Compressor Equipment | C45: NR | D45: 318857.387 | E45: 13 | F45: 264575.3991 | G45: 0 | H45: I-All-Other-Shift3-All-All-S | I45: 0 | J45: 0 | K45: I-All-Other-Shift3-All-All-S | L45: Compressed Air
A46: 39 | B46: =INDEX(ProgramSum,MATCH($A46,'Program Summary'!$P$8:$P$65,0),1) -> Fan Equipment Upgrade | C46: NR | D46: 431825.246 | E46: 22 | F46: 2891.095904 | G46: 0 | H46: I-All-Other-Shift3-All-All-S | I46: 0 | J46: 0 | K46: I-All-Other-Shift3-All-All-S | L46: Fans and Blowers
A47: 40 | B47: =INDEX(ProgramSum,MATCH($A47,'Program Summary'!$P$8:$P$65,0),1) -> Fan Variable Speed | C47: NR | D47: 110752.4822 | E47: 22 | F47: 15613.86422 | G47: 0 | H47: I-All-Other-Shift3-All-All-S | I47: 0 | J47: 0 | K47: I-All-Other-Shift3-All-All-S | L47: Fans and Blowers
A48: 41 | B48: =INDEX(ProgramSum,MATCH($A48,'Program Summary'!$P$8:$P$65,0),1) -> Fan VS Trim | C48: NR | D48: 109114.9498 | E48: 22 | F48: 31227.72844 | G48: 0 | H48: I-All-Other-Shift3-All-All-S | I48: 0 | J48: 0 | K48: I-All-Other-Shift3-All-All-S | L48: Fans and Blowers
A49: 42 | B49: =INDEX(ProgramSum,MATCH($A49,'Program Summary'!$P$8:$P$65,0),1) -> Pump Equipment Upgrade | C49: NR | D49: 130859.9404 | E49: 13 | F49: 34181.47131 | G49: 0 | H49: I-All-Other-Shift3-All-All-S | I49: 0 | J49: 0 | K49: I-All-Other-Shift3-All-All-S | L49: Pumps
A50: 43 | B50: =INDEX(ProgramSum,MATCH($A50,'Program Summary'!$P$8:$P$65,0),1) -> Pump Variable Speed | C50: =VLOOKUP(B50,ProgramSum,11,FALSE) -> NR | D50: 179785.8503 | E50: 13 | F50: 30777.87765 | G50: 0 | H50: I-All-Other-Shift3-All-All-S | I50: 0 | J50: 0 | K50: I-All-Other-Shift3-All-All-S | L50: Pumps
A51: 44 | B51: =INDEX(ProgramSum,MATCH($A51,'Program Summary'!$P$8:$P$70,0),1) -> Pump VS Trim | C51: =VLOOKUP(B51,ProgramSum,11,FALSE) -> NR | D51: 170416.5462 | E51: 13 | F51: 213862.1569 | G51: 0 | H51: I-All-Other-Shift3-All-All-S | I51: 0 | J51: 0 | K51: I-All-Other-Shift3-All-All-S | L51: Pumps
A52: 45 | B52: =INDEX(ProgramSum,MATCH($A52,'Program Summary'!$P$8:$P$65,0),1) -> Advanced Motors - Material Processing | C52: NR | D52: 277250.518 | E52: 15 | F52: 42874.15167 | G52: 0 | H52: I-All-Other-Shift3-All-All-S | I52: 0 | J52: 0 | K52: I-All-Other-Shift3-All-All-S | L52: Material Processing
A53: 46 | B53: =INDEX(ProgramSum,MATCH($A53,'Program Summary'!$P$8:$P$65,0),1) -> Advanced Motors - Matrial Handling | C53: =VLOOKUP(B53,ProgramSum,11,FALSE) -> NR | D53: 218523.3204 | E53: 15 | F53: 33913.81916 | G53: 0 | H53: I-All-Other-Shift3-All-All-S | I53: 0 | J53: 0 | K53: I-All-Other-Shift3-All-All-S | L53: Material Handling
A54: 47 | B54: =INDEX(ProgramSum,MATCH($A54,'Program Summary'!$P$8:$P$65,0),1) ->  | D54: =VLOOKUP($B54,ProgramSum,D$6,FALSE) -> 
A55: 48 | B55: =INDEX(ProgramSum,MATCH($A55,'Program Summary'!$P$8:$P$65,0),1) -> 
A56: 49 | B56: =INDEX(ProgramSum,MATCH($A56,'Program Summary'!$P$8:$P$65,0),1) -> 
A57: 50 | B57: =INDEX(ProgramSum,MATCH($A57,'Program Summary'!$P$8:$P$65,0),1) -> 

Sheet Results
M1: Savings as Percent of Industrial Consumption | AC1: Prioritized List of Measures for the Industrial Sector | AK1: Achievable Savings by Measure Group
F2: aMW | G2: Technical | AB2: Measure Type | AC2: Conservation Measure | AD2: Potential Savings (MWh/yr) | AE2: Measure Life, yr | AF2: Initial Cost (1000$) | AG2: Levelized Cost ($/kWh) | AH2: Potential Savings MWa
A3: ='Program Summary'!E2 -> Region | B3: Sales MWh | C3: Technical Potential (MWh) | D3: %Saved | F3: Sales | G3: aMW | H3: Achievable Savings at Busbar aMW | I3: Percent Saved | AB3: Compressed Air | AC3: ='Program Summary'!$B8 -> Air Compressor Demand Reduction | AD3: ='Program Summary'!C8 -> 78084.92794 | AE3: ='Program Summary'!$D8 -> 10 | AF3: ='Program Summary'!$E8 -> 7970.519615 | AG3: ='Program Summary'!$H8 -> 0.04412910288 | AH3: =AD3/8760 -> 8.913804559
A4: =Forecast!A5 -> WaterSupply | B4: =INDEX(Forecast,MATCH($A4,Forecast!$A$4:$A$26,0),MATCH(ReportYear,Forecast!$A$4:$AC$4,0)) -> 1228952.434 | C4: =INDIRECT(A4&"!$N$91") -> 131087.8288 | D4: =G4/F4 -> 0.1066663161 | F4: =B4/8760 -> 140.2913737 | G4: =C4/8760 -> 14.96436401 | H4: =$L$4*G4*$L$5 -> 13.99168035 | I4: =H4/F4 -> 0.09973300554 | K4: Line Losses | L4: 1.1 | AB4: Compressed Air | AC4: ='Program Summary'!$B9 -> Air Compressor Variable Speed | AD4: ='Program Summary'!C9 -> 214738.2496 | AE4: ='Program Summary'!$D9 -> 13 | AF4: ='Program Summary'!$E9 -> 148808.8744 | AG4: ='Program Summary'!$H9 -> 0.06832514946 | AH4: =AD4/8760 -> 24.51349882
A5: =Forecast!A6 -> Wastewater | B5: =INDEX(Forecast,MATCH($A5,Forecast!$A$4:$A$26,0),MATCH(ReportYear,Forecast!$A$4:$AC$4,0)) -> 1252537.035 | C5: =INDIRECT(A5&"!$N$91") -> 344392.5142 | D5: 0.2749559531 | F5: 142.9836798 | G5: 39.31421395 | H5: 36.75879004 | I5: =H5/F5 -> 0.2570838162 | K5: Achievavle | L5: 0.85 | AB5: Compressed Air | AC5: ='Program Summary'!$B10 -> Air Compressor Equipment | AD5: ='Program Summary'!C10 -> 318857.387 | AE5: ='Program Summary'!$D10 -> 13 | AF5: ='Program Summary'!$E10 -> 264575.3991 | AG5: ='Program Summary'!$H10 -> 0.08181146027 | AH5: 36.39924509 | AK5: Sum of Potential Savings MWa Busbar | AL5: Measure Type
A6: =Forecast!A7 -> FrozenFood | B6: =INDEX(Forecast,MATCH($A6,Forecast!$A$4:$A$26,0),MATCH(ReportYear,Forecast!$A$4:$AC$4,0)) -> 2121376.159 | C6: 366644.0737 | D6: 0.1728331263 | F6: 242.1662282 | G6: 41.85434632 | H6: 39.13381381 | I6: 0.1615989731 | AB6: Compressed Air | AC6: ='Program Summary'!$B11 -> Energy Management | AD6: ='Program Summary'!C11 -> 871096.305 | AE6: ='Program Summary'!$D11 -> 3 | AF6: ='Program Summary'!$E11 -> 72448.1879 | AG6: ='Program Summary'!$H11 -> 0.02982772556 | AH6: 99.44021747 | AK6: Measure Group | AL6: Belts | AM6: Compressed Air | AN6: Energy Project Management | AO6: Fans | AP6: Food Processing | AQ6: Food Storage | AR6: Hi-Tech | AS6: Integrated Plant Energy Management | AT6: Lighting | AU6: Lumber & Wood Products | AV6: Material Handling | AW6: Metals | AX6: Motors | AY6: Paper | AZ6: Plant Energy Management | BA6: Pulp | BB6: Pumps | BC6: Transformers | BD6: Grand Total
A7: =Forecast!A8 -> OtherFood | B7: =INDEX(Forecast,MATCH($A7,Forecast!$A$4:$A$26,0),MATCH(ReportYear,Forecast!$A$4:$AC$4,0)) -> 2902041.253 | C7: 504083.3972 | D7: 0.1736995973 | F7: 331.2832481 | G7: 57.5437668 | H7: 53.80342196 | I7: 0.1624091235 | AB7: Lighting | AC7: ='Program Summary'!$B12 -> HighBay Lighting 1 Shift | AD7: ='Program Summary'!C12 -> 104073.2709 | AE7: ='Program Summary'!$D12 -> 19.54658495 | AF7: ='Program Summary'!$E12 -> 105421.8656 | AG7: ='Program Summary'!$H12 -> 0.05802979975 | AH7: 11.88051038 | AK7: Cross-Industry Systems | AL7: 0 | AM7: 13.71410705 | AO7: 68.01154225 | AT7: 46.16852796 | AV7: 35.12630496 | AX7: 5.833333454 | BB7: 95.59617986 | BC7: 0 | BD7: 264.4499955
A8: =Forecast!A9 -> Lumber | B8: =INDEX(Forecast,MATCH($A8,Forecast!$A$4:$A$26,0),MATCH(ReportYear,Forecast!$A$4:$AC$4,0)) -> 973264.5146 | C8: 154046.6902 | D8: 0.1582783383 | F8: 111.1032551 | G8: 17.5852386 | H8: 16.44219809 | I8: 0.1479902464 | AB8: Lighting | AC8: ='Program Summary'!$B13 -> HighBay Lighting 2 Shift | AD8: ='Program Summary'!C13 -> 141718.364 | AE8: ='Program Summary'!$D13 -> 11.43683162 | AF8: ='Program Summary'!$E13 -> 76858.87702 | AG8: ='Program Summary'!$H13 -> 0.04454124069 | AH8: 16.17789543 | AK8: Industry-Specific Process | AP8: 16.38749006 | AQ8: 73.85895204 | AR8: 17.23472679 | AU8: 21.91897737 | AW8: 0.2744003709 | AY8: 13.76502495 | BA8: 9.991478137 | BD8: 153.4310497
A9: =Forecast!A10 -> Panel | B9: =INDEX(Forecast,MATCH($A9,Forecast!$A$4:$A$26,0),MATCH(ReportYear,Forecast!$A$4:$AC$4,0)) -> 344075.1128 | C9: 80970.88226 | D9: 0.2353290873 | F9: 39.27798091 | G9: 9.243251399 | H9: 8.642440058 | I9: 0.2200326966 | AB9: Lighting | AC9: ='Program Summary'!$B14 -> HighBay Lighting 3 Shift | AD9: ='Program Summary'!C14 -> 223638.5259 | AE9: ='Program Summary'!$D14 -> 6.381647596 | AF9: ='Program Summary'!$E14 -> 64583.31469 | AG9: ='Program Summary'!$H14 -> 0.03777190678 | AH9: 25.52951209 | AK9: Whole Plant | AN9: 102.6017433 | AS9: 92.40142524 | AZ9: 48.10008069 | BD9: 243.1032493
A10: =Forecast!A11 -> Wood | B10: =INDEX(Forecast,MATCH($A10,Forecast!$A$4:$A$26,0),MATCH(ReportYear,Forecast!$A$4:$AC$4,0)) -> 1911207.373 | C10: 386946.8396 | D10: 0.2024619856 | F10: 218.1743576 | G10: 44.17201365 | H10: 41.30083276 | I10: 0.1893019565 | AB10: Lighting | AC10: ='Program Summary'!$B15 -> Efficient Lighting 1 Shift | AD10: ='Program Summary'!C15 -> 67303.76691 | AE10: ='Program Summary'!$D15 -> 18.97135194 | AF10: ='Program Summary'!$E15 -> 17253.41847 | AG10: ='Program Summary'!$H15 -> 0.0185643988 | AH10: 7.683078414 | AK10: Grand Total | AL10: 0 | AM10: 13.71410705 | AN10: 102.6017433 | AO10: 68.01154225 | AP10: 16.38749006 | AQ10: 73.85895204 | AR10: 17.23472679 | AS10: 92.40142524 | AT10: 46.16852796 | AU10: 21.91897737 | AV10: 35.12630496 | AW10: 0.2744003709 | AX10: 5.833333454 | AY10: 13.76502495 | AZ10: 48.10008069 | BA10: 9.991478137 | BB10: 95.59617986 | BC10: 0 | BD10: 660.9842945
A11: =Forecast!A12 -> MechPulp | B11: =INDEX(Forecast,MATCH($A11,Forecast!$A$4:$A$26,0),MATCH(ReportYear,Forecast!$A$4:$AC$4,0)) -> 1998609.968 | C11: 370016.5383 | D11: 0.1851369424 | F11: 228.1518228 | G11: 42.23933086 | H11: 39.49377436 | I11: 0.1731030411 | AB11: Lighting | AC11: ='Program Summary'!$B16 -> Efficient Lighting 2 Shift | AD11: ='Program Summary'!C16 -> 97486.06362 | AE11: ='Program Summary'!$D16 -> 11.10025912 | AF11: ='Program Summary'!$E16 -> 13816.38622 | AG11: ='Program Summary'!$H16 -> 0.01531329611 | AH11: 11.12854608
A12: =Forecast!A13 -> KraftPulp | B12: =INDEX(Forecast,MATCH($A12,Forecast!$A$4:$A$26,0),MATCH(ReportYear,Forecast!$A$4:$AC$4,0)) -> 1994960.21 | C12: 520195.5526 | D12: 0.2607548512 | F12: 227.7351838 | G12: 59.38305395 | H12: 55.52315545 | I12: 0.2438057859 | AB12: Lighting | AC12: ='Program Summary'!$B17 -> Efficient Lighting 3 Shift | AD12: ='Program Summary'!C17 -> 169000.8178 | AE12: ='Program Summary'!$D17 -> 6.381647596 | AF12: ='Program Summary'!$E17 -> 12907.14146 | AG12: ='Program Summary'!$H17 -> 0.0131672148 | AH12: 19.2923308
A13: =Forecast!A14 -> Paper | B13: =INDEX(Forecast,MATCH($A13,Forecast!$A$4:$A$26,0),MATCH(ReportYear,Forecast!$A$4:$AC$4,0)) -> 354752.8227 | C13: 79055.28419 | D13: 0.2228461034 | F13: 40.49689757 | G13: 9.024575821 | H13: 8.437978393 | I13: 0.2083611066 | AB13: Lighting | AC13: ='Program Summary'!$B18 -> Lighting Controls | AD13: ='Program Summary'!C18 -> 332234.8299 | AE13: ='Program Summary'!$D18 -> 11 | AF13: ='Program Summary'!$E18 -> 186582.6574 | AG13: ='Program Summary'!$H18 -> 0.06470634147 | AH13: 37.92635045
A14: =Forecast!A15 -> Refinery | B14: =INDEX(Forecast,MATCH($A14,Forecast!$A$4:$A$26,0),MATCH(ReportYear,Forecast!$A$4:$AC$4,0)) -> 1056280 | C14: 221712.4262 | D14: 0.209899294 | F14: 120.5799087 | G14: 25.3096377 | H14: 23.66451125 | I14: 0.1962558399 | AB14: Motors | AC14: ='Program Summary'!$B19 -> Refrigeration Retrofit (low temp) | AD14: ='Program Summary'!C19 -> 164637.7712 | AE14: ='Program Summary'!$D19 -> 10 | AF14: ='Program Summary'!$E19 -> 57082.92057 | AG14: ='Program Summary'!$H19 -> 0.04221688001 | AH14: 18.79426612
A15: =Forecast!A16 -> Chemical | B15: =INDEX(Forecast,MATCH($A15,Forecast!$A$4:$A$26,0),MATCH(ReportYear,Forecast!$A$4:$AC$4,0)) -> 5331472 | C15: 898113.9823 | D15: 0.1684551625 | F15: 608.6155251 | G15: 102.5244272 | H15: 95.86033943 | I15: 0.157505577 | AB15: Motors | AC15: ='Program Summary'!$B20 -> Refrigeration Tuneup (low temp) | AD15: ='Program Summary'!C20 -> 0 | AE15: ='Program Summary'!$D20 -> 3 | AF15: ='Program Summary'!$E20 -> 0 | AG15: ='Program Summary'!$H20 -> 4.029238748e-05 | AH15: 0
A16: =Forecast!A17 -> Silicon | B16: =INDEX(Forecast,MATCH($A16,Forecast!$A$4:$A$26,0),MATCH(ReportYear,Forecast!$A$4:$AC$4,0)) -> 416115.8373 | C16: 67511.49351 | D16: 0.1622420669 | F16: 47.50180792 | G16: 7.706791496 | H16: 7.205850049 | I16: 0.1516963325 | AB16: Motors | AC16: ='Program Summary'!$B21 -> Refrigeration Retrofit (med temp) | AD16: ='Program Summary'!C21 -> 79208.98056 | AE16: ='Program Summary'!$D21 -> 10 | AF16: ='Program Summary'!$E21 -> 27463.19944 | AG16: ='Program Summary'!$H21 -> 0.04221688001 | AH16: 9.042121069
A17: =Forecast!A18 -> Cement | B17: =INDEX(Forecast,MATCH($A17,Forecast!$A$4:$A$26,0),MATCH(ReportYear,Forecast!$A$4:$AC$4,0)) -> 1615248.88 | C17: 173744.8656 | D17: 0.1075653838 | F17: 184.3891416 | G17: 19.83388877 | H17: 18.544686 | I17: 0.1005736338 | AB17: Fans | AC17: ='Program Summary'!$B24 -> Wastewater | AD17: ='Program Summary'!C24 -> 328538.523 | AE17: ='Program Summary'!$D24 -> 12 | AF17: ='Program Summary'!$E24 -> 190191.4136 | AG17: ='Program Summary'!$H24 -> 0.06079176891 | AH17: 37.5043976
A18: =Forecast!A19 -> Foundries | B18: =INDEX(Forecast,MATCH($A18,Forecast!$A$4:$A$26,0),MATCH(ReportYear,Forecast!$A$4:$AC$4,0)) -> 440776.4 | C18: 76909.86122 | D18: 0.1744872485 | F18: 50.31694064 | G18: 8.779664523 | H18: 8.208986329 | I18: 0.1631455773 | AB18: Fans | AC18: ='Program Summary'!$B25 -> Fan Optimization | AD18: ='Program Summary'!C25 -> 120812.6402 | AE18: ='Program Summary'!$D25 -> 13 | AF18: ='Program Summary'!$E25 -> 76886.0088 | AG18: ='Program Summary'!$H25 -> 0.06274745405 | AH18: 13.79139728
A19: =Forecast!A20 -> MetalFab | B19: =INDEX(Forecast,MATCH($A19,Forecast!$A$4:$A$26,0),MATCH(ReportYear,Forecast!$A$4:$AC$4,0)) -> 1118951 | C19: 173257.8061 | D19: 0.1548394935 | F19: 127.7341324 | G19: 19.77828837 | H19: 18.49269963 | I19: 0.1447749264 | AB19: Fans | AC19: ='Program Summary'!$B26 -> Fan Equipment Upgrade | AD19: ='Program Summary'!C26 -> 431825.246 | AE19: ='Program Summary'!$D26 -> 22 | AF19: ='Program Summary'!$E26 -> 2891.095904 | AG19: ='Program Summary'!$H26 -> 0.000452286817 | AH19: 49.2951194
A20: =Forecast!A21 -> ElecFab | B20: =INDEX(Forecast,MATCH($A20,Forecast!$A$4:$A$26,0),MATCH(ReportYear,Forecast!$A$4:$AC$4,0)) -> 4284741.163 | C20: 620904.592 | D20: 0.1449106418 | F20: 489.1257035 | G20: 70.87951963 | H20: 66.27235086 | I20: 0.1354914501 | AB20: Fans | AC20: ='Program Summary'!$B27 -> Fan Variable Speed | AD20: ='Program Summary'!C27 -> 110752.4822 | AE20: ='Program Summary'!$D27 -> 22 | AF20: ='Program Summary'!$E27 -> 15613.86422 | AG20: ='Program Summary'!$H27 -> 0.009523934283 | AH20: 12.64297742
A21: =Forecast!A22 -> Transportation | B21: =INDEX(Forecast,MATCH($A21,Forecast!$A$4:$A$26,0),MATCH(ReportYear,Forecast!$A$4:$AC$4,0)) -> 3966859 | C21: 879846.1306 | D21: 0.2217991944 | F21: 452.8377854 | G21: 100.439056 | H21: 93.91051737 | I21: 0.2073822468 | AB21: Pumps | AC21: ='Program Summary'!$B28 -> Fan VS Trim | AD21: ='Program Summary'!C28 -> 109114.9498 | AE21: ='Program Summary'!$D28 -> 22 | AF21: ='Program Summary'!$E28 -> 31227.72844 | AG21: ='Program Summary'!$H28 -> 0.01933372766 | AH21: 12.4560445
A22: =Forecast!A23 -> MiscManf | B22: =INDEX(Forecast,MATCH($A22,Forecast!$A$4:$A$26,0),MATCH(ReportYear,Forecast!$A$4:$AC$4,0)) -> 760117.12 | C22: 136036.5367 | D22: 0.1789678632 | F22: 86.77136073 | G22: 15.52928502 | H22: 14.51988149 | I22: 0.1673349521 | AB22: Pumps | AC22: ='Program Summary'!$B29 -> Pump Equipment Upgrade | AD22: ='Program Summary'!C29 -> 130859.9404 | AE22: ='Program Summary'!$D29 -> 13 | AF22: ='Program Summary'!$E29 -> 34181.47131 | AG22: ='Program Summary'!$H29 -> 0.02575403026 | AH22: 14.93834937
A23: =Forecast!A24 -> ColdStorage | B23: =INDEX(Forecast,MATCH($A23,Forecast!$A$4:$A$26,0),MATCH(ReportYear,Forecast!$A$4:$AC$4,0)) -> 863231.0953 | C23: 93224.21761 | D23: 0.1079945082 | F23: 98.54236248 | G23: 10.64203397 | H23: 9.950301765 | I23: 0.1009748652 | AB23: Pumps | AC23: ='Program Summary'!$B30 -> Pump Variable Speed | AD23: ='Program Summary'!C30 -> 179785.8503 | AE23: ='Program Summary'!$D30 -> 13 | AF23: ='Program Summary'!$E30 -> 30777.87765 | AG23: ='Program Summary'!$H30 -> 0.0168789073 | AH23: 20.52349889
A24: =Forecast!A25 -> FruitStorage | B24: =INDEX(Forecast,MATCH($A24,Forecast!$A$4:$A$26,0),MATCH(ReportYear,Forecast!$A$4:$AC$4,0)) -> 1535863.492 | C24: 364505.4994 | D24: =G24/F24 -> 0.2373293599 | F24: =B24/8760 -> 175.3268827 | G24: =C24/8760 -> 41.61021683 | H24: 38.90555274 | I24: 0.2219029515 | AB24: Transformers | AC24: ='Program Summary'!$B31 -> Pump Optimization | AD24: ='Program Summary'!C31 -> 425075.7348 | AE24: ='Program Summary'!$D31 -> 13 | AF24: ='Program Summary'!$E31 -> 29048.80088 | AG24: ='Program Summary'!$H31 -> 0.006737876754 | AH24: 48.52462726
A25: =Forecast!A26 -> Total | B25: =INDEX(Forecast,MATCH($A25,Forecast!$A$4:$A$26,0),MATCH(ReportYear,Forecast!$A$4:$AC$4,0)) -> 36471432.87 | C25: =SUM(C4:C24) -> 6643207.012 | D25: =G25/F25 -> 0.1821482319 | F25: =B25/8760 -> 4163.405579 | G25: =C25/8760 -> 758.3569649 | H25: =SUM(H6:H24) -> 658.3132918 | I25: 0.1581189436 | AB25: Belts | AC25: ='Program Summary'!$B33 -> Fork Lift Battery Charger | AD25: ='Program Summary'!C33 -> 22852.46365 | AE25: ='Program Summary'!$D33 -> 10 | AF25: ='Program Summary'!$E33 -> 11692.54053 | AG25: ='Program Summary'!$H33 -> 0.06229960374 | AH25: 2.608728727
A26: checksum | B26: ='Program Summary'!G2 -> 36471432.87 | C26: =C25/8760 -> 758.3569649 | AB26: Hi-Tech | AC26: ='Program Summary'!$B34 -> HVAC | AD26: ='Program Summary'!C34 -> 253566.565 | AE26: ='Program Summary'!$D34 -> 15 | AF26: ='Program Summary'!$E34 -> 56625.04053 | AG26: ='Program Summary'!$H34 -> 0.01973561254 | AH26: 28.94595491
A27: Procost report | AB27: Hi-Tech | AC27: ='Program Summary'!$B35 -> Elec Chip Fab: Exhaust Injector | AD27: ='Program Summary'!C35 -> 41610.20044 | AE27: ='Program Summary'!$D35 -> 10 | AF27: ='Program Summary'!$E35 -> 22012.10064 | AG27: ='Program Summary'!$H35 -> -0.09878611693 | AH27: 4.750022881
AB28: Hi-Tech | AC28: ='Program Summary'!$B36 -> Elec Chip Fab: Solidstate Chiller | AD28: ='Program Summary'!C36 -> 15943.04679 | AE28: ='Program Summary'!$D36 -> 10 | AF28: ='Program Summary'!$E36 -> 11363.32444 | AG28: ='Program Summary'!$H36 -> -0.09140144239 | AH28: 1.81998251
AB29: Hi-Tech | AC29: ='Program Summary'!$B37 -> Fruit Storage Refer Retrofit | AD29: ='Program Summary'!C37 -> 164439.3425 | AE29: ='Program Summary'!$D37 -> 10 | AF29: ='Program Summary'!$E37 -> 45998.96053 | AG29: ='Program Summary'!$H37 -> 0.03406055446 | AH29: 18.77161444
AB30: Hi-Tech | AC30: ='Program Summary'!$B38 -> Panel: Hydraulic Press | AD30: ='Program Summary'!C38 -> 11759.72231 | AE30: ='Program Summary'!$D38 -> 10 | AF30: ='Program Summary'!$E38 -> 3013.349921 | AG30: ='Program Summary'!$H38 -> 0.03120052681 | AH30: 1.342434054
AB31: Hi-Tech | AC31: ='Program Summary'!$B39 -> Wood: Replace Pneumatic Conveyor | AD31: ='Program Summary'!C39 -> 62423.10409 | AE31: ='Program Summary'!$D39 -> 10 | AF31: ='Program Summary'!$E39 -> 1064.602384 | AG31: ='Program Summary'!$H39 -> 0.00207659355 | AH31: 7.125925125
... 35 more rows

Sheet MechPulp
B1: Industrial Segment EE | H1: =J1 -> MechPulp | J1: MechPulp
B2: Year: | C2: ='Program Summary'!C2 -> 2041 | E2: Territory: | F2: ='Program Summary'!E2 -> Region | G2: MWh: | H2: =HLOOKUP(ReportYear,Forecast,MATCH($H$1,Forecast!$A$4:$A$25,0)) -> 1998609.968
B3: Date of Run: | C3: ='Program Summary'!C3 -> 2020-05-02T16:52:03.780 | F3: Penetration Assumption | H3: ='Program Summary'!G3 -> Technical
B4: Process Shares
A5: 1 | B5: Pumps | C5: =VLOOKUP($J$1,EndUse,MATCH($B5,EndUses,0),FALSE) -> 0.3
A6: 2 | B6: Fans and Blowers | C6: 0.07
A7: 3 | B7: Compressed Air | C7: 0.05
A8: 4 | B8: Material Handling | C8: 0.1
A9: 5 | B9: Material Processing | C9: 0.4
A10: 6 | B10: Low Temp Refer | C10: 0
A11: 7 | B11: Med Temp Refer | C11: 0
A12: 8 | B12: Pollution Control | C12: 0
A13: 9 | B13: Other Motors | C13: 0
A14: 10 | B14: Drying and Curing | C14: 0
A15: 11 | B15: Heat Treating | C15: 0
A16: 12 | B16: Heating | C16: 0
A17: 13 | B17: Melting and Casting | C17: 0
A18: 14 | B18: HVAC | C18: 0.03
A19: 15 | B19: Lighting | C19: 0.025
A20: 16 | B20: Other | C20: 0.025
A21: 17 | B21: All Electric | C21: =SUM(C5:C20) -> 1
A22: 18 | B22: All Motors | C22: =SUM(C5:C14,0.8*C18) -> 0.944
B24: Conservation Measure | C24: End Use | D24: % Savings | E24: Lifetime | F24: First Cost (2016$/kWh) | G24: Annual O&M Cost (2016$/kWh) | H24: Annual Non-Energy Benefit (2016$/kWh) | I24: Measure Applicability | J24: Achievability | K24: Inventory Factor | L24: Annual Non-Energy Benefit ($1000) | M24: Annual O&M Cost (1000$) | N24: Potential Savings (MWh/yr) | O24: Initial Cost (1000$) | P24: Levelized Cost (2016$/kWh) Installation-Order-Specific | Q24: Levelized Cost (2016$/kWh) Installation-Order-Indpendent | R24: % Savings * Applicability * Achievability
A25: 1 | B25: =IF($R25>0,ECMs!B4,"") -> Air Compressor Demand Reduction | C25: =IF($R25>0,ECMs!C4,"") -> Compressed Air | D25: =IF($R25>0,ECMs!D4,"") -> 0.1 | E25: =IF($R25>0,ECMs!E4,"") -> 10 | F25: =IF($R25>0,ECMs!L4,"") -> 0.09468255125 | G25: =IF($R25>0,ECMs!M4,"") -> 0.02940451902 | H25: =IF($R25>0,ECMs!N4,"") -> 0 | I25: =IF($R25>0,INDEX(ECMs!AM4:BG4,1,MATCH($J$1,ECMs!$AM$3:$BG$3,0)),"") -> 0.09743929481 | J25: =IF($R25>0,INDEX(ECMs!R4:AL4,MATCH($J$1,ECMs!$R$3:$AL$3,0)),"") -> 0.9656649088 | K25: =IF($R25>0,IFERROR(INDEX(Inventory!$F$5:$NS$67,MATCH(A25,Inventory!$A$5:$A$67,0),MATCH($C25&J$1,Inventory!$F$4:$NS$4&Inventory!$F$3:$NS$3,0)),""),"") -> 0.9275781942 | L25: =IFERROR(H25*N25/K25,"") -> 0 | M25: =IFERROR(G25*N25/K25,"") -> 27.64857262 | N25: =IFERROR(INDEX($B$5:$C$22,MATCH(C25,B$5:B$22,0),2)*D25*I25*J25*K25*$H$2,"") -> 872.1861099 | O25: =IFERROR(F25*N25/K25,"") -> 89.02840383 | P25: =IFERROR(PMT(Discount_rate,E25,-(O25+PV(Discount_rate,E25,L25-M25)))/N25,"") -> 0.04412910288 | Q25: =IF(P25="","",ECMs!O4) -> 0.04093319356 | R25: =ECMs!D4*INDEX(ECMs!AM4:BG4,1,MATCH($J$1,ECMs!$AM$3:$BG$3,0))*INDEX(ECMs!R4:AL4,MATCH($J$1,ECMs!$R$3:$AL$3,0)) -> 0.009409370774
A26: 2 | B26: =IF($R26>0,ECMs!B5,"") -> Air Compressor Variable Speed | C26: =IF($R26>0,ECMs!C5,"") -> Compressed Air | D26: =IF($R26>0,ECMs!D5,"") -> 0.0826137993 | E26: =IF($R26>0,ECMs!E5,"") -> 13 | F26: =IF($R26>0,ECMs!L5,"") -> 0.6157000925 | G26: =IF($R26>0,ECMs!M5,"") -> 0 | H26: =IF($R26>0,ECMs!N5,"") -> 0 | I26: =IF($R26>0,INDEX(ECMs!AM5:BG5,1,MATCH($J$1,ECMs!$AM$3:$BG$3,0)),"") -> 1 | J26: =IF($R26>0,INDEX(ECMs!R5:AL5,MATCH($J$1,ECMs!$R$3:$AL$3,0)),"") -> 1 | K26: =IF($R26>0,IFERROR(INDEX(Inventory!$F$5:$NS$67,MATCH(A26,Inventory!$A$5:$A$67,0),MATCH($C26&J$1,Inventory!$F$4:$NS$4&Inventory!$F$3:$NS$3,0)),""),"") -> 0.9061998593 | L26: =IFERROR(H26*N26/K26,"") -> 0 | M26: =IFERROR(G26*N26/K26,"") -> 0 | N26: =IFERROR(INDEX($B$5:$C$22,MATCH(C26,B$5:B$22,0),2)*D26*I26*J26*K26*$H$2,"") -> 7481.258118 | O26: =IFERROR(F26*N26/K26,"") -> 5082.997164 | P26: =IFERROR(PMT(Discount_rate,E26,-(O26+PV(Discount_rate,E26,L26-M26)))/N26,"") -> 0.06698944749 | Q26: =IF(P26="","",ECMs!O5) -> 0.06070582788 | R26: =ECMs!D5*INDEX(ECMs!AM5:BG5,1,MATCH($J$1,ECMs!$AM$3:$BG$3,0))*INDEX(ECMs!R5:AL5,MATCH($J$1,ECMs!$R$3:$AL$3,0)) -> 0.0826137993
A27: 3 | B27: =IF($R27>0,ECMs!B6,"") -> Air Compressor Equipment | C27: =IF($R27>0,ECMs!C6,"") -> Compressed Air | D27: =IF($R27>0,ECMs!D6,"") -> 0.1337172591 | E27: =IF($R27>0,ECMs!E6,"") -> 13 | F27: =IF($R27>0,ECMs!L6,"") -> 0.6763242759 | G27: =IF($R27>0,ECMs!M6,"") -> 0 | H27: =IF($R27>0,ECMs!N6,"") -> 0 | I27: =IF($R27>0,INDEX(ECMs!AM6:BG6,1,MATCH($J$1,ECMs!$AM$3:$BG$3,0)),"") -> 1 | J27: =IF($R27>0,INDEX(ECMs!R6:AL6,MATCH($J$1,ECMs!$R$3:$AL$3,0)),"") -> 1 | K27: =IF($R27>0,IFERROR(INDEX(Inventory!$F$5:$NS$67,MATCH(A27,Inventory!$A$5:$A$67,0),MATCH($C27&J$1,Inventory!$F$4:$NS$4&Inventory!$F$3:$NS$3,0)),""),"") -> 0.831335246 | L27: 0 | M27: 0 | N27: 11108.66098 | O27: 9037.33738 | P27: 0.08021211172 | Q27: =IF(P27="","",ECMs!O6) -> 0.06668315562 | R27: =ECMs!D6*INDEX(ECMs!AM6:BG6,1,MATCH($J$1,ECMs!$AM$3:$BG$3,0))*INDEX(ECMs!R6:AL6,MATCH($J$1,ECMs!$R$3:$AL$3,0)) -> 0.1337172591
A28: 4 | B28: =IF($R28>0,ECMs!B7,"") -> Energy Management | C28: =IF($R28>0,ECMs!C7,"") -> All Electric | D28: =IF($R28>0,ECMs!D7,"") -> 0.03 | E28: =IF($R28>0,ECMs!E7,"") -> 3 | F28: =IF($R28>0,ECMs!L7,"") -> 0.07638306017 | G28: =IF($R28>0,ECMs!M7,"") -> 0 | H28: =IF($R28>0,ECMs!N7,"") -> 0 | I28: =IF($R28>0,INDEX(ECMs!AM7:BG7,1,MATCH($J$1,ECMs!$AM$3:$BG$3,0)),"") -> 0.9301623944 | J28: =IF($R28>0,INDEX(ECMs!R7:AL7,MATCH($J$1,ECMs!$R$3:$AL$3,0)),"") -> 1 | K28: =IF($R28>0,IFERROR(INDEX(Inventory!$F$5:$NS$67,MATCH(A28,Inventory!$A$5:$A$67,0),MATCH($C28&J$1,Inventory!$F$4:$NS$4&Inventory!$F$3:$NS$3,0)),""),"") -> 0.8925627656 | L28: 0 | M28: 0 | N28: 49779.07782 | O28: 4259.95621 | P28: 0.03069142626 | Q28: =IF(P28="","",ECMs!O7) -> 0.0273940243 | R28: =ECMs!D7*INDEX(ECMs!AM7:BG7,1,MATCH($J$1,ECMs!$AM$3:$BG$3,0))*INDEX(ECMs!R7:AL7,MATCH($J$1,ECMs!$R$3:$AL$3,0)) -> 0.02790487183
A29: 5 | B29: =IF($R29>0,ECMs!B8,"") ->  | C29: =IF($R29>0,ECMs!C8,"") ->  | D29: =IF($R29>0,ECMs!D8,"") ->  | E29: =IF($R29>0,ECMs!E8,"") ->  | F29: =IF($R29>0,ECMs!L8,"") ->  | G29: =IF($R29>0,ECMs!M8,"") ->  | H29: =IF($R29>0,ECMs!N8,"") ->  | I29: =IF($R29>0,INDEX(ECMs!AM8:BG8,1,MATCH($J$1,ECMs!$AM$3:$BG$3,0)),"") ->  | J29: =IF($R29>0,INDEX(ECMs!R8:AL8,MATCH($J$1,ECMs!$R$3:$AL$3,0)),"") ->  | K29: =IF($R29>0,IFERROR(INDEX(Inventory!$F$5:$NS$67,MATCH(A29,Inventory!$A$5:$A$67,0),MATCH($C29&J$1,Inventory!$F$4:$NS$4&Inventory!$F$3:$NS$3,0)),""),"") ->  | Q29: =IF(P29="","",ECMs!O8) ->  | R29: =ECMs!D8*INDEX(ECMs!AM8:BG8,1,MATCH($J$1,ECMs!$AM$3:$BG$3,0))*INDEX(ECMs!R8:AL8,MATCH($J$1,ECMs!$R$3:$AL$3,0)) -> 0
A30: 6 | B30: =IF($R30>0,ECMs!B9,"") ->  | C30: =IF($R30>0,ECMs!C9,"") ->  | D30: =IF($R30>0,ECMs!D9,"") ->  | E30: =IF($R30>0,ECMs!E9,"") ->  | F30: =IF($R30>0,ECMs!L9,"") ->  | G30: =IF($R30>0,ECMs!M9,"") ->  | H30: =IF($R30>0,ECMs!N9,"") ->  | I30: =IF($R30>0,INDEX(ECMs!AM9:BG9,1,MATCH($J$1,ECMs!$AM$3:$BG$3,0)),"") ->  | J30: =IF($R30>0,INDEX(ECMs!R9:AL9,MATCH($J$1,ECMs!$R$3:$AL$3,0)),"") ->  | K30: =IF($R30>0,IFERROR(INDEX(Inventory!$F$5:$NS$67,MATCH(A30,Inventory!$A$5:$A$67,0),MATCH($C30&J$1,Inventory!$F$4:$NS$4&Inventory!$F$3:$NS$3,0)),""),"") ->  | Q30: =IF(P30="","",ECMs!O9) ->  | R30: =ECMs!D9*INDEX(ECMs!AM9:BG9,1,MATCH($J$1,ECMs!$AM$3:$BG$3,0))*INDEX(ECMs!R9:AL9,MATCH($J$1,ECMs!$R$3:$AL$3,0)) -> 0
A31: 7 | B31: =IF($R31>0,ECMs!B10,"") -> HighBay Lighting 3 Shift | C31: =IF($R31>0,ECMs!C10,"") -> Lighting | D31: =IF($R31>0,ECMs!D10,"") -> 0.4515888331 | E31: =IF($R31>0,ECMs!E10,"") -> 6.381647596 | F31: =IF($R31>0,ECMs!L10,"") -> 0.2462405067 | G31: =IF($R31>0,ECMs!M10,"") -> -0.01189506702 | H31: =IF($R31>0,ECMs!N10,"") -> 0 | I31: =IF($R31>0,INDEX(ECMs!AM10:BG10,1,MATCH($J$1,ECMs!$AM$3:$BG$3,0)),"") -> 0.456547619 | J31: =IF($R31>0,INDEX(ECMs!R10:AL10,MATCH($J$1,ECMs!$R$3:$AL$3,0)),"") -> 1 | K31: =IF($R31>0,IFERROR(INDEX(Inventory!$F$5:$NS$67,MATCH(A31,Inventory!$A$5:$A$67,0),MATCH($C31&J$1,Inventory!$F$4:$NS$4&Inventory!$F$3:$NS$3,0)),""),"") -> 0.8451961118 | L31: 0 | M31: -122.536149 | N31: =IFERROR(INDEX($B$5:$C$22,MATCH(C31,B$5:B$22,0),2)*D31*I31*J31*K31*$H$2,"") -> 8706.724939 | O31: 2536.628282 | P31: 0.03810633708 | Q31: =IF(P31="","",ECMs!O10) -> 0.03220732794 | R31: =ECMs!D10*INDEX(ECMs!AM10:BG10,1,MATCH($J$1,ECMs!$AM$3:$BG$3,0))*INDEX(ECMs!R10:AL10,MATCH($J$1,ECMs!$R$3:$AL$3,0)) -> 0.2061718066
... 35 more rows

Sheet KraftPulp
B1: Industrial Segment EE | H1: =J1 -> KraftPulp | J1: KraftPulp
B2: Year: | C2: ='Program Summary'!C2 -> 2041 | E2: Territory: | F2: ='Program Summary'!E2 -> Region | G2: MWh: | H2: =HLOOKUP(ReportYear,Forecast,MATCH($H$1,Forecast!$A$4:$A$25,0)) -> 1994960.21
B3: Date of Run: | C3: ='Program Summary'!C3 -> 2020-05-02T16:52:03.780 | F3: Penetration Assumption | H3: ='Program Summary'!G3 -> Technical
B4: Process Shares
A5: 1 | B5: Pumps | C5: =VLOOKUP($J$1,EndUse,MATCH($B5,EndUses,0),FALSE) -> 0.55
A6: 2 | B6: Fans and Blowers | C6: 0.15
A7: 3 | B7: Compressed Air | C7: 0.05
A8: 4 | B8: Material Handling | C8: 0.1
A9: 5 | B9: Material Processing | C9: 0.05
A10: 6 | B10: Low Temp Refer | C10: 0
A11: 7 | B11: Med Temp Refer | C11: 0
A12: 8 | B12: Pollution Control | C12: 0
A13: 9 | B13: Other Motors | C13: 0
A14: 10 | B14: Drying and Curing | C14: 0
A15: 11 | B15: Heat Treating | C15: 0
A16: 12 | B16: Heating | C16: 0
A17: 13 | B17: Melting and Casting | C17: 0
A18: 14 | B18: HVAC | C18: 0.03
A19: 15 | B19: Lighting | C19: 0.035
A20: 16 | B20: Other | C20: 0.035
A21: 17 | B21: All Electric | C21: =SUM(C5:C20) -> 1
A22: 18 | B22: All Motors | C22: =SUM(C5:C14,0.8*C18) -> 0.924
B24: Conservation Measure | C24: End Use | D24: % Savings | E24: Lifetime | F24: First Cost (2016$/kWh) | G24: Annual O&M Cost (2016$/kWh) | H24: Annual Non-Energy Benefit (2016$/kWh) | I24: Measure Applicability | J24: Achievability | K24: Inventory Factor | L24: Annual Non-Energy Benefit ($1000) | M24: Annual O&M Cost (1000$) | N24: Potential Savings (MWh/yr) | O24: Initial Cost (1000$) | P24: Levelized Cost (2016$/kWh) Installation-Order-Specific | Q24: Levelized Cost (2016$/kWh) Installation-Order-Indpendent | R24: % Savings * Applicability * Achievability
A25: 1 | B25: =IF($R25>0,ECMs!B4,"") -> Air Compressor Demand Reduction | C25: =IF($R25>0,ECMs!C4,"") -> Compressed Air | D25: =IF($R25>0,ECMs!D4,"") -> 0.1 | E25: =IF($R25>0,ECMs!E4,"") -> 10 | F25: =IF($R25>0,ECMs!L4,"") -> 0.09468255125 | G25: =IF($R25>0,ECMs!M4,"") -> 0.02940451902 | H25: =IF($R25>0,ECMs!N4,"") -> 0 | I25: =IF($R25>0,INDEX(ECMs!AM4:BG4,1,MATCH($J$1,ECMs!$AM$3:$BG$3,0)),"") -> 0.09743929481 | J25: =IF($R25>0,INDEX(ECMs!R4:AL4,MATCH($J$1,ECMs!$R$3:$AL$3,0)),"") -> 0.9656649088 | K25: =IF($R25>0,IFERROR(INDEX(Inventory!$F$5:$NS$67,MATCH(A25,Inventory!$A$5:$A$67,0),MATCH($C25&J$1,Inventory!$F$4:$NS$4&Inventory!$F$3:$NS$3,0)),""),"") -> 0.9275781942 | L25: =IFERROR(H25*N25/K25,"") -> 0 | M25: =IFERROR(G25*N25/K25,"") -> 27.59808223 | N25: =IFERROR(INDEX($B$5:$C$22,MATCH(C25,B$5:B$22,0),2)*D25*I25*J25*K25*$H$2,"") -> 870.593369 | O25: =IFERROR(F25*N25/K25,"") -> 88.86582478 | P25: =IFERROR(PMT(Discount_rate,E25,-(O25+PV(Discount_rate,E25,L25-M25)))/N25,"") -> 0.04412910288 | Q25: =IF(P25="","",ECMs!O4) -> 0.04093319356 | R25: =ECMs!D4*INDEX(ECMs!AM4:BG4,1,MATCH($J$1,ECMs!$AM$3:$BG$3,0))*INDEX(ECMs!R4:AL4,MATCH($J$1,ECMs!$R$3:$AL$3,0)) -> 0.009409370774
A26: 2 | B26: =IF($R26>0,ECMs!B5,"") -> Air Compressor Variable Speed | C26: =IF($R26>0,ECMs!C5,"") -> Compressed Air | D26: =IF($R26>0,ECMs!D5,"") -> 0.0826137993 | E26: =IF($R26>0,ECMs!E5,"") -> 13 | F26: =IF($R26>0,ECMs!L5,"") -> 0.6157000925 | G26: =IF($R26>0,ECMs!M5,"") -> 0 | H26: =IF($R26>0,ECMs!N5,"") -> 0 | I26: =IF($R26>0,INDEX(ECMs!AM5:BG5,1,MATCH($J$1,ECMs!$AM$3:$BG$3,0)),"") -> 1 | J26: =IF($R26>0,INDEX(ECMs!R5:AL5,MATCH($J$1,ECMs!$R$3:$AL$3,0)),"") -> 1 | K26: =IF($R26>0,IFERROR(INDEX(Inventory!$F$5:$NS$67,MATCH(A26,Inventory!$A$5:$A$67,0),MATCH($C26&J$1,Inventory!$F$4:$NS$4&Inventory!$F$3:$NS$3,0)),""),"") -> 0.9061998593 | L26: =IFERROR(H26*N26/K26,"") -> 0 | M26: =IFERROR(G26*N26/K26,"") -> 0 | N26: =IFERROR(INDEX($B$5:$C$22,MATCH(C26,B$5:B$22,0),2)*D26*I26*J26*K26*$H$2,"") -> 7467.596233 | O26: =IFERROR(F26*N26/K26,"") -> 5073.714859 | P26: 0.06698944749 | Q26: =IF(P26="","",ECMs!O5) -> 0.06070582788 | R26: =ECMs!D5*INDEX(ECMs!AM5:BG5,1,MATCH($J$1,ECMs!$AM$3:$BG$3,0))*INDEX(ECMs!R5:AL5,MATCH($J$1,ECMs!$R$3:$AL$3,0)) -> 0.0826137993
A27: 3 | B27: =IF($R27>0,ECMs!B6,"") -> Air Compressor Equipment | C27: =IF($R27>0,ECMs!C6,"") -> Compressed Air | D27: =IF($R27>0,ECMs!D6,"") -> 0.1337172591 | E27: =IF($R27>0,ECMs!E6,"") -> 13 | F27: =IF($R27>0,ECMs!L6,"") -> 0.6763242759 | G27: =IF($R27>0,ECMs!M6,"") -> 0 | H27: =IF($R27>0,ECMs!N6,"") -> 0 | I27: =IF($R27>0,INDEX(ECMs!AM6:BG6,1,MATCH($J$1,ECMs!$AM$3:$BG$3,0)),"") -> 1 | J27: =IF($R27>0,INDEX(ECMs!R6:AL6,MATCH($J$1,ECMs!$R$3:$AL$3,0)),"") -> 1 | K27: =IF($R27>0,IFERROR(INDEX(Inventory!$F$5:$NS$67,MATCH(A27,Inventory!$A$5:$A$67,0),MATCH($C27&J$1,Inventory!$F$4:$NS$4&Inventory!$F$3:$NS$3,0)),""),"") -> 0.831335246 | L27: 0 | M27: 0 | N27: 11088.37492 | O27: 9020.833864 | P27: 0.08021211172 | Q27: =IF(P27="","",ECMs!O6) -> 0.06668315562 | R27: =ECMs!D6*INDEX(ECMs!AM6:BG6,1,MATCH($J$1,ECMs!$AM$3:$BG$3,0))*INDEX(ECMs!R6:AL6,MATCH($J$1,ECMs!$R$3:$AL$3,0)) -> 0.1337172591
A28: 4 | B28: =IF($R28>0,ECMs!B7,"") -> Energy Management | C28: =IF($R28>0,ECMs!C7,"") -> All Electric | D28: =IF($R28>0,ECMs!D7,"") -> 0.03 | E28: =IF($R28>0,ECMs!E7,"") -> 3 | F28: =IF($R28>0,ECMs!L7,"") -> 0.07638306017 | G28: =IF($R28>0,ECMs!M7,"") -> 0 | H28: =IF($R28>0,ECMs!N7,"") -> 0 | I28: =IF($R28>0,INDEX(ECMs!AM7:BG7,1,MATCH($J$1,ECMs!$AM$3:$BG$3,0)),"") -> 0.9301623944 | J28: =IF($R28>0,INDEX(ECMs!R7:AL7,MATCH($J$1,ECMs!$R$3:$AL$3,0)),"") -> 1 | K28: =IF($R28>0,IFERROR(INDEX(Inventory!$F$5:$NS$67,MATCH(A28,Inventory!$A$5:$A$67,0),MATCH($C28&J$1,Inventory!$F$4:$NS$4&Inventory!$F$3:$NS$3,0)),""),"") -> 0.8222182816 | L28: 0 | M28: 0 | N28: 45772.15911 | O28: 4252.176899 | P28: 0.03331721626 | Q28: =IF(P28="","",ECMs!O7) -> 0.0273940243 | R28: =ECMs!D7*INDEX(ECMs!AM7:BG7,1,MATCH($J$1,ECMs!$AM$3:$BG$3,0))*INDEX(ECMs!R7:AL7,MATCH($J$1,ECMs!$R$3:$AL$3,0)) -> 0.02790487183
A29: 5 | B29: =IF($R29>0,ECMs!B8,"") ->  | C29: =IF($R29>0,ECMs!C8,"") ->  | D29: =IF($R29>0,ECMs!D8,"") ->  | E29: =IF($R29>0,ECMs!E8,"") ->  | F29: =IF($R29>0,ECMs!L8,"") ->  | G29: =IF($R29>0,ECMs!M8,"") ->  | H29: =IF($R29>0,ECMs!N8,"") ->  | I29: =IF($R29>0,INDEX(ECMs!AM8:BG8,1,MATCH($J$1,ECMs!$AM$3:$BG$3,0)),"") ->  | J29: =IF($R29>0,INDEX(ECMs!R8:AL8,MATCH($J$1,ECMs!$R$3:$AL$3,0)),"") ->  | K29: =IF($R29>0,IFERROR(INDEX(Inventory!$F$5:$NS$67,MATCH(A29,Inventory!$A$5:$A$67,0),MATCH($C29&J$1,Inventory!$F$4:$NS$4&Inventory!$F$3:$NS$3,0)),""),"") ->  | Q29: =IF(P29="","",ECMs!O8) ->  | R29: =ECMs!D8*INDEX(ECMs!AM8:BG8,1,MATCH($J$1,ECMs!$AM$3:$BG$3,0))*INDEX(ECMs!R8:AL8,MATCH($J$1,ECMs!$R$3:$AL$3,0)) -> 0
A30: 6 | B30: =IF($R30>0,ECMs!B9,"") ->  | C30: =IF($R30>0,ECMs!C9,"") ->  | D30: =IF($R30>0,ECMs!D9,"") ->  | E30: =IF($R30>0,ECMs!E9,"") ->  | F30: =IF($R30>0,ECMs!L9,"") ->  | G30: =IF($R30>0,ECMs!M9,"") ->  | H30: =IF($R30>0,ECMs!N9,"") ->  | I30: =IF($R30>0,INDEX(ECMs!AM9:BG9,1,MATCH($J$1,ECMs!$AM$3:$BG$3,0)),"") ->  | J30: =IF($R30>0,INDEX(ECMs!R9:AL9,MATCH($J$1,ECMs!$R$3:$AL$3,0)),"") ->  | K30: =IF($R30>0,IFERROR(INDEX(Inventory!$F$5:$NS$67,MATCH(A30,Inventory!$A$5:$A$67,0),MATCH($C30&J$1,Inventory!$F$4:$NS$4&Inventory!$F$3:$NS$3,0)),""),"") ->  | Q30: =IF(P30="","",ECMs!O9) ->  | R30: =ECMs!D9*INDEX(ECMs!AM9:BG9,1,MATCH($J$1,ECMs!$AM$3:$BG$3,0))*INDEX(ECMs!R9:AL9,MATCH($J$1,ECMs!$R$3:$AL$3,0)) -> 0
A31: 7 | B31: =IF($R31>0,ECMs!B10,"") -> HighBay Lighting 3 Shift | C31: =IF($R31>0,ECMs!C10,"") -> Lighting | D31: =IF($R31>0,ECMs!D10,"") -> 0.4515888331 | E31: =IF($R31>0,ECMs!E10,"") -> 6.381647596 | F31: =IF($R31>0,ECMs!L10,"") -> 0.2462405067 | G31: =IF($R31>0,ECMs!M10,"") -> -0.01189506702 | H31: =IF($R31>0,ECMs!N10,"") -> 0 | I31: =IF($R31>0,INDEX(ECMs!AM10:BG10,1,MATCH($J$1,ECMs!$AM$3:$BG$3,0)),"") -> 0.456547619 | J31: =IF($R31>0,INDEX(ECMs!R10:AL10,MATCH($J$1,ECMs!$R$3:$AL$3,0)),"") -> 1 | K31: =IF($R31>0,IFERROR(INDEX(Inventory!$F$5:$NS$67,MATCH(A31,Inventory!$A$5:$A$67,0),MATCH($C31&J$1,Inventory!$F$4:$NS$4&Inventory!$F$3:$NS$3,0)),""),"") -> 0.8451961118 | L31: 0 | M31: -171.2373317 | N31: 12167.15524 | O31: 3544.794432 | P31: 0.03810633708 | Q31: =IF(P31="","",ECMs!O10) -> 0.03220732794 | R31: =ECMs!D10*INDEX(ECMs!AM10:BG10,1,MATCH($J$1,ECMs!$AM$3:$BG$3,0))*INDEX(ECMs!R10:AL10,MATCH($J$1,ECMs!$R$3:$AL$3,0)) -> 0.2061718066
... 35 more rows

Sheet Paper
B1: Resource Assessment Worksheet -- Industrial | H1: =J1 -> Paper | J1: Paper
B2: Year: | C2: ='Program Summary'!C2 -> 2041 | E2: Territory: | F2: ='Program Summary'!E2 -> Region | G2: MWh: | H2: =HLOOKUP(ReportYear,Forecast,MATCH($H$1,Forecast!$A$4:$A$25,0)) -> 354752.8227
B3: Date of Run: | C3: ='Program Summary'!C3 -> 2020-05-02T16:52:03.780 | F3: Penetration Assumption | H3: ='Program Summary'!G3 -> Technical
B4: Process Shares
A5: 1 | B5: Pumps | C5: =VLOOKUP($J$1,EndUse,MATCH($B5,EndUses,0),FALSE) -> 0.02
A6: 2 | B6: Fans and Blowers | C6: 0.15
A7: 3 | B7: Compressed Air | C7: 0.15
A8: 4 | B8: Material Handling | C8: 0.22
A9: 5 | B9: Material Processing | C9: 0.2
A10: 6 | B10: Low Temp Refer | C10: 0
A11: 7 | B11: Med Temp Refer | C11: 0
A12: 8 | B12: Pollution Control | C12: 0
A13: 9 | B13: Other Motors | C13: 0
A14: 10 | B14: Drying and Curing | C14: 0.06
A15: 11 | B15: Heat Treating | C15: 0
A16: 12 | B16: Heating | C16: 0
A17: 13 | B17: Melting and Casting | C17: 0
A18: 14 | B18: HVAC | C18: 0.05
A19: 15 | B19: Lighting | C19: 0.1
A20: 16 | B20: Other | C20: 0.05
A21: 17 | B21: All Electric | C21: =SUM(C5:C20) -> 1
A22: 18 | B22: All Motors | C22: =SUM(C5:C14,0.8*C18) -> 0.84
B24: Conservation Measure | C24: End Use | D24: % Savings | E24: Lifetime | F24: First Cost (2016$/kWh) | G24: Annual O&M Cost (2016$/kWh) | H24: Annual Non-Energy Benefit (2016$/kWh) | I24: Measure Applicability | J24: Achievability | K24: Inventory Factor | L24: Annual Non-Energy Benefit ($1000) | M24: Annual O&M Cost (1000$) | N24: Potential Savings (MWh/yr) | O24: Initial Cost (1000$) | P24: Levelized Cost (2016$/kWh) Installation-Order-Specific | Q24: Levelized Cost (2016$/kWh) Installation-Order-Indpendent | R24: % Savings * Applicability * Achievability
A25: 1 | B25: =IF($R25>0,ECMs!B4,"") -> Air Compressor Demand Reduction | C25: =IF($R25>0,ECMs!C4,"") -> Compressed Air | D25: =IF($R25>0,ECMs!D4,"") -> 0.1 | E25: =IF($R25>0,ECMs!E4,"") -> 10 | F25: =IF($R25>0,ECMs!L4,"") -> 0.09468255125 | G25: =IF($R25>0,ECMs!M4,"") -> 0.02940451902 | H25: =IF($R25>0,ECMs!N4,"") -> 0 | I25: =IF($R25>0,INDEX(ECMs!AM4:BG4,1,MATCH($J$1,ECMs!$AM$3:$BG$3,0)),"") -> 0.09743929481 | J25: =IF($R25>0,INDEX(ECMs!R4:AL4,MATCH($J$1,ECMs!$R$3:$AL$3,0)),"") -> 0.9656649088 | K25: =IF($R25>0,IFERROR(INDEX(Inventory!$F$5:$NS$67,MATCH(A25,Inventory!$A$5:$A$67,0),MATCH($C25&J$1,Inventory!$F$4:$NS$4&Inventory!$F$3:$NS$3,0)),""),"") -> 0.9275781942 | L25: =IFERROR(H25*N25/K25,"") -> 0 | M25: =IFERROR(G25*N25/K25,"") -> 14.72284639 | N25: =IFERROR(INDEX($B$5:$C$22,MATCH(C25,B$5:B$22,0),2)*D25*I25*J25*K25*$H$2,"") -> 464.4385189 | O25: =IFERROR(F25*N25/K25,"") -> 47.40756536 | P25: =IFERROR(PMT(Discount_rate,E25,-(O25+PV(Discount_rate,E25,L25-M25)))/N25,"") -> 0.04412910288 | Q25: =IF(P25="","",ECMs!O4) -> 0.04093319356 | R25: =ECMs!D4*INDEX(ECMs!AM4:BG4,1,MATCH($J$1,ECMs!$AM$3:$BG$3,0))*INDEX(ECMs!R4:AL4,MATCH($J$1,ECMs!$R$3:$AL$3,0)) -> 0.009409370774
A26: 2 | B26: =IF($R26>0,ECMs!B5,"") -> Air Compressor Variable Speed | C26: =IF($R26>0,ECMs!C5,"") -> Compressed Air | D26: =IF($R26>0,ECMs!D5,"") -> 0.0826137993 | E26: =IF($R26>0,ECMs!E5,"") -> 13 | F26: =IF($R26>0,ECMs!L5,"") -> 0.6157000925 | G26: =IF($R26>0,ECMs!M5,"") -> 0 | H26: =IF($R26>0,ECMs!N5,"") -> 0 | I26: =IF($R26>0,INDEX(ECMs!AM5:BG5,1,MATCH($J$1,ECMs!$AM$3:$BG$3,0)),"") -> 1 | J26: =IF($R26>0,INDEX(ECMs!R5:AL5,MATCH($J$1,ECMs!$R$3:$AL$3,0)),"") -> 1 | K26: =IF($R26>0,IFERROR(INDEX(Inventory!$F$5:$NS$67,MATCH(A26,Inventory!$A$5:$A$67,0),MATCH($C26&J$1,Inventory!$F$4:$NS$4&Inventory!$F$3:$NS$3,0)),""),"") -> 0.9061998593 | L26: =IFERROR(H26*N26/K26,"") -> 0 | M26: =IFERROR(G26*N26/K26,"") -> 0 | N26: =IFERROR(INDEX($B$5:$C$22,MATCH(C26,B$5:B$22,0),2)*D26*I26*J26*K26*$H$2,"") -> 3983.764933 | O26: =IFERROR(F26*N26/K26,"") -> 2706.692583 | P26: 0.06698944749 | Q26: =IF(P26="","",ECMs!O5) -> 0.06070582788 | R26: =ECMs!D5*INDEX(ECMs!AM5:BG5,1,MATCH($J$1,ECMs!$AM$3:$BG$3,0))*INDEX(ECMs!R5:AL5,MATCH($J$1,ECMs!$R$3:$AL$3,0)) -> 0.0826137993
A27: 3 | B27: =IF($R27>0,ECMs!B6,"") -> Air Compressor Equipment | C27: =IF($R27>0,ECMs!C6,"") -> Compressed Air | D27: =IF($R27>0,ECMs!D6,"") -> 0.1337172591 | E27: =IF($R27>0,ECMs!E6,"") -> 13 | F27: =IF($R27>0,ECMs!L6,"") -> 0.6763242759 | G27: =IF($R27>0,ECMs!M6,"") -> 0 | H27: =IF($R27>0,ECMs!N6,"") -> 0 | I27: =IF($R27>0,INDEX(ECMs!AM6:BG6,1,MATCH($J$1,ECMs!$AM$3:$BG$3,0)),"") -> 1 | J27: =IF($R27>0,INDEX(ECMs!R6:AL6,MATCH($J$1,ECMs!$R$3:$AL$3,0)),"") -> 1 | K27: =IF($R27>0,IFERROR(INDEX(Inventory!$F$5:$NS$67,MATCH(A27,Inventory!$A$5:$A$67,0),MATCH($C27&J$1,Inventory!$F$4:$NS$4&Inventory!$F$3:$NS$3,0)),""),"") -> 0.831335246 | L27: 0 | M27: 0 | N27: 5915.354527 | O27: 4812.376097 | P27: 0.08021211172 | Q27: =IF(P27="","",ECMs!O6) -> 0.06668315562 | R27: =ECMs!D6*INDEX(ECMs!AM6:BG6,1,MATCH($J$1,ECMs!$AM$3:$BG$3,0))*INDEX(ECMs!R6:AL6,MATCH($J$1,ECMs!$R$3:$AL$3,0)) -> 0.1337172591
A28: 4 | B28: =IF($R28>0,ECMs!B7,"") -> Energy Management | C28: =IF($R28>0,ECMs!C7,"") -> All Electric | D28: =IF($R28>0,ECMs!D7,"") -> 0.03 | E28: =IF($R28>0,ECMs!E7,"") -> 3 | F28: =IF($R28>0,ECMs!L7,"") -> 0.07638306017 | G28: =IF($R28>0,ECMs!M7,"") -> 0 | H28: =IF($R28>0,ECMs!N7,"") -> 0 | I28: =IF($R28>0,INDEX(ECMs!AM7:BG7,1,MATCH($J$1,ECMs!$AM$3:$BG$3,0)),"") -> 0.9301623944 | J28: =IF($R28>0,INDEX(ECMs!R7:AL7,MATCH($J$1,ECMs!$R$3:$AL$3,0)),"") -> 1 | K28: =IF($R28>0,IFERROR(INDEX(Inventory!$F$5:$NS$67,MATCH(A28,Inventory!$A$5:$A$67,0),MATCH($C28&J$1,Inventory!$F$4:$NS$4&Inventory!$F$3:$NS$3,0)),""),"") -> 0.8810210455 | L28: 0 | M28: 0 | N28: 8721.519872 | O28: 756.1412755 | P28: 0.03109349594 | Q28: =IF(P28="","",ECMs!O7) -> 0.0273940243 | R28: =ECMs!D7*INDEX(ECMs!AM7:BG7,1,MATCH($J$1,ECMs!$AM$3:$BG$3,0))*INDEX(ECMs!R7:AL7,MATCH($J$1,ECMs!$R$3:$AL$3,0)) -> 0.02790487183
A29: 5 | B29: =IF($R29>0,ECMs!B8,"") -> HighBay Lighting 1 Shift | C29: =IF($R29>0,ECMs!C8,"") -> Lighting | D29: =IF($R29>0,ECMs!D8,"") -> 0.4515888331 | E29: =IF($R29>0,ECMs!E8,"") -> 19.54658495 | F29: =IF($R29>0,ECMs!L8,"") -> 0.7526012161 | G29: =IF($R29>0,ECMs!M8,"") -> -0.01189506702 | H29: =IF($R29>0,ECMs!N8,"") -> 0 | I29: =IF($R29>0,INDEX(ECMs!AM8:BG8,1,MATCH($J$1,ECMs!$AM$3:$BG$3,0)),"") -> 0.09130952381 | J29: =IF($R29>0,INDEX(ECMs!R8:AL8,MATCH($J$1,ECMs!$R$3:$AL$3,0)),"") -> 1 | K29: =IF($R29>0,IFERROR(INDEX(Inventory!$F$5:$NS$67,MATCH(A29,Inventory!$A$5:$A$67,0),MATCH($C29&J$1,Inventory!$F$4:$NS$4&Inventory!$F$3:$NS$3,0)),""),"") -> 0.7139562031 | L29: 0 | M29: -17.40011125 | N29: 1044.375567 | O29: 1100.905516 | P29: 0.06038831659 | Q29: =IF(P29="","",ECMs!O8) -> 0.04311461322 | R29: =ECMs!D8*INDEX(ECMs!AM8:BG8,1,MATCH($J$1,ECMs!$AM$3:$BG$3,0))*INDEX(ECMs!R8:AL8,MATCH($J$1,ECMs!$R$3:$AL$3,0)) -> 0.04123436131
A30: 6 | B30: =IF($R30>0,ECMs!B9,"") -> HighBay Lighting 2 Shift | C30: =IF($R30>0,ECMs!C9,"") -> Lighting | D30: =IF($R30>0,ECMs!D9,"") -> 0.4515888331 | E30: =IF($R30>0,ECMs!E9,"") -> 11.43683162 | F30: =IF($R30>0,ECMs!L9,"") -> 0.4405669869 | G30: =IF($R30>0,ECMs!M9,"") -> -0.01189506702 | H30: =IF($R30>0,ECMs!N9,"") -> 0 | I30: =IF($R30>0,INDEX(ECMs!AM9:BG9,1,MATCH($J$1,ECMs!$AM$3:$BG$3,0)),"") -> 0.09130952381 | J30: =IF($R30>0,INDEX(ECMs!R9:AL9,MATCH($J$1,ECMs!$R$3:$AL$3,0)),"") -> 1 | K30: =IF($R30>0,IFERROR(INDEX(Inventory!$F$5:$NS$67,MATCH(A30,Inventory!$A$5:$A$67,0),MATCH($C30&J$1,Inventory!$F$4:$NS$4&Inventory!$F$3:$NS$3,0)),""),"") -> 0.7446618592 | L30: 0 | M30: -17.40011125 | N30: 1089.29182 | O30: 644.4616558 | P30: 0.04859003884 | Q30: =IF(P30="","",ECMs!O9) -> 0.03618314866 | R30: =ECMs!D9*INDEX(ECMs!AM9:BG9,1,MATCH($J$1,ECMs!$AM$3:$BG$3,0))*INDEX(ECMs!R9:AL9,MATCH($J$1,ECMs!$R$3:$AL$3,0)) -> 0.04123436131
A31: 7 | B31: =IF($R31>0,ECMs!B10,"") -> HighBay Lighting 3 Shift | C31: =IF($R31>0,ECMs!C10,"") -> Lighting | D31: =IF($R31>0,ECMs!D10,"") -> 0.4515888331 | E31: =IF($R31>0,ECMs!E10,"") -> 6.381647596 | F31: =IF($R31>0,ECMs!L10,"") -> 0.2462405067 | G31: =IF($R31>0,ECMs!M10,"") -> -0.01189506702 | H31: =IF($R31>0,ECMs!N10,"") -> 0 | I31: =IF($R31>0,INDEX(ECMs!AM10:BG10,1,MATCH($J$1,ECMs!$AM$3:$BG$3,0)),"") -> 0.2739285714 | J31: =IF($R31>0,INDEX(ECMs!R10:AL10,MATCH($J$1,ECMs!$R$3:$AL$3,0)),"") -> 1 | K31: =IF($R31>0,IFERROR(INDEX(Inventory!$F$5:$NS$67,MATCH(A31,Inventory!$A$5:$A$67,0),MATCH($C31&J$1,Inventory!$F$4:$NS$4&Inventory!$F$3:$NS$3,0)),""),"") -> 0.8497825858 | L31: 0 | M31: -52.20033375 | N31: 3729.187446 | O31: 1080.602288 | P31: 0.03790066833 | Q31: =IF(P31="","",ECMs!O10) -> 0.03220732794 | R31: =ECMs!D10*INDEX(ECMs!AM10:BG10,1,MATCH($J$1,ECMs!$AM$3:$BG$3,0))*INDEX(ECMs!R10:AL10,MATCH($J$1,ECMs!$R$3:$AL$3,0)) -> 0.1237030839
... 35 more rows

Sheet Foundries
B1: Resource Assessment Worksheet -- Industrial | H1: Foundries | J1: Foundries
B2: Year: | C2: ='Program Summary'!C2 -> 2041 | E2: Territory: | F2: ='Program Summary'!E2 -> Region | G2: MWh: | H2: =HLOOKUP(ReportYear,Forecast,MATCH($H$1,Forecast!$A$4:$A$25,0)) -> 440776.4
B3: Date of Run: | C3: ='Program Summary'!C3 -> 2020-05-02T16:52:03.780 | F3: Penetration Assumption | H3: ='Program Summary'!G3 -> Technical
B4: Process Shares
A5: 1 | B5: Pumps | C5: =VLOOKUP($J$1,EndUse,MATCH($B5,EndUses,0),FALSE) -> 0.18
A6: 2 | B6: Fans and Blowers | C6: 0.1
A7: 3 | B7: Compressed Air | C7: 0.07
A8: 4 | B8: Material Handling | C8: 0.06
A9: 5 | B9: Material Processing | C9: 0.07
A10: 6 | B10: Low Temp Refer | C10: 0
A11: 7 | B11: Med Temp Refer | C11: 0
A12: 8 | B12: Pollution Control | C12: 0.01
A13: 9 | B13: Other Motors | C13: 0.08
A14: 10 | B14: Drying and Curing | C14: 0
A15: 11 | B15: Heat Treating | C15: 0
A16: 12 | B16: Heating | C16: 0.14
A17: 13 | B17: Melting and Casting | C17: 0.07
A18: 14 | B18: HVAC | C18: 0.09
A19: 15 | B19: Lighting | C19: 0.09
A20: 16 | B20: Other | C20: 0.04
A21: 17 | B21: All Electric | C21: =SUM(C5:C20) -> 1
A22: 18 | B22: All Motors | C22: =SUM(C5:C14,0.8*C18) -> 0.642
B24: Conservation Measure | C24: End Use | D24: % Savings | E24: Lifetime | F24: First Cost (2016$/kWh) | G24: Annual O&M Cost (2016$/kWh) | H24: Annual Non-Energy Benefit (2016$/kWh) | I24: Measure Applicability | J24: Achievability | K24: Inventory Factor | L24: Annual Non-Energy Benefit ($1000) | M24: Annual O&M Cost (1000$) | N24: Potential Savings (MWh/yr) | O24: Initial Cost (1000$) | P24: Levelized Cost (2016$/kWh) Installation-Order-Specific | Q24: Levelized Cost (2016$/kWh) Installation-Order-Indpendent | R24: % Savings * Applicability * Achievability
A25: 1 | B25: =IF($R25>0,ECMs!B4,"") -> Air Compressor Demand Reduction | C25: =IF($R25>0,ECMs!C4,"") -> Compressed Air | D25: =IF($R25>0,ECMs!D4,"") -> 0.1 | E25: =IF($R25>0,ECMs!E4,"") -> 10 | F25: =IF($R25>0,ECMs!L4,"") -> 0.09468255125 | G25: =IF($R25>0,ECMs!M4,"") -> 0.02940451902 | H25: =IF($R25>0,ECMs!N4,"") -> 0 | I25: =IF($R25>0,INDEX(ECMs!AM4:BG4,1,MATCH($J$1,ECMs!$AM$3:$BG$3,0)),"") -> 0.09743929481 | J25: =IF($R25>0,INDEX(ECMs!R4:AL4,MATCH($J$1,ECMs!$R$3:$AL$3,0)),"") -> 0.9656649088 | K25: =IF($R25>0,IFERROR(INDEX(Inventory!$F$5:$NS$67,MATCH(A25,Inventory!$A$5:$A$67,0),MATCH($C25&J$1,Inventory!$F$4:$NS$4&Inventory!$F$3:$NS$3,0)),""),"") -> 0.9275781942 | L25: =IFERROR(H25*N25/K25,"") -> 0 | M25: =IFERROR(G25*N25/K25,"") -> 8.536719971 | N25: =IFERROR(INDEX($B$5:$C$22,MATCH(C25,B$5:B$22,0),2)*D25*I25*J25*K25*$H$2,"") -> 269.2945016 | O25: =IFERROR(F25*N25/K25,"") -> 27.48823831 | P25: =IFERROR(PMT(Discount_rate,E25,-(O25+PV(Discount_rate,E25,L25-M25)))/N25,"") -> 0.04412910288 | Q25: =IF(P25="","",ECMs!O4) -> 0.04093319356 | R25: =ECMs!D4*INDEX(ECMs!AM4:BG4,1,MATCH($J$1,ECMs!$AM$3:$BG$3,0))*INDEX(ECMs!R4:AL4,MATCH($J$1,ECMs!$R$3:$AL$3,0)) -> 0.009409370774
A26: 2 | B26: =IF($R26>0,ECMs!B5,"") -> Air Compressor Variable Speed | C26: =IF($R26>0,ECMs!C5,"") -> Compressed Air | D26: =IF($R26>0,ECMs!D5,"") -> 0.0826137993 | E26: =IF($R26>0,ECMs!E5,"") -> 13 | F26: =IF($R26>0,ECMs!L5,"") -> 0.6157000925 | G26: =IF($R26>0,ECMs!M5,"") -> 0 | H26: =IF($R26>0,ECMs!N5,"") -> 0 | I26: =IF($R26>0,INDEX(ECMs!AM5:BG5,1,MATCH($J$1,ECMs!$AM$3:$BG$3,0)),"") -> 1 | J26: =IF($R26>0,INDEX(ECMs!R5:AL5,MATCH($J$1,ECMs!$R$3:$AL$3,0)),"") -> 1 | K26: =IF($R26>0,IFERROR(INDEX(Inventory!$F$5:$NS$67,MATCH(A26,Inventory!$A$5:$A$67,0),MATCH($C26&J$1,Inventory!$F$4:$NS$4&Inventory!$F$3:$NS$3,0)),""),"") -> 0.9061998593 | L26: =IFERROR(H26*N26/K26,"") -> 0 | M26: =IFERROR(G26*N26/K26,"") -> 0 | N26: =IFERROR(INDEX($B$5:$C$22,MATCH(C26,B$5:B$22,0),2)*D26*I26*J26*K26*$H$2,"") -> 2309.898832 | O26: =IFERROR(F26*N26/K26,"") -> 1569.416404 | P26: 0.06698944749 | Q26: =IF(P26="","",ECMs!O5) -> 0.06070582788 | R26: =ECMs!D5*INDEX(ECMs!AM5:BG5,1,MATCH($J$1,ECMs!$AM$3:$BG$3,0))*INDEX(ECMs!R5:AL5,MATCH($J$1,ECMs!$R$3:$AL$3,0)) -> 0.0826137993
A27: 3 | B27: =IF($R27>0,ECMs!B6,"") -> Air Compressor Equipment | C27: =IF($R27>0,ECMs!C6,"") -> Compressed Air | D27: =IF($R27>0,ECMs!D6,"") -> 0.1337172591 | E27: =IF($R27>0,ECMs!E6,"") -> 13 | F27: =IF($R27>0,ECMs!L6,"") -> 0.6763242759 | G27: =IF($R27>0,ECMs!M6,"") -> 0 | H27: =IF($R27>0,ECMs!N6,"") -> 0 | I27: =IF($R27>0,INDEX(ECMs!AM6:BG6,1,MATCH($J$1,ECMs!$AM$3:$BG$3,0)),"") -> 1 | J27: =IF($R27>0,INDEX(ECMs!R6:AL6,MATCH($J$1,ECMs!$R$3:$AL$3,0)),"") -> 1 | K27: =IF($R27>0,IFERROR(INDEX(Inventory!$F$5:$NS$67,MATCH(A27,Inventory!$A$5:$A$67,0),MATCH($C27&J$1,Inventory!$F$4:$NS$4&Inventory!$F$3:$NS$3,0)),""),"") -> 0.831335246 | L27: 0 | M27: 0 | N27: 3429.888746 | O27: 2790.350864 | P27: 0.08021211172 | Q27: =IF(P27="","",ECMs!O6) -> 0.06668315562 | R27: =ECMs!D6*INDEX(ECMs!AM6:BG6,1,MATCH($J$1,ECMs!$AM$3:$BG$3,0))*INDEX(ECMs!R6:AL6,MATCH($J$1,ECMs!$R$3:$AL$3,0)) -> 0.1337172591
A28: 4 | B28: =IF($R28>0,ECMs!B7,"") -> Energy Management | C28: =IF($R28>0,ECMs!C7,"") -> All Electric | D28: =IF($R28>0,ECMs!D7,"") -> 0.03 | E28: =IF($R28>0,ECMs!E7,"") -> 3 | F28: =IF($R28>0,ECMs!L7,"") -> 0.07638306017 | G28: =IF($R28>0,ECMs!M7,"") -> 0 | H28: =IF($R28>0,ECMs!N7,"") -> 0 | I28: =IF($R28>0,INDEX(ECMs!AM7:BG7,1,MATCH($J$1,ECMs!$AM$3:$BG$3,0)),"") -> 0.9301623944 | J28: =IF($R28>0,INDEX(ECMs!R7:AL7,MATCH($J$1,ECMs!$R$3:$AL$3,0)),"") -> 1 | K28: =IF($R28>0,IFERROR(INDEX(Inventory!$F$5:$NS$67,MATCH(A28,Inventory!$A$5:$A$67,0),MATCH($C28&J$1,Inventory!$F$4:$NS$4&Inventory!$F$3:$NS$3,0)),""),"") -> 0.9099694436 | L28: 0 | M28: 0 | N28: 11192.4503 | O28: 939.4970469 | P28: 0.03010433426 | Q28: =IF(P28="","",ECMs!O7) -> 0.0273940243 | R28: =ECMs!D7*INDEX(ECMs!AM7:BG7,1,MATCH($J$1,ECMs!$AM$3:$BG$3,0))*INDEX(ECMs!R7:AL7,MATCH($J$1,ECMs!$R$3:$AL$3,0)) -> 0.02790487183
A29: 5 | B29: =IF($R29>0,ECMs!B8,"") -> HighBay Lighting 1 Shift | C29: =IF($R29>0,ECMs!C8,"") -> Lighting | D29: =IF($R29>0,ECMs!D8,"") -> 0.4515888331 | E29: =IF($R29>0,ECMs!E8,"") -> 19.54658495 | F29: =IF($R29>0,ECMs!L8,"") -> 0.7526012161 | G29: =IF($R29>0,ECMs!M8,"") -> -0.01189506702 | H29: =IF($R29>0,ECMs!N8,"") -> 0 | I29: =IF($R29>0,INDEX(ECMs!AM8:BG8,1,MATCH($J$1,ECMs!$AM$3:$BG$3,0)),"") -> 0.1404761905 | J29: =IF($R29>0,INDEX(ECMs!R8:AL8,MATCH($J$1,ECMs!$R$3:$AL$3,0)),"") -> 1 | K29: =IF($R29>0,IFERROR(INDEX(Inventory!$F$5:$NS$67,MATCH(A29,Inventory!$A$5:$A$67,0),MATCH($C29&J$1,Inventory!$F$4:$NS$4&Inventory!$F$3:$NS$3,0)),""),"") -> 0.7253240686 | L29: 0 | M29: -29.93461326 | N29: 1825.319306 | O29: 1893.963801 | P29: 0.05944186204 | Q29: =IF(P29="","",ECMs!O8) -> 0.04311461322 | R29: =ECMs!D8*INDEX(ECMs!AM8:BG8,1,MATCH($J$1,ECMs!$AM$3:$BG$3,0))*INDEX(ECMs!R8:AL8,MATCH($J$1,ECMs!$R$3:$AL$3,0)) -> 0.06343747894
A30: 6 | B30: =IF($R30>0,ECMs!B9,"") -> HighBay Lighting 2 Shift | C30: =IF($R30>0,ECMs!C9,"") -> Lighting | D30: =IF($R30>0,ECMs!D9,"") -> 0.4515888331 | E30: =IF($R30>0,ECMs!E9,"") -> 11.43683162 | F30: =IF($R30>0,ECMs!L9,"") -> 0.4405669869 | G30: =IF($R30>0,ECMs!M9,"") -> -0.01189506702 | H30: =IF($R30>0,ECMs!N9,"") -> 0 | I30: =IF($R30>0,INDEX(ECMs!AM9:BG9,1,MATCH($J$1,ECMs!$AM$3:$BG$3,0)),"") -> 0.1755952381 | J30: =IF($R30>0,INDEX(ECMs!R9:AL9,MATCH($J$1,ECMs!$R$3:$AL$3,0)),"") -> 1 | K30: =IF($R30>0,IFERROR(INDEX(Inventory!$F$5:$NS$67,MATCH(A30,Inventory!$A$5:$A$67,0),MATCH($C30&J$1,Inventory!$F$4:$NS$4&Inventory!$F$3:$NS$3,0)),""),"") -> 0.7877936201 | L30: 0 | M30: -37.41826657 | N30: 2478.159361 | O30: 1385.889876 | P30: 0.04592973051 | Q30: =IF(P30="","",ECMs!O9) -> 0.03618314866 | R30: =ECMs!D9*INDEX(ECMs!AM9:BG9,1,MATCH($J$1,ECMs!$AM$3:$BG$3,0))*INDEX(ECMs!R9:AL9,MATCH($J$1,ECMs!$R$3:$AL$3,0)) -> 0.07929684868
A31: 7 | B31: =IF($R31>0,ECMs!B10,"") -> HighBay Lighting 3 Shift | C31: =IF($R31>0,ECMs!C10,"") -> Lighting | D31: =IF($R31>0,ECMs!D10,"") -> 0.4515888331 | E31: =IF($R31>0,ECMs!E10,"") -> 6.381647596 | F31: =IF($R31>0,ECMs!L10,"") -> 0.2462405067 | G31: =IF($R31>0,ECMs!M10,"") -> -0.01189506702 | H31: =IF($R31>0,ECMs!N10,"") -> 0 | I31: =IF($R31>0,INDEX(ECMs!AM10:BG10,1,MATCH($J$1,ECMs!$AM$3:$BG$3,0)),"") -> 0.03511904762 | J31: =IF($R31>0,INDEX(ECMs!R10:AL10,MATCH($J$1,ECMs!$R$3:$AL$3,0)),"") -> 1 | K31: =IF($R31>0,IFERROR(INDEX(Inventory!$F$5:$NS$67,MATCH(A31,Inventory!$A$5:$A$67,0),MATCH($C31&J$1,Inventory!$F$4:$NS$4&Inventory!$F$3:$NS$3,0)),""),"") -> 0.800488869 | L31: 0 | M31: -7.483653314 | N31: 503.6189513 | O31: 154.919563 | P31: 0.04023457312 | Q31: =IF(P31="","",ECMs!O10) -> 0.03220732794 | R31: =ECMs!D10*INDEX(ECMs!AM10:BG10,1,MATCH($J$1,ECMs!$AM$3:$BG$3,0))*INDEX(ECMs!R10:AL10,MATCH($J$1,ECMs!$R$3:$AL$3,0)) -> 0.01585936974
... 35 more rows

Sheet MetalFab
B1: Resource Assessment Worksheet -- Industrial | H1: =J1 -> MetalFab | J1: MetalFab
B2: Year: | C2: ='Program Summary'!C2 -> 2041 | E2: Territory: | F2: ='Program Summary'!E2 -> Region | G2: MWh: | H2: =HLOOKUP(ReportYear,Forecast,MATCH($H$1,Forecast!$A$4:$A$25,0)) -> 1118951
B3: Date of Run: | C3: ='Program Summary'!C3 -> 2020-05-02T16:52:03.780 | F3: Penetration Assumption | H3: ='Program Summary'!G3 -> Technical
B4: Process Shares
A5: 1 | B5: Pumps | C5: =VLOOKUP($J$1,EndUse,MATCH($B5,EndUses,0),FALSE) -> 0.08
A6: 2 | B6: Fans and Blowers | C6: 0.04
A7: 3 | B7: Compressed Air | C7: 0.08
A8: 4 | B8: Material Handling | C8: 0.03
A9: 5 | B9: Material Processing | C9: 0.36
A10: 6 | B10: Low Temp Refer | C10: 0
A11: 7 | B11: Med Temp Refer | C11: 0
A12: 8 | B12: Pollution Control | C12: 0.01
A13: 9 | B13: Other Motors | C13: 0.08
A14: 10 | B14: Drying and Curing | C14: 0.01
A15: 11 | B15: Heat Treating | C15: 0.02
A16: 12 | B16: Heating | C16: 0.02
A17: 13 | B17: Melting and Casting | C17: 0
A18: 14 | B18: HVAC | C18: 0.13
A19: 15 | B19: Lighting | C19: 0.1
A20: 16 | B20: Other | C20: 0.04
A21: 17 | B21: All Electric | C21: =SUM(C5:C20) -> 1
A22: 18 | B22: All Motors | C22: =SUM(C5:C14,0.8*C18) -> 0.794
B24: Conservation Measure | C24: End Use | D24: % Savings | E24: Lifetime | F24: First Cost (2016$/kWh) | G24: Annual O&M Cost (2016$/kWh) | H24: Annual Non-Energy Benefit (2016$/kWh) | I24: Measure Applicability | J24: Achievability | K24: Inventory Factor | L24: Annual Non-Energy Benefit ($1000) | M24: Annual O&M Cost (1000$) | N24: Potential Savings (MWh/yr) | O24: Initial Cost (1000$) | P24: Levelized Cost (2016$/kWh) Installation-Order-Specific | Q24: Levelized Cost (2016$/kWh) Installation-Order-Indpendent | R24: % Savings * Applicability * Achievability
A25: 1 | B25: =IF($R25>0,ECMs!B4,"") -> Air Compressor Demand Reduction | C25: =IF($R25>0,ECMs!C4,"") -> Compressed Air | D25: =IF($R25>0,ECMs!D4,"") -> 0.1 | E25: =IF($R25>0,ECMs!E4,"") -> 10 | F25: =IF($R25>0,ECMs!L4,"") -> 0.09468255125 | G25: =IF($R25>0,ECMs!M4,"") -> 0.02940451902 | H25: =IF($R25>0,ECMs!N4,"") -> 0 | I25: =IF($R25>0,INDEX(ECMs!AM4:BG4,1,MATCH($J$1,ECMs!$AM$3:$BG$3,0)),"") -> 0.8 | J25: =IF($R25>0,INDEX(ECMs!R4:AL4,MATCH($J$1,ECMs!$R$3:$AL$3,0)),"") -> 0.9656649088 | K25: =IF($R25>0,IFERROR(INDEX(Inventory!$F$5:$NS$67,MATCH(A25,Inventory!$A$5:$A$67,0),MATCH($C25&J$1,Inventory!$F$4:$NS$4&Inventory!$F$3:$NS$3,0)),""),"") -> 0.9275781942 | L25: =IFERROR(H25*N25/K25,"") -> 0 | M25: =IFERROR(G25*N25/K25,"") -> 203.3440984 | N25: =IFERROR(INDEX($B$5:$C$22,MATCH(C25,B$5:B$22,0),2)*D25*I25*J25*K25*$H$2,"") -> 6414.577006 | O25: =IFERROR(F25*N25/K25,"") -> 654.7679969 | P25: =IFERROR(PMT(Discount_rate,E25,-(O25+PV(Discount_rate,E25,L25-M25)))/N25,"") -> 0.04412910288 | Q25: =IF(P25="","",ECMs!O4) -> 0.04093319356 | R25: =ECMs!D4*INDEX(ECMs!AM4:BG4,1,MATCH($J$1,ECMs!$AM$3:$BG$3,0))*INDEX(ECMs!R4:AL4,MATCH($J$1,ECMs!$R$3:$AL$3,0)) -> 0.0772531927
A26: 2 | B26: =IF($R26>0,ECMs!B5,"") -> Air Compressor Variable Speed | C26: =IF($R26>0,ECMs!C5,"") -> Compressed Air | D26: =IF($R26>0,ECMs!D5,"") -> 0.0826137993 | E26: =IF($R26>0,ECMs!E5,"") -> 13 | F26: =IF($R26>0,ECMs!L5,"") -> 0.6157000925 | G26: =IF($R26>0,ECMs!M5,"") -> 0 | H26: =IF($R26>0,ECMs!N5,"") -> 0 | I26: =IF($R26>0,INDEX(ECMs!AM5:BG5,1,MATCH($J$1,ECMs!$AM$3:$BG$3,0)),"") -> 1 | J26: =IF($R26>0,INDEX(ECMs!R5:AL5,MATCH($J$1,ECMs!$R$3:$AL$3,0)),"") -> 1 | K26: =IF($R26>0,IFERROR(INDEX(Inventory!$F$5:$NS$67,MATCH(A26,Inventory!$A$5:$A$67,0),MATCH($C26&J$1,Inventory!$F$4:$NS$4&Inventory!$F$3:$NS$3,0)),""),"") -> 0.8441358138 | L26: =IFERROR(H26*N26/K26,"") -> 0 | M26: =IFERROR(G26*N26/K26,"") -> 0 | N26: =IFERROR(INDEX($B$5:$C$22,MATCH(C26,B$5:B$22,0),2)*D26*I26*J26*K26*$H$2,"") -> 6242.606745 | O26: =IFERROR(F26*N26/K26,"") -> 4553.264401 | P26: 0.07191476406 | Q26: =IF(P26="","",ECMs!O5) -> 0.06070582788 | R26: =ECMs!D5*INDEX(ECMs!AM5:BG5,1,MATCH($J$1,ECMs!$AM$3:$BG$3,0))*INDEX(ECMs!R5:AL5,MATCH($J$1,ECMs!$R$3:$AL$3,0)) -> 0.0826137993
A27: 3 | B27: =IF($R27>0,ECMs!B6,"") -> Air Compressor Equipment | C27: =IF($R27>0,ECMs!C6,"") -> Compressed Air | D27: =IF($R27>0,ECMs!D6,"") -> 0.1337172591 | E27: =IF($R27>0,ECMs!E6,"") -> 13 | F27: =IF($R27>0,ECMs!L6,"") -> 0.6763242759 | G27: =IF($R27>0,ECMs!M6,"") -> 0 | H27: =IF($R27>0,ECMs!N6,"") -> 0 | I27: =IF($R27>0,INDEX(ECMs!AM6:BG6,1,MATCH($J$1,ECMs!$AM$3:$BG$3,0)),"") -> 1 | J27: =IF($R27>0,INDEX(ECMs!R6:AL6,MATCH($J$1,ECMs!$R$3:$AL$3,0)),"") -> 1 | K27: =IF($R27>0,IFERROR(INDEX(Inventory!$F$5:$NS$67,MATCH(A27,Inventory!$A$5:$A$67,0),MATCH($C27&J$1,Inventory!$F$4:$NS$4&Inventory!$F$3:$NS$3,0)),""),"") -> 0.7743985471 | L27: 0 | M27: 0 | N27: 9269.430472 | O27: 8095.496661 | P27: 0.08610960839 | Q27: =IF(P27="","",ECMs!O6) -> 0.06668315562 | R27: =ECMs!D6*INDEX(ECMs!AM6:BG6,1,MATCH($J$1,ECMs!$AM$3:$BG$3,0))*INDEX(ECMs!R6:AL6,MATCH($J$1,ECMs!$R$3:$AL$3,0)) -> 0.1337172591
A28: 4 | B28: =IF($R28>0,ECMs!B7,"") -> Energy Management | C28: =IF($R28>0,ECMs!C7,"") -> All Electric | D28: =IF($R28>0,ECMs!D7,"") -> 0.03 | E28: =IF($R28>0,ECMs!E7,"") -> 3 | F28: =IF($R28>0,ECMs!L7,"") -> 0.07638306017 | G28: =IF($R28>0,ECMs!M7,"") -> 0 | H28: =IF($R28>0,ECMs!N7,"") -> 0 | I28: =IF($R28>0,INDEX(ECMs!AM7:BG7,1,MATCH($J$1,ECMs!$AM$3:$BG$3,0)),"") -> 0.9301623944 | J28: =IF($R28>0,INDEX(ECMs!R7:AL7,MATCH($J$1,ECMs!$R$3:$AL$3,0)),"") -> 1 | K28: =IF($R28>0,IFERROR(INDEX(Inventory!$F$5:$NS$67,MATCH(A28,Inventory!$A$5:$A$67,0),MATCH($C28&J$1,Inventory!$F$4:$NS$4&Inventory!$F$3:$NS$3,0)),""),"") -> 0.9352252468 | L28: 0 | M28: 0 | N28: 29201.64541 | O28: 2384.998743 | P28: 0.02929136526 | Q28: =IF(P28="","",ECMs!O7) -> 0.0273940243 | R28: =ECMs!D7*INDEX(ECMs!AM7:BG7,1,MATCH($J$1,ECMs!$AM$3:$BG$3,0))*INDEX(ECMs!R7:AL7,MATCH($J$1,ECMs!$R$3:$AL$3,0)) -> 0.02790487183
A29: 5 | B29: =IF($R29>0,ECMs!B8,"") -> HighBay Lighting 1 Shift | C29: =IF($R29>0,ECMs!C8,"") -> Lighting | D29: =IF($R29>0,ECMs!D8,"") -> 0.4515888331 | E29: =IF($R29>0,ECMs!E8,"") -> 19.54658495 | F29: =IF($R29>0,ECMs!L8,"") -> 0.7526012161 | G29: =IF($R29>0,ECMs!M8,"") -> -0.01189506702 | H29: =IF($R29>0,ECMs!N8,"") -> 0 | I29: =IF($R29>0,INDEX(ECMs!AM8:BG8,1,MATCH($J$1,ECMs!$AM$3:$BG$3,0)),"") -> 0.08428571429 | J29: =IF($R29>0,INDEX(ECMs!R8:AL8,MATCH($J$1,ECMs!$R$3:$AL$3,0)),"") -> 1 | K29: =IF($R29>0,IFERROR(INDEX(Inventory!$F$5:$NS$67,MATCH(A29,Inventory!$A$5:$A$67,0),MATCH($C29&J$1,Inventory!$F$4:$NS$4&Inventory!$F$3:$NS$3,0)),""),"") -> 0.7074365225 | L29: 0 | M29: -50.66115977 | N29: 3012.976273 | O29: 3205.332967 | P29: 0.06094485067 | Q29: =IF(P29="","",ECMs!O8) -> 0.04311461322 | R29: =ECMs!D8*INDEX(ECMs!AM8:BG8,1,MATCH($J$1,ECMs!$AM$3:$BG$3,0))*INDEX(ECMs!R8:AL8,MATCH($J$1,ECMs!$R$3:$AL$3,0)) -> 0.03806248736
A30: 6 | B30: =IF($R30>0,ECMs!B9,"") -> HighBay Lighting 2 Shift | C30: =IF($R30>0,ECMs!C9,"") -> Lighting | D30: =IF($R30>0,ECMs!D9,"") -> 0.4515888331 | E30: =IF($R30>0,ECMs!E9,"") -> 11.43683162 | F30: =IF($R30>0,ECMs!L9,"") -> 0.4405669869 | G30: =IF($R30>0,ECMs!M9,"") -> -0.01189506702 | H30: =IF($R30>0,ECMs!N9,"") -> 0 | I30: =IF($R30>0,INDEX(ECMs!AM9:BG9,1,MATCH($J$1,ECMs!$AM$3:$BG$3,0)),"") -> 0.295 | J30: =IF($R30>0,INDEX(ECMs!R9:AL9,MATCH($J$1,ECMs!$R$3:$AL$3,0)),"") -> 1 | K30: =IF($R30>0,IFERROR(INDEX(Inventory!$F$5:$NS$67,MATCH(A30,Inventory!$A$5:$A$67,0),MATCH($C30&J$1,Inventory!$F$4:$NS$4&Inventory!$F$3:$NS$3,0)),""),"") -> 0.8161649625 | L30: 0 | M30: -177.3140592 | N30: 12166.17967 | O30: 6567.32078 | P30: 0.04433313157 | Q30: =IF(P30="","",ECMs!O9) -> 0.03618314866 | R30: =ECMs!D9*INDEX(ECMs!AM9:BG9,1,MATCH($J$1,ECMs!$AM$3:$BG$3,0))*INDEX(ECMs!R9:AL9,MATCH($J$1,ECMs!$R$3:$AL$3,0)) -> 0.1332187058
A31: 7 | B31: =IF($R31>0,ECMs!B10,"") -> HighBay Lighting 3 Shift | C31: =IF($R31>0,ECMs!C10,"") -> Lighting | D31: =IF($R31>0,ECMs!D10,"") -> 0.4515888331 | E31: =IF($R31>0,ECMs!E10,"") -> 6.381647596 | F31: =IF($R31>0,ECMs!L10,"") -> 0.2462405067 | G31: =IF($R31>0,ECMs!M10,"") -> -0.01189506702 | H31: =IF($R31>0,ECMs!N10,"") -> 0 | I31: =IF($R31>0,INDEX(ECMs!AM10:BG10,1,MATCH($J$1,ECMs!$AM$3:$BG$3,0)),"") -> 0.04214285714 | J31: =IF($R31>0,INDEX(ECMs!R10:AL10,MATCH($J$1,ECMs!$R$3:$AL$3,0)),"") -> 1 | K31: =IF($R31>0,IFERROR(INDEX(Inventory!$F$5:$NS$67,MATCH(A31,Inventory!$A$5:$A$67,0),MATCH($C31&J$1,Inventory!$F$4:$NS$4&Inventory!$F$3:$NS$3,0)),""),"") -> 0.831998937 | L31: 0 | M31: -25.33057989 | N31: 1771.744161 | O31: 524.3698768 | P31: 0.03871078015 | Q31: =IF(P31="","",ECMs!O10) -> 0.03220732794 | R31: =ECMs!D10*INDEX(ECMs!AM10:BG10,1,MATCH($J$1,ECMs!$AM$3:$BG$3,0))*INDEX(ECMs!R10:AL10,MATCH($J$1,ECMs!$R$3:$AL$3,0)) -> 0.01903124368
... 35 more rows

Sheet FrozenFood
B1: Resource Assessment Worksheet -- Industrial | H1: =J1 -> FrozenFood | J1: FrozenFood
B2: Year: | C2: ='Program Summary'!C2 -> 2041 | E2: Territory: | F2: ='Program Summary'!E2 -> Region | G2: MWh: | H2: =HLOOKUP(ReportYear,Forecast,MATCH($H$1,Forecast!$A$4:$A$25,0)) -> 2121376.159
B3: Date of Run: | C3: ='Program Summary'!C3 -> 2020-05-02T16:52:03.780 | F3: Penetration Assumption | H3: ='Program Summary'!G3 -> Technical
B4: Process Shares
A5: 1 | B5: Pumps | C5: =VLOOKUP($J$1,EndUse,MATCH($B5,EndUses,0),FALSE) -> 0.04
A6: 2 | B6: Fans and Blowers | C6: 0.04
A7: 3 | B7: Compressed Air | C7: 0.04
A8: 4 | B8: Material Handling | C8: 0.03
A9: 5 | B9: Material Processing | C9: 0.09
A10: 6 | B10: Low Temp Refer | C10: 0.42
A11: 7 | B11: Med Temp Refer | C11: 0.11
A12: 8 | B12: Pollution Control | C12: 0
A13: 9 | B13: Other Motors | C13: 0.03
A14: 10 | B14: Drying and Curing | C14: 0
A15: 11 | B15: Heat Treating | C15: 0
A16: 12 | B16: Heating | C16: 0.04
A17: 13 | B17: Melting and Casting | C17: 0
A18: 14 | B18: HVAC | C18: 0.07
A19: 15 | B19: Lighting | C19: 0.08
A20: 16 | B20: Other | C20: 0.01
A21: 17 | B21: All Electric | C21: =SUM(C5:C20) -> 1
A22: 18 | B22: All Motors | C22: =SUM(C5:C14,0.8*C18) -> 0.856
B24: Conservation Measure | C24: End Use | D24: % Savings | E24: Lifetime | F24: First Cost (2016$/kWh) | G24: Annual O&M Cost (2016$/kWh) | H24: Annual Non-Energy Benefit (2016$/kWh) | I24: Measure Applicability | J24: Achievability | K24: Inventory Factor | L24: Annual Non-Energy Benefit ($1000) | M24: Annual O&M Cost (1000$) | N24: Potential Savings (MWh/yr) | O24: Initial Cost (1000$) | P24: Levelized Cost (2016$/kWh) Installation-Order-Specific | Q24: Levelized Cost (2016$/kWh) Installation-Order-Indpendent | R24: % Savings * Applicability * Achievability
A25: 1 | B25: =IF($R25>0,ECMs!B4,"") -> Air Compressor Demand Reduction | C25: =IF($R25>0,ECMs!C4,"") -> Compressed Air | D25: =IF($R25>0,ECMs!D4,"") -> 0.1 | E25: =IF($R25>0,ECMs!E4,"") -> 10 | F25: =IF($R25>0,ECMs!L4,"") -> 0.09468255125 | G25: =IF($R25>0,ECMs!M4,"") -> 0.02940451902 | H25: =IF($R25>0,ECMs!N4,"") -> 0 | I25: =IF($R25>0,INDEX(ECMs!AM4:BG4,1,MATCH($J$1,ECMs!$AM$3:$BG$3,0)),"") -> 0.8 | J25: =IF($R25>0,INDEX(ECMs!R4:AL4,MATCH($J$1,ECMs!$R$3:$AL$3,0)),"") -> 0.9656649088 | K25: =IF($R25>0,IFERROR(INDEX(Inventory!$F$5:$NS$67,MATCH(A25,Inventory!$A$5:$A$67,0),MATCH($C25&J$1,Inventory!$F$4:$NS$4&Inventory!$F$3:$NS$3,0)),""),"") -> 0.9275781942 | L25: =IFERROR(H25*N25/K25,"") -> 0 | M25: =IFERROR(G25*N25/K25,"") -> 192.7561272 | N25: =IFERROR(INDEX($B$5:$C$22,MATCH(C25,B$5:B$22,0),2)*D25*I25*J25*K25*$H$2,"") -> 6080.574902 | O25: =IFERROR(F25*N25/K25,"") -> 620.6747295 | P25: =IFERROR(PMT(Discount_rate,E25,-(O25+PV(Discount_rate,E25,L25-M25)))/N25,"") -> 0.04412910288 | Q25: =IF(P25="","",ECMs!O4) -> 0.04093319356 | R25: =ECMs!D4*INDEX(ECMs!AM4:BG4,1,MATCH($J$1,ECMs!$AM$3:$BG$3,0))*INDEX(ECMs!R4:AL4,MATCH($J$1,ECMs!$R$3:$AL$3,0)) -> 0.0772531927
A26: 2 | B26: =IF($R26>0,ECMs!B5,"") -> Air Compressor Variable Speed | C26: =IF($R26>0,ECMs!C5,"") -> Compressed Air | D26: =IF($R26>0,ECMs!D5,"") -> 0.0826137993 | E26: =IF($R26>0,ECMs!E5,"") -> 13 | F26: =IF($R26>0,ECMs!L5,"") -> 0.6157000925 | G26: =IF($R26>0,ECMs!M5,"") -> 0 | H26: =IF($R26>0,ECMs!N5,"") -> 0 | I26: =IF($R26>0,INDEX(ECMs!AM5:BG5,1,MATCH($J$1,ECMs!$AM$3:$BG$3,0)),"") -> 1 | J26: =IF($R26>0,INDEX(ECMs!R5:AL5,MATCH($J$1,ECMs!$R$3:$AL$3,0)),"") -> 1 | K26: =IF($R26>0,IFERROR(INDEX(Inventory!$F$5:$NS$67,MATCH(A26,Inventory!$A$5:$A$67,0),MATCH($C26&J$1,Inventory!$F$4:$NS$4&Inventory!$F$3:$NS$3,0)),""),"") -> 0.8441358138 | L26: =IFERROR(H26*N26/K26,"") -> 0 | M26: =IFERROR(G26*N26/K26,"") -> 0 | N26: =IFERROR(INDEX($B$5:$C$22,MATCH(C26,B$5:B$22,0),2)*D26*I26*J26*K26*$H$2,"") -> 5917.559 | O26: =IFERROR(F26*N26/K26,"") -> 4316.179416 | P26: 0.07191476406 | Q26: =IF(P26="","",ECMs!O5) -> 0.06070582788 | R26: =ECMs!D5*INDEX(ECMs!AM5:BG5,1,MATCH($J$1,ECMs!$AM$3:$BG$3,0))*INDEX(ECMs!R5:AL5,MATCH($J$1,ECMs!$R$3:$AL$3,0)) -> 0.0826137993
A27: 3 | B27: =IF($R27>0,ECMs!B6,"") -> Air Compressor Equipment | C27: =IF($R27>0,ECMs!C6,"") -> Compressed Air | D27: =IF($R27>0,ECMs!D6,"") -> 0.1337172591 | E27: =IF($R27>0,ECMs!E6,"") -> 13 | F27: =IF($R27>0,ECMs!L6,"") -> 0.6763242759 | G27: =IF($R27>0,ECMs!M6,"") -> 0 | H27: =IF($R27>0,ECMs!N6,"") -> 0 | I27: =IF($R27>0,INDEX(ECMs!AM6:BG6,1,MATCH($J$1,ECMs!$AM$3:$BG$3,0)),"") -> 1 | J27: =IF($R27>0,INDEX(ECMs!R6:AL6,MATCH($J$1,ECMs!$R$3:$AL$3,0)),"") -> 1 | K27: =IF($R27>0,IFERROR(INDEX(Inventory!$F$5:$NS$67,MATCH(A27,Inventory!$A$5:$A$67,0),MATCH($C27&J$1,Inventory!$F$4:$NS$4&Inventory!$F$3:$NS$3,0)),""),"") -> 0.7743985471 | L27: 0 | M27: 0 | N27: 8786.778337 | O27: 7673.970359 | P27: 0.08610960839 | Q27: =IF(P27="","",ECMs!O6) -> 0.06668315562 | R27: =ECMs!D6*INDEX(ECMs!AM6:BG6,1,MATCH($J$1,ECMs!$AM$3:$BG$3,0))*INDEX(ECMs!R6:AL6,MATCH($J$1,ECMs!$R$3:$AL$3,0)) -> 0.1337172591
A28: 4 | B28: =IF($R28>0,ECMs!B7,"") -> Energy Management | C28: =IF($R28>0,ECMs!C7,"") -> All Electric | D28: =IF($R28>0,ECMs!D7,"") -> 0.03 | E28: =IF($R28>0,ECMs!E7,"") -> 3 | F28: =IF($R28>0,ECMs!L7,"") -> 0.07638306017 | G28: =IF($R28>0,ECMs!M7,"") -> 0 | H28: =IF($R28>0,ECMs!N7,"") -> 0 | I28: =IF($R28>0,INDEX(ECMs!AM7:BG7,1,MATCH($J$1,ECMs!$AM$3:$BG$3,0)),"") -> 0.9301623944 | J28: =IF($R28>0,INDEX(ECMs!R7:AL7,MATCH($J$1,ECMs!$R$3:$AL$3,0)),"") -> 1 | K28: =IF($R28>0,IFERROR(INDEX(Inventory!$F$5:$NS$67,MATCH(A28,Inventory!$A$5:$A$67,0),MATCH($C28&J$1,Inventory!$F$4:$NS$4&Inventory!$F$3:$NS$3,0)),""),"") -> 0.9516466777 | L28: 0 | M28: 0 | N28: 56334.37128 | O28: 4521.627376 | P28: 0.02878591913 | Q28: =IF(P28="","",ECMs!O7) -> 0.0273940243 | R28: =ECMs!D7*INDEX(ECMs!AM7:BG7,1,MATCH($J$1,ECMs!$AM$3:$BG$3,0))*INDEX(ECMs!R7:AL7,MATCH($J$1,ECMs!$R$3:$AL$3,0)) -> 0.02790487183
A29: 5 | B29: =IF($R29>0,ECMs!B8,"") -> HighBay Lighting 1 Shift | C29: =IF($R29>0,ECMs!C8,"") -> Lighting | D29: =IF($R29>0,ECMs!D8,"") -> 0.4515888331 | E29: =IF($R29>0,ECMs!E8,"") -> 19.54658495 | F29: =IF($R29>0,ECMs!L8,"") -> 0.7526012161 | G29: =IF($R29>0,ECMs!M8,"") -> -0.01189506702 | H29: =IF($R29>0,ECMs!N8,"") -> 0 | I29: =IF($R29>0,INDEX(ECMs!AM8:BG8,1,MATCH($J$1,ECMs!$AM$3:$BG$3,0)),"") -> 0.08428571429 | J29: =IF($R29>0,INDEX(ECMs!R8:AL8,MATCH($J$1,ECMs!$R$3:$AL$3,0)),"") -> 1 | K29: =IF($R29>0,IFERROR(INDEX(Inventory!$F$5:$NS$67,MATCH(A29,Inventory!$A$5:$A$67,0),MATCH($C29&J$1,Inventory!$F$4:$NS$4&Inventory!$F$3:$NS$3,0)),""),"") -> 0.7098375469 | L29: 0 | M29: -76.83723526 | N29: 4585.258285 | O29: 4861.493981 | P29: 0.06073870481 | Q29: =IF(P29="","",ECMs!O8) -> 0.04311461322 | R29: =ECMs!D8*INDEX(ECMs!AM8:BG8,1,MATCH($J$1,ECMs!$AM$3:$BG$3,0))*INDEX(ECMs!R8:AL8,MATCH($J$1,ECMs!$R$3:$AL$3,0)) -> 0.03806248736
A30: 6 | B30: =IF($R30>0,ECMs!B9,"") -> HighBay Lighting 2 Shift | C30: =IF($R30>0,ECMs!C9,"") -> Lighting | D30: =IF($R30>0,ECMs!D9,"") -> 0.4515888331 | E30: =IF($R30>0,ECMs!E9,"") -> 11.43683162 | F30: =IF($R30>0,ECMs!L9,"") -> 0.4405669869 | G30: =IF($R30>0,ECMs!M9,"") -> -0.01189506702 | H30: =IF($R30>0,ECMs!N9,"") -> 0 | I30: =IF($R30>0,INDEX(ECMs!AM9:BG9,1,MATCH($J$1,ECMs!$AM$3:$BG$3,0)),"") -> 0.08428571429 | J30: =IF($R30>0,INDEX(ECMs!R9:AL9,MATCH($J$1,ECMs!$R$3:$AL$3,0)),"") -> 1 | K30: =IF($R30>0,IFERROR(INDEX(Inventory!$F$5:$NS$67,MATCH(A30,Inventory!$A$5:$A$67,0),MATCH($C30&J$1,Inventory!$F$4:$NS$4&Inventory!$F$3:$NS$3,0)),""),"") -> 0.7379248003 | L30: 0 | M30: -76.83723526 | N30: 4766.690377 | O30: 2845.881337 | P30: 0.04903365309 | Q30: =IF(P30="","",ECMs!O9) -> 0.03618314866 | R30: =ECMs!D9*INDEX(ECMs!AM9:BG9,1,MATCH($J$1,ECMs!$AM$3:$BG$3,0))*INDEX(ECMs!R9:AL9,MATCH($J$1,ECMs!$R$3:$AL$3,0)) -> 0.03806248736
A31: 7 | B31: =IF($R31>0,ECMs!B10,"") -> HighBay Lighting 3 Shift | C31: =IF($R31>0,ECMs!C10,"") -> Lighting | D31: =IF($R31>0,ECMs!D10,"") -> 0.4515888331 | E31: =IF($R31>0,ECMs!E10,"") -> 6.381647596 | F31: =IF($R31>0,ECMs!L10,"") -> 0.2462405067 | G31: =IF($R31>0,ECMs!M10,"") -> -0.01189506702 | H31: =IF($R31>0,ECMs!N10,"") -> 0 | I31: =IF($R31>0,INDEX(ECMs!AM10:BG10,1,MATCH($J$1,ECMs!$AM$3:$BG$3,0)),"") -> 0.2528571429 | J31: =IF($R31>0,INDEX(ECMs!R10:AL10,MATCH($J$1,ECMs!$R$3:$AL$3,0)),"") -> 1 | K31: =IF($R31>0,IFERROR(INDEX(Inventory!$F$5:$NS$67,MATCH(A31,Inventory!$A$5:$A$67,0),MATCH($C31&J$1,Inventory!$F$4:$NS$4&Inventory!$F$3:$NS$3,0)),""),"") -> 0.8330484935 | L31: 0 | M31: -230.5117058 | N31: 16143.45081 | O31: 4771.836859 | P31: 0.0386620085 | Q31: =IF(P31="","",ECMs!O10) -> 0.03220732794 | R31: =ECMs!D10*INDEX(ECMs!AM10:BG10,1,MATCH($J$1,ECMs!$AM$3:$BG$3,0))*INDEX(ECMs!R10:AL10,MATCH($J$1,ECMs!$R$3:$AL$3,0)) -> 0.1141874621
... 35 more rows

Sheet OtherFood
B1: Resource Assessment Worksheet -- Industrial | H1: =J1 -> OtherFood | J1: OtherFood
B2: Year: | C2: ='Program Summary'!C2 -> 2041 | E2: Territory: | F2: ='Program Summary'!E2 -> Region | G2: MWh: | H2: =HLOOKUP(ReportYear,Forecast,MATCH($H$1,Forecast!$A$4:$A$25,0)) -> 2902041.253
B3: Date of Run: | C3: ='Program Summary'!C3 -> 2020-05-02T16:52:03.780 | F3: Penetration Assumption | H3: ='Program Summary'!G3 -> Technical
B4: Process Shares
A5: 1 | B5: Pumps | C5: =VLOOKUP($J$1,EndUse,MATCH($B5,EndUses,0),FALSE) -> 0.08
A6: 2 | B6: Fans and Blowers | C6: 0.02
A7: 3 | B7: Compressed Air | C7: 0.12
A8: 4 | B8: Material Handling | C8: 0.02
A9: 5 | B9: Material Processing | C9: 0.11
A10: 6 | B10: Low Temp Refer | C10: 0.24
A11: 7 | B11: Med Temp Refer | C11: 0.2
A12: 8 | B12: Pollution Control | C12: 0
A13: 9 | B13: Other Motors | C13: 0
A14: 10 | B14: Drying and Curing | C14: 0
A15: 11 | B15: Heat Treating | C15: 0
A16: 12 | B16: Heating | C16: 0
A17: 13 | B17: Melting and Casting | C17: 0
A18: 14 | B18: HVAC | C18: 0.09
A19: 15 | B19: Lighting | C19: 0.04
A20: 16 | B20: Other | C20: 0.08
A21: 17 | B21: All Electric | C21: =SUM(C5:C20) -> 1
A22: 18 | B22: All Motors | C22: =SUM(C5:C14,0.8*C18) -> 0.862
B24: Conservation Measure | C24: End Use | D24: % Savings | E24: Lifetime | F24: First Cost (2016$/kWh) | G24: Annual O&M Cost (2016$/kWh) | H24: Annual Non-Energy Benefit (2016$/kWh) | I24: Measure Applicability | J24: Achievability | K24: Inventory Factor | L24: Annual Non-Energy Benefit ($1000) | M24: Annual O&M Cost (1000$) | N24: Potential Savings (MWh/yr) | O24: Initial Cost (1000$) | P24: Levelized Cost (2016$/kWh) Installation-Order-Specific | Q24: Levelized Cost (2016$/kWh) Installation-Order-Indpendent | R24: % Savings * Applicability * Achievability
A25: 1 | B25: =IF($R25>0,ECMs!B4,"") -> Air Compressor Demand Reduction | C25: =IF($R25>0,ECMs!C4,"") -> Compressed Air | D25: =IF($R25>0,ECMs!D4,"") -> 0.1 | E25: =IF($R25>0,ECMs!E4,"") -> 10 | F25: =IF($R25>0,ECMs!L4,"") -> 0.09468255125 | G25: =IF($R25>0,ECMs!M4,"") -> 0.02940451902 | H25: =IF($R25>0,ECMs!N4,"") -> 0 | I25: =IF($R25>0,INDEX(ECMs!AM4:BG4,1,MATCH($J$1,ECMs!$AM$3:$BG$3,0)),"") -> 0.8 | J25: =IF($R25>0,INDEX(ECMs!R4:AL4,MATCH($J$1,ECMs!$R$3:$AL$3,0)),"") -> 0.9656649088 | K25: =IF($R25>0,IFERROR(INDEX(Inventory!$F$5:$NS$67,MATCH(A25,Inventory!$A$5:$A$67,0),MATCH($C25&J$1,Inventory!$F$4:$NS$4&Inventory!$F$3:$NS$3,0)),""),"") -> 0.9275781942 | L25: =IFERROR(H25*N25/K25,"") -> 0 | M25: =IFERROR(G25*N25/K25,"") -> 791.0707826 | N25: =IFERROR(INDEX($B$5:$C$22,MATCH(C25,B$5:B$22,0),2)*D25*I25*J25*K25*$H$2,"") -> 24954.66794 | O25: =IFERROR(F25*N25/K25,"") -> 2547.24792 | P25: =IFERROR(PMT(Discount_rate,E25,-(O25+PV(Discount_rate,E25,L25-M25)))/N25,"") -> 0.04412910288 | Q25: =IF(P25="","",ECMs!O4) -> 0.04093319356 | R25: =ECMs!D4*INDEX(ECMs!AM4:BG4,1,MATCH($J$1,ECMs!$AM$3:$BG$3,0))*INDEX(ECMs!R4:AL4,MATCH($J$1,ECMs!$R$3:$AL$3,0)) -> 0.0772531927
A26: 2 | B26: =IF($R26>0,ECMs!B5,"") -> Air Compressor Variable Speed | C26: =IF($R26>0,ECMs!C5,"") -> Compressed Air | D26: =IF($R26>0,ECMs!D5,"") -> 0.0826137993 | E26: =IF($R26>0,ECMs!E5,"") -> 13 | F26: =IF($R26>0,ECMs!L5,"") -> 0.6157000925 | G26: =IF($R26>0,ECMs!M5,"") -> 0 | H26: =IF($R26>0,ECMs!N5,"") -> 0 | I26: =IF($R26>0,INDEX(ECMs!AM5:BG5,1,MATCH($J$1,ECMs!$AM$3:$BG$3,0)),"") -> 1 | J26: =IF($R26>0,INDEX(ECMs!R5:AL5,MATCH($J$1,ECMs!$R$3:$AL$3,0)),"") -> 1 | K26: =IF($R26>0,IFERROR(INDEX(Inventory!$F$5:$NS$67,MATCH(A26,Inventory!$A$5:$A$67,0),MATCH($C26&J$1,Inventory!$F$4:$NS$4&Inventory!$F$3:$NS$3,0)),""),"") -> 0.8441358138 | L26: =IFERROR(H26*N26/K26,"") -> 0 | M26: =IFERROR(G26*N26/K26,"") -> 0 | N26: =IFERROR(INDEX($B$5:$C$22,MATCH(C26,B$5:B$22,0),2)*D26*I26*J26*K26*$H$2,"") -> 24285.65098 | O26: =IFERROR(F26*N26/K26,"") -> 17713.59219 | P26: 0.07191476406 | Q26: =IF(P26="","",ECMs!O5) -> 0.06070582788 | R26: =ECMs!D5*INDEX(ECMs!AM5:BG5,1,MATCH($J$1,ECMs!$AM$3:$BG$3,0))*INDEX(ECMs!R5:AL5,MATCH($J$1,ECMs!$R$3:$AL$3,0)) -> 0.0826137993
A27: 3 | B27: =IF($R27>0,ECMs!B6,"") -> Air Compressor Equipment | C27: =IF($R27>0,ECMs!C6,"") -> Compressed Air | D27: =IF($R27>0,ECMs!D6,"") -> 0.1337172591 | E27: =IF($R27>0,ECMs!E6,"") -> 13 | F27: =IF($R27>0,ECMs!L6,"") -> 0.6763242759 | G27: =IF($R27>0,ECMs!M6,"") -> 0 | H27: =IF($R27>0,ECMs!N6,"") -> 0 | I27: =IF($R27>0,INDEX(ECMs!AM6:BG6,1,MATCH($J$1,ECMs!$AM$3:$BG$3,0)),"") -> 1 | J27: =IF($R27>0,INDEX(ECMs!R6:AL6,MATCH($J$1,ECMs!$R$3:$AL$3,0)),"") -> 1 | K27: =IF($R27>0,IFERROR(INDEX(Inventory!$F$5:$NS$67,MATCH(A27,Inventory!$A$5:$A$67,0),MATCH($C27&J$1,Inventory!$F$4:$NS$4&Inventory!$F$3:$NS$3,0)),""),"") -> 0.7743985471 | L27: 0 | M27: 0 | N27: 36060.92173 | O27: 31493.95989 | P27: 0.08610960839 | Q27: =IF(P27="","",ECMs!O6) -> 0.06668315562 | R27: =ECMs!D6*INDEX(ECMs!AM6:BG6,1,MATCH($J$1,ECMs!$AM$3:$BG$3,0))*INDEX(ECMs!R6:AL6,MATCH($J$1,ECMs!$R$3:$AL$3,0)) -> 0.1337172591
A28: 4 | B28: =IF($R28>0,ECMs!B7,"") -> Energy Management | C28: =IF($R28>0,ECMs!C7,"") -> All Electric | D28: =IF($R28>0,ECMs!D7,"") -> 0.03 | E28: =IF($R28>0,ECMs!E7,"") -> 3 | F28: =IF($R28>0,ECMs!L7,"") -> 0.07638306017 | G28: =IF($R28>0,ECMs!M7,"") -> 0 | H28: =IF($R28>0,ECMs!N7,"") -> 0 | I28: =IF($R28>0,INDEX(ECMs!AM7:BG7,1,MATCH($J$1,ECMs!$AM$3:$BG$3,0)),"") -> 0.9301623944 | J28: =IF($R28>0,INDEX(ECMs!R7:AL7,MATCH($J$1,ECMs!$R$3:$AL$3,0)),"") -> 1 | K28: =IF($R28>0,IFERROR(INDEX(Inventory!$F$5:$NS$67,MATCH(A28,Inventory!$A$5:$A$67,0),MATCH($C28&J$1,Inventory!$F$4:$NS$4&Inventory!$F$3:$NS$3,0)),""),"") -> 0.9504820558 | L28: 0 | M28: 0 | N28: 76971.07216 | O28: 6185.58341 | P28: 0.0288211904 | Q28: =IF(P28="","",ECMs!O7) -> 0.0273940243 | R28: =ECMs!D7*INDEX(ECMs!AM7:BG7,1,MATCH($J$1,ECMs!$AM$3:$BG$3,0))*INDEX(ECMs!R7:AL7,MATCH($J$1,ECMs!$R$3:$AL$3,0)) -> 0.02790487183
A29: 5 | B29: =IF($R29>0,ECMs!B8,"") -> HighBay Lighting 1 Shift | C29: =IF($R29>0,ECMs!C8,"") -> Lighting | D29: =IF($R29>0,ECMs!D8,"") -> 0.4515888331 | E29: =IF($R29>0,ECMs!E8,"") -> 19.54658495 | F29: =IF($R29>0,ECMs!L8,"") -> 0.7526012161 | G29: =IF($R29>0,ECMs!M8,"") -> -0.01189506702 | H29: =IF($R29>0,ECMs!N8,"") -> 0 | I29: =IF($R29>0,INDEX(ECMs!AM8:BG8,1,MATCH($J$1,ECMs!$AM$3:$BG$3,0)),"") -> 0.04214285714 | J29: =IF($R29>0,INDEX(ECMs!R8:AL8,MATCH($J$1,ECMs!$R$3:$AL$3,0)),"") -> 1 | K29: =IF($R29>0,IFERROR(INDEX(Inventory!$F$5:$NS$67,MATCH(A29,Inventory!$A$5:$A$67,0),MATCH($C29&J$1,Inventory!$F$4:$NS$4&Inventory!$F$3:$NS$3,0)),""),"") -> 0.6908403874 | L29: 0 | M29: -26.27832239 | N29: 1526.189503 | O29: 1662.630178 | P29: 0.06240893556 | Q29: =IF(P29="","",ECMs!O8) -> 0.04311461322 | R29: =ECMs!D8*INDEX(ECMs!AM8:BG8,1,MATCH($J$1,ECMs!$AM$3:$BG$3,0))*INDEX(ECMs!R8:AL8,MATCH($J$1,ECMs!$R$3:$AL$3,0)) -> 0.01903124368
A30: 6 | B30: =IF($R30>0,ECMs!B9,"") -> HighBay Lighting 2 Shift | C30: =IF($R30>0,ECMs!C9,"") -> Lighting | D30: =IF($R30>0,ECMs!D9,"") -> 0.4515888331 | E30: =IF($R30>0,ECMs!E9,"") -> 11.43683162 | F30: =IF($R30>0,ECMs!L9,"") -> 0.4405669869 | G30: =IF($R30>0,ECMs!M9,"") -> -0.01189506702 | H30: =IF($R30>0,ECMs!N9,"") -> 0 | I30: =IF($R30>0,INDEX(ECMs!AM9:BG9,1,MATCH($J$1,ECMs!$AM$3:$BG$3,0)),"") -> 0.3371428571 | J30: =IF($R30>0,INDEX(ECMs!R9:AL9,MATCH($J$1,ECMs!$R$3:$AL$3,0)),"") -> 1 | K30: =IF($R30>0,IFERROR(INDEX(Inventory!$F$5:$NS$67,MATCH(A30,Inventory!$A$5:$A$67,0),MATCH($C30&J$1,Inventory!$F$4:$NS$4&Inventory!$F$3:$NS$3,0)),""),"") -> 0.8149104644 | L30: 0 | M30: -210.2265791 | N30: 14402.25927 | O30: 7786.327762 | P30: 0.04440137935 | Q30: =IF(P30="","",ECMs!O9) -> 0.03618314866 | R30: =ECMs!D9*INDEX(ECMs!AM9:BG9,1,MATCH($J$1,ECMs!$AM$3:$BG$3,0))*INDEX(ECMs!R9:AL9,MATCH($J$1,ECMs!$R$3:$AL$3,0)) -> 0.1522499495
A31: 7 | B31: =IF($R31>0,ECMs!B10,"") -> HighBay Lighting 3 Shift | C31: =IF($R31>0,ECMs!C10,"") -> Lighting | D31: =IF($R31>0,ECMs!D10,"") -> 0.4515888331 | E31: =IF($R31>0,ECMs!E10,"") -> 6.381647596 | F31: =IF($R31>0,ECMs!L10,"") -> 0.2462405067 | G31: =IF($R31>0,ECMs!M10,"") -> -0.01189506702 | H31: =IF($R31>0,ECMs!N10,"") -> 0 | I31: =IF($R31>0,INDEX(ECMs!AM10:BG10,1,MATCH($J$1,ECMs!$AM$3:$BG$3,0)),"") -> 0.04214285714 | J31: =IF($R31>0,INDEX(ECMs!R10:AL10,MATCH($J$1,ECMs!$R$3:$AL$3,0)),"") -> 1 | K31: =IF($R31>0,IFERROR(INDEX(Inventory!$F$5:$NS$67,MATCH(A31,Inventory!$A$5:$A$67,0),MATCH($C31&J$1,Inventory!$F$4:$NS$4&Inventory!$F$3:$NS$3,0)),""),"") -> 0.8307201011 | L31: 0 | M31: -26.27832239 | N31: 1835.208713 | O31: 543.9891521 | P31: 0.03877037271 | Q31: =IF(P31="","",ECMs!O10) -> 0.03220732794 | R31: =ECMs!D10*INDEX(ECMs!AM10:BG10,1,MATCH($J$1,ECMs!$AM$3:$BG$3,0))*INDEX(ECMs!R10:AL10,MATCH($J$1,ECMs!$R$3:$AL$3,0)) -> 0.01903124368
... 35 more rows

Sheet Lumber
B1: Resource Assessment Worksheet -- Industrial | H1: =J1 -> Lumber | J1: Lumber
B2: Year: | C2: ='Program Summary'!C2 -> 2041 | E2: Territory: | F2: ='Program Summary'!E2 -> Region | G2: MWh: | H2: =HLOOKUP(ReportYear,Forecast,MATCH($H$1,Forecast!$A$4:$A$25,0)) -> 973264.5146
B3: Date of Run: | C3: ='Program Summary'!C3 -> 2020-05-02T16:52:03.780 | F3: Penetration Assumption | H3: ='Program Summary'!G3 -> Technical
B4: Process Shares
A5: 1 | B5: Pumps | C5: =VLOOKUP($J$1,EndUse,MATCH($B5,EndUses,0),FALSE) -> 0.13
A6: 2 | B6: Fans and Blowers | C6: 0.1
A7: 3 | B7: Compressed Air | C7: 0.05
A8: 4 | B8: Material Handling | C8: 0.23
A9: 5 | B9: Material Processing | C9: 0.48
A10: 6 | B10: Low Temp Refer | C10: 0
A11: 7 | B11: Med Temp Refer | C11: 0
A12: 8 | B12: Pollution Control | C12: 0
A13: 9 | B13: Other Motors | C13: 0
A14: 10 | B14: Drying and Curing | C14: 0
A15: 11 | B15: Heat Treating | C15: 0
A16: 12 | B16: Heating | C16: 0
A17: 13 | B17: Melting and Casting | C17: 0
A18: 14 | B18: HVAC | C18: 0
A19: 15 | B19: Lighting | C19: 0.01
A20: 16 | B20: Other | C20: 0
A21: 17 | B21: All Electric | C21: =SUM(C5:C20) -> 1
A22: 18 | B22: All Motors | C22: =SUM(C5:C14,0.8*C18) -> 0.99
B24: Conservation Measure | C24: End Use | D24: % Savings | E24: Lifetime | F24: First Cost (2016$/kWh) | G24: Annual O&M Cost (2016$/kWh) | H24: Annual Non-Energy Benefit (2016$/kWh) | I24: Measure Applicability | J24: Achievability | K24: Inventory Factor | L24: Annual Non-Energy Benefit ($1000) | M24: Annual O&M Cost (1000$) | N24: Potential Savings (MWh/yr) | O24: Initial Cost (1000$) | P24: Levelized Cost (2016$/kWh) Installation-Order-Specific | Q24: Levelized Cost (2016$/kWh) Installation-Order-Indpendent | R24: % Savings * Applicability * Achievability
A25: 1 | B25: =IF($R25>0,ECMs!B4,"") -> Air Compressor Demand Reduction | C25: =IF($R25>0,ECMs!C4,"") -> Compressed Air | D25: =IF($R25>0,ECMs!D4,"") -> 0.1 | E25: =IF($R25>0,ECMs!E4,"") -> 10 | F25: =IF($R25>0,ECMs!L4,"") -> 0.09468255125 | G25: =IF($R25>0,ECMs!M4,"") -> 0.02940451902 | H25: =IF($R25>0,ECMs!N4,"") -> 0 | I25: =IF($R25>0,INDEX(ECMs!AM4:BG4,1,MATCH($J$1,ECMs!$AM$3:$BG$3,0)),"") -> 0.8 | J25: =IF($R25>0,INDEX(ECMs!R4:AL4,MATCH($J$1,ECMs!$R$3:$AL$3,0)),"") -> 0.9656649088 | K25: =IF($R25>0,IFERROR(INDEX(Inventory!$F$5:$NS$67,MATCH(A25,Inventory!$A$5:$A$67,0),MATCH($C25&J$1,Inventory!$F$4:$NS$4&Inventory!$F$3:$NS$3,0)),""),"") -> 0.9275781942 | L25: =IFERROR(H25*N25/K25,"") -> 0 | M25: =IFERROR(G25*N25/K25,"") -> 110.5430417 | N25: =IFERROR(INDEX($B$5:$C$22,MATCH(C25,B$5:B$22,0),2)*D25*I25*J25*K25*$H$2,"") -> 3487.127775 | O25: =IFERROR(F25*N25/K25,"") -> 355.9485942 | P25: =IFERROR(PMT(Discount_rate,E25,-(O25+PV(Discount_rate,E25,L25-M25)))/N25,"") -> 0.04412910288 | Q25: =IF(P25="","",ECMs!O4) -> 0.04093319356 | R25: =ECMs!D4*INDEX(ECMs!AM4:BG4,1,MATCH($J$1,ECMs!$AM$3:$BG$3,0))*INDEX(ECMs!R4:AL4,MATCH($J$1,ECMs!$R$3:$AL$3,0)) -> 0.0772531927
A26: 2 | B26: =IF($R26>0,ECMs!B5,"") -> Air Compressor Variable Speed | C26: =IF($R26>0,ECMs!C5,"") -> Compressed Air | D26: =IF($R26>0,ECMs!D5,"") -> 0.0826137993 | E26: =IF($R26>0,ECMs!E5,"") -> 13 | F26: =IF($R26>0,ECMs!L5,"") -> 0.6157000925 | G26: =IF($R26>0,ECMs!M5,"") -> 0 | H26: =IF($R26>0,ECMs!N5,"") -> 0 | I26: =IF($R26>0,INDEX(ECMs!AM5:BG5,1,MATCH($J$1,ECMs!$AM$3:$BG$3,0)),"") -> 1 | J26: =IF($R26>0,INDEX(ECMs!R5:AL5,MATCH($J$1,ECMs!$R$3:$AL$3,0)),"") -> 1 | K26: =IF($R26>0,IFERROR(INDEX(Inventory!$F$5:$NS$67,MATCH(A26,Inventory!$A$5:$A$67,0),MATCH($C26&J$1,Inventory!$F$4:$NS$4&Inventory!$F$3:$NS$3,0)),""),"") -> 0.8441358138 | L26: =IFERROR(H26*N26/K26,"") -> 0 | M26: =IFERROR(G26*N26/K26,"") -> 0 | N26: =IFERROR(INDEX($B$5:$C$22,MATCH(C26,B$5:B$22,0),2)*D26*I26*J26*K26*$H$2,"") -> 3393.640351 | O26: =IFERROR(F26*N26/K26,"") -> 2475.270737 | P26: 0.07191476406 | Q26: =IF(P26="","",ECMs!O5) -> 0.06070582788 | R26: =ECMs!D5*INDEX(ECMs!AM5:BG5,1,MATCH($J$1,ECMs!$AM$3:$BG$3,0))*INDEX(ECMs!R5:AL5,MATCH($J$1,ECMs!$R$3:$AL$3,0)) -> 0.0826137993
A27: 3 | B27: =IF($R27>0,ECMs!B6,"") -> Air Compressor Equipment | C27: =IF($R27>0,ECMs!C6,"") -> Compressed Air | D27: =IF($R27>0,ECMs!D6,"") -> 0.1337172591 | E27: =IF($R27>0,ECMs!E6,"") -> 13 | F27: =IF($R27>0,ECMs!L6,"") -> 0.6763242759 | G27: =IF($R27>0,ECMs!M6,"") -> 0 | H27: =IF($R27>0,ECMs!N6,"") -> 0 | I27: =IF($R27>0,INDEX(ECMs!AM6:BG6,1,MATCH($J$1,ECMs!$AM$3:$BG$3,0)),"") -> 1 | J27: =IF($R27>0,INDEX(ECMs!R6:AL6,MATCH($J$1,ECMs!$R$3:$AL$3,0)),"") -> 1 | K27: =IF($R27>0,IFERROR(INDEX(Inventory!$F$5:$NS$67,MATCH(A27,Inventory!$A$5:$A$67,0),MATCH($C27&J$1,Inventory!$F$4:$NS$4&Inventory!$F$3:$NS$3,0)),""),"") -> 0.7743985471 | L27: 0 | M27: 0 | N27: 5039.098981 | O27: 4400.918599 | P27: 0.08610960839 | Q27: =IF(P27="","",ECMs!O6) -> 0.06668315562 | R27: =ECMs!D6*INDEX(ECMs!AM6:BG6,1,MATCH($J$1,ECMs!$AM$3:$BG$3,0))*INDEX(ECMs!R6:AL6,MATCH($J$1,ECMs!$R$3:$AL$3,0)) -> 0.1337172591
A28: 4 | B28: =IF($R28>0,ECMs!B7,"") -> Energy Management | C28: =IF($R28>0,ECMs!C7,"") -> All Electric | D28: =IF($R28>0,ECMs!D7,"") -> 0.03 | E28: =IF($R28>0,ECMs!E7,"") -> 3 | F28: =IF($R28>0,ECMs!L7,"") -> 0.07638306017 | G28: =IF($R28>0,ECMs!M7,"") -> 0 | H28: =IF($R28>0,ECMs!N7,"") -> 0 | I28: =IF($R28>0,INDEX(ECMs!AM7:BG7,1,MATCH($J$1,ECMs!$AM$3:$BG$3,0)),"") -> 0.9301623944 | J28: =IF($R28>0,INDEX(ECMs!R7:AL7,MATCH($J$1,ECMs!$R$3:$AL$3,0)),"") -> 1 | K28: =IF($R28>0,IFERROR(INDEX(Inventory!$F$5:$NS$67,MATCH(A28,Inventory!$A$5:$A$67,0),MATCH($C28&J$1,Inventory!$F$4:$NS$4&Inventory!$F$3:$NS$3,0)),""),"") -> 0.9061919866 | L28: 0 | M28: 0 | N28: 24611.10644 | O28: 2074.4739 | P28: 0.03022982404 | Q28: =IF(P28="","",ECMs!O7) -> 0.0273940243 | R28: =ECMs!D7*INDEX(ECMs!AM7:BG7,1,MATCH($J$1,ECMs!$AM$3:$BG$3,0))*INDEX(ECMs!R7:AL7,MATCH($J$1,ECMs!$R$3:$AL$3,0)) -> 0.02790487183
A29: 5 | B29: =IF($R29>0,ECMs!B8,"") -> HighBay Lighting 1 Shift | C29: =IF($R29>0,ECMs!C8,"") -> Lighting | D29: =IF($R29>0,ECMs!D8,"") -> 0.4515888331 | E29: =IF($R29>0,ECMs!E8,"") -> 19.54658495 | F29: =IF($R29>0,ECMs!L8,"") -> 0.7526012161 | G29: =IF($R29>0,ECMs!M8,"") -> -0.01189506702 | H29: =IF($R29>0,ECMs!N8,"") -> 0 | I29: =IF($R29>0,INDEX(ECMs!AM8:BG8,1,MATCH($J$1,ECMs!$AM$3:$BG$3,0)),"") -> 0.2001785714 | J29: =IF($R29>0,INDEX(ECMs!R8:AL8,MATCH($J$1,ECMs!$R$3:$AL$3,0)),"") -> 1 | K29: =IF($R29>0,IFERROR(INDEX(Inventory!$F$5:$NS$67,MATCH(A29,Inventory!$A$5:$A$67,0),MATCH($C29&J$1,Inventory!$F$4:$NS$4&Inventory!$F$3:$NS$3,0)),""),"") -> 0.7632301913 | L29: 0 | M29: -10.46546579 | N29: 671.5018454 | O29: 662.150307 | P29: 0.05648965897 | Q29: =IF(P29="","",ECMs!O8) -> 0.04311461322 | R29: =ECMs!D8*INDEX(ECMs!AM8:BG8,1,MATCH($J$1,ECMs!$AM$3:$BG$3,0))*INDEX(ECMs!R8:AL8,MATCH($J$1,ECMs!$R$3:$AL$3,0)) -> 0.09039840749
A30: 6 | B30: =IF($R30>0,ECMs!B9,"") -> HighBay Lighting 2 Shift | C30: =IF($R30>0,ECMs!C9,"") -> Lighting | D30: =IF($R30>0,ECMs!D9,"") -> 0.4515888331 | E30: =IF($R30>0,ECMs!E9,"") -> 11.43683162 | F30: =IF($R30>0,ECMs!L9,"") -> 0.4405669869 | G30: =IF($R30>0,ECMs!M9,"") -> -0.01189506702 | H30: =IF($R30>0,ECMs!N9,"") -> 0 | I30: =IF($R30>0,INDEX(ECMs!AM9:BG9,1,MATCH($J$1,ECMs!$AM$3:$BG$3,0)),"") -> 0.2001785714 | J30: =IF($R30>0,INDEX(ECMs!R9:AL9,MATCH($J$1,ECMs!$R$3:$AL$3,0)),"") -> 1 | K30: =IF($R30>0,IFERROR(INDEX(Inventory!$F$5:$NS$67,MATCH(A30,Inventory!$A$5:$A$67,0),MATCH($C30&J$1,Inventory!$F$4:$NS$4&Inventory!$F$3:$NS$3,0)),""),"") -> 0.8390818547 | L30: 0 | M30: -10.46546579 | N30: 738.2373238 | O30: 387.6177176 | P30: 0.04312231096 | Q30: =IF(P30="","",ECMs!O9) -> 0.03618314866 | R30: =ECMs!D9*INDEX(ECMs!AM9:BG9,1,MATCH($J$1,ECMs!$AM$3:$BG$3,0))*INDEX(ECMs!R9:AL9,MATCH($J$1,ECMs!$R$3:$AL$3,0)) -> 0.09039840749
A31: 7 | B31: =IF($R31>0,ECMs!B10,"") -> HighBay Lighting 3 Shift | C31: =IF($R31>0,ECMs!C10,"") -> Lighting | D31: =IF($R31>0,ECMs!D10,"") -> 0.4515888331 | E31: =IF($R31>0,ECMs!E10,"") -> 6.381647596 | F31: =IF($R31>0,ECMs!L10,"") -> 0.2462405067 | G31: =IF($R31>0,ECMs!M10,"") -> -0.01189506702 | H31: =IF($R31>0,ECMs!N10,"") -> 0 | I31: =IF($R31>0,INDEX(ECMs!AM10:BG10,1,MATCH($J$1,ECMs!$AM$3:$BG$3,0)),"") -> 0.2669047619 | J31: =IF($R31>0,INDEX(ECMs!R10:AL10,MATCH($J$1,ECMs!$R$3:$AL$3,0)),"") -> 1 | K31: =IF($R31>0,IFERROR(INDEX(Inventory!$F$5:$NS$67,MATCH(A31,Inventory!$A$5:$A$67,0),MATCH($C31&J$1,Inventory!$F$4:$NS$4&Inventory!$F$3:$NS$3,0)),""),"") -> 0.9540780347 | L31: 0 | M31: -13.95395438 | N31: 1119.217013 | O31: 288.8616594 | P31: 0.03375754054 | Q31: =IF(P31="","",ECMs!O10) -> 0.03220732794 | R31: =ECMs!D10*INDEX(ECMs!AM10:BG10,1,MATCH($J$1,ECMs!$AM$3:$BG$3,0))*INDEX(ECMs!R10:AL10,MATCH($J$1,ECMs!$R$3:$AL$3,0)) -> 0.12053121
... 35 more rows

Sheet Panel
B1: Resource Assessment Worksheet -- Industrial | H1: =J1 -> Panel | J1: Panel
B2: Year: | C2: ='Program Summary'!C2 -> 2041 | E2: Territory: | F2: ='Program Summary'!E2 -> Region | G2: MWh: | H2: =HLOOKUP(ReportYear,Forecast,MATCH($H$1,Forecast!$A$4:$A$25,0)) -> 344075.1128
B3: Date of Run: | C3: ='Program Summary'!C3 -> 2020-05-02T16:52:03.780 | F3: Penetration Assumption | H3: ='Program Summary'!G3 -> Technical
B4: Process Shares
A5: 1 | B5: Pumps | C5: =VLOOKUP($J$1,EndUse,MATCH($B5,EndUses,0),FALSE) -> 0.03
A6: 2 | B6: Fans and Blowers | C6: 0.2
A7: 3 | B7: Compressed Air | C7: 0.08
A8: 4 | B8: Material Handling | C8: 0.35
A9: 5 | B9: Material Processing | C9: 0.28
A10: 6 | B10: Low Temp Refer | C10: 0
A11: 7 | B11: Med Temp Refer | C11: 0
A12: 8 | B12: Pollution Control | C12: 0
A13: 9 | B13: Other Motors | C13: 0
A14: 10 | B14: Drying and Curing | C14: 0
A15: 11 | B15: Heat Treating | C15: 0
A16: 12 | B16: Heating | C16: 0
A17: 13 | B17: Melting and Casting | C17: 0
A18: 14 | B18: HVAC | C18: 0
A19: 15 | B19: Lighting | C19: 0.06
A20: 16 | B20: Other | C20: 0
A21: 17 | B21: All Electric | C21: =SUM(C5:C20) -> 1
A22: 18 | B22: All Motors | C22: =SUM(C5:C14,0.8*C18) -> 0.94
B24: Conservation Measure | C24: End Use | D24: % Savings | E24: Lifetime | F24: First Cost (2016$/kWh) | G24: Annual O&M Cost (2016$/kWh) | H24: Annual Non-Energy Benefit (2016$/kWh) | I24: Measure Applicability | J24: Achievability | K24: Inventory Factor | L24: Annual Non-Energy Benefit ($1000) | M24: Annual O&M Cost (1000$) | N24: Potential Savings (MWh/yr) | O24: Initial Cost (1000$) | P24: Levelized Cost (2016$/kWh) Installation-Order-Specific | Q24: Levelized Cost (2016$/kWh) Installation-Order-Indpendent | R24: % Savings * Applicability * Achievability
A25: 1 | B25: =IF($R25>0,ECMs!B4,"") -> Air Compressor Demand Reduction | C25: =IF($R25>0,ECMs!C4,"") -> Compressed Air | D25: =IF($R25>0,ECMs!D4,"") -> 0.1 | E25: =IF($R25>0,ECMs!E4,"") -> 10 | F25: =IF($R25>0,ECMs!L4,"") -> 0.09468255125 | G25: =IF($R25>0,ECMs!M4,"") -> 0.02940451902 | H25: =IF($R25>0,ECMs!N4,"") -> 0 | I25: =IF($R25>0,INDEX(ECMs!AM4:BG4,1,MATCH($J$1,ECMs!$AM$3:$BG$3,0)),"") -> 0.8 | J25: =IF($R25>0,INDEX(ECMs!R4:AL4,MATCH($J$1,ECMs!$R$3:$AL$3,0)),"") -> 0.9656649088 | K25: =IF($R25>0,IFERROR(INDEX(Inventory!$F$5:$NS$67,MATCH(A25,Inventory!$A$5:$A$67,0),MATCH($C25&J$1,Inventory!$F$4:$NS$4&Inventory!$F$3:$NS$3,0)),""),"") -> 0.9275781942 | L25: =IFERROR(H25*N25/K25,"") -> 0 | M25: =IFERROR(G25*N25/K25,"") -> 62.52788871 | N25: =IFERROR(INDEX($B$5:$C$22,MATCH(C25,B$5:B$22,0),2)*D25*I25*J25*K25*$H$2,"") -> 1972.469131 | O25: =IFERROR(F25*N25/K25,"") -> 201.3398016 | P25: =IFERROR(PMT(Discount_rate,E25,-(O25+PV(Discount_rate,E25,L25-M25)))/N25,"") -> 0.04412910288 | Q25: =IF(P25="","",ECMs!O4) -> 0.04093319356 | R25: =ECMs!D4*INDEX(ECMs!AM4:BG4,1,MATCH($J$1,ECMs!$AM$3:$BG$3,0))*INDEX(ECMs!R4:AL4,MATCH($J$1,ECMs!$R$3:$AL$3,0)) -> 0.0772531927
A26: 2 | B26: =IF($R26>0,ECMs!B5,"") -> Air Compressor Variable Speed | C26: =IF($R26>0,ECMs!C5,"") -> Compressed Air | D26: =IF($R26>0,ECMs!D5,"") -> 0.0826137993 | E26: =IF($R26>0,ECMs!E5,"") -> 13 | F26: =IF($R26>0,ECMs!L5,"") -> 0.6157000925 | G26: =IF($R26>0,ECMs!M5,"") -> 0 | H26: =IF($R26>0,ECMs!N5,"") -> 0 | I26: =IF($R26>0,INDEX(ECMs!AM5:BG5,1,MATCH($J$1,ECMs!$AM$3:$BG$3,0)),"") -> 1 | J26: =IF($R26>0,INDEX(ECMs!R5:AL5,MATCH($J$1,ECMs!$R$3:$AL$3,0)),"") -> 1 | K26: =IF($R26>0,IFERROR(INDEX(Inventory!$F$5:$NS$67,MATCH(A26,Inventory!$A$5:$A$67,0),MATCH($C26&J$1,Inventory!$F$4:$NS$4&Inventory!$F$3:$NS$3,0)),""),"") -> 0.8441358138 | L26: =IFERROR(H26*N26/K26,"") -> 0 | M26: =IFERROR(G26*N26/K26,"") -> 0 | N26: =IFERROR(INDEX($B$5:$C$22,MATCH(C26,B$5:B$22,0),2)*D26*I26*J26*K26*$H$2,"") -> 1919.588633 | O26: =IFERROR(F26*N26/K26,"") -> 1400.119364 | P26: 0.07191476406 | Q26: =IF(P26="","",ECMs!O5) -> 0.06070582788 | R26: =ECMs!D5*INDEX(ECMs!AM5:BG5,1,MATCH($J$1,ECMs!$AM$3:$BG$3,0))*INDEX(ECMs!R5:AL5,MATCH($J$1,ECMs!$R$3:$AL$3,0)) -> 0.0826137993
A27: 3 | B27: =IF($R27>0,ECMs!B6,"") -> Air Compressor Equipment | C27: =IF($R27>0,ECMs!C6,"") -> Compressed Air | D27: =IF($R27>0,ECMs!D6,"") -> 0.1337172591 | E27: =IF($R27>0,ECMs!E6,"") -> 13 | F27: =IF($R27>0,ECMs!L6,"") -> 0.6763242759 | G27: =IF($R27>0,ECMs!M6,"") -> 0 | H27: =IF($R27>0,ECMs!N6,"") -> 0 | I27: =IF($R27>0,INDEX(ECMs!AM6:BG6,1,MATCH($J$1,ECMs!$AM$3:$BG$3,0)),"") -> 1 | J27: =IF($R27>0,INDEX(ECMs!R6:AL6,MATCH($J$1,ECMs!$R$3:$AL$3,0)),"") -> 1 | K27: =IF($R27>0,IFERROR(INDEX(Inventory!$F$5:$NS$67,MATCH(A27,Inventory!$A$5:$A$67,0),MATCH($C27&J$1,Inventory!$F$4:$NS$4&Inventory!$F$3:$NS$3,0)),""),"") -> 0.7743985471 | L27: 0 | M27: 0 | N27: 2850.330654 | O27: 2489.34844 | P27: 0.08610960839 | Q27: =IF(P27="","",ECMs!O6) -> 0.06668315562 | R27: =ECMs!D6*INDEX(ECMs!AM6:BG6,1,MATCH($J$1,ECMs!$AM$3:$BG$3,0))*INDEX(ECMs!R6:AL6,MATCH($J$1,ECMs!$R$3:$AL$3,0)) -> 0.1337172591
A28: 4 | B28: =IF($R28>0,ECMs!B7,"") -> Energy Management | C28: =IF($R28>0,ECMs!C7,"") -> All Electric | D28: =IF($R28>0,ECMs!D7,"") -> 0.03 | E28: =IF($R28>0,ECMs!E7,"") -> 3 | F28: =IF($R28>0,ECMs!L7,"") -> 0.07638306017 | G28: =IF($R28>0,ECMs!M7,"") -> 0 | H28: =IF($R28>0,ECMs!N7,"") -> 0 | I28: =IF($R28>0,INDEX(ECMs!AM7:BG7,1,MATCH($J$1,ECMs!$AM$3:$BG$3,0)),"") -> 0.9301623944 | J28: =IF($R28>0,INDEX(ECMs!R7:AL7,MATCH($J$1,ECMs!$R$3:$AL$3,0)),"") -> 1 | K28: =IF($R28>0,IFERROR(INDEX(Inventory!$F$5:$NS$67,MATCH(A28,Inventory!$A$5:$A$67,0),MATCH($C28&J$1,Inventory!$F$4:$NS$4&Inventory!$F$3:$NS$3,0)),""),"") -> 0.8917785217 | L28: 0 | M28: 0 | N28: 8562.297259 | O28: 733.3821693 | P28: 0.03071841678 | Q28: =IF(P28="","",ECMs!O7) -> 0.0273940243 | R28: =ECMs!D7*INDEX(ECMs!AM7:BG7,1,MATCH($J$1,ECMs!$AM$3:$BG$3,0))*INDEX(ECMs!R7:AL7,MATCH($J$1,ECMs!$R$3:$AL$3,0)) -> 0.02790487183
A29: 5 | B29: =IF($R29>0,ECMs!B8,"") -> HighBay Lighting 1 Shift | C29: =IF($R29>0,ECMs!C8,"") -> Lighting | D29: =IF($R29>0,ECMs!D8,"") -> 0.4515888331 | E29: =IF($R29>0,ECMs!E8,"") -> 19.54658495 | F29: =IF($R29>0,ECMs!L8,"") -> 0.7526012161 | G29: =IF($R29>0,ECMs!M8,"") -> -0.01189506702 | H29: =IF($R29>0,ECMs!N8,"") -> 0 | I29: =IF($R29>0,INDEX(ECMs!AM8:BG8,1,MATCH($J$1,ECMs!$AM$3:$BG$3,0)),"") -> 0.2001785714 | J29: =IF($R29>0,INDEX(ECMs!R8:AL8,MATCH($J$1,ECMs!$R$3:$AL$3,0)),"") -> 1 | K29: =IF($R29>0,IFERROR(INDEX(Inventory!$F$5:$NS$67,MATCH(A29,Inventory!$A$5:$A$67,0),MATCH($C29&J$1,Inventory!$F$4:$NS$4&Inventory!$F$3:$NS$3,0)),""),"") -> 0.7632301913 | L29: 0 | M29: -22.19893729 | N29: 1424.363488 | O29: 1404.52737 | P29: 0.05648965897 | Q29: =IF(P29="","",ECMs!O8) -> 0.04311461322 | R29: =ECMs!D8*INDEX(ECMs!AM8:BG8,1,MATCH($J$1,ECMs!$AM$3:$BG$3,0))*INDEX(ECMs!R8:AL8,MATCH($J$1,ECMs!$R$3:$AL$3,0)) -> 0.09039840749
A30: 6 | B30: =IF($R30>0,ECMs!B9,"") -> HighBay Lighting 2 Shift | C30: =IF($R30>0,ECMs!C9,"") -> Lighting | D30: =IF($R30>0,ECMs!D9,"") -> 0.4515888331 | E30: =IF($R30>0,ECMs!E9,"") -> 11.43683162 | F30: =IF($R30>0,ECMs!L9,"") -> 0.4405669869 | G30: =IF($R30>0,ECMs!M9,"") -> -0.01189506702 | H30: =IF($R30>0,ECMs!N9,"") -> 0 | I30: =IF($R30>0,INDEX(ECMs!AM9:BG9,1,MATCH($J$1,ECMs!$AM$3:$BG$3,0)),"") -> 0.2001785714 | J30: =IF($R30>0,INDEX(ECMs!R9:AL9,MATCH($J$1,ECMs!$R$3:$AL$3,0)),"") -> 1 | K30: =IF($R30>0,IFERROR(INDEX(Inventory!$F$5:$NS$67,MATCH(A30,Inventory!$A$5:$A$67,0),MATCH($C30&J$1,Inventory!$F$4:$NS$4&Inventory!$F$3:$NS$3,0)),""),"") -> 0.8390818547 | L30: 0 | M30: -22.19893729 | N30: 1565.920179 | O30: 822.1995638 | P30: 0.04312231096 | Q30: =IF(P30="","",ECMs!O9) -> 0.03618314866 | R30: =ECMs!D9*INDEX(ECMs!AM9:BG9,1,MATCH($J$1,ECMs!$AM$3:$BG$3,0))*INDEX(ECMs!R9:AL9,MATCH($J$1,ECMs!$R$3:$AL$3,0)) -> 0.09039840749
A31: 7 | B31: =IF($R31>0,ECMs!B10,"") -> HighBay Lighting 3 Shift | C31: =IF($R31>0,ECMs!C10,"") -> Lighting | D31: =IF($R31>0,ECMs!D10,"") -> 0.4515888331 | E31: =IF($R31>0,ECMs!E10,"") -> 6.381647596 | F31: =IF($R31>0,ECMs!L10,"") -> 0.2462405067 | G31: =IF($R31>0,ECMs!M10,"") -> -0.01189506702 | H31: =IF($R31>0,ECMs!N10,"") -> 0 | I31: =IF($R31>0,INDEX(ECMs!AM10:BG10,1,MATCH($J$1,ECMs!$AM$3:$BG$3,0)),"") -> 0.2669047619 | J31: =IF($R31>0,INDEX(ECMs!R10:AL10,MATCH($J$1,ECMs!$R$3:$AL$3,0)),"") -> 1 | K31: =IF($R31>0,IFERROR(INDEX(Inventory!$F$5:$NS$67,MATCH(A31,Inventory!$A$5:$A$67,0),MATCH($C31&J$1,Inventory!$F$4:$NS$4&Inventory!$F$3:$NS$3,0)),""),"") -> 0.9540780347 | L31: 0 | M31: -29.59858305 | N31: 2374.039415 | O31: 612.7220702 | P31: 0.03375754054 | Q31: =IF(P31="","",ECMs!O10) -> 0.03220732794 | R31: =ECMs!D10*INDEX(ECMs!AM10:BG10,1,MATCH($J$1,ECMs!$AM$3:$BG$3,0))*INDEX(ECMs!R10:AL10,MATCH($J$1,ECMs!$R$3:$AL$3,0)) -> 0.12053121
... 35 more rows

Sheet Wood
B1: Resource Assessment Worksheet -- Industrial | H1: =J1 -> Wood | J1: Wood
B2: Year: | C2: ='Program Summary'!C2 -> 2041 | E2: Territory: | F2: ='Program Summary'!E2 -> Region | G2: MWh: | H2: =HLOOKUP(ReportYear,Forecast,MATCH($H$1,Forecast!$A$4:$A$25,0)) -> 1911207.373
B3: Date of Run: | C3: ='Program Summary'!C3 -> 2020-05-02T16:52:03.780 | F3: Penetration Assumption | H3: ='Program Summary'!G3 -> Technical
B4: Process Shares
A5: 1 | B5: Pumps | C5: =VLOOKUP($J$1,EndUse,MATCH($B5,EndUses,0),FALSE) -> 0.07
A6: 2 | B6: Fans and Blowers | C6: 0.03
A7: 3 | B7: Compressed Air | C7: 0.06
A8: 4 | B8: Material Handling | C8: 0.41
A9: 5 | B9: Material Processing | C9: 0.3
A10: 6 | B10: Low Temp Refer | C10: 0
A11: 7 | B11: Med Temp Refer | C11: 0
A12: 8 | B12: Pollution Control | C12: 0.01
A13: 9 | B13: Other Motors | C13: 0
A14: 10 | B14: Drying and Curing | C14: 0
A15: 11 | B15: Heat Treating | C15: 0
A16: 12 | B16: Heating | C16: 0
A17: 13 | B17: Melting and Casting | C17: 0
A18: 14 | B18: HVAC | C18: 0
A19: 15 | B19: Lighting | C19: 0.12
A20: 16 | B20: Other | C20: 0
A21: 17 | B21: All Electric | C21: =SUM(C5:C20) -> 1
A22: 18 | B22: All Motors | C22: =SUM(C5:C14,0.8*C18) -> 0.88
B24: Conservation Measure | C24: End Use | D24: % Savings | E24: Lifetime | F24: First Cost (2016$/kWh) | G24: Annual O&M Cost (2016$/kWh) | H24: Annual Non-Energy Benefit (2016$/kWh) | I24: Measure Applicability | J24: Achievability | K24: Inventory Factor | L24: Annual Non-Energy Benefit ($1000) | M24: Annual O&M Cost (1000$) | N24: Potential Savings (MWh/yr) | O24: Initial Cost (1000$) | P24: Levelized Cost (2016$/kWh) Installation-Order-Specific | Q24: Levelized Cost (2016$/kWh) Installation-Order-Indpendent | R24: % Savings * Applicability * Achievability
A25: 1 | B25: =IF($R25>0,ECMs!B4,"") -> Air Compressor Demand Reduction | C25: =IF($R25>0,ECMs!C4,"") -> Compressed Air | D25: =IF($R25>0,ECMs!D4,"") -> 0.1 | E25: =IF($R25>0,ECMs!E4,"") -> 10 | F25: =IF($R25>0,ECMs!L4,"") -> 0.09468255125 | G25: =IF($R25>0,ECMs!M4,"") -> 0.02940451902 | H25: =IF($R25>0,ECMs!N4,"") -> 0 | I25: =IF($R25>0,INDEX(ECMs!AM4:BG4,1,MATCH($J$1,ECMs!$AM$3:$BG$3,0)),"") -> 0.8 | J25: =IF($R25>0,INDEX(ECMs!R4:AL4,MATCH($J$1,ECMs!$R$3:$AL$3,0)),"") -> 0.9656649088 | K25: =IF($R25>0,IFERROR(INDEX(Inventory!$F$5:$NS$67,MATCH(A25,Inventory!$A$5:$A$67,0),MATCH($C25&J$1,Inventory!$F$4:$NS$4&Inventory!$F$3:$NS$3,0)),""),"") -> 0.9275781942 | L25: =IFERROR(H25*N25/K25,"") -> 0 | M25: =IFERROR(G25*N25/K25,"") -> 260.4891144 | N25: =IFERROR(INDEX($B$5:$C$22,MATCH(C25,B$5:B$22,0),2)*D25*I25*J25*K25*$H$2,"") -> 8217.241103 | O25: =IFERROR(F25*N25/K25,"") -> 838.7749483 | P25: =IFERROR(PMT(Discount_rate,E25,-(O25+PV(Discount_rate,E25,L25-M25)))/N25,"") -> 0.04412910288 | Q25: =IF(P25="","",ECMs!O4) -> 0.04093319356 | R25: =ECMs!D4*INDEX(ECMs!AM4:BG4,1,MATCH($J$1,ECMs!$AM$3:$BG$3,0))*INDEX(ECMs!R4:AL4,MATCH($J$1,ECMs!$R$3:$AL$3,0)) -> 0.0772531927
A26: 2 | B26: =IF($R26>0,ECMs!B5,"") -> Air Compressor Variable Speed | C26: =IF($R26>0,ECMs!C5,"") -> Compressed Air | D26: =IF($R26>0,ECMs!D5,"") -> 0.0826137993 | E26: =IF($R26>0,ECMs!E5,"") -> 13 | F26: =IF($R26>0,ECMs!L5,"") -> 0.6157000925 | G26: =IF($R26>0,ECMs!M5,"") -> 0 | H26: =IF($R26>0,ECMs!N5,"") -> 0 | I26: =IF($R26>0,INDEX(ECMs!AM5:BG5,1,MATCH($J$1,ECMs!$AM$3:$BG$3,0)),"") -> 1 | J26: =IF($R26>0,INDEX(ECMs!R5:AL5,MATCH($J$1,ECMs!$R$3:$AL$3,0)),"") -> 1 | K26: =IF($R26>0,IFERROR(INDEX(Inventory!$F$5:$NS$67,MATCH(A26,Inventory!$A$5:$A$67,0),MATCH($C26&J$1,Inventory!$F$4:$NS$4&Inventory!$F$3:$NS$3,0)),""),"") -> 0.8441358138 | L26: =IFERROR(H26*N26/K26,"") -> 0 | M26: =IFERROR(G26*N26/K26,"") -> 0 | N26: =IFERROR(INDEX($B$5:$C$22,MATCH(C26,B$5:B$22,0),2)*D26*I26*J26*K26*$H$2,"") -> 7996.942696 | O26: =IFERROR(F26*N26/K26,"") -> 5832.850919 | P26: 0.07191476406 | Q26: =IF(P26="","",ECMs!O5) -> 0.06070582788 | R26: =ECMs!D5*INDEX(ECMs!AM5:BG5,1,MATCH($J$1,ECMs!$AM$3:$BG$3,0))*INDEX(ECMs!R5:AL5,MATCH($J$1,ECMs!$R$3:$AL$3,0)) -> 0.0826137993
A27: 3 | B27: =IF($R27>0,ECMs!B6,"") -> Air Compressor Equipment | C27: =IF($R27>0,ECMs!C6,"") -> Compressed Air | D27: =IF($R27>0,ECMs!D6,"") -> 0.1337172591 | E27: =IF($R27>0,ECMs!E6,"") -> 13 | F27: =IF($R27>0,ECMs!L6,"") -> 0.6763242759 | G27: =IF($R27>0,ECMs!M6,"") -> 0 | H27: =IF($R27>0,ECMs!N6,"") -> 0 | I27: =IF($R27>0,INDEX(ECMs!AM6:BG6,1,MATCH($J$1,ECMs!$AM$3:$BG$3,0)),"") -> 1 | J27: =IF($R27>0,INDEX(ECMs!R6:AL6,MATCH($J$1,ECMs!$R$3:$AL$3,0)),"") -> 1 | K27: =IF($R27>0,IFERROR(INDEX(Inventory!$F$5:$NS$67,MATCH(A27,Inventory!$A$5:$A$67,0),MATCH($C27&J$1,Inventory!$F$4:$NS$4&Inventory!$F$3:$NS$3,0)),""),"") -> 0.7743985471 | L27: 0 | M27: 0 | N27: 11874.38314 | O27: 10370.54319 | P27: 0.08610960839 | Q27: =IF(P27="","",ECMs!O6) -> 0.06668315562 | R27: =ECMs!D6*INDEX(ECMs!AM6:BG6,1,MATCH($J$1,ECMs!$AM$3:$BG$3,0))*INDEX(ECMs!R6:AL6,MATCH($J$1,ECMs!$R$3:$AL$3,0)) -> 0.1337172591
A28: 4 | B28: =IF($R28>0,ECMs!B7,"") -> Energy Management | C28: =IF($R28>0,ECMs!C7,"") -> All Electric | D28: =IF($R28>0,ECMs!D7,"") -> 0.03 | E28: =IF($R28>0,ECMs!E7,"") -> 3 | F28: =IF($R28>0,ECMs!L7,"") -> 0.07638306017 | G28: =IF($R28>0,ECMs!M7,"") -> 0 | H28: =IF($R28>0,ECMs!N7,"") -> 0 | I28: =IF($R28>0,INDEX(ECMs!AM7:BG7,1,MATCH($J$1,ECMs!$AM$3:$BG$3,0)),"") -> 0.9301623944 | J28: =IF($R28>0,INDEX(ECMs!R7:AL7,MATCH($J$1,ECMs!$R$3:$AL$3,0)),"") -> 1 | K28: =IF($R28>0,IFERROR(INDEX(Inventory!$F$5:$NS$67,MATCH(A28,Inventory!$A$5:$A$67,0),MATCH($C28&J$1,Inventory!$F$4:$NS$4&Inventory!$F$3:$NS$3,0)),""),"") -> 0.9018924496 | L28: 0 | M28: 0 | N28: 48099.72521 | O28: 4073.661118 | P28: 0.03037393684 | Q28: =IF(P28="","",ECMs!O7) -> 0.0273940243 | R28: =ECMs!D7*INDEX(ECMs!AM7:BG7,1,MATCH($J$1,ECMs!$AM$3:$BG$3,0))*INDEX(ECMs!R7:AL7,MATCH($J$1,ECMs!$R$3:$AL$3,0)) -> 0.02790487183
A29: 5 | B29: =IF($R29>0,ECMs!B8,"") -> HighBay Lighting 1 Shift | C29: =IF($R29>0,ECMs!C8,"") -> Lighting | D29: =IF($R29>0,ECMs!D8,"") -> 0.4515888331 | E29: =IF($R29>0,ECMs!E8,"") -> 19.54658495 | F29: =IF($R29>0,ECMs!L8,"") -> 0.7526012161 | G29: =IF($R29>0,ECMs!M8,"") -> -0.01189506702 | H29: =IF($R29>0,ECMs!N8,"") -> 0 | I29: =IF($R29>0,INDEX(ECMs!AM8:BG8,1,MATCH($J$1,ECMs!$AM$3:$BG$3,0)),"") -> 0.2001785714 | J29: =IF($R29>0,INDEX(ECMs!R8:AL8,MATCH($J$1,ECMs!$R$3:$AL$3,0)),"") -> 1 | K29: =IF($R29>0,IFERROR(INDEX(Inventory!$F$5:$NS$67,MATCH(A29,Inventory!$A$5:$A$67,0),MATCH($C29&J$1,Inventory!$F$4:$NS$4&Inventory!$F$3:$NS$3,0)),""),"") -> 0.7632301913 | L29: 0 | M29: -246.6134343 | N29: 15823.60304 | O29: 15603.23874 | P29: 0.05648965897 | Q29: =IF(P29="","",ECMs!O8) -> 0.04311461322 | R29: =ECMs!D8*INDEX(ECMs!AM8:BG8,1,MATCH($J$1,ECMs!$AM$3:$BG$3,0))*INDEX(ECMs!R8:AL8,MATCH($J$1,ECMs!$R$3:$AL$3,0)) -> 0.09039840749
A30: 6 | B30: =IF($R30>0,ECMs!B9,"") -> HighBay Lighting 2 Shift | C30: =IF($R30>0,ECMs!C9,"") -> Lighting | D30: =IF($R30>0,ECMs!D9,"") -> 0.4515888331 | E30: =IF($R30>0,ECMs!E9,"") -> 11.43683162 | F30: =IF($R30>0,ECMs!L9,"") -> 0.4405669869 | G30: =IF($R30>0,ECMs!M9,"") -> -0.01189506702 | H30: =IF($R30>0,ECMs!N9,"") -> 0 | I30: =IF($R30>0,INDEX(ECMs!AM9:BG9,1,MATCH($J$1,ECMs!$AM$3:$BG$3,0)),"") -> 0.2001785714 | J30: =IF($R30>0,INDEX(ECMs!R9:AL9,MATCH($J$1,ECMs!$R$3:$AL$3,0)),"") -> 1 | K30: =IF($R30>0,IFERROR(INDEX(Inventory!$F$5:$NS$67,MATCH(A30,Inventory!$A$5:$A$67,0),MATCH($C30&J$1,Inventory!$F$4:$NS$4&Inventory!$F$3:$NS$3,0)),""),"") -> 0.8390818547 | L30: 0 | M30: -246.6134343 | N30: 17396.191 | O30: 9134.016438 | P30: 0.04312231096 | Q30: =IF(P30="","",ECMs!O9) -> 0.03618314866 | R30: =ECMs!D9*INDEX(ECMs!AM9:BG9,1,MATCH($J$1,ECMs!$AM$3:$BG$3,0))*INDEX(ECMs!R9:AL9,MATCH($J$1,ECMs!$R$3:$AL$3,0)) -> 0.09039840749
A31: 7 | B31: =IF($R31>0,ECMs!B10,"") -> HighBay Lighting 3 Shift | C31: =IF($R31>0,ECMs!C10,"") -> Lighting | D31: =IF($R31>0,ECMs!D10,"") -> 0.4515888331 | E31: =IF($R31>0,ECMs!E10,"") -> 6.381647596 | F31: =IF($R31>0,ECMs!L10,"") -> 0.2462405067 | G31: =IF($R31>0,ECMs!M10,"") -> -0.01189506702 | H31: =IF($R31>0,ECMs!N10,"") -> 0 | I31: =IF($R31>0,INDEX(ECMs!AM10:BG10,1,MATCH($J$1,ECMs!$AM$3:$BG$3,0)),"") -> 0.2669047619 | J31: =IF($R31>0,INDEX(ECMs!R10:AL10,MATCH($J$1,ECMs!$R$3:$AL$3,0)),"") -> 1 | K31: =IF($R31>0,IFERROR(INDEX(Inventory!$F$5:$NS$67,MATCH(A31,Inventory!$A$5:$A$67,0),MATCH($C31&J$1,Inventory!$F$4:$NS$4&Inventory!$F$3:$NS$3,0)),""),"") -> 0.9540780347 | L31: 0 | M31: -328.8179123 | N31: 26373.78563 | O31: 6806.879628 | P31: 0.03375754054 | Q31: =IF(P31="","",ECMs!O10) -> 0.03220732794 | R31: =ECMs!D10*INDEX(ECMs!AM10:BG10,1,MATCH($J$1,ECMs!$AM$3:$BG$3,0))*INDEX(ECMs!R10:AL10,MATCH($J$1,ECMs!$R$3:$AL$3,0)) -> 0.12053121
... 35 more rows

Sheet ElecFab
B1: Resource Assessment Worksheet -- Industrial | H1: =J1 -> ElecFab | J1: ElecFab
B2: Year: | C2: ='Program Summary'!C2 -> 2041 | E2: Territory: | F2: ='Program Summary'!E2 -> Region | G2: MWh: | H2: =HLOOKUP(ReportYear,Forecast,MATCH($H$1,Forecast!$A$4:$A$25,0)) -> 4284741.163
B3: Date of Run: | C3: ='Program Summary'!C3 -> 2020-05-02T16:52:03.780 | F3: Penetration Assumption | H3: ='Program Summary'!G3 -> Technical
B4: Process Shares
A5: 1 | B5: Pumps | C5: =VLOOKUP($J$1,EndUse,MATCH($B5,EndUses,0),FALSE) -> 0.08
A6: 2 | B6: Fans and Blowers | C6: 0.06
A7: 3 | B7: Compressed Air | C7: 0.06
A8: 4 | B8: Material Handling | C8: 0.24
A9: 5 | B9: Material Processing | C9: 0.06
A10: 6 | B10: Low Temp Refer | C10: 0
A11: 7 | B11: Med Temp Refer | C11: 0
A12: 8 | B12: Pollution Control | C12: 0
A13: 9 | B13: Other Motors | C13: 0
A14: 10 | B14: Drying and Curing | C14: 0
A15: 11 | B15: Heat Treating | C15: 0.04
A16: 12 | B16: Heating | C16: 0.05
A17: 13 | B17: Melting and Casting | C17: 0
A18: 14 | B18: HVAC | C18: 0.24
A19: 15 | B19: Lighting | C19: 0.06
A20: 16 | B20: Other | C20: 0.11
A21: 17 | B21: All Electric | C21: =SUM(C5:C20) -> 1
A22: 18 | B22: All Motors | C22: =SUM(C5:C14,0.8*C18) -> 0.692
B24: Conservation Measure | C24: End Use | D24: % Savings | E24: Lifetime | F24: First Cost (2016$/kWh) | G24: Annual O&M Cost (2016$/kWh) | H24: Annual Non-Energy Benefit (2016$/kWh) | I24: Measure Applicability | J24: Achievability | K24: Inventory Factor | L24: Annual Non-Energy Benefit ($1000) | M24: Annual O&M Cost (1000$) | N24: Potential Savings (MWh/yr) | O24: Initial Cost (1000$) | P24: Levelized Cost (2016$/kWh) Installation-Order-Specific | Q24: Levelized Cost (2016$/kWh) Installation-Order-Indpendent | R24: % Savings * Applicability * Achievability
A25: 1 | B25: =IF($R25>0,ECMs!B4,"") -> Air Compressor Demand Reduction | C25: =IF($R25>0,ECMs!C4,"") -> Compressed Air | D25: =IF($R25>0,ECMs!D4,"") -> 0.1 | E25: =IF($R25>0,ECMs!E4,"") -> 10 | F25: =IF($R25>0,ECMs!L4,"") -> 0.09468255125 | G25: =IF($R25>0,ECMs!M4,"") -> 0.02940451902 | H25: =IF($R25>0,ECMs!N4,"") -> 0 | I25: =IF($R25>0,INDEX(ECMs!AM4:BG4,1,MATCH($J$1,ECMs!$AM$3:$BG$3,0)),"") -> 0.09743929481 | J25: =IF($R25>0,INDEX(ECMs!R4:AL4,MATCH($J$1,ECMs!$R$3:$AL$3,0)),"") -> 0.9656649088 | K25: =IF($R25>0,IFERROR(INDEX(Inventory!$F$5:$NS$67,MATCH(A25,Inventory!$A$5:$A$67,0),MATCH($C25&J$1,Inventory!$F$4:$NS$4&Inventory!$F$3:$NS$3,0)),""),"") -> 0.9275781942 | L25: =IFERROR(H25*N25/K25,"") -> 0 | M25: =IFERROR(G25*N25/K25,"") -> 71.12962255 | N25: =IFERROR(INDEX($B$5:$C$22,MATCH(C25,B$5:B$22,0),2)*D25*I25*J25*K25*$H$2,"") -> 2243.814524 | O25: =IFERROR(F25*N25/K25,"") -> 229.0373846 | P25: =IFERROR(PMT(Discount_rate,E25,-(O25+PV(Discount_rate,E25,L25-M25)))/N25,"") -> 0.04412910288 | Q25: =IF(P25="","",ECMs!O4) -> 0.04093319356 | R25: =ECMs!D4*INDEX(ECMs!AM4:BG4,1,MATCH($J$1,ECMs!$AM$3:$BG$3,0))*INDEX(ECMs!R4:AL4,MATCH($J$1,ECMs!$R$3:$AL$3,0)) -> 0.009409370774
A26: 2 | B26: =IF($R26>0,ECMs!B5,"") -> Air Compressor Variable Speed | C26: =IF($R26>0,ECMs!C5,"") -> Compressed Air | D26: =IF($R26>0,ECMs!D5,"") -> 0.0826137993 | E26: =IF($R26>0,ECMs!E5,"") -> 13 | F26: =IF($R26>0,ECMs!L5,"") -> 0.6157000925 | G26: =IF($R26>0,ECMs!M5,"") -> 0 | H26: =IF($R26>0,ECMs!N5,"") -> 0 | I26: =IF($R26>0,INDEX(ECMs!AM5:BG5,1,MATCH($J$1,ECMs!$AM$3:$BG$3,0)),"") -> 1 | J26: =IF($R26>0,INDEX(ECMs!R5:AL5,MATCH($J$1,ECMs!$R$3:$AL$3,0)),"") -> 1 | K26: =IF($R26>0,IFERROR(INDEX(Inventory!$F$5:$NS$67,MATCH(A26,Inventory!$A$5:$A$67,0),MATCH($C26&J$1,Inventory!$F$4:$NS$4&Inventory!$F$3:$NS$3,0)),""),"") -> 0.9061998593 | L26: =IFERROR(H26*N26/K26,"") -> 0 | M26: =IFERROR(G26*N26/K26,"") -> 0 | N26: =IFERROR(INDEX($B$5:$C$22,MATCH(C26,B$5:B$22,0),2)*D26*I26*J26*K26*$H$2,"") -> 19246.52941 | O26: =IFERROR(F26*N26/K26,"") -> 13076.68482 | P26: 0.06698944749 | Q26: =IF(P26="","",ECMs!O5) -> 0.06070582788 | R26: =ECMs!D5*INDEX(ECMs!AM5:BG5,1,MATCH($J$1,ECMs!$AM$3:$BG$3,0))*INDEX(ECMs!R5:AL5,MATCH($J$1,ECMs!$R$3:$AL$3,0)) -> 0.0826137993
A27: 3 | B27: =IF($R27>0,ECMs!B6,"") -> Air Compressor Equipment | C27: =IF($R27>0,ECMs!C6,"") -> Compressed Air | D27: =IF($R27>0,ECMs!D6,"") -> 0.1337172591 | E27: =IF($R27>0,ECMs!E6,"") -> 13 | F27: =IF($R27>0,ECMs!L6,"") -> 0.6763242759 | G27: =IF($R27>0,ECMs!M6,"") -> 0 | H27: =IF($R27>0,ECMs!N6,"") -> 0 | I27: =IF($R27>0,INDEX(ECMs!AM6:BG6,1,MATCH($J$1,ECMs!$AM$3:$BG$3,0)),"") -> 1 | J27: =IF($R27>0,INDEX(ECMs!R6:AL6,MATCH($J$1,ECMs!$R$3:$AL$3,0)),"") -> 1 | K27: =IF($R27>0,IFERROR(INDEX(Inventory!$F$5:$NS$67,MATCH(A27,Inventory!$A$5:$A$67,0),MATCH($C27&J$1,Inventory!$F$4:$NS$4&Inventory!$F$3:$NS$3,0)),""),"") -> 0.831335246 | L27: 0 | M27: 0 | N27: 28578.50471 | O27: 23249.74984 | P27: 0.08021211172 | Q27: =IF(P27="","",ECMs!O6) -> 0.06668315562 | R27: =ECMs!D6*INDEX(ECMs!AM6:BG6,1,MATCH($J$1,ECMs!$AM$3:$BG$3,0))*INDEX(ECMs!R6:AL6,MATCH($J$1,ECMs!$R$3:$AL$3,0)) -> 0.1337172591
A28: 4 | B28: =IF($R28>0,ECMs!B7,"") -> Energy Management | C28: =IF($R28>0,ECMs!C7,"") -> All Electric | D28: =IF($R28>0,ECMs!D7,"") -> 0.03 | E28: =IF($R28>0,ECMs!E7,"") -> 3 | F28: =IF($R28>0,ECMs!L7,"") -> 0.07638306017 | G28: =IF($R28>0,ECMs!M7,"") -> 0 | H28: =IF($R28>0,ECMs!N7,"") -> 0 | I28: =IF($R28>0,INDEX(ECMs!AM7:BG7,1,MATCH($J$1,ECMs!$AM$3:$BG$3,0)),"") -> 0.9301623944 | J28: =IF($R28>0,INDEX(ECMs!R7:AL7,MATCH($J$1,ECMs!$R$3:$AL$3,0)),"") -> 1 | K28: =IF($R28>0,IFERROR(INDEX(Inventory!$F$5:$NS$67,MATCH(A28,Inventory!$A$5:$A$67,0),MATCH($C28&J$1,Inventory!$F$4:$NS$4&Inventory!$F$3:$NS$3,0)),""),"") -> 0.9275219729 | L28: 0 | M28: 0 | N28: 110899.3066 | O28: 9132.752273 | P28: 0.02953463648 | Q28: =IF(P28="","",ECMs!O7) -> 0.0273940243 | R28: =ECMs!D7*INDEX(ECMs!AM7:BG7,1,MATCH($J$1,ECMs!$AM$3:$BG$3,0))*INDEX(ECMs!R7:AL7,MATCH($J$1,ECMs!$R$3:$AL$3,0)) -> 0.02790487183
A29: 5 | B29: =IF($R29>0,ECMs!B8,"") -> HighBay Lighting 1 Shift | C29: =IF($R29>0,ECMs!C8,"") -> Lighting | D29: =IF($R29>0,ECMs!D8,"") -> 0.4515888331 | E29: =IF($R29>0,ECMs!E8,"") -> 19.54658495 | F29: =IF($R29>0,ECMs!L8,"") -> 0.7526012161 | G29: =IF($R29>0,ECMs!M8,"") -> -0.01189506702 | H29: =IF($R29>0,ECMs!N8,"") -> 0 | I29: =IF($R29>0,INDEX(ECMs!AM8:BG8,1,MATCH($J$1,ECMs!$AM$3:$BG$3,0)),"") -> 0.08428571429 | J29: =IF($R29>0,INDEX(ECMs!R8:AL8,MATCH($J$1,ECMs!$R$3:$AL$3,0)),"") -> 1 | K29: =IF($R29>0,IFERROR(INDEX(Inventory!$F$5:$NS$67,MATCH(A29,Inventory!$A$5:$A$67,0),MATCH($C29&J$1,Inventory!$F$4:$NS$4&Inventory!$F$3:$NS$3,0)),""),"") -> 0.7098375469 | L29: 0 | M29: -116.3964946 | N29: 6945.955163 | O29: 7364.4094 | P29: 0.06073870481 | Q29: =IF(P29="","",ECMs!O8) -> 0.04311461322 | R29: =ECMs!D8*INDEX(ECMs!AM8:BG8,1,MATCH($J$1,ECMs!$AM$3:$BG$3,0))*INDEX(ECMs!R8:AL8,MATCH($J$1,ECMs!$R$3:$AL$3,0)) -> 0.03806248736
A30: 6 | B30: =IF($R30>0,ECMs!B9,"") -> HighBay Lighting 2 Shift | C30: =IF($R30>0,ECMs!C9,"") -> Lighting | D30: =IF($R30>0,ECMs!D9,"") -> 0.4515888331 | E30: =IF($R30>0,ECMs!E9,"") -> 11.43683162 | F30: =IF($R30>0,ECMs!L9,"") -> 0.4405669869 | G30: =IF($R30>0,ECMs!M9,"") -> -0.01189506702 | H30: =IF($R30>0,ECMs!N9,"") -> 0 | I30: =IF($R30>0,INDEX(ECMs!AM9:BG9,1,MATCH($J$1,ECMs!$AM$3:$BG$3,0)),"") -> 0.08428571429 | J30: =IF($R30>0,INDEX(ECMs!R9:AL9,MATCH($J$1,ECMs!$R$3:$AL$3,0)),"") -> 1 | K30: =IF($R30>0,IFERROR(INDEX(Inventory!$F$5:$NS$67,MATCH(A30,Inventory!$A$5:$A$67,0),MATCH($C30&J$1,Inventory!$F$4:$NS$4&Inventory!$F$3:$NS$3,0)),""),"") -> 0.7379248003 | L30: 0 | M30: -116.3964946 | N30: 7220.796644 | O30: 4311.068851 | P30: 0.04903365309 | Q30: =IF(P30="","",ECMs!O9) -> 0.03618314866 | R30: =ECMs!D9*INDEX(ECMs!AM9:BG9,1,MATCH($J$1,ECMs!$AM$3:$BG$3,0))*INDEX(ECMs!R9:AL9,MATCH($J$1,ECMs!$R$3:$AL$3,0)) -> 0.03806248736
A31: 7 | B31: =IF($R31>0,ECMs!B10,"") -> HighBay Lighting 3 Shift | C31: =IF($R31>0,ECMs!C10,"") -> Lighting | D31: =IF($R31>0,ECMs!D10,"") -> 0.4515888331 | E31: =IF($R31>0,ECMs!E10,"") -> 6.381647596 | F31: =IF($R31>0,ECMs!L10,"") -> 0.2462405067 | G31: =IF($R31>0,ECMs!M10,"") -> -0.01189506702 | H31: =IF($R31>0,ECMs!N10,"") -> 0 | I31: =IF($R31>0,INDEX(ECMs!AM10:BG10,1,MATCH($J$1,ECMs!$AM$3:$BG$3,0)),"") -> 0.2528571429 | J31: =IF($R31>0,INDEX(ECMs!R10:AL10,MATCH($J$1,ECMs!$R$3:$AL$3,0)),"") -> 1 | K31: =IF($R31>0,IFERROR(INDEX(Inventory!$F$5:$NS$67,MATCH(A31,Inventory!$A$5:$A$67,0),MATCH($C31&J$1,Inventory!$F$4:$NS$4&Inventory!$F$3:$NS$3,0)),""),"") -> 0.8330484935 | L31: 0 | M31: -349.1894837 | N31: 24454.82425 | O31: 7228.592766 | P31: 0.0386620085 | Q31: =IF(P31="","",ECMs!O10) -> 0.03220732794 | R31: =ECMs!D10*INDEX(ECMs!AM10:BG10,1,MATCH($J$1,ECMs!$AM$3:$BG$3,0))*INDEX(ECMs!R10:AL10,MATCH($J$1,ECMs!$R$3:$AL$3,0)) -> 0.1141874621
... 35 more rows

Sheet Silicon
B1: Resource Assessment Worksheet -- Industrial | H1: =J1 -> Silicon | J1: Silicon
B2: Year: | C2: ='Program Summary'!C2 -> 2041 | E2: Territory: | F2: ='Program Summary'!E2 -> Region | G2: MWh: | H2: =HLOOKUP(ReportYear,Forecast,MATCH($H$1,Forecast!$A$4:$A$25,0)) -> 416115.8373
B3: Date of Run: | C3: ='Program Summary'!C3 -> 2020-05-02T16:52:03.780 | F3: Penetration Assumption | H3: ='Program Summary'!G3 -> Technical
B4: Process Shares
A5: 1 | B5: Pumps | C5: =VLOOKUP($J$1,EndUse,MATCH($B5,EndUses,0),FALSE) -> 0.02
A6: 2 | B6: Fans and Blowers | C6: 0.03
A7: 3 | B7: Compressed Air | C7: 0.05
A8: 4 | B8: Material Handling | C8: 0.04
A9: 5 | B9: Material Processing | C9: 0.11
A10: 6 | B10: Low Temp Refer | C10: 0
A11: 7 | B11: Med Temp Refer | C11: 0
A12: 8 | B12: Pollution Control | C12: 0
A13: 9 | B13: Other Motors | C13: 0
A14: 10 | B14: Drying and Curing | C14: 0.02
A15: 11 | B15: Heat Treating | C15: 0
A16: 12 | B16: Heating | C16: 0.23
A17: 13 | B17: Melting and Casting | C17: 0
A18: 14 | B18: HVAC | C18: 0.26
A19: 15 | B19: Lighting | C19: 0.13
A20: 16 | B20: Other | C20: 0.11
A21: 17 | B21: All Electric | C21: =SUM(C5:C20) -> 1
A22: 18 | B22: All Motors | C22: =SUM(C5:C14,0.8*C18) -> 0.478
B24: Conservation Measure | C24: End Use | D24: % Savings | E24: Lifetime | F24: First Cost (2016$/kWh) | G24: Annual O&M Cost (2016$/kWh) | H24: Annual Non-Energy Benefit (2016$/kWh) | I24: Measure Applicability | J24: Achievability | K24: Inventory Factor | L24: Annual Non-Energy Benefit ($1000) | M24: Annual O&M Cost (1000$) | N24: Potential Savings (MWh/yr) | O24: Initial Cost (1000$) | P24: Levelized Cost (2016$/kWh) Installation-Order-Specific | Q24: Levelized Cost (2016$/kWh) Installation-Order-Indpendent | R24: % Savings * Applicability * Achievability
A25: 1 | B25: =IF($R25>0,ECMs!B4,"") -> Air Compressor Demand Reduction | C25: =IF($R25>0,ECMs!C4,"") -> Compressed Air | D25: =IF($R25>0,ECMs!D4,"") -> 0.1 | E25: =IF($R25>0,ECMs!E4,"") -> 10 | F25: =IF($R25>0,ECMs!L4,"") -> 0.09468255125 | G25: =IF($R25>0,ECMs!M4,"") -> 0.02940451902 | H25: =IF($R25>0,ECMs!N4,"") -> 0 | I25: =IF($R25>0,INDEX(ECMs!AM4:BG4,1,MATCH($J$1,ECMs!$AM$3:$BG$3,0)),"") -> 0.09743929481 | J25: =IF($R25>0,INDEX(ECMs!R4:AL4,MATCH($J$1,ECMs!$R$3:$AL$3,0)),"") -> 0.9656649088 | K25: =IF($R25>0,IFERROR(INDEX(Inventory!$F$5:$NS$67,MATCH(A25,Inventory!$A$5:$A$67,0),MATCH($C25&J$1,Inventory!$F$4:$NS$4&Inventory!$F$3:$NS$3,0)),""),"") -> 0.9275781942 | L25: =IFERROR(H25*N25/K25,"") -> 0 | M25: =IFERROR(G25*N25/K25,"") -> 5.756505338 | N25: =IFERROR(INDEX($B$5:$C$22,MATCH(C25,B$5:B$22,0),2)*D25*I25*J25*K25*$H$2,"") -> 181.5914357 | O25: =IFERROR(F25*N25/K25,"") -> 18.53594719 | P25: =IFERROR(PMT(Discount_rate,E25,-(O25+PV(Discount_rate,E25,L25-M25)))/N25,"") -> 0.04412910288 | Q25: =IF(P25="","",ECMs!O4) -> 0.04093319356 | R25: =ECMs!D4*INDEX(ECMs!AM4:BG4,1,MATCH($J$1,ECMs!$AM$3:$BG$3,0))*INDEX(ECMs!R4:AL4,MATCH($J$1,ECMs!$R$3:$AL$3,0)) -> 0.009409370774
A26: 2 | B26: =IF($R26>0,ECMs!B5,"") -> Air Compressor Variable Speed | C26: =IF($R26>0,ECMs!C5,"") -> Compressed Air | D26: =IF($R26>0,ECMs!D5,"") -> 0.0826137993 | E26: =IF($R26>0,ECMs!E5,"") -> 13 | F26: =IF($R26>0,ECMs!L5,"") -> 0.6157000925 | G26: =IF($R26>0,ECMs!M5,"") -> 0 | H26: =IF($R26>0,ECMs!N5,"") -> 0 | I26: =IF($R26>0,INDEX(ECMs!AM5:BG5,1,MATCH($J$1,ECMs!$AM$3:$BG$3,0)),"") -> 1 | J26: =IF($R26>0,INDEX(ECMs!R5:AL5,MATCH($J$1,ECMs!$R$3:$AL$3,0)),"") -> 1 | K26: =IF($R26>0,IFERROR(INDEX(Inventory!$F$5:$NS$67,MATCH(A26,Inventory!$A$5:$A$67,0),MATCH($C26&J$1,Inventory!$F$4:$NS$4&Inventory!$F$3:$NS$3,0)),""),"") -> 0.9061998593 | L26: =IFERROR(H26*N26/K26,"") -> 0 | M26: =IFERROR(G26*N26/K26,"") -> 0 | N26: =IFERROR(INDEX($B$5:$C$22,MATCH(C26,B$5:B$22,0),2)*D26*I26*J26*K26*$H$2,"") -> 1557.617563 | O26: =IFERROR(F26*N26/K26,"") -> 1058.293342 | P26: 0.06698944749 | Q26: =IF(P26="","",ECMs!O5) -> 0.06070582788 | R26: =ECMs!D5*INDEX(ECMs!AM5:BG5,1,MATCH($J$1,ECMs!$AM$3:$BG$3,0))*INDEX(ECMs!R5:AL5,MATCH($J$1,ECMs!$R$3:$AL$3,0)) -> 0.0826137993
A27: 3 | B27: =IF($R27>0,ECMs!B6,"") -> Air Compressor Equipment | C27: =IF($R27>0,ECMs!C6,"") -> Compressed Air | D27: =IF($R27>0,ECMs!D6,"") -> 0.1337172591 | E27: =IF($R27>0,ECMs!E6,"") -> 13 | F27: =IF($R27>0,ECMs!L6,"") -> 0.6763242759 | G27: =IF($R27>0,ECMs!M6,"") -> 0 | H27: =IF($R27>0,ECMs!N6,"") -> 0 | I27: =IF($R27>0,INDEX(ECMs!AM6:BG6,1,MATCH($J$1,ECMs!$AM$3:$BG$3,0)),"") -> 1 | J27: =IF($R27>0,INDEX(ECMs!R6:AL6,MATCH($J$1,ECMs!$R$3:$AL$3,0)),"") -> 1 | K27: =IF($R27>0,IFERROR(INDEX(Inventory!$F$5:$NS$67,MATCH(A27,Inventory!$A$5:$A$67,0),MATCH($C27&J$1,Inventory!$F$4:$NS$4&Inventory!$F$3:$NS$3,0)),""),"") -> 0.831335246 | L27: 0 | M27: 0 | N27: 2312.852353 | O27: 1881.597346 | P27: 0.08021211172 | Q27: =IF(P27="","",ECMs!O6) -> 0.06668315562 | R27: =ECMs!D6*INDEX(ECMs!AM6:BG6,1,MATCH($J$1,ECMs!$AM$3:$BG$3,0))*INDEX(ECMs!R6:AL6,MATCH($J$1,ECMs!$R$3:$AL$3,0)) -> 0.1337172591
A28: 4 | B28: =IF($R28>0,ECMs!B7,"") -> Energy Management | C28: =IF($R28>0,ECMs!C7,"") -> All Electric | D28: =IF($R28>0,ECMs!D7,"") -> 0.03 | E28: =IF($R28>0,ECMs!E7,"") -> 3 | F28: =IF($R28>0,ECMs!L7,"") -> 0.07638306017 | G28: =IF($R28>0,ECMs!M7,"") -> 0 | H28: =IF($R28>0,ECMs!N7,"") -> 0 | I28: =IF($R28>0,INDEX(ECMs!AM7:BG7,1,MATCH($J$1,ECMs!$AM$3:$BG$3,0)),"") -> 0.9301623944 | J28: =IF($R28>0,INDEX(ECMs!R7:AL7,MATCH($J$1,ECMs!$R$3:$AL$3,0)),"") -> 1 | K28: =IF($R28>0,IFERROR(INDEX(Inventory!$F$5:$NS$67,MATCH(A28,Inventory!$A$5:$A$67,0),MATCH($C28&J$1,Inventory!$F$4:$NS$4&Inventory!$F$3:$NS$3,0)),""),"") -> 0.9231619236 | L28: 0 | M28: 0 | N28: 10719.44156 | O28: 886.9340563 | P28: 0.02967412715 | Q28: =IF(P28="","",ECMs!O7) -> 0.0273940243 | R28: =ECMs!D7*INDEX(ECMs!AM7:BG7,1,MATCH($J$1,ECMs!$AM$3:$BG$3,0))*INDEX(ECMs!R7:AL7,MATCH($J$1,ECMs!$R$3:$AL$3,0)) -> 0.02790487183
A29: 5 | B29: =IF($R29>0,ECMs!B8,"") ->  | C29: =IF($R29>0,ECMs!C8,"") ->  | D29: =IF($R29>0,ECMs!D8,"") ->  | E29: =IF($R29>0,ECMs!E8,"") ->  | F29: =IF($R29>0,ECMs!L8,"") ->  | G29: =IF($R29>0,ECMs!M8,"") ->  | H29: =IF($R29>0,ECMs!N8,"") ->  | I29: =IF($R29>0,INDEX(ECMs!AM8:BG8,1,MATCH($J$1,ECMs!$AM$3:$BG$3,0)),"") ->  | J29: =IF($R29>0,INDEX(ECMs!R8:AL8,MATCH($J$1,ECMs!$R$3:$AL$3,0)),"") ->  | K29: =IF($R29>0,IFERROR(INDEX(Inventory!$F$5:$NS$67,MATCH(A29,Inventory!$A$5:$A$67,0),MATCH($C29&J$1,Inventory!$F$4:$NS$4&Inventory!$F$3:$NS$3,0)),""),"") ->  | Q29: =IF(P29="","",ECMs!O8) ->  | R29: =ECMs!D8*INDEX(ECMs!AM8:BG8,1,MATCH($J$1,ECMs!$AM$3:$BG$3,0))*INDEX(ECMs!R8:AL8,MATCH($J$1,ECMs!$R$3:$AL$3,0)) -> 0
A30: 6 | B30: =IF($R30>0,ECMs!B9,"") ->  | C30: =IF($R30>0,ECMs!C9,"") ->  | D30: =IF($R30>0,ECMs!D9,"") ->  | E30: =IF($R30>0,ECMs!E9,"") ->  | F30: =IF($R30>0,ECMs!L9,"") ->  | G30: =IF($R30>0,ECMs!M9,"") ->  | H30: =IF($R30>0,ECMs!N9,"") ->  | I30: =IF($R30>0,INDEX(ECMs!AM9:BG9,1,MATCH($J$1,ECMs!$AM$3:$BG$3,0)),"") ->  | J30: =IF($R30>0,INDEX(ECMs!R9:AL9,MATCH($J$1,ECMs!$R$3:$AL$3,0)),"") ->  | K30: =IF($R30>0,IFERROR(INDEX(Inventory!$F$5:$NS$67,MATCH(A30,Inventory!$A$5:$A$67,0),MATCH($C30&J$1,Inventory!$F$4:$NS$4&Inventory!$F$3:$NS$3,0)),""),"") ->  | Q30: =IF(P30="","",ECMs!O9) ->  | R30: =ECMs!D9*INDEX(ECMs!AM9:BG9,1,MATCH($J$1,ECMs!$AM$3:$BG$3,0))*INDEX(ECMs!R9:AL9,MATCH($J$1,ECMs!$R$3:$AL$3,0)) -> 0
A31: 7 | B31: =IF($R31>0,ECMs!B10,"") -> HighBay Lighting 3 Shift | C31: =IF($R31>0,ECMs!C10,"") -> Lighting | D31: =IF($R31>0,ECMs!D10,"") -> 0.4515888331 | E31: =IF($R31>0,ECMs!E10,"") -> 6.381647596 | F31: =IF($R31>0,ECMs!L10,"") -> 0.2462405067 | G31: =IF($R31>0,ECMs!M10,"") -> -0.01189506702 | H31: =IF($R31>0,ECMs!N10,"") -> 0 | I31: =IF($R31>0,INDEX(ECMs!AM10:BG10,1,MATCH($J$1,ECMs!$AM$3:$BG$3,0)),"") -> 0.4214285714 | J31: =IF($R31>0,INDEX(ECMs!R10:AL10,MATCH($J$1,ECMs!$R$3:$AL$3,0)),"") -> 1 | K31: =IF($R31>0,IFERROR(INDEX(Inventory!$F$5:$NS$67,MATCH(A31,Inventory!$A$5:$A$67,0),MATCH($C31&J$1,Inventory!$F$4:$NS$4&Inventory!$F$3:$NS$3,0)),""),"") -> 0.8270676809 | L31: 0 | M31: -122.4592685 | N31: 8514.630735 | O31: 2535.036775 | P31: 0.03894158686 | Q31: =IF(P31="","",ECMs!O10) -> 0.03220732794 | R31: =ECMs!D10*INDEX(ECMs!AM10:BG10,1,MATCH($J$1,ECMs!$AM$3:$BG$3,0))*INDEX(ECMs!R10:AL10,MATCH($J$1,ECMs!$R$3:$AL$3,0)) -> 0.1903124368
... 35 more rows

Sheet ColdStorage
B1: Resource Assessment Worksheet -- Industrial | H1: =J1 -> ColdStorage | J1: ColdStorage
B2: Year: | C2: ='Program Summary'!C2 -> 2041 | E2: Territory: | F2: ='Program Summary'!E2 -> Region | G2: MWh: | H2: =HLOOKUP(ReportYear,Forecast,MATCH($H$1,Forecast!$A$4:$A$25,0)) -> 863231.0953
B3: Date of Run: | C3: ='Program Summary'!C3 -> 2020-05-02T16:52:03.780 | F3: Penetration Assumption | H3: ='Program Summary'!G3 -> Technical
B4: Process Shares
A5: 1 | B5: Pumps | C5: =VLOOKUP($J$1,EndUse,MATCH($B5,EndUses,0),FALSE) -> 0
A6: 2 | B6: Fans and Blowers | C6: 0
A7: 3 | B7: Compressed Air | C7: 0.05
A8: 4 | B8: Material Handling | C8: 0.05
A9: 5 | B9: Material Processing | C9: 0.05
A10: 6 | B10: Low Temp Refer | C10: 0.35
A11: 7 | B11: Med Temp Refer | C11: 0.35
A12: 8 | B12: Pollution Control | C12: 0
A13: 9 | B13: Other Motors | C13: 0
A14: 10 | B14: Drying and Curing | C14: 0
A15: 11 | B15: Heat Treating | C15: 0
A16: 12 | B16: Heating | C16: 0
A17: 13 | B17: Melting and Casting | C17: 0
A18: 14 | B18: HVAC | C18: 0.03
A19: 15 | B19: Lighting | C19: 0.07
A20: 16 | B20: Other | C20: 0.05
A21: 17 | B21: All Electric | C21: =SUM(C5:C20) -> 1
A22: 18 | B22: All Motors | C22: =SUM(C5:C14,0.8*C18) -> 0.874
B24: Conservation Measure | C24: End Use | D24: % Savings | E24: Lifetime | F24: First Cost (2016$/kWh) | G24: Annual O&M Cost (2016$/kWh) | H24: Annual Non-Energy Benefit (2016$/kWh) | I24: Measure Applicability | J24: Achievability | K24: Inventory Factor | L24: Annual Non-Energy Benefit ($1000) | M24: Annual O&M Cost (1000$) | N24: Potential Savings (MWh/yr) | O24: Initial Cost (1000$) | P24: Levelized Cost (2016$/kWh) Installation-Order-Specific | Q24: Levelized Cost (2016$/kWh) Installation-Order-Indpendent | R24: % Savings * Applicability * Achievability
A25: 1 | B25: =IF($R25>0,ECMs!B4,"") ->  | C25: =IF($R25>0,ECMs!C4,"") ->  | D25: =IF($R25>0,ECMs!D4,"") ->  | E25: =IF($R25>0,ECMs!E4,"") ->  | F25: =IF($R25>0,ECMs!L4,"") ->  | G25: =IF($R25>0,ECMs!M4,"") ->  | H25: =IF($R25>0,ECMs!N4,"") ->  | I25: =IF($R25>0,INDEX(ECMs!AM4:BG4,1,MATCH($J$1,ECMs!$AM$3:$BG$3,0)),"") ->  | J25: =IF($R25>0,INDEX(ECMs!R4:AL4,MATCH($J$1,ECMs!$R$3:$AL$3,0)),"") ->  | K25: =IF($R25>0,IFERROR(INDEX(Inventory!$F$5:$NS$67,MATCH(A25,Inventory!$A$5:$A$67,0),MATCH($C25&J$1,Inventory!$F$4:$NS$4&Inventory!$F$3:$NS$3,0)),""),"") ->  | L25: =IFERROR(H25*N25/K25,"") ->  | M25: =IFERROR(G25*N25/K25,"") ->  | N25: =IFERROR(INDEX($B$5:$C$22,MATCH(C25,B$5:B$22,0),2)*D25*I25*J25*K25*$H$2,"") ->  | O25: =IFERROR(F25*N25/K25,"") ->  | P25: =IFERROR(PMT(Discount_rate,E25,-(O25+PV(Discount_rate,E25,L25-M25)))/N25,"") ->  | Q25: =IF(P25="","",ECMs!O4) ->  | R25: =ECMs!D4*INDEX(ECMs!AM4:BG4,1,MATCH($J$1,ECMs!$AM$3:$BG$3,0))*INDEX(ECMs!R4:AL4,MATCH($J$1,ECMs!$R$3:$AL$3,0)) -> 0
A26: 2 | B26: =IF($R26>0,ECMs!B5,"") -> Air Compressor Variable Speed | C26: =IF($R26>0,ECMs!C5,"") -> Compressed Air | D26: =IF($R26>0,ECMs!D5,"") -> 0.0826137993 | E26: =IF($R26>0,ECMs!E5,"") -> 13 | F26: =IF($R26>0,ECMs!L5,"") -> 0.6157000925 | G26: =IF($R26>0,ECMs!M5,"") -> 0 | H26: =IF($R26>0,ECMs!N5,"") -> 0 | I26: =IF($R26>0,INDEX(ECMs!AM5:BG5,1,MATCH($J$1,ECMs!$AM$3:$BG$3,0)),"") -> 1 | J26: =IF($R26>0,INDEX(ECMs!R5:AL5,MATCH($J$1,ECMs!$R$3:$AL$3,0)),"") -> 1 | K26: =IF($R26>0,IFERROR(INDEX(Inventory!$F$5:$NS$67,MATCH(A26,Inventory!$A$5:$A$67,0),MATCH($C26&J$1,Inventory!$F$4:$NS$4&Inventory!$F$3:$NS$3,0)),""),"") -> 0.9148076234 | L26: =IFERROR(H26*N26/K26,"") -> 0 | M26: =IFERROR(G26*N26/K26,"") -> 0 | N26: =IFERROR(INDEX($B$5:$C$22,MATCH(C26,B$5:B$22,0),2)*D26*I26*J26*K26*$H$2,"") -> 3261.966156 | O26: =IFERROR(F26*N26/K26,"") -> 2195.426462 | P26: 0.06635911894 | Q26: =IF(P26="","",ECMs!O5) -> 0.06070582788 | R26: =ECMs!D5*INDEX(ECMs!AM5:BG5,1,MATCH($J$1,ECMs!$AM$3:$BG$3,0))*INDEX(ECMs!R5:AL5,MATCH($J$1,ECMs!$R$3:$AL$3,0)) -> 0.0826137993
A27: 3 | B27: =IF($R27>0,ECMs!B6,"") -> Air Compressor Equipment | C27: =IF($R27>0,ECMs!C6,"") -> Compressed Air | D27: =IF($R27>0,ECMs!D6,"") -> 0.1337172591 | E27: =IF($R27>0,ECMs!E6,"") -> 13 | F27: =IF($R27>0,ECMs!L6,"") -> 0.6763242759 | G27: =IF($R27>0,ECMs!M6,"") -> 0 | H27: =IF($R27>0,ECMs!N6,"") -> 0 | I27: =IF($R27>0,INDEX(ECMs!AM6:BG6,1,MATCH($J$1,ECMs!$AM$3:$BG$3,0)),"") -> 1 | J27: =IF($R27>0,INDEX(ECMs!R6:AL6,MATCH($J$1,ECMs!$R$3:$AL$3,0)),"") -> 1 | K27: =IF($R27>0,IFERROR(INDEX(Inventory!$F$5:$NS$67,MATCH(A27,Inventory!$A$5:$A$67,0),MATCH($C27&J$1,Inventory!$F$4:$NS$4&Inventory!$F$3:$NS$3,0)),""),"") -> 0.83923189 | L27: 0 | M27: 0 | N27: 4843.58053 | O27: 3903.368227 | P27: 0.07945736622 | Q27: =IF(P27="","",ECMs!O6) -> 0.06668315562 | R27: =ECMs!D6*INDEX(ECMs!AM6:BG6,1,MATCH($J$1,ECMs!$AM$3:$BG$3,0))*INDEX(ECMs!R6:AL6,MATCH($J$1,ECMs!$R$3:$AL$3,0)) -> 0.1337172591
A28: 4 | B28: =IF($R28>0,ECMs!B7,"") -> Energy Management | C28: =IF($R28>0,ECMs!C7,"") -> All Electric | D28: =IF($R28>0,ECMs!D7,"") -> 0.03 | E28: =IF($R28>0,ECMs!E7,"") -> 3 | F28: =IF($R28>0,ECMs!L7,"") -> 0.07638306017 | G28: =IF($R28>0,ECMs!M7,"") -> 0 | H28: =IF($R28>0,ECMs!N7,"") -> 0 | I28: =IF($R28>0,INDEX(ECMs!AM7:BG7,1,MATCH($J$1,ECMs!$AM$3:$BG$3,0)),"") -> 0.9301623944 | J28: =IF($R28>0,INDEX(ECMs!R7:AL7,MATCH($J$1,ECMs!$R$3:$AL$3,0)),"") -> 1 | K28: =IF($R28>0,IFERROR(INDEX(Inventory!$F$5:$NS$67,MATCH(A28,Inventory!$A$5:$A$67,0),MATCH($C28&J$1,Inventory!$F$4:$NS$4&Inventory!$F$3:$NS$3,0)),""),"") -> 0.9781507462 | L28: 0 | M28: 0 | N28: 23562.04054 | O28: 1839.942122 | P28: 0.02800593304 | Q28: =IF(P28="","",ECMs!O7) -> 0.0273940243 | R28: =ECMs!D7*INDEX(ECMs!AM7:BG7,1,MATCH($J$1,ECMs!$AM$3:$BG$3,0))*INDEX(ECMs!R7:AL7,MATCH($J$1,ECMs!$R$3:$AL$3,0)) -> 0.02790487183
A29: 5 | B29: =IF($R29>0,ECMs!B8,"") -> HighBay Lighting 1 Shift | C29: =IF($R29>0,ECMs!C8,"") -> Lighting | D29: =IF($R29>0,ECMs!D8,"") -> 0.4515888331 | E29: =IF($R29>0,ECMs!E8,"") -> 19.54658495 | F29: =IF($R29>0,ECMs!L8,"") -> 0.7526012161 | G29: =IF($R29>0,ECMs!M8,"") -> -0.01189506702 | H29: =IF($R29>0,ECMs!N8,"") -> 0 | I29: =IF($R29>0,INDEX(ECMs!AM8:BG8,1,MATCH($J$1,ECMs!$AM$3:$BG$3,0)),"") -> 0.04214285714 | J29: =IF($R29>0,INDEX(ECMs!R8:AL8,MATCH($J$1,ECMs!$R$3:$AL$3,0)),"") -> 1 | K29: =IF($R29>0,IFERROR(INDEX(Inventory!$F$5:$NS$67,MATCH(A29,Inventory!$A$5:$A$67,0),MATCH($C29&J$1,Inventory!$F$4:$NS$4&Inventory!$F$3:$NS$3,0)),""),"") -> 0.6870203106 | L29: 0 | M29: -13.67915213 | N29: 790.0632532 | O29: 865.4803301 | P29: 0.0627559514 | Q29: =IF(P29="","",ECMs!O8) -> 0.04311461322 | R29: =ECMs!D8*INDEX(ECMs!AM8:BG8,1,MATCH($J$1,ECMs!$AM$3:$BG$3,0))*INDEX(ECMs!R8:AL8,MATCH($J$1,ECMs!$R$3:$AL$3,0)) -> 0.01903124368
A30: 6 | B30: =IF($R30>0,ECMs!B9,"") ->  | C30: =IF($R30>0,ECMs!C9,"") ->  | D30: =IF($R30>0,ECMs!D9,"") ->  | E30: =IF($R30>0,ECMs!E9,"") ->  | F30: =IF($R30>0,ECMs!L9,"") ->  | G30: =IF($R30>0,ECMs!M9,"") ->  | H30: =IF($R30>0,ECMs!N9,"") ->  | I30: =IF($R30>0,INDEX(ECMs!AM9:BG9,1,MATCH($J$1,ECMs!$AM$3:$BG$3,0)),"") ->  | J30: =IF($R30>0,INDEX(ECMs!R9:AL9,MATCH($J$1,ECMs!$R$3:$AL$3,0)),"") ->  | K30: =IF($R30>0,IFERROR(INDEX(Inventory!$F$5:$NS$67,MATCH(A30,Inventory!$A$5:$A$67,0),MATCH($C30&J$1,Inventory!$F$4:$NS$4&Inventory!$F$3:$NS$3,0)),""),"") ->  | Q30: =IF(P30="","",ECMs!O9) ->  | R30: =ECMs!D9*INDEX(ECMs!AM9:BG9,1,MATCH($J$1,ECMs!$AM$3:$BG$3,0))*INDEX(ECMs!R9:AL9,MATCH($J$1,ECMs!$R$3:$AL$3,0)) -> 0
A31: 7 | B31: =IF($R31>0,ECMs!B10,"") -> HighBay Lighting 3 Shift | C31: =IF($R31>0,ECMs!C10,"") -> Lighting | D31: =IF($R31>0,ECMs!D10,"") -> 0.4515888331 | E31: =IF($R31>0,ECMs!E10,"") -> 6.381647596 | F31: =IF($R31>0,ECMs!L10,"") -> 0.2462405067 | G31: =IF($R31>0,ECMs!M10,"") -> -0.01189506702 | H31: =IF($R31>0,ECMs!N10,"") -> 0 | I31: =IF($R31>0,INDEX(ECMs!AM10:BG10,1,MATCH($J$1,ECMs!$AM$3:$BG$3,0)),"") -> 0.3792857143 | J31: =IF($R31>0,INDEX(ECMs!R10:AL10,MATCH($J$1,ECMs!$R$3:$AL$3,0)),"") -> 1 | K31: =IF($R31>0,IFERROR(INDEX(Inventory!$F$5:$NS$67,MATCH(A31,Inventory!$A$5:$A$67,0),MATCH($C31&J$1,Inventory!$F$4:$NS$4&Inventory!$F$3:$NS$3,0)),""),"") -> 0.8290149866 | L31: 0 | M31: -123.1123692 | N31: 8580.195381 | O31: 2548.556652 | P31: 0.03885011544 | Q31: =IF(P31="","",ECMs!O10) -> 0.03220732794 | R31: =ECMs!D10*INDEX(ECMs!AM10:BG10,1,MATCH($J$1,ECMs!$AM$3:$BG$3,0))*INDEX(ECMs!R10:AL10,MATCH($J$1,ECMs!$R$3:$AL$3,0)) -> 0.1712811931
... 35 more rows

Sheet FruitStorage
B1: Resource Assessment Worksheet -- Industrial | H1: =J1 -> FruitStorage | J1: FruitStorage
B2: Year: | C2: ='Program Summary'!C2 -> 2041 | E2: Territory: | F2: ='Program Summary'!E2 -> Region | G2: MWh: | H2: =HLOOKUP(ReportYear,Forecast,MATCH($H$1,Forecast!$A$4:$A$25,0)) -> 1535863.492
B3: Date of Run: | C3: ='Program Summary'!C3 -> 2020-05-02T16:52:03.780 | F3: Penetration Assumption | H3: ='Program Summary'!G3 -> Technical
B4: Process Shares
A5: 1 | B5: Pumps | C5: =VLOOKUP($J$1,EndUse,MATCH($B5,EndUses,0),FALSE) -> 0.003876505607
A6: 2 | B6: Fans and Blowers | C6: 0.0002492039319
A7: 3 | B7: Compressed Air | C7: 0.04574276616
A8: 4 | B8: Material Handling | C8: 0.04721030043
A9: 5 | B9: Material Processing | C9: 0.0542710785
A10: 6 | B10: Low Temp Refer | C10: 0
A11: 7 | B11: Med Temp Refer | C11: 0.5714246158
A12: 8 | B12: Pollution Control | C12: 0
A13: 9 | B13: Other Motors | C13: 0
A14: 10 | B14: Drying and Curing | C14: 0.0001038349716
A15: 11 | B15: Heat Treating | C15: 0.0001038349716
A16: 12 | B16: Heating | C16: 0.0001038349716
A17: 13 | B17: Melting and Casting | C17: 0.0001038349716
A18: 14 | B18: HVAC | C18: 0.005011767963
A19: 15 | B19: Lighting | C19: 0.1790391804
A20: 16 | B20: Other | C20: 0.09275924131
A21: 17 | B21: All Electric | C21: =SUM(C5:C20) -> 1
A22: 18 | B22: All Motors | C22: =SUM(C5:C14,0.8*C18) -> 0.7268877198
B24: Conservation Measure | C24: End Use | D24: % Savings | E24: Lifetime | F24: First Cost (2016$/kWh) | G24: Annual O&M Cost (2016$/kWh) | H24: Annual Non-Energy Benefit (2016$/kWh) | I24: Measure Applicability | J24: Achievability | K24: Inventory Factor | L24: Annual Non-Energy Benefit ($1000) | M24: Annual O&M Cost (1000$) | N24: Potential Savings (MWh/yr) | O24: Initial Cost (1000$) | P24: Levelized Cost (2016$/kWh) Installation-Order-Specific | Q24: Levelized Cost (2016$/kWh) Installation-Order-Indpendent | R24: % Savings * Applicability * Achievability
A25: 1 | B25: =IF($R25>0,ECMs!B4,"") ->  | C25: =IF($R25>0,ECMs!C4,"") ->  | D25: =IF($R25>0,ECMs!D4,"") ->  | E25: =IF($R25>0,ECMs!E4,"") ->  | F25: =IF($R25>0,ECMs!L4,"") ->  | G25: =IF($R25>0,ECMs!M4,"") ->  | H25: =IF($R25>0,ECMs!N4,"") ->  | I25: =IF($R25>0,INDEX(ECMs!AM4:BG4,1,MATCH($J$1,ECMs!$AM$3:$BG$3,0)),"") ->  | J25: =IF($R25>0,INDEX(ECMs!R4:AL4,MATCH($J$1,ECMs!$R$3:$AL$3,0)),"") ->  | K25: =IF($R25>0,IFERROR(INDEX(Inventory!$F$5:$NS$67,MATCH(A25,Inventory!$A$5:$A$67,0),MATCH($C25&J$1,Inventory!$F$4:$NS$4&Inventory!$F$3:$NS$3,0)),""),"") ->  | L25: =IFERROR(H25*N25/K25,"") ->  | M25: =IFERROR(G25*N25/K25,"") ->  | N25: =IFERROR(INDEX($B$5:$C$22,MATCH(C25,B$5:B$22,0),2)*D25*I25*J25*K25*$H$2,"") ->  | O25: =IFERROR(F25*N25/K25,"") ->  | P25: =IFERROR(PMT(Discount_rate,E25,-(O25+PV(Discount_rate,E25,L25-M25)))/N25,"") ->  | Q25: =IF(P25="","",ECMs!O4) ->  | R25: =ECMs!D4*INDEX(ECMs!AM4:BG4,1,MATCH($J$1,ECMs!$AM$3:$BG$3,0))*INDEX(ECMs!R4:AL4,MATCH($J$1,ECMs!$R$3:$AL$3,0)) -> 0
A26: 2 | B26: =IF($R26>0,ECMs!B5,"") -> Air Compressor Variable Speed | C26: =IF($R26>0,ECMs!C5,"") -> Compressed Air | D26: =IF($R26>0,ECMs!D5,"") -> 0.0826137993 | E26: =IF($R26>0,ECMs!E5,"") -> 13 | F26: =IF($R26>0,ECMs!L5,"") -> 0.6157000925 | G26: =IF($R26>0,ECMs!M5,"") -> 0 | H26: =IF($R26>0,ECMs!N5,"") -> 0 | I26: =IF($R26>0,INDEX(ECMs!AM5:BG5,1,MATCH($J$1,ECMs!$AM$3:$BG$3,0)),"") -> 1 | J26: =IF($R26>0,INDEX(ECMs!R5:AL5,MATCH($J$1,ECMs!$R$3:$AL$3,0)),"") -> 1 | K26: =IF($R26>0,IFERROR(INDEX(Inventory!$F$5:$NS$67,MATCH(A26,Inventory!$A$5:$A$67,0),MATCH($C26&J$1,Inventory!$F$4:$NS$4&Inventory!$F$3:$NS$3,0)),""),"") -> 0.9148076234 | L26: =IFERROR(H26*N26/K26,"") -> 0 | M26: =IFERROR(G26*N26/K26,"") -> 0 | N26: =IFERROR(INDEX($B$5:$C$22,MATCH(C26,B$5:B$22,0),2)*D26*I26*J26*K26*$H$2,"") -> 5309.546289 | O26: =IFERROR(F26*N26/K26,"") -> 3573.52525 | P26: 0.06635911894 | Q26: =IF(P26="","",ECMs!O5) -> 0.06070582788 | R26: =ECMs!D5*INDEX(ECMs!AM5:BG5,1,MATCH($J$1,ECMs!$AM$3:$BG$3,0))*INDEX(ECMs!R5:AL5,MATCH($J$1,ECMs!$R$3:$AL$3,0)) -> 0.0826137993
A27: 3 | B27: =IF($R27>0,ECMs!B6,"") -> Air Compressor Equipment | C27: =IF($R27>0,ECMs!C6,"") -> Compressed Air | D27: =IF($R27>0,ECMs!D6,"") -> 0.1337172591 | E27: =IF($R27>0,ECMs!E6,"") -> 13 | F27: =IF($R27>0,ECMs!L6,"") -> 0.6763242759 | G27: =IF($R27>0,ECMs!M6,"") -> 0 | H27: =IF($R27>0,ECMs!N6,"") -> 0 | I27: =IF($R27>0,INDEX(ECMs!AM6:BG6,1,MATCH($J$1,ECMs!$AM$3:$BG$3,0)),"") -> 1 | J27: =IF($R27>0,INDEX(ECMs!R6:AL6,MATCH($J$1,ECMs!$R$3:$AL$3,0)),"") -> 1 | K27: =IF($R27>0,IFERROR(INDEX(Inventory!$F$5:$NS$67,MATCH(A27,Inventory!$A$5:$A$67,0),MATCH($C27&J$1,Inventory!$F$4:$NS$4&Inventory!$F$3:$NS$3,0)),""),"") -> 0.83923189 | L27: 0 | M27: 0 | N27: 7883.961328 | O27: 6353.565087 | P27: 0.07945736622 | Q27: =IF(P27="","",ECMs!O6) -> 0.06668315562 | R27: =ECMs!D6*INDEX(ECMs!AM6:BG6,1,MATCH($J$1,ECMs!$AM$3:$BG$3,0))*INDEX(ECMs!R6:AL6,MATCH($J$1,ECMs!$R$3:$AL$3,0)) -> 0.1337172591
A28: 4 | B28: =IF($R28>0,ECMs!B7,"") -> Energy Management | C28: =IF($R28>0,ECMs!C7,"") -> All Electric | D28: =IF($R28>0,ECMs!D7,"") -> 0.03 | E28: =IF($R28>0,ECMs!E7,"") -> 3 | F28: =IF($R28>0,ECMs!L7,"") -> 0.07638306017 | G28: =IF($R28>0,ECMs!M7,"") -> 0 | H28: =IF($R28>0,ECMs!N7,"") -> 0 | I28: =IF($R28>0,INDEX(ECMs!AM7:BG7,1,MATCH($J$1,ECMs!$AM$3:$BG$3,0)),"") -> 0.9301623944 | J28: =IF($R28>0,INDEX(ECMs!R7:AL7,MATCH($J$1,ECMs!$R$3:$AL$3,0)),"") -> 1 | K28: =IF($R28>0,IFERROR(INDEX(Inventory!$F$5:$NS$67,MATCH(A28,Inventory!$A$5:$A$67,0),MATCH($C28&J$1,Inventory!$F$4:$NS$4&Inventory!$F$3:$NS$3,0)),""),"") -> 0.9647936498 | L28: 0 | M28: 0 | N28: 41349.19754 | O28: 3273.630837 | P28: 0.02839366149 | Q28: =IF(P28="","",ECMs!O7) -> 0.0273940243 | R28: =ECMs!D7*INDEX(ECMs!AM7:BG7,1,MATCH($J$1,ECMs!$AM$3:$BG$3,0))*INDEX(ECMs!R7:AL7,MATCH($J$1,ECMs!$R$3:$AL$3,0)) -> 0.02790487183
A29: 5 | B29: =IF($R29>0,ECMs!B8,"") -> HighBay Lighting 1 Shift | C29: =IF($R29>0,ECMs!C8,"") -> Lighting | D29: =IF($R29>0,ECMs!D8,"") -> 0.4515888331 | E29: =IF($R29>0,ECMs!E8,"") -> 19.54658495 | F29: =IF($R29>0,ECMs!L8,"") -> 0.7526012161 | G29: =IF($R29>0,ECMs!M8,"") -> -0.01189506702 | H29: =IF($R29>0,ECMs!N8,"") -> 0 | I29: =IF($R29>0,INDEX(ECMs!AM8:BG8,1,MATCH($J$1,ECMs!$AM$3:$BG$3,0)),"") -> 0.04214285714 | J29: =IF($R29>0,INDEX(ECMs!R8:AL8,MATCH($J$1,ECMs!$R$3:$AL$3,0)),"") -> 1 | K29: =IF($R29>0,IFERROR(INDEX(Inventory!$F$5:$NS$67,MATCH(A29,Inventory!$A$5:$A$67,0),MATCH($C29&J$1,Inventory!$F$4:$NS$4&Inventory!$F$3:$NS$3,0)),""),"") -> 0.6870203106 | L29: 0 | M29: -62.2493415 | N29: 3595.319124 | O29: 3938.517543 | P29: 0.0627559514 | Q29: =IF(P29="","",ECMs!O8) -> 0.04311461322 | R29: =ECMs!D8*INDEX(ECMs!AM8:BG8,1,MATCH($J$1,ECMs!$AM$3:$BG$3,0))*INDEX(ECMs!R8:AL8,MATCH($J$1,ECMs!$R$3:$AL$3,0)) -> 0.01903124368
A30: 6 | B30: =IF($R30>0,ECMs!B9,"") ->  | C30: =IF($R30>0,ECMs!C9,"") ->  | D30: =IF($R30>0,ECMs!D9,"") ->  | E30: =IF($R30>0,ECMs!E9,"") ->  | F30: =IF($R30>0,ECMs!L9,"") ->  | G30: =IF($R30>0,ECMs!M9,"") ->  | H30: =IF($R30>0,ECMs!N9,"") ->  | I30: =IF($R30>0,INDEX(ECMs!AM9:BG9,1,MATCH($J$1,ECMs!$AM$3:$BG$3,0)),"") ->  | J30: =IF($R30>0,INDEX(ECMs!R9:AL9,MATCH($J$1,ECMs!$R$3:$AL$3,0)),"") ->  | K30: =IF($R30>0,IFERROR(INDEX(Inventory!$F$5:$NS$67,MATCH(A30,Inventory!$A$5:$A$67,0),MATCH($C30&J$1,Inventory!$F$4:$NS$4&Inventory!$F$3:$NS$3,0)),""),"") ->  | Q30: =IF(P30="","",ECMs!O9) ->  | R30: =ECMs!D9*INDEX(ECMs!AM9:BG9,1,MATCH($J$1,ECMs!$AM$3:$BG$3,0))*INDEX(ECMs!R9:AL9,MATCH($J$1,ECMs!$R$3:$AL$3,0)) -> 0
A31: 7 | B31: =IF($R31>0,ECMs!B10,"") -> HighBay Lighting 3 Shift | C31: =IF($R31>0,ECMs!C10,"") -> Lighting | D31: =IF($R31>0,ECMs!D10,"") -> 0.4515888331 | E31: =IF($R31>0,ECMs!E10,"") -> 6.381647596 | F31: =IF($R31>0,ECMs!L10,"") -> 0.2462405067 | G31: =IF($R31>0,ECMs!M10,"") -> -0.01189506702 | H31: =IF($R31>0,ECMs!N10,"") -> 0 | I31: =IF($R31>0,INDEX(ECMs!AM10:BG10,1,MATCH($J$1,ECMs!$AM$3:$BG$3,0)),"") -> 0.3792857143 | J31: =IF($R31>0,INDEX(ECMs!R10:AL10,MATCH($J$1,ECMs!$R$3:$AL$3,0)),"") -> 1 | K31: =IF($R31>0,IFERROR(INDEX(Inventory!$F$5:$NS$67,MATCH(A31,Inventory!$A$5:$A$67,0),MATCH($C31&J$1,Inventory!$F$4:$NS$4&Inventory!$F$3:$NS$3,0)),""),"") -> 0.8290149866 | L31: 0 | M31: -560.2440735 | N31: 39045.65922 | O31: 11597.64668 | P31: 0.03885011544 | Q31: =IF(P31="","",ECMs!O10) -> 0.03220732794 | R31: =ECMs!D10*INDEX(ECMs!AM10:BG10,1,MATCH($J$1,ECMs!$AM$3:$BG$3,0))*INDEX(ECMs!R10:AL10,MATCH($J$1,ECMs!$R$3:$AL$3,0)) -> 0.1712811931
... 35 more rows

Sheet Refinery
B1: Resource Assessment Worksheet -- Industrial | H1: =J1 -> Refinery | J1: Refinery
B2: Year: | C2: ='Program Summary'!C2 -> 2041 | E2: Territory: | F2: ='Program Summary'!E2 -> Region | G2: MWh: | H2: =HLOOKUP(ReportYear,Forecast,MATCH($H$1,Forecast!$A$4:$A$25,0)) -> 1056280
B3: Date of Run: | C3: ='Program Summary'!C3 -> 2020-05-02T16:52:03.780 | F3: Penetration Assumption | H3: ='Program Summary'!G3 -> Technical
B4: Process Shares
A5: 1 | B5: Pumps | C5: =VLOOKUP($J$1,EndUse,MATCH($B5,EndUses,0),FALSE) -> 0.43
A6: 2 | B6: Fans and Blowers | C6: 0.08
A7: 3 | B7: Compressed Air | C7: 0.13
A8: 4 | B8: Material Handling | C8: 0.02
A9: 5 | B9: Material Processing | C9: 0.1
A10: 6 | B10: Low Temp Refer | C10: 0.02
A11: 7 | B11: Med Temp Refer | C11: 0.02
A12: 8 | B12: Pollution Control | C12: 0.03
A13: 9 | B13: Other Motors | C13: 0.02
A14: 10 | B14: Drying and Curing | C14: 0
A15: 11 | B15: Heat Treating | C15: 0
A16: 12 | B16: Heating | C16: 0.06
A17: 13 | B17: Melting and Casting | C17: 0
A18: 14 | B18: HVAC | C18: 0.04
A19: 15 | B19: Lighting | C19: 0.03
A20: 16 | B20: Other | C20: 0.02
A21: 17 | B21: All Electric | C21: =SUM(C5:C20) -> 1
A22: 18 | B22: All Motors | C22: =SUM(C5:C14,0.8*C18) -> 0.882
B24: Conservation Measure | C24: End Use | D24: % Savings | E24: Lifetime | F24: First Cost (2016$/kWh) | G24: Annual O&M Cost (2016$/kWh) | H24: Annual Non-Energy Benefit (2016$/kWh) | I24: Measure Applicability | J24: Achievability | K24: Inventory Factor | L24: Annual Non-Energy Benefit ($1000) | M24: Annual O&M Cost (1000$) | N24: Potential Savings (MWh/yr) | O24: Initial Cost (1000$) | P24: Levelized Cost (2016$/kWh) Installation-Order-Specific | Q24: Levelized Cost (2016$/kWh) Installation-Order-Indpendent | R24: % Savings * Applicability * Achievability
A25: 1 | B25: =IF($R25>0,ECMs!B4,"") -> Air Compressor Demand Reduction | C25: =IF($R25>0,ECMs!C4,"") -> Compressed Air | D25: =IF($R25>0,ECMs!D4,"") -> 0.1 | E25: =IF($R25>0,ECMs!E4,"") -> 10 | F25: =IF($R25>0,ECMs!L4,"") -> 0.09468255125 | G25: =IF($R25>0,ECMs!M4,"") -> 0.02940451902 | H25: =IF($R25>0,ECMs!N4,"") -> 0 | I25: =IF($R25>0,INDEX(ECMs!AM4:BG4,1,MATCH($J$1,ECMs!$AM$3:$BG$3,0)),"") -> 0.8 | J25: =IF($R25>0,INDEX(ECMs!R4:AL4,MATCH($J$1,ECMs!$R$3:$AL$3,0)),"") -> 0.9656649088 | K25: =IF($R25>0,IFERROR(INDEX(Inventory!$F$5:$NS$67,MATCH(A25,Inventory!$A$5:$A$67,0),MATCH($C25&J$1,Inventory!$F$4:$NS$4&Inventory!$F$3:$NS$3,0)),""),"") -> 0.9275781942 | L25: =IFERROR(H25*N25/K25,"") -> 0 | M25: =IFERROR(G25*N25/K25,"") -> 311.9269695 | N25: =IFERROR(INDEX($B$5:$C$22,MATCH(C25,B$5:B$22,0),2)*D25*I25*J25*K25*$H$2,"") -> 9839.870357 | O25: =IFERROR(F25*N25/K25,"") -> 1004.404842 | P25: =IFERROR(PMT(Discount_rate,E25,-(O25+PV(Discount_rate,E25,L25-M25)))/N25,"") -> 0.04412910288 | Q25: =IF(P25="","",ECMs!O4) -> 0.04093319356 | R25: =ECMs!D4*INDEX(ECMs!AM4:BG4,1,MATCH($J$1,ECMs!$AM$3:$BG$3,0))*INDEX(ECMs!R4:AL4,MATCH($J$1,ECMs!$R$3:$AL$3,0)) -> 0.0772531927
A26: 2 | B26: =IF($R26>0,ECMs!B5,"") -> Air Compressor Variable Speed | C26: =IF($R26>0,ECMs!C5,"") -> Compressed Air | D26: =IF($R26>0,ECMs!D5,"") -> 0.0826137993 | E26: =IF($R26>0,ECMs!E5,"") -> 13 | F26: =IF($R26>0,ECMs!L5,"") -> 0.6157000925 | G26: =IF($R26>0,ECMs!M5,"") -> 0 | H26: =IF($R26>0,ECMs!N5,"") -> 0 | I26: =IF($R26>0,INDEX(ECMs!AM5:BG5,1,MATCH($J$1,ECMs!$AM$3:$BG$3,0)),"") -> 1 | J26: =IF($R26>0,INDEX(ECMs!R5:AL5,MATCH($J$1,ECMs!$R$3:$AL$3,0)),"") -> 1 | K26: =IF($R26>0,IFERROR(INDEX(Inventory!$F$5:$NS$67,MATCH(A26,Inventory!$A$5:$A$67,0),MATCH($C26&J$1,Inventory!$F$4:$NS$4&Inventory!$F$3:$NS$3,0)),""),"") -> 0.8441358138 | L26: =IFERROR(H26*N26/K26,"") -> 0 | M26: =IFERROR(G26*N26/K26,"") -> 0 | N26: =IFERROR(INDEX($B$5:$C$22,MATCH(C26,B$5:B$22,0),2)*D26*I26*J26*K26*$H$2,"") -> 9576.070409 | O26: =IFERROR(F26*N26/K26,"") -> 6984.643159 | P26: 0.07191476406 | Q26: =IF(P26="","",ECMs!O5) -> 0.06070582788 | R26: =ECMs!D5*INDEX(ECMs!AM5:BG5,1,MATCH($J$1,ECMs!$AM$3:$BG$3,0))*INDEX(ECMs!R5:AL5,MATCH($J$1,ECMs!$R$3:$AL$3,0)) -> 0.0826137993
A27: 3 | B27: =IF($R27>0,ECMs!B6,"") -> Air Compressor Equipment | C27: =IF($R27>0,ECMs!C6,"") -> Compressed Air | D27: =IF($R27>0,ECMs!D6,"") -> 0.1337172591 | E27: =IF($R27>0,ECMs!E6,"") -> 13 | F27: =IF($R27>0,ECMs!L6,"") -> 0.6763242759 | G27: =IF($R27>0,ECMs!M6,"") -> 0 | H27: =IF($R27>0,ECMs!N6,"") -> 0 | I27: =IF($R27>0,INDEX(ECMs!AM6:BG6,1,MATCH($J$1,ECMs!$AM$3:$BG$3,0)),"") -> 1 | J27: =IF($R27>0,INDEX(ECMs!R6:AL6,MATCH($J$1,ECMs!$R$3:$AL$3,0)),"") -> 1 | K27: =IF($R27>0,IFERROR(INDEX(Inventory!$F$5:$NS$67,MATCH(A27,Inventory!$A$5:$A$67,0),MATCH($C27&J$1,Inventory!$F$4:$NS$4&Inventory!$F$3:$NS$3,0)),""),"") -> 0.7743985471 | L27: 0 | M27: 0 | N27: 14219.17518 | O27: 12418.37732 | P27: 0.08610960839 | Q27: =IF(P27="","",ECMs!O6) -> 0.06668315562 | R27: =ECMs!D6*INDEX(ECMs!AM6:BG6,1,MATCH($J$1,ECMs!$AM$3:$BG$3,0))*INDEX(ECMs!R6:AL6,MATCH($J$1,ECMs!$R$3:$AL$3,0)) -> 0.1337172591
A28: 4 | B28: =IF($R28>0,ECMs!B7,"") -> Energy Management | C28: =IF($R28>0,ECMs!C7,"") -> All Electric | D28: =IF($R28>0,ECMs!D7,"") -> 0.03 | E28: =IF($R28>0,ECMs!E7,"") -> 3 | F28: =IF($R28>0,ECMs!L7,"") -> 0.07638306017 | G28: =IF($R28>0,ECMs!M7,"") -> 0 | H28: =IF($R28>0,ECMs!N7,"") -> 0 | I28: =IF($R28>0,INDEX(ECMs!AM7:BG7,1,MATCH($J$1,ECMs!$AM$3:$BG$3,0)),"") -> 0.9301623944 | J28: =IF($R28>0,INDEX(ECMs!R7:AL7,MATCH($J$1,ECMs!$R$3:$AL$3,0)),"") -> 1 | K28: =IF($R28>0,IFERROR(INDEX(Inventory!$F$5:$NS$67,MATCH(A28,Inventory!$A$5:$A$67,0),MATCH($C28&J$1,Inventory!$F$4:$NS$4&Inventory!$F$3:$NS$3,0)),""),"") -> 0.8875096779 | L28: 0 | M28: 0 | N28: 26159.6655 | O28: 2251.418045 | P28: 0.03086616967 | Q28: =IF(P28="","",ECMs!O7) -> 0.0273940243 | R28: =ECMs!D7*INDEX(ECMs!AM7:BG7,1,MATCH($J$1,ECMs!$AM$3:$BG$3,0))*INDEX(ECMs!R7:AL7,MATCH($J$1,ECMs!$R$3:$AL$3,0)) -> 0.02790487183
A29: 5 | B29: =IF($R29>0,ECMs!B8,"") ->  | C29: =IF($R29>0,ECMs!C8,"") ->  | D29: =IF($R29>0,ECMs!D8,"") ->  | E29: =IF($R29>0,ECMs!E8,"") ->  | F29: =IF($R29>0,ECMs!L8,"") ->  | G29: =IF($R29>0,ECMs!M8,"") ->  | H29: =IF($R29>0,ECMs!N8,"") ->  | I29: =IF($R29>0,INDEX(ECMs!AM8:BG8,1,MATCH($J$1,ECMs!$AM$3:$BG$3,0)),"") ->  | J29: =IF($R29>0,INDEX(ECMs!R8:AL8,MATCH($J$1,ECMs!$R$3:$AL$3,0)),"") ->  | K29: =IF($R29>0,IFERROR(INDEX(Inventory!$F$5:$NS$67,MATCH(A29,Inventory!$A$5:$A$67,0),MATCH($C29&J$1,Inventory!$F$4:$NS$4&Inventory!$F$3:$NS$3,0)),""),"") ->  | Q29: =IF(P29="","",ECMs!O8) ->  | R29: =ECMs!D8*INDEX(ECMs!AM8:BG8,1,MATCH($J$1,ECMs!$AM$3:$BG$3,0))*INDEX(ECMs!R8:AL8,MATCH($J$1,ECMs!$R$3:$AL$3,0)) -> 0
A30: 6 | B30: =IF($R30>0,ECMs!B9,"") ->  | C30: =IF($R30>0,ECMs!C9,"") ->  | D30: =IF($R30>0,ECMs!D9,"") ->  | E30: =IF($R30>0,ECMs!E9,"") ->  | F30: =IF($R30>0,ECMs!L9,"") ->  | G30: =IF($R30>0,ECMs!M9,"") ->  | H30: =IF($R30>0,ECMs!N9,"") ->  | I30: =IF($R30>0,INDEX(ECMs!AM9:BG9,1,MATCH($J$1,ECMs!$AM$3:$BG$3,0)),"") ->  | J30: =IF($R30>0,INDEX(ECMs!R9:AL9,MATCH($J$1,ECMs!$R$3:$AL$3,0)),"") ->  | K30: =IF($R30>0,IFERROR(INDEX(Inventory!$F$5:$NS$67,MATCH(A30,Inventory!$A$5:$A$67,0),MATCH($C30&J$1,Inventory!$F$4:$NS$4&Inventory!$F$3:$NS$3,0)),""),"") ->  | Q30: =IF(P30="","",ECMs!O9) ->  | R30: =ECMs!D9*INDEX(ECMs!AM9:BG9,1,MATCH($J$1,ECMs!$AM$3:$BG$3,0))*INDEX(ECMs!R9:AL9,MATCH($J$1,ECMs!$R$3:$AL$3,0)) -> 0
A31: 7 | B31: =IF($R31>0,ECMs!B10,"") -> HighBay Lighting 3 Shift | C31: =IF($R31>0,ECMs!C10,"") -> Lighting | D31: =IF($R31>0,ECMs!D10,"") -> 0.4515888331 | E31: =IF($R31>0,ECMs!E10,"") -> 6.381647596 | F31: =IF($R31>0,ECMs!L10,"") -> 0.2462405067 | G31: =IF($R31>0,ECMs!M10,"") -> -0.01189506702 | H31: =IF($R31>0,ECMs!N10,"") -> 0 | I31: =IF($R31>0,INDEX(ECMs!AM10:BG10,1,MATCH($J$1,ECMs!$AM$3:$BG$3,0)),"") -> 0.4214285714 | J31: =IF($R31>0,INDEX(ECMs!R10:AL10,MATCH($J$1,ECMs!$R$3:$AL$3,0)),"") -> 1 | K31: =IF($R31>0,IFERROR(INDEX(Inventory!$F$5:$NS$67,MATCH(A31,Inventory!$A$5:$A$67,0),MATCH($C31&J$1,Inventory!$F$4:$NS$4&Inventory!$F$3:$NS$3,0)),""),"") -> 0.8270676809 | L31: 0 | M31: -71.73554049 | N31: 4987.79427 | O31: 1485.001792 | P31: 0.03894158686 | Q31: =IF(P31="","",ECMs!O10) -> 0.03220732794 | R31: =ECMs!D10*INDEX(ECMs!AM10:BG10,1,MATCH($J$1,ECMs!$AM$3:$BG$3,0))*INDEX(ECMs!R10:AL10,MATCH($J$1,ECMs!$R$3:$AL$3,0)) -> 0.1903124368
... 35 more rows

Sheet Chemical
B1: Resource Assessment Worksheet -- Industrial | H1: =J1 -> Chemical | J1: Chemical
B2: Year: | C2: ='Program Summary'!C2 -> 2041 | E2: Territory: | F2: ='Program Summary'!E2 -> Region | G2: MWh: | H2: =HLOOKUP(ReportYear,Forecast,MATCH($H$1,Forecast!$A$4:$A$25,0)) -> 5331472
B3: Date of Run: | C3: ='Program Summary'!C3 -> 2020-05-02T16:52:03.780 | F3: Penetration Assumption | H3: ='Program Summary'!G3 -> Technical
B4: Process Shares
A5: 1 | B5: Pumps | C5: =VLOOKUP($J$1,EndUse,MATCH($B5,EndUses,0),FALSE) -> 0.167625247
A6: 2 | B6: Fans and Blowers | C6: 0.07659696716
A7: 3 | B7: Compressed Air | C7: 0.1776161557
A8: 4 | B8: Material Handling | C8: 0.008880807787
A9: 5 | B9: Material Processing | C9: 0.1520838334
A10: 6 | B10: Low Temp Refer | C10: 0.03837262531
A11: 7 | B11: Med Temp Refer | C11: 0.03837262531
A12: 8 | B12: Pollution Control | C12: 0.01
A13: 9 | B13: Other Motors | C13: 0.01110100973
A14: 10 | B14: Drying and Curing | C14: 0
A15: 11 | B15: Heat Treating | C15: 0
A16: 12 | B16: Heating | C16: 0.04130617227
A17: 13 | B17: Melting and Casting | C17: 0
A18: 14 | B18: HVAC | C18: 0.06190585183
A19: 15 | B19: Lighting | C19: 0.03926909285
A20: 16 | B20: Other | C20: 0.1768696117
A21: 17 | B21: All Electric | C21: =SUM(C5:C20) -> 1
A22: 18 | B22: All Motors | C22: =SUM(C5:C14,0.8*C18) -> 0.7301739528
B24: Conservation Measure | C24: End Use | D24: % Savings | E24: Lifetime | F24: First Cost (2016$/kWh) | G24: Annual O&M Cost (2016$/kWh) | H24: Annual Non-Energy Benefit (2016$/kWh) | I24: Measure Applicability | J24: Achievability | K24: Inventory Factor | L24: Annual Non-Energy Benefit ($1000) | M24: Annual O&M Cost (1000$) | N24: Potential Savings (MWh/yr) | O24: Initial Cost (1000$) | P24: Levelized Cost (2016$/kWh) Installation-Order-Specific | Q24: Levelized Cost (2016$/kWh) Installation-Order-Indpendent | R24: % Savings * Applicability * Achievability
A25: 1 | B25: =IF($R25>0,ECMs!B4,"") -> Air Compressor Demand Reduction | C25: =IF($R25>0,ECMs!C4,"") -> Compressed Air | D25: =IF($R25>0,ECMs!D4,"") -> 0.1 | E25: =IF($R25>0,ECMs!E4,"") -> 10 | F25: =IF($R25>0,ECMs!L4,"") -> 0.09468255125 | G25: =IF($R25>0,ECMs!M4,"") -> 0.02940451902 | H25: =IF($R25>0,ECMs!N4,"") -> 0 | I25: =IF($R25>0,INDEX(ECMs!AM4:BG4,1,MATCH($J$1,ECMs!$AM$3:$BG$3,0)),"") -> 0.09743929481 | J25: =IF($R25>0,INDEX(ECMs!R4:AL4,MATCH($J$1,ECMs!$R$3:$AL$3,0)),"") -> 0.9656649088 | K25: =IF($R25>0,IFERROR(INDEX(Inventory!$F$5:$NS$67,MATCH(A25,Inventory!$A$5:$A$67,0),MATCH($C25&J$1,Inventory!$F$4:$NS$4&Inventory!$F$3:$NS$3,0)),""),"") -> 0.9275781942 | L25: =IFERROR(H25*N25/K25,"") -> 0 | M25: =IFERROR(G25*N25/K25,"") -> 262.0017915 | N25: =IFERROR(INDEX($B$5:$C$22,MATCH(C25,B$5:B$22,0),2)*D25*I25*J25*K25*$H$2,"") -> 8264.959152 | O25: =IFERROR(F25*N25/K25,"") -> 843.6457685 | P25: =IFERROR(PMT(Discount_rate,E25,-(O25+PV(Discount_rate,E25,L25-M25)))/N25,"") -> 0.04412910288 | Q25: =IF(P25="","",ECMs!O4) -> 0.04093319356 | R25: =ECMs!D4*INDEX(ECMs!AM4:BG4,1,MATCH($J$1,ECMs!$AM$3:$BG$3,0))*INDEX(ECMs!R4:AL4,MATCH($J$1,ECMs!$R$3:$AL$3,0)) -> 0.009409370774
A26: 2 | B26: =IF($R26>0,ECMs!B5,"") -> Air Compressor Variable Speed | C26: =IF($R26>0,ECMs!C5,"") -> Compressed Air | D26: =IF($R26>0,ECMs!D5,"") -> 0.0826137993 | E26: =IF($R26>0,ECMs!E5,"") -> 13 | F26: =IF($R26>0,ECMs!L5,"") -> 0.6157000925 | G26: =IF($R26>0,ECMs!M5,"") -> 0 | H26: =IF($R26>0,ECMs!N5,"") -> 0 | I26: =IF($R26>0,INDEX(ECMs!AM5:BG5,1,MATCH($J$1,ECMs!$AM$3:$BG$3,0)),"") -> 1 | J26: =IF($R26>0,INDEX(ECMs!R5:AL5,MATCH($J$1,ECMs!$R$3:$AL$3,0)),"") -> 1 | K26: =IF($R26>0,IFERROR(INDEX(Inventory!$F$5:$NS$67,MATCH(A26,Inventory!$A$5:$A$67,0),MATCH($C26&J$1,Inventory!$F$4:$NS$4&Inventory!$F$3:$NS$3,0)),""),"") -> 0.9061998593 | L26: =IFERROR(H26*N26/K26,"") -> 0 | M26: =IFERROR(G26*N26/K26,"") -> 0 | N26: =IFERROR(INDEX($B$5:$C$22,MATCH(C26,B$5:B$22,0),2)*D26*I26*J26*K26*$H$2,"") -> 70893.46189 | O26: =IFERROR(F26*N26/K26,"") -> 48167.20131 | P26: 0.06698944749 | Q26: =IF(P26="","",ECMs!O5) -> 0.06070582788 | R26: =ECMs!D5*INDEX(ECMs!AM5:BG5,1,MATCH($J$1,ECMs!$AM$3:$BG$3,0))*INDEX(ECMs!R5:AL5,MATCH($J$1,ECMs!$R$3:$AL$3,0)) -> 0.0826137993
A27: 3 | B27: =IF($R27>0,ECMs!B6,"") -> Air Compressor Equipment | C27: =IF($R27>0,ECMs!C6,"") -> Compressed Air | D27: =IF($R27>0,ECMs!D6,"") -> 0.1337172591 | E27: =IF($R27>0,ECMs!E6,"") -> 13 | F27: =IF($R27>0,ECMs!L6,"") -> 0.6763242759 | G27: =IF($R27>0,ECMs!M6,"") -> 0 | H27: =IF($R27>0,ECMs!N6,"") -> 0 | I27: =IF($R27>0,INDEX(ECMs!AM6:BG6,1,MATCH($J$1,ECMs!$AM$3:$BG$3,0)),"") -> 1 | J27: =IF($R27>0,INDEX(ECMs!R6:AL6,MATCH($J$1,ECMs!$R$3:$AL$3,0)),"") -> 1 | K27: =IF($R27>0,IFERROR(INDEX(Inventory!$F$5:$NS$67,MATCH(A27,Inventory!$A$5:$A$67,0),MATCH($C27&J$1,Inventory!$F$4:$NS$4&Inventory!$F$3:$NS$3,0)),""),"") -> 0.831335246 | L27: 0 | M27: 0 | N27: 105267.2454 | O27: 85639.08945 | P27: 0.08021211172 | Q27: =IF(P27="","",ECMs!O6) -> 0.06668315562 | R27: =ECMs!D6*INDEX(ECMs!AM6:BG6,1,MATCH($J$1,ECMs!$AM$3:$BG$3,0))*INDEX(ECMs!R6:AL6,MATCH($J$1,ECMs!$R$3:$AL$3,0)) -> 0.1337172591
A28: 4 | B28: =IF($R28>0,ECMs!B7,"") -> Energy Management | C28: =IF($R28>0,ECMs!C7,"") -> All Electric | D28: =IF($R28>0,ECMs!D7,"") -> 0.03 | E28: =IF($R28>0,ECMs!E7,"") -> 3 | F28: =IF($R28>0,ECMs!L7,"") -> 0.07638306017 | G28: =IF($R28>0,ECMs!M7,"") -> 0 | H28: =IF($R28>0,ECMs!N7,"") -> 0 | I28: =IF($R28>0,INDEX(ECMs!AM7:BG7,1,MATCH($J$1,ECMs!$AM$3:$BG$3,0)),"") -> 0.9301623944 | J28: =IF($R28>0,INDEX(ECMs!R7:AL7,MATCH($J$1,ECMs!$R$3:$AL$3,0)),"") -> 1 | K28: =IF($R28>0,IFERROR(INDEX(Inventory!$F$5:$NS$67,MATCH(A28,Inventory!$A$5:$A$67,0),MATCH($C28&J$1,Inventory!$F$4:$NS$4&Inventory!$F$3:$NS$3,0)),""),"") -> 0.925603543 | L28: 0 | M28: 0 | N28: 137705.7811 | O28: 11363.81666 | P28: 0.02959585074 | Q28: =IF(P28="","",ECMs!O7) -> 0.0273940243 | R28: =ECMs!D7*INDEX(ECMs!AM7:BG7,1,MATCH($J$1,ECMs!$AM$3:$BG$3,0))*INDEX(ECMs!R7:AL7,MATCH($J$1,ECMs!$R$3:$AL$3,0)) -> 0.02790487183
A29: 5 | B29: =IF($R29>0,ECMs!B8,"") -> HighBay Lighting 1 Shift | C29: =IF($R29>0,ECMs!C8,"") -> Lighting | D29: =IF($R29>0,ECMs!D8,"") -> 0.4515888331 | E29: =IF($R29>0,ECMs!E8,"") -> 19.54658495 | F29: =IF($R29>0,ECMs!L8,"") -> 0.7526012161 | G29: =IF($R29>0,ECMs!M8,"") -> -0.01189506702 | H29: =IF($R29>0,ECMs!N8,"") -> 0 | I29: =IF($R29>0,INDEX(ECMs!AM8:BG8,1,MATCH($J$1,ECMs!$AM$3:$BG$3,0)),"") -> 0.04214285714 | J29: =IF($R29>0,INDEX(ECMs!R8:AL8,MATCH($J$1,ECMs!$R$3:$AL$3,0)),"") -> 1 | K29: =IF($R29>0,IFERROR(INDEX(Inventory!$F$5:$NS$67,MATCH(A29,Inventory!$A$5:$A$67,0),MATCH($C29&J$1,Inventory!$F$4:$NS$4&Inventory!$F$3:$NS$3,0)),""),"") -> 0.6956293788 | L29: 0 | M29: -47.3949495 | N29: 2771.679994 | O29: 2998.679754 | P29: 0.06197928744 | Q29: =IF(P29="","",ECMs!O8) -> 0.04311461322 | R29: =ECMs!D8*INDEX(ECMs!AM8:BG8,1,MATCH($J$1,ECMs!$AM$3:$BG$3,0))*INDEX(ECMs!R8:AL8,MATCH($J$1,ECMs!$R$3:$AL$3,0)) -> 0.01903124368
A30: 6 | B30: =IF($R30>0,ECMs!B9,"") -> HighBay Lighting 2 Shift | C30: =IF($R30>0,ECMs!C9,"") -> Lighting | D30: =IF($R30>0,ECMs!D9,"") -> 0.4515888331 | E30: =IF($R30>0,ECMs!E9,"") -> 11.43683162 | F30: =IF($R30>0,ECMs!L9,"") -> 0.4405669869 | G30: =IF($R30>0,ECMs!M9,"") -> -0.01189506702 | H30: =IF($R30>0,ECMs!N9,"") -> 0 | I30: =IF($R30>0,INDEX(ECMs!AM9:BG9,1,MATCH($J$1,ECMs!$AM$3:$BG$3,0)),"") -> 0.1264285714 | J30: =IF($R30>0,INDEX(ECMs!R9:AL9,MATCH($J$1,ECMs!$R$3:$AL$3,0)),"") -> 1 | K30: =IF($R30>0,IFERROR(INDEX(Inventory!$F$5:$NS$67,MATCH(A30,Inventory!$A$5:$A$67,0),MATCH($C30&J$1,Inventory!$F$4:$NS$4&Inventory!$F$3:$NS$3,0)),""),"") -> 0.7377502958 | L30: 0 | M30: -142.1848485 | N30: 8818.522324 | O30: 5266.212473 | P30: 0.04904525132 | Q30: =IF(P30="","",ECMs!O9) -> 0.03618314866 | R30: =ECMs!D9*INDEX(ECMs!AM9:BG9,1,MATCH($J$1,ECMs!$AM$3:$BG$3,0))*INDEX(ECMs!R9:AL9,MATCH($J$1,ECMs!$R$3:$AL$3,0)) -> 0.05709373105
A31: 7 | B31: =IF($R31>0,ECMs!B10,"") -> HighBay Lighting 3 Shift | C31: =IF($R31>0,ECMs!C10,"") -> Lighting | D31: =IF($R31>0,ECMs!D10,"") -> 0.4515888331 | E31: =IF($R31>0,ECMs!E10,"") -> 6.381647596 | F31: =IF($R31>0,ECMs!L10,"") -> 0.2462405067 | G31: =IF($R31>0,ECMs!M10,"") -> -0.01189506702 | H31: =IF($R31>0,ECMs!N10,"") -> 0 | I31: =IF($R31>0,INDEX(ECMs!AM10:BG10,1,MATCH($J$1,ECMs!$AM$3:$BG$3,0)),"") -> 0.2528571429 | J31: =IF($R31>0,INDEX(ECMs!R10:AL10,MATCH($J$1,ECMs!$R$3:$AL$3,0)),"") -> 1 | K31: =IF($R31>0,IFERROR(INDEX(Inventory!$F$5:$NS$67,MATCH(A31,Inventory!$A$5:$A$67,0),MATCH($C31&J$1,Inventory!$F$4:$NS$4&Inventory!$F$3:$NS$3,0)),""),"") -> 0.8328514942 | L31: 0 | M31: -284.369697 | N31: 19910.58367 | O31: 5886.754416 | P31: 0.03867115345 | Q31: =IF(P31="","",ECMs!O10) -> 0.03220732794 | R31: =ECMs!D10*INDEX(ECMs!AM10:BG10,1,MATCH($J$1,ECMs!$AM$3:$BG$3,0))*INDEX(ECMs!R10:AL10,MATCH($J$1,ECMs!$R$3:$AL$3,0)) -> 0.1141874621
... 35 more rows

Sheet MiscManf
B1: Resource Assessment Worksheet -- Industrial | H1: =J1 -> MiscManf | J1: MiscManf
B2: Year: | C2: ='Program Summary'!C2 -> 2041 | E2: Territory: | F2: ='Program Summary'!E2 -> Region | G2: MWh: | H2: =HLOOKUP(ReportYear,Forecast,MATCH($H$1,Forecast!$A$4:$A$25,0)) -> 760117.12
B3: Date of Run: | C3: ='Program Summary'!C3 -> 2020-05-02T16:52:03.780 | F3: Penetration Assumption | H3: ='Program Summary'!G3 -> Technical
B4: Process Shares
A5: 1 | B5: Pumps | C5: =VLOOKUP($J$1,EndUse,MATCH($B5,EndUses,0),FALSE) -> 0.1
A6: 2 | B6: Fans and Blowers | C6: 0.07
A7: 3 | B7: Compressed Air | C7: 0.07
A8: 4 | B8: Material Handling | C8: 0.06
A9: 5 | B9: Material Processing | C9: 0.14
A10: 6 | B10: Low Temp Refer | C10: 0.03
A11: 7 | B11: Med Temp Refer | C11: 0.03
A12: 8 | B12: Pollution Control | C12: 0.01
A13: 9 | B13: Other Motors | C13: 0.02
A14: 10 | B14: Drying and Curing | C14: 0.07
A15: 11 | B15: Heat Treating | C15: 0
A16: 12 | B16: Heating | C16: 0.04
A17: 13 | B17: Melting and Casting | C17: 0
A18: 14 | B18: HVAC | C18: 0.17
A19: 15 | B19: Lighting | C19: 0.11
A20: 16 | B20: Other | C20: 0.08
A21: 17 | B21: All Electric | C21: =SUM(C5:C20) -> 1
A22: 18 | B22: All Motors | C22: =SUM(C5:C14,0.8*C18) -> 0.736
B24: Conservation Measure | C24: End Use | D24: % Savings | E24: Lifetime | F24: First Cost (2016$/kWh) | G24: Annual O&M Cost (2016$/kWh) | H24: Annual Non-Energy Benefit (2016$/kWh) | I24: Measure Applicability | J24: Achievability | K24: Inventory Factor | L24: Annual Non-Energy Benefit ($1000) | M24: Annual O&M Cost (1000$) | N24: Potential Savings (MWh/yr) | O24: Initial Cost (1000$) | P24: Levelized Cost (2016$/kWh) Installation-Order-Specific | Q24: Levelized Cost (2016$/kWh) Installation-Order-Indpendent | R24: % Savings * Applicability * Achievability
A25: 1 | B25: =IF($R25>0,ECMs!B4,"") -> Air Compressor Demand Reduction | C25: =IF($R25>0,ECMs!C4,"") -> Compressed Air | D25: =IF($R25>0,ECMs!D4,"") -> 0.1 | E25: =IF($R25>0,ECMs!E4,"") -> 10 | F25: =IF($R25>0,ECMs!L4,"") -> 0.09468255125 | G25: =IF($R25>0,ECMs!M4,"") -> 0.02940451902 | H25: =IF($R25>0,ECMs!N4,"") -> 0 | I25: =IF($R25>0,INDEX(ECMs!AM4:BG4,1,MATCH($J$1,ECMs!$AM$3:$BG$3,0)),"") -> 0.09743929481 | J25: =IF($R25>0,INDEX(ECMs!R4:AL4,MATCH($J$1,ECMs!$R$3:$AL$3,0)),"") -> 0.9656649088 | K25: =IF($R25>0,IFERROR(INDEX(Inventory!$F$5:$NS$67,MATCH(A25,Inventory!$A$5:$A$67,0),MATCH($C25&J$1,Inventory!$F$4:$NS$4&Inventory!$F$3:$NS$3,0)),""),"") -> 0.9275781942 | L25: =IFERROR(H25*N25/K25,"") -> 0 | M25: =IFERROR(G25*N25/K25,"") -> 14.72153908 | N25: =IFERROR(INDEX($B$5:$C$22,MATCH(C25,B$5:B$22,0),2)*D25*I25*J25*K25*$H$2,"") -> 464.3972794 | O25: =IFERROR(F25*N25/K25,"") -> 47.40335584 | P25: =IFERROR(PMT(Discount_rate,E25,-(O25+PV(Discount_rate,E25,L25-M25)))/N25,"") -> 0.04412910288 | Q25: =IF(P25="","",ECMs!O4) -> 0.04093319356 | R25: =ECMs!D4*INDEX(ECMs!AM4:BG4,1,MATCH($J$1,ECMs!$AM$3:$BG$3,0))*INDEX(ECMs!R4:AL4,MATCH($J$1,ECMs!$R$3:$AL$3,0)) -> 0.009409370774
A26: 2 | B26: =IF($R26>0,ECMs!B5,"") -> Air Compressor Variable Speed | C26: =IF($R26>0,ECMs!C5,"") -> Compressed Air | D26: =IF($R26>0,ECMs!D5,"") -> 0.0826137993 | E26: =IF($R26>0,ECMs!E5,"") -> 13 | F26: =IF($R26>0,ECMs!L5,"") -> 0.6157000925 | G26: =IF($R26>0,ECMs!M5,"") -> 0 | H26: =IF($R26>0,ECMs!N5,"") -> 0 | I26: =IF($R26>0,INDEX(ECMs!AM5:BG5,1,MATCH($J$1,ECMs!$AM$3:$BG$3,0)),"") -> 1 | J26: =IF($R26>0,INDEX(ECMs!R5:AL5,MATCH($J$1,ECMs!$R$3:$AL$3,0)),"") -> 1 | K26: =IF($R26>0,IFERROR(INDEX(Inventory!$F$5:$NS$67,MATCH(A26,Inventory!$A$5:$A$67,0),MATCH($C26&J$1,Inventory!$F$4:$NS$4&Inventory!$F$3:$NS$3,0)),""),"") -> 0.9061998593 | L26: =IFERROR(H26*N26/K26,"") -> 0 | M26: =IFERROR(G26*N26/K26,"") -> 0 | N26: =IFERROR(INDEX($B$5:$C$22,MATCH(C26,B$5:B$22,0),2)*D26*I26*J26*K26*$H$2,"") -> 3983.411198 | O26: =IFERROR(F26*N26/K26,"") -> 2706.452244 | P26: 0.06698944749 | Q26: =IF(P26="","",ECMs!O5) -> 0.06070582788 | R26: =ECMs!D5*INDEX(ECMs!AM5:BG5,1,MATCH($J$1,ECMs!$AM$3:$BG$3,0))*INDEX(ECMs!R5:AL5,MATCH($J$1,ECMs!$R$3:$AL$3,0)) -> 0.0826137993
A27: 3 | B27: =IF($R27>0,ECMs!B6,"") -> Air Compressor Equipment | C27: =IF($R27>0,ECMs!C6,"") -> Compressed Air | D27: =IF($R27>0,ECMs!D6,"") -> 0.1337172591 | E27: =IF($R27>0,ECMs!E6,"") -> 13 | F27: =IF($R27>0,ECMs!L6,"") -> 0.6763242759 | G27: =IF($R27>0,ECMs!M6,"") -> 0 | H27: =IF($R27>0,ECMs!N6,"") -> 0 | I27: =IF($R27>0,INDEX(ECMs!AM6:BG6,1,MATCH($J$1,ECMs!$AM$3:$BG$3,0)),"") -> 1 | J27: =IF($R27>0,INDEX(ECMs!R6:AL6,MATCH($J$1,ECMs!$R$3:$AL$3,0)),"") -> 1 | K27: =IF($R27>0,IFERROR(INDEX(Inventory!$F$5:$NS$67,MATCH(A27,Inventory!$A$5:$A$67,0),MATCH($C27&J$1,Inventory!$F$4:$NS$4&Inventory!$F$3:$NS$3,0)),""),"") -> 0.831335246 | L27: 0 | M27: 0 | N27: 5914.829277 | O27: 4811.948786 | P27: 0.08021211172 | Q27: =IF(P27="","",ECMs!O6) -> 0.06668315562 | R27: =ECMs!D6*INDEX(ECMs!AM6:BG6,1,MATCH($J$1,ECMs!$AM$3:$BG$3,0))*INDEX(ECMs!R6:AL6,MATCH($J$1,ECMs!$R$3:$AL$3,0)) -> 0.1337172591
A28: 4 | B28: =IF($R28>0,ECMs!B7,"") -> Energy Management | C28: =IF($R28>0,ECMs!C7,"") -> All Electric | D28: =IF($R28>0,ECMs!D7,"") -> 0.03 | E28: =IF($R28>0,ECMs!E7,"") -> 3 | F28: =IF($R28>0,ECMs!L7,"") -> 0.07638306017 | G28: =IF($R28>0,ECMs!M7,"") -> 0 | H28: =IF($R28>0,ECMs!N7,"") -> 0 | I28: =IF($R28>0,INDEX(ECMs!AM7:BG7,1,MATCH($J$1,ECMs!$AM$3:$BG$3,0)),"") -> 0.9301623944 | J28: =IF($R28>0,INDEX(ECMs!R7:AL7,MATCH($J$1,ECMs!$R$3:$AL$3,0)),"") -> 1 | K28: =IF($R28>0,IFERROR(INDEX(Inventory!$F$5:$NS$67,MATCH(A28,Inventory!$A$5:$A$67,0),MATCH($C28&J$1,Inventory!$F$4:$NS$4&Inventory!$F$3:$NS$3,0)),""),"") -> 0.9091727891 | L28: 0 | M28: 0 | N28: 19284.43749 | O28: 1620.15886 | P28: 0.03013071292 | Q28: =IF(P28="","",ECMs!O7) -> 0.0273940243 | R28: =ECMs!D7*INDEX(ECMs!AM7:BG7,1,MATCH($J$1,ECMs!$AM$3:$BG$3,0))*INDEX(ECMs!R7:AL7,MATCH($J$1,ECMs!$R$3:$AL$3,0)) -> 0.02790487183
A29: 5 | B29: =IF($R29>0,ECMs!B8,"") -> HighBay Lighting 1 Shift | C29: =IF($R29>0,ECMs!C8,"") -> Lighting | D29: =IF($R29>0,ECMs!D8,"") -> 0.4515888331 | E29: =IF($R29>0,ECMs!E8,"") -> 19.54658495 | F29: =IF($R29>0,ECMs!L8,"") -> 0.7526012161 | G29: =IF($R29>0,ECMs!M8,"") -> -0.01189506702 | H29: =IF($R29>0,ECMs!N8,"") -> 0 | I29: =IF($R29>0,INDEX(ECMs!AM8:BG8,1,MATCH($J$1,ECMs!$AM$3:$BG$3,0)),"") -> 0.1264285714 | J29: =IF($R29>0,INDEX(ECMs!R8:AL8,MATCH($J$1,ECMs!$R$3:$AL$3,0)),"") -> 1 | K29: =IF($R29>0,IFERROR(INDEX(Inventory!$F$5:$NS$67,MATCH(A29,Inventory!$A$5:$A$67,0),MATCH($C29&J$1,Inventory!$F$4:$NS$4&Inventory!$F$3:$NS$3,0)),""),"") -> 0.7256361774 | L29: 0 | M29: -56.78433151 | N29: 3464.021278 | O29: 3592.74621 | P29: 0.05941629505 | Q29: =IF(P29="","",ECMs!O8) -> 0.04311461322 | R29: =ECMs!D8*INDEX(ECMs!AM8:BG8,1,MATCH($J$1,ECMs!$AM$3:$BG$3,0))*INDEX(ECMs!R8:AL8,MATCH($J$1,ECMs!$R$3:$AL$3,0)) -> 0.05709373105
A30: 6 | B30: =IF($R30>0,ECMs!B9,"") -> HighBay Lighting 2 Shift | C30: =IF($R30>0,ECMs!C9,"") -> Lighting | D30: =IF($R30>0,ECMs!D9,"") -> 0.4515888331 | E30: =IF($R30>0,ECMs!E9,"") -> 11.43683162 | F30: =IF($R30>0,ECMs!L9,"") -> 0.4405669869 | G30: =IF($R30>0,ECMs!M9,"") -> -0.01189506702 | H30: =IF($R30>0,ECMs!N9,"") -> 0 | I30: =IF($R30>0,INDEX(ECMs!AM9:BG9,1,MATCH($J$1,ECMs!$AM$3:$BG$3,0)),"") -> 0.2107142857 | J30: =IF($R30>0,INDEX(ECMs!R9:AL9,MATCH($J$1,ECMs!$R$3:$AL$3,0)),"") -> 1 | K30: =IF($R30>0,IFERROR(INDEX(Inventory!$F$5:$NS$67,MATCH(A30,Inventory!$A$5:$A$67,0),MATCH($C30&J$1,Inventory!$F$4:$NS$4&Inventory!$F$3:$NS$3,0)),""),"") -> 0.8019463605 | L30: 0 | M30: -94.64055251 | N30: 6380.514421 | O30: 3505.276851 | P30: 0.04511916314 | Q30: =IF(P30="","",ECMs!O9) -> 0.03618314866 | R30: =ECMs!D9*INDEX(ECMs!AM9:BG9,1,MATCH($J$1,ECMs!$AM$3:$BG$3,0))*INDEX(ECMs!R9:AL9,MATCH($J$1,ECMs!$R$3:$AL$3,0)) -> 0.09515621841
A31: 7 | B31: =IF($R31>0,ECMs!B10,"") -> HighBay Lighting 3 Shift | C31: =IF($R31>0,ECMs!C10,"") -> Lighting | D31: =IF($R31>0,ECMs!D10,"") -> 0.4515888331 | E31: =IF($R31>0,ECMs!E10,"") -> 6.381647596 | F31: =IF($R31>0,ECMs!L10,"") -> 0.2462405067 | G31: =IF($R31>0,ECMs!M10,"") -> -0.01189506702 | H31: =IF($R31>0,ECMs!N10,"") -> 0 | I31: =IF($R31>0,INDEX(ECMs!AM10:BG10,1,MATCH($J$1,ECMs!$AM$3:$BG$3,0)),"") -> 0.08428571429 | J31: =IF($R31>0,INDEX(ECMs!R10:AL10,MATCH($J$1,ECMs!$R$3:$AL$3,0)),"") -> 1 | K31: =IF($R31>0,IFERROR(INDEX(Inventory!$F$5:$NS$67,MATCH(A31,Inventory!$A$5:$A$67,0),MATCH($C31&J$1,Inventory!$F$4:$NS$4&Inventory!$F$3:$NS$3,0)),""),"") -> 0.8336782275 | L31: 0 | M31: -37.856221 | N31: 2653.192889 | O31: 783.6639364 | P31: 0.03863280445 | Q31: =IF(P31="","",ECMs!O10) -> 0.03220732794 | R31: =ECMs!D10*INDEX(ECMs!AM10:BG10,1,MATCH($J$1,ECMs!$AM$3:$BG$3,0))*INDEX(ECMs!R10:AL10,MATCH($J$1,ECMs!$R$3:$AL$3,0)) -> 0.03806248736
... 35 more rows

Sheet Transportation
B1: Resource Assessment Worksheet -- Industrial | H1: =J1 -> Transportation | J1: Transportation
B2: Year: | C2: ='Program Summary'!C2 -> 2041 | E2: Territory: | F2: ='Program Summary'!E2 -> Region | G2: MWh: | H2: =HLOOKUP(ReportYear,Forecast,MATCH($H$1,Forecast!$A$4:$A$25,0)) -> 3966859
B3: Date of Run: | C3: ='Program Summary'!C3 -> 2020-05-02T16:52:03.780 | F3: Penetration Assumption | H3: ='Program Summary'!G3 -> Technical
B4: Process Shares
A5: 1 | B5: Pumps | C5: =VLOOKUP($J$1,EndUse,MATCH($B5,EndUses,0),FALSE) -> 0.08
A6: 2 | B6: Fans and Blowers | C6: 0.06
A7: 3 | B7: Compressed Air | C7: 0.06
A8: 4 | B8: Material Handling | C8: 0.14
A9: 5 | B9: Material Processing | C9: 0.1
A10: 6 | B10: Low Temp Refer | C10: 0
A11: 7 | B11: Med Temp Refer | C11: 0
A12: 8 | B12: Pollution Control | C12: 0.01
A13: 9 | B13: Other Motors | C13: 0.01
A14: 10 | B14: Drying and Curing | C14: 0
A15: 11 | B15: Heat Treating | C15: 0
A16: 12 | B16: Heating | C16: 0
A17: 13 | B17: Melting and Casting | C17: 0
A18: 14 | B18: HVAC | C18: 0.28
A19: 15 | B19: Lighting | C19: 0.2
A20: 16 | B20: Other | C20: 0.06
A21: 17 | B21: All Electric | C21: =SUM(C5:C20) -> 1
A22: 18 | B22: All Motors | C22: =SUM(C5:C14,0.8*C18) -> 0.684
B24: Conservation Measure | C24: End Use | D24: % Savings | E24: Lifetime | F24: First Cost (2016$/kWh) | G24: Annual O&M Cost (2016$/kWh) | H24: Annual Non-Energy Benefit (2016$/kWh) | I24: Measure Applicability | J24: Achievability | K24: Inventory Factor | L24: Annual Non-Energy Benefit ($1000) | M24: Annual O&M Cost (1000$) | N24: Potential Savings (MWh/yr) | O24: Initial Cost (1000$) | P24: Levelized Cost (2016$/kWh) Installation-Order-Specific | Q24: Levelized Cost (2016$/kWh) Installation-Order-Indpendent | R24: % Savings * Applicability * Achievability
A25: 1 | B25: =IF($R25>0,ECMs!B4,"") -> Air Compressor Demand Reduction | C25: =IF($R25>0,ECMs!C4,"") -> Compressed Air | D25: =IF($R25>0,ECMs!D4,"") -> 0.1 | E25: =IF($R25>0,ECMs!E4,"") -> 10 | F25: =IF($R25>0,ECMs!L4,"") -> 0.09468255125 | G25: =IF($R25>0,ECMs!M4,"") -> 0.02940451902 | H25: =IF($R25>0,ECMs!N4,"") -> 0 | I25: =IF($R25>0,INDEX(ECMs!AM4:BG4,1,MATCH($J$1,ECMs!$AM$3:$BG$3,0)),"") -> 0.09743929481 | J25: =IF($R25>0,INDEX(ECMs!R4:AL4,MATCH($J$1,ECMs!$R$3:$AL$3,0)),"") -> 0.9656649088 | K25: =IF($R25>0,IFERROR(INDEX(Inventory!$F$5:$NS$67,MATCH(A25,Inventory!$A$5:$A$67,0),MATCH($C25&J$1,Inventory!$F$4:$NS$4&Inventory!$F$3:$NS$3,0)),""),"") -> 0.9275781942 | L25: =IFERROR(H25*N25/K25,"") -> 0 | M25: =IFERROR(G25*N25/K25,"") -> 65.85256207 | N25: =IFERROR(INDEX($B$5:$C$22,MATCH(C25,B$5:B$22,0),2)*D25*I25*J25*K25*$H$2,"") -> 2077.347382 | O25: =IFERROR(F25*N25/K25,"") -> 212.0452499 | P25: =IFERROR(PMT(Discount_rate,E25,-(O25+PV(Discount_rate,E25,L25-M25)))/N25,"") -> 0.04412910288 | Q25: =IF(P25="","",ECMs!O4) -> 0.04093319356 | R25: =ECMs!D4*INDEX(ECMs!AM4:BG4,1,MATCH($J$1,ECMs!$AM$3:$BG$3,0))*INDEX(ECMs!R4:AL4,MATCH($J$1,ECMs!$R$3:$AL$3,0)) -> 0.009409370774
A26: 2 | B26: =IF($R26>0,ECMs!B5,"") -> Air Compressor Variable Speed | C26: =IF($R26>0,ECMs!C5,"") -> Compressed Air | D26: =IF($R26>0,ECMs!D5,"") -> 0.0826137993 | E26: =IF($R26>0,ECMs!E5,"") -> 13 | F26: =IF($R26>0,ECMs!L5,"") -> 0.6157000925 | G26: =IF($R26>0,ECMs!M5,"") -> 0 | H26: =IF($R26>0,ECMs!N5,"") -> 0 | I26: =IF($R26>0,INDEX(ECMs!AM5:BG5,1,MATCH($J$1,ECMs!$AM$3:$BG$3,0)),"") -> 1 | J26: =IF($R26>0,INDEX(ECMs!R5:AL5,MATCH($J$1,ECMs!$R$3:$AL$3,0)),"") -> 1 | K26: =IF($R26>0,IFERROR(INDEX(Inventory!$F$5:$NS$67,MATCH(A26,Inventory!$A$5:$A$67,0),MATCH($C26&J$1,Inventory!$F$4:$NS$4&Inventory!$F$3:$NS$3,0)),""),"") -> 0.9061998593 | L26: =IFERROR(H26*N26/K26,"") -> 0 | M26: =IFERROR(G26*N26/K26,"") -> 0 | N26: =IFERROR(INDEX($B$5:$C$22,MATCH(C26,B$5:B$22,0),2)*D26*I26*J26*K26*$H$2,"") -> 17818.6419 | O26: =IFERROR(F26*N26/K26,"") -> 12106.53407 | P26: 0.06698944749 | Q26: =IF(P26="","",ECMs!O5) -> 0.06070582788 | R26: =ECMs!D5*INDEX(ECMs!AM5:BG5,1,MATCH($J$1,ECMs!$AM$3:$BG$3,0))*INDEX(ECMs!R5:AL5,MATCH($J$1,ECMs!$R$3:$AL$3,0)) -> 0.0826137993
A27: 3 | B27: =IF($R27>0,ECMs!B6,"") -> Air Compressor Equipment | C27: =IF($R27>0,ECMs!C6,"") -> Compressed Air | D27: =IF($R27>0,ECMs!D6,"") -> 0.1337172591 | E27: =IF($R27>0,ECMs!E6,"") -> 13 | F27: =IF($R27>0,ECMs!L6,"") -> 0.6763242759 | G27: =IF($R27>0,ECMs!M6,"") -> 0 | H27: =IF($R27>0,ECMs!N6,"") -> 0 | I27: =IF($R27>0,INDEX(ECMs!AM6:BG6,1,MATCH($J$1,ECMs!$AM$3:$BG$3,0)),"") -> 1 | J27: =IF($R27>0,INDEX(ECMs!R6:AL6,MATCH($J$1,ECMs!$R$3:$AL$3,0)),"") -> 1 | K27: =IF($R27>0,IFERROR(INDEX(Inventory!$F$5:$NS$67,MATCH(A27,Inventory!$A$5:$A$67,0),MATCH($C27&J$1,Inventory!$F$4:$NS$4&Inventory!$F$3:$NS$3,0)),""),"") -> 0.831335246 | L27: 0 | M27: 0 | N27: 26458.28401 | O27: 21524.866 | P27: 0.08021211172 | Q27: =IF(P27="","",ECMs!O6) -> 0.06668315562 | R27: =ECMs!D6*INDEX(ECMs!AM6:BG6,1,MATCH($J$1,ECMs!$AM$3:$BG$3,0))*INDEX(ECMs!R6:AL6,MATCH($J$1,ECMs!$R$3:$AL$3,0)) -> 0.1337172591
A28: 4 | B28: =IF($R28>0,ECMs!B7,"") -> Energy Management | C28: =IF($R28>0,ECMs!C7,"") -> All Electric | D28: =IF($R28>0,ECMs!D7,"") -> 0.03 | E28: =IF($R28>0,ECMs!E7,"") -> 3 | F28: =IF($R28>0,ECMs!L7,"") -> 0.07638306017 | G28: =IF($R28>0,ECMs!M7,"") -> 0 | H28: =IF($R28>0,ECMs!N7,"") -> 0 | I28: =IF($R28>0,INDEX(ECMs!AM7:BG7,1,MATCH($J$1,ECMs!$AM$3:$BG$3,0)),"") -> 0.9301623944 | J28: =IF($R28>0,INDEX(ECMs!R7:AL7,MATCH($J$1,ECMs!$R$3:$AL$3,0)),"") -> 1 | K28: =IF($R28>0,IFERROR(INDEX(Inventory!$F$5:$NS$67,MATCH(A28,Inventory!$A$5:$A$67,0),MATCH($C28&J$1,Inventory!$F$4:$NS$4&Inventory!$F$3:$NS$3,0)),""),"") -> 0.8936172939 | L28: 0 | M28: 0 | N28: 98918.69109 | O28: 8455.199317 | P28: 0.03065520832 | Q28: =IF(P28="","",ECMs!O7) -> 0.0273940243 | R28: =ECMs!D7*INDEX(ECMs!AM7:BG7,1,MATCH($J$1,ECMs!$AM$3:$BG$3,0))*INDEX(ECMs!R7:AL7,MATCH($J$1,ECMs!$R$3:$AL$3,0)) -> 0.02790487183
A29: 5 | B29: =IF($R29>0,ECMs!B8,"") -> HighBay Lighting 1 Shift | C29: =IF($R29>0,ECMs!C8,"") -> Lighting | D29: =IF($R29>0,ECMs!D8,"") -> 0.4515888331 | E29: =IF($R29>0,ECMs!E8,"") -> 19.54658495 | F29: =IF($R29>0,ECMs!L8,"") -> 0.7526012161 | G29: =IF($R29>0,ECMs!M8,"") -> -0.01189506702 | H29: =IF($R29>0,ECMs!N8,"") -> 0 | I29: =IF($R29>0,INDEX(ECMs!AM8:BG8,1,MATCH($J$1,ECMs!$AM$3:$BG$3,0)),"") -> 0.1966666667 | J29: =IF($R29>0,INDEX(ECMs!R8:AL8,MATCH($J$1,ECMs!$R$3:$AL$3,0)),"") -> 1 | K29: =IF($R29>0,IFERROR(INDEX(Inventory!$F$5:$NS$67,MATCH(A29,Inventory!$A$5:$A$67,0),MATCH($C29&J$1,Inventory!$F$4:$NS$4&Inventory!$F$3:$NS$3,0)),""),"") -> 0.7550715592 | L29: 0 | M29: -838.1419998 | N29: 53203.3309 | O29: 53029.26729 | P29: 0.05710003601 | Q29: =IF(P29="","",ECMs!O8) -> 0.04311461322 | R29: =ECMs!D8*INDEX(ECMs!AM8:BG8,1,MATCH($J$1,ECMs!$AM$3:$BG$3,0))*INDEX(ECMs!R8:AL8,MATCH($J$1,ECMs!$R$3:$AL$3,0)) -> 0.08881247052
A30: 6 | B30: =IF($R30>0,ECMs!B9,"") -> HighBay Lighting 2 Shift | C30: =IF($R30>0,ECMs!C9,"") -> Lighting | D30: =IF($R30>0,ECMs!D9,"") -> 0.4515888331 | E30: =IF($R30>0,ECMs!E9,"") -> 11.43683162 | F30: =IF($R30>0,ECMs!L9,"") -> 0.4405669869 | G30: =IF($R30>0,ECMs!M9,"") -> -0.01189506702 | H30: =IF($R30>0,ECMs!N9,"") -> 0 | I30: =IF($R30>0,INDEX(ECMs!AM9:BG9,1,MATCH($J$1,ECMs!$AM$3:$BG$3,0)),"") -> 0.1966666667 | J30: =IF($R30>0,INDEX(ECMs!R9:AL9,MATCH($J$1,ECMs!$R$3:$AL$3,0)),"") -> 1 | K30: =IF($R30>0,IFERROR(INDEX(Inventory!$F$5:$NS$67,MATCH(A30,Inventory!$A$5:$A$67,0),MATCH($C30&J$1,Inventory!$F$4:$NS$4&Inventory!$F$3:$NS$3,0)),""),"") -> 0.8286675736 | L30: 0 | M30: -838.1419998 | N30: 58389.00246 | O30: 31042.92686 | P30: 0.04366425068 | Q30: =IF(P30="","",ECMs!O9) -> 0.03618314866 | R30: =ECMs!D9*INDEX(ECMs!AM9:BG9,1,MATCH($J$1,ECMs!$AM$3:$BG$3,0))*INDEX(ECMs!R9:AL9,MATCH($J$1,ECMs!$R$3:$AL$3,0)) -> 0.08881247052
A31: 7 | B31: =IF($R31>0,ECMs!B10,"") -> HighBay Lighting 3 Shift | C31: =IF($R31>0,ECMs!C10,"") -> Lighting | D31: =IF($R31>0,ECMs!D10,"") -> 0.4515888331 | E31: =IF($R31>0,ECMs!E10,"") -> 6.381647596 | F31: =IF($R31>0,ECMs!L10,"") -> 0.2462405067 | G31: =IF($R31>0,ECMs!M10,"") -> -0.01189506702 | H31: =IF($R31>0,ECMs!N10,"") -> 0 | I31: =IF($R31>0,INDEX(ECMs!AM10:BG10,1,MATCH($J$1,ECMs!$AM$3:$BG$3,0)),"") -> 0.09833333333 | J31: =IF($R31>0,INDEX(ECMs!R10:AL10,MATCH($J$1,ECMs!$R$3:$AL$3,0)),"") -> 1 | K31: =IF($R31>0,IFERROR(INDEX(Inventory!$F$5:$NS$67,MATCH(A31,Inventory!$A$5:$A$67,0),MATCH($C31&J$1,Inventory!$F$4:$NS$4&Inventory!$F$3:$NS$3,0)),""),"") -> 0.8671755763 | L31: 0 | M31: -419.0709999 | N31: 30551.16338 | O31: 8675.214289 | P31: 0.03714049244 | Q31: =IF(P31="","",ECMs!O10) -> 0.03220732794 | R31: =ECMs!D10*INDEX(ECMs!AM10:BG10,1,MATCH($J$1,ECMs!$AM$3:$BG$3,0))*INDEX(ECMs!R10:AL10,MATCH($J$1,ECMs!$R$3:$AL$3,0)) -> 0.04440623526
... 35 more rows

Sheet Cement
B1: Resource Assessment Worksheet -- Industrial | H1: =J1 -> Cement | J1: Cement
B2: Year: | C2: ='Program Summary'!C2 -> 2041 | E2: Territory: | F2: ='Program Summary'!E2 -> Region | G2: MWh: | H2: =HLOOKUP(ReportYear,Forecast,MATCH($H$1,Forecast!$A$4:$A$25,0)) -> 1615248.88
B3: Date of Run: | C3: ='Program Summary'!C3 -> 2020-05-02T16:52:03.780 | F3: Penetration Assumption | H3: ='Program Summary'!G3 -> Technical
B4: Process Shares
A5: 1 | B5: Pumps | C5: =VLOOKUP($J$1,EndUse,MATCH($B5,EndUses,0),FALSE) -> 0
A6: 2 | B6: Fans and Blowers | C6: 0
A7: 3 | B7: Compressed Air | C7: 0.1
A8: 4 | B8: Material Handling | C8: 0.35
A9: 5 | B9: Material Processing | C9: 0.24
A10: 6 | B10: Low Temp Refer | C10: 0
A11: 7 | B11: Med Temp Refer | C11: 0
A12: 8 | B12: Pollution Control | C12: 0
A13: 9 | B13: Other Motors | C13: 0
A14: 10 | B14: Drying and Curing | C14: 0
A15: 11 | B15: Heat Treating | C15: 0
A16: 12 | B16: Heating | C16: 0.19
A17: 13 | B17: Melting and Casting | C17: 0
A18: 14 | B18: HVAC | C18: 0.04
A19: 15 | B19: Lighting | C19: 0.03
A20: 16 | B20: Other | C20: 0.05
A21: 17 | B21: All Electric | C21: =SUM(C5:C20) -> 1
A22: 18 | B22: All Motors | C22: =SUM(C5:C14,0.8*C18) -> 0.722
B24: Conservation Measure | C24: End Use | D24: % Savings | E24: Lifetime | F24: First Cost (2016$/kWh) | G24: Annual O&M Cost (2016$/kWh) | H24: Annual Non-Energy Benefit (2016$/kWh) | I24: Measure Applicability | J24: Achievability | K24: Inventory Factor | L24: Annual Non-Energy Benefit ($1000) | M24: Annual O&M Cost (1000$) | N24: Potential Savings (MWh/yr) | O24: Initial Cost (1000$) | P24: Levelized Cost (2016$/kWh) Installation-Order-Specific | Q24: Levelized Cost (2016$/kWh) Installation-Order-Indpendent | R24: % Savings * Applicability * Achievability
A25: 1 | B25: =IF($R25>0,ECMs!B4,"") -> Air Compressor Demand Reduction | C25: =IF($R25>0,ECMs!C4,"") -> Compressed Air | D25: =IF($R25>0,ECMs!D4,"") -> 0.1 | E25: =IF($R25>0,ECMs!E4,"") -> 10 | F25: =IF($R25>0,ECMs!L4,"") -> 0.09468255125 | G25: =IF($R25>0,ECMs!M4,"") -> 0.02940451902 | H25: =IF($R25>0,ECMs!N4,"") -> 0 | I25: =IF($R25>0,INDEX(ECMs!AM4:BG4,1,MATCH($J$1,ECMs!$AM$3:$BG$3,0)),"") -> 0.09743929481 | J25: =IF($R25>0,INDEX(ECMs!R4:AL4,MATCH($J$1,ECMs!$R$3:$AL$3,0)),"") -> 0.9656649088 | K25: =IF($R25>0,IFERROR(INDEX(Inventory!$F$5:$NS$67,MATCH(A25,Inventory!$A$5:$A$67,0),MATCH($C25&J$1,Inventory!$F$4:$NS$4&Inventory!$F$3:$NS$3,0)),""),"") -> 0.9275781942 | L25: =IFERROR(H25*N25/K25,"") -> 0 | M25: =IFERROR(G25*N25/K25,"") -> 44.6903865 | N25: =IFERROR(INDEX($B$5:$C$22,MATCH(C25,B$5:B$22,0),2)*D25*I25*J25*K25*$H$2,"") -> 1409.777455 | O25: =IFERROR(F25*N25/K25,"") -> 143.9030445 | P25: =IFERROR(PMT(Discount_rate,E25,-(O25+PV(Discount_rate,E25,L25-M25)))/N25,"") -> 0.04412910288 | Q25: =IF(P25="","",ECMs!O4) -> 0.04093319356 | R25: =ECMs!D4*INDEX(ECMs!AM4:BG4,1,MATCH($J$1,ECMs!$AM$3:$BG$3,0))*INDEX(ECMs!R4:AL4,MATCH($J$1,ECMs!$R$3:$AL$3,0)) -> 0.009409370774
A26: 2 | B26: =IF($R26>0,ECMs!B5,"") -> Air Compressor Variable Speed | C26: =IF($R26>0,ECMs!C5,"") -> Compressed Air | D26: =IF($R26>0,ECMs!D5,"") -> 0.0826137993 | E26: =IF($R26>0,ECMs!E5,"") -> 13 | F26: =IF($R26>0,ECMs!L5,"") -> 0.6157000925 | G26: =IF($R26>0,ECMs!M5,"") -> 0 | H26: =IF($R26>0,ECMs!N5,"") -> 0 | I26: =IF($R26>0,INDEX(ECMs!AM5:BG5,1,MATCH($J$1,ECMs!$AM$3:$BG$3,0)),"") -> 1 | J26: =IF($R26>0,INDEX(ECMs!R5:AL5,MATCH($J$1,ECMs!$R$3:$AL$3,0)),"") -> 1 | K26: =IF($R26>0,IFERROR(INDEX(Inventory!$F$5:$NS$67,MATCH(A26,Inventory!$A$5:$A$67,0),MATCH($C26&J$1,Inventory!$F$4:$NS$4&Inventory!$F$3:$NS$3,0)),""),"") -> 0.9061998593 | L26: =IFERROR(H26*N26/K26,"") -> 0 | M26: =IFERROR(G26*N26/K26,"") -> 0 | N26: =IFERROR(INDEX($B$5:$C$22,MATCH(C26,B$5:B$22,0),2)*D26*I26*J26*K26*$H$2,"") -> 12092.49828 | O26: =IFERROR(F26*N26/K26,"") -> 8216.015741 | P26: 0.06698944749 | Q26: =IF(P26="","",ECMs!O5) -> 0.06070582788 | R26: =ECMs!D5*INDEX(ECMs!AM5:BG5,1,MATCH($J$1,ECMs!$AM$3:$BG$3,0))*INDEX(ECMs!R5:AL5,MATCH($J$1,ECMs!$R$3:$AL$3,0)) -> 0.0826137993
A27: 3 | B27: =IF($R27>0,ECMs!B6,"") -> Air Compressor Equipment | C27: =IF($R27>0,ECMs!C6,"") -> Compressed Air | D27: =IF($R27>0,ECMs!D6,"") -> 0.1337172591 | E27: =IF($R27>0,ECMs!E6,"") -> 13 | F27: =IF($R27>0,ECMs!L6,"") -> 0.6763242759 | G27: =IF($R27>0,ECMs!M6,"") -> 0 | H27: =IF($R27>0,ECMs!N6,"") -> 0 | I27: =IF($R27>0,INDEX(ECMs!AM6:BG6,1,MATCH($J$1,ECMs!$AM$3:$BG$3,0)),"") -> 1 | J27: =IF($R27>0,INDEX(ECMs!R6:AL6,MATCH($J$1,ECMs!$R$3:$AL$3,0)),"") -> 1 | K27: =IF($R27>0,IFERROR(INDEX(Inventory!$F$5:$NS$67,MATCH(A27,Inventory!$A$5:$A$67,0),MATCH($C27&J$1,Inventory!$F$4:$NS$4&Inventory!$F$3:$NS$3,0)),""),"") -> 0.831335246 | L27: 0 | M27: 0 | N27: 17955.73173 | O27: 14607.70167 | P27: 0.08021211172 | Q27: =IF(P27="","",ECMs!O6) -> 0.06668315562 | R27: =ECMs!D6*INDEX(ECMs!AM6:BG6,1,MATCH($J$1,ECMs!$AM$3:$BG$3,0))*INDEX(ECMs!R6:AL6,MATCH($J$1,ECMs!$R$3:$AL$3,0)) -> 0.1337172591
A28: 4 | B28: =IF($R28>0,ECMs!B7,"") -> Energy Management | C28: =IF($R28>0,ECMs!C7,"") -> All Electric | D28: =IF($R28>0,ECMs!D7,"") -> 0.03 | E28: =IF($R28>0,ECMs!E7,"") -> 3 | F28: =IF($R28>0,ECMs!L7,"") -> 0.07638306017 | G28: =IF($R28>0,ECMs!M7,"") -> 0 | H28: =IF($R28>0,ECMs!N7,"") -> 0 | I28: =IF($R28>0,INDEX(ECMs!AM7:BG7,1,MATCH($J$1,ECMs!$AM$3:$BG$3,0)),"") -> 0.9301623944 | J28: =IF($R28>0,INDEX(ECMs!R7:AL7,MATCH($J$1,ECMs!$R$3:$AL$3,0)),"") -> 1 | K28: =IF($R28>0,IFERROR(INDEX(Inventory!$F$5:$NS$67,MATCH(A28,Inventory!$A$5:$A$67,0),MATCH($C28&J$1,Inventory!$F$4:$NS$4&Inventory!$F$3:$NS$3,0)),""),"") -> 0.9595992809 | L28: 0 | M28: 0 | N28: 43252.31872 | O28: 3442.837577 | P28: 0.0285473581 | Q28: =IF(P28="","",ECMs!O7) -> 0.0273940243 | R28: =ECMs!D7*INDEX(ECMs!AM7:BG7,1,MATCH($J$1,ECMs!$AM$3:$BG$3,0))*INDEX(ECMs!R7:AL7,MATCH($J$1,ECMs!$R$3:$AL$3,0)) -> 0.02790487183
A29: 5 | B29: =IF($R29>0,ECMs!B8,"") ->  | C29: =IF($R29>0,ECMs!C8,"") ->  | D29: =IF($R29>0,ECMs!D8,"") ->  | E29: =IF($R29>0,ECMs!E8,"") ->  | F29: =IF($R29>0,ECMs!L8,"") ->  | G29: =IF($R29>0,ECMs!M8,"") ->  | H29: =IF($R29>0,ECMs!N8,"") ->  | I29: =IF($R29>0,INDEX(ECMs!AM8:BG8,1,MATCH($J$1,ECMs!$AM$3:$BG$3,0)),"") ->  | J29: =IF($R29>0,INDEX(ECMs!R8:AL8,MATCH($J$1,ECMs!$R$3:$AL$3,0)),"") ->  | K29: =IF($R29>0,IFERROR(INDEX(Inventory!$F$5:$NS$67,MATCH(A29,Inventory!$A$5:$A$67,0),MATCH($C29&J$1,Inventory!$F$4:$NS$4&Inventory!$F$3:$NS$3,0)),""),"") ->  | Q29: =IF(P29="","",ECMs!O8) ->  | R29: =ECMs!D8*INDEX(ECMs!AM8:BG8,1,MATCH($J$1,ECMs!$AM$3:$BG$3,0))*INDEX(ECMs!R8:AL8,MATCH($J$1,ECMs!$R$3:$AL$3,0)) -> 0
A30: 6 | B30: =IF($R30>0,ECMs!B9,"") ->  | C30: =IF($R30>0,ECMs!C9,"") ->  | D30: =IF($R30>0,ECMs!D9,"") ->  | E30: =IF($R30>0,ECMs!E9,"") ->  | F30: =IF($R30>0,ECMs!L9,"") ->  | G30: =IF($R30>0,ECMs!M9,"") ->  | H30: =IF($R30>0,ECMs!N9,"") ->  | I30: =IF($R30>0,INDEX(ECMs!AM9:BG9,1,MATCH($J$1,ECMs!$AM$3:$BG$3,0)),"") ->  | J30: =IF($R30>0,INDEX(ECMs!R9:AL9,MATCH($J$1,ECMs!$R$3:$AL$3,0)),"") ->  | K30: =IF($R30>0,IFERROR(INDEX(Inventory!$F$5:$NS$67,MATCH(A30,Inventory!$A$5:$A$67,0),MATCH($C30&J$1,Inventory!$F$4:$NS$4&Inventory!$F$3:$NS$3,0)),""),"") ->  | Q30: =IF(P30="","",ECMs!O9) ->  | R30: =ECMs!D9*INDEX(ECMs!AM9:BG9,1,MATCH($J$1,ECMs!$AM$3:$BG$3,0))*INDEX(ECMs!R9:AL9,MATCH($J$1,ECMs!$R$3:$AL$3,0)) -> 0
A31: 7 | B31: =IF($R31>0,ECMs!B10,"") -> HighBay Lighting 3 Shift | C31: =IF($R31>0,ECMs!C10,"") -> Lighting | D31: =IF($R31>0,ECMs!D10,"") -> 0.4515888331 | E31: =IF($R31>0,ECMs!E10,"") -> 6.381647596 | F31: =IF($R31>0,ECMs!L10,"") -> 0.2462405067 | G31: =IF($R31>0,ECMs!M10,"") -> -0.01189506702 | H31: =IF($R31>0,ECMs!N10,"") -> 0 | I31: =IF($R31>0,INDEX(ECMs!AM10:BG10,1,MATCH($J$1,ECMs!$AM$3:$BG$3,0)),"") -> 0.4214285714 | J31: =IF($R31>0,INDEX(ECMs!R10:AL10,MATCH($J$1,ECMs!$R$3:$AL$3,0)),"") -> 1 | K31: =IF($R31>0,IFERROR(INDEX(Inventory!$F$5:$NS$67,MATCH(A31,Inventory!$A$5:$A$67,0),MATCH($C31&J$1,Inventory!$F$4:$NS$4&Inventory!$F$3:$NS$3,0)),""),"") -> 0.8270676809 | L31: 0 | M31: -109.697004 | N31: 7627.266547 | O31: 2270.844361 | P31: 0.03894158686 | Q31: =IF(P31="","",ECMs!O10) -> 0.03220732794 | R31: =ECMs!D10*INDEX(ECMs!AM10:BG10,1,MATCH($J$1,ECMs!$AM$3:$BG$3,0))*INDEX(ECMs!R10:AL10,MATCH($J$1,ECMs!$R$3:$AL$3,0)) -> 0.1903124368
... 35 more rows

Sheet WaterSupply
B1: Resource Assessment Worksheet -- Industrial | H1: =J1 -> WaterSupply | J1: WaterSupply
B2: Year: | C2: ='Program Summary'!C2 -> 2041 | E2: Territory: | F2: ='Program Summary'!E2 -> Region | G2: MWh: | H2: =HLOOKUP(ReportYear,Forecast,MATCH($H$1,Forecast!$A$4:$A$25,0)) -> 1228952.434
B3: Date of Run: | C3: ='Program Summary'!C3 -> 2020-05-02T16:52:03.780 | F3: Penetration Assumption | H3: ='Program Summary'!G3 -> Technical
B4: Process Shares
A5: 1 | B5: Pumps | C5: =VLOOKUP($J$1,EndUse,MATCH($B5,EndUses,0),FALSE) -> 0.71
A6: 2 | B6: Fans and Blowers | C6: 0
A7: 3 | B7: Compressed Air | C7: 0.12
A8: 4 | B8: Material Handling | C8: 0
A9: 5 | B9: Material Processing | C9: 0
A10: 6 | B10: Low Temp Refer | C10: 0
A11: 7 | B11: Med Temp Refer | C11: 0
A12: 8 | B12: Pollution Control | C12: 0
A13: 9 | B13: Other Motors | C13: 0
A14: 10 | B14: Drying and Curing | C14: 0
A15: 11 | B15: Heat Treating | C15: 0
A16: 12 | B16: Heating | C16: 0
A17: 13 | B17: Melting and Casting | C17: 0
A18: 14 | B18: HVAC | C18: 0.07
A19: 15 | B19: Lighting | C19: 0.04
A20: 16 | B20: Other | C20: 0.06
A21: 17 | B21: All Electric | C21: =SUM(C5:C20) -> 1
A22: 18 | B22: All Motors | C22: =SUM(C5:C14,0.8*C18) -> 0.886
B24: Conservation Measure | C24: End Use | D24: % Savings | E24: Lifetime | F24: First Cost (2016$/kWh) | G24: Annual O&M Cost (2016$/kWh) | H24: Annual Non-Energy Benefit (2016$/kWh) | I24: Measure Applicability | J24: Achievability | K24: Inventory Factor | L24: Annual Non-Energy Benefit ($1000) | M24: Annual O&M Cost (1000$) | N24: Potential Savings (MWh/yr) | O24: Initial Cost (1000$) | P24: Levelized Cost (2016$/kWh) Installation-Order-Specific | Q24: Levelized Cost (2016$/kWh) Installation-Order-Indpendent | R24: % Savings * Applicability * Achievability
A25: 1 | B25: =IF($R25>0,ECMs!B4,"") ->  | C25: =IF($R25>0,ECMs!C4,"") ->  | D25: =IF($R25>0,ECMs!D4,"") ->  | E25: =IF($R25>0,ECMs!E4,"") ->  | F25: =IF($R25>0,ECMs!L4,"") ->  | G25: =IF($R25>0,ECMs!M4,"") ->  | H25: =IF($R25>0,ECMs!N4,"") ->  | I25: =IF($R25>0,INDEX(ECMs!AM4:BG4,1,MATCH($J$1,ECMs!$AM$3:$BG$3,0)),"") ->  | J25: =IF($R25>0,INDEX(ECMs!R4:AL4,MATCH($J$1,ECMs!$R$3:$AL$3,0)),"") ->  | K25: =IF($R25>0,IFERROR(INDEX(Inventory!$F$5:$NS$67,MATCH(A25,Inventory!$A$5:$A$67,0),MATCH($C25&J$1,Inventory!$F$4:$NS$4&Inventory!$F$3:$NS$3,0)),""),"") ->  | L25: =IFERROR(H25*N25/K25,"") ->  | M25: =IFERROR(G25*N25/K25,"") ->  | N25: =IFERROR(INDEX($B$5:$C$22,MATCH(C25,B$5:B$22,0),2)*D25*I25*J25*K25*$H$2,"") ->  | O25: =IFERROR(F25*N25/K25,"") ->  | P25: =IFERROR(PMT(Discount_rate,E25,-(O25+PV(Discount_rate,E25,L25-M25)))/N25,"") ->  | Q25: =IF(P25="","",ECMs!O4) ->  | R25: =ECMs!D4*INDEX(ECMs!AM4:BG4,1,MATCH($J$1,ECMs!$AM$3:$BG$3,0))*INDEX(ECMs!R4:AL4,MATCH($J$1,ECMs!$R$3:$AL$3,0)) -> 0
A26: 2 | B26: =IF($R26>0,ECMs!B5,"") ->  | C26: =IF($R26>0,ECMs!C5,"") ->  | D26: =IF($R26>0,ECMs!D5,"") ->  | E26: =IF($R26>0,ECMs!E5,"") ->  | F26: =IF($R26>0,ECMs!L5,"") ->  | G26: =IF($R26>0,ECMs!M5,"") ->  | H26: =IF($R26>0,ECMs!N5,"") ->  | I26: =IF($R26>0,INDEX(ECMs!AM5:BG5,1,MATCH($J$1,ECMs!$AM$3:$BG$3,0)),"") ->  | J26: =IF($R26>0,INDEX(ECMs!R5:AL5,MATCH($J$1,ECMs!$R$3:$AL$3,0)),"") ->  | K26: =IF($R26>0,IFERROR(INDEX(Inventory!$F$5:$NS$67,MATCH(A26,Inventory!$A$5:$A$67,0),MATCH($C26&J$1,Inventory!$F$4:$NS$4&Inventory!$F$3:$NS$3,0)),""),"") ->  | L26: =IFERROR(H26*N26/K26,"") ->  | M26: =IFERROR(G26*N26/K26,"") ->  | N26: =IFERROR(INDEX($B$5:$C$22,MATCH(C26,B$5:B$22,0),2)*D26*I26*J26*K26*$H$2,"") ->  | O26: =IFERROR(F26*N26/K26,"") ->  | Q26: =IF(P26="","",ECMs!O5) ->  | R26: =ECMs!D5*INDEX(ECMs!AM5:BG5,1,MATCH($J$1,ECMs!$AM$3:$BG$3,0))*INDEX(ECMs!R5:AL5,MATCH($J$1,ECMs!$R$3:$AL$3,0)) -> 0
A27: 3 | B27: =IF($R27>0,ECMs!B6,"") ->  | C27: =IF($R27>0,ECMs!C6,"") ->  | D27: =IF($R27>0,ECMs!D6,"") ->  | E27: =IF($R27>0,ECMs!E6,"") ->  | F27: =IF($R27>0,ECMs!L6,"") ->  | G27: =IF($R27>0,ECMs!M6,"") ->  | H27: =IF($R27>0,ECMs!N6,"") ->  | I27: =IF($R27>0,INDEX(ECMs!AM6:BG6,1,MATCH($J$1,ECMs!$AM$3:$BG$3,0)),"") ->  | J27: =IF($R27>0,INDEX(ECMs!R6:AL6,MATCH($J$1,ECMs!$R$3:$AL$3,0)),"") ->  | K27: =IF($R27>0,IFERROR(INDEX(Inventory!$F$5:$NS$67,MATCH(A27,Inventory!$A$5:$A$67,0),MATCH($C27&J$1,Inventory!$F$4:$NS$4&Inventory!$F$3:$NS$3,0)),""),"") ->  | Q27: =IF(P27="","",ECMs!O6) ->  | R27: =ECMs!D6*INDEX(ECMs!AM6:BG6,1,MATCH($J$1,ECMs!$AM$3:$BG$3,0))*INDEX(ECMs!R6:AL6,MATCH($J$1,ECMs!$R$3:$AL$3,0)) -> 0
A28: 4 | B28: =IF($R28>0,ECMs!B7,"") ->  | C28: =IF($R28>0,ECMs!C7,"") ->  | D28: =IF($R28>0,ECMs!D7,"") ->  | E28: =IF($R28>0,ECMs!E7,"") ->  | F28: =IF($R28>0,ECMs!L7,"") ->  | G28: =IF($R28>0,ECMs!M7,"") ->  | H28: =IF($R28>0,ECMs!N7,"") ->  | I28: =IF($R28>0,INDEX(ECMs!AM7:BG7,1,MATCH($J$1,ECMs!$AM$3:$BG$3,0)),"") ->  | J28: =IF($R28>0,INDEX(ECMs!R7:AL7,MATCH($J$1,ECMs!$R$3:$AL$3,0)),"") ->  | K28: =IF($R28>0,IFERROR(INDEX(Inventory!$F$5:$NS$67,MATCH(A28,Inventory!$A$5:$A$67,0),MATCH($C28&J$1,Inventory!$F$4:$NS$4&Inventory!$F$3:$NS$3,0)),""),"") ->  | Q28: =IF(P28="","",ECMs!O7) ->  | R28: =ECMs!D7*INDEX(ECMs!AM7:BG7,1,MATCH($J$1,ECMs!$AM$3:$BG$3,0))*INDEX(ECMs!R7:AL7,MATCH($J$1,ECMs!$R$3:$AL$3,0)) -> 0
A29: 5 | B29: =IF($R29>0,ECMs!B8,"") -> HighBay Lighting 1 Shift | C29: =IF($R29>0,ECMs!C8,"") -> Lighting | D29: =IF($R29>0,ECMs!D8,"") -> 0.4515888331 | E29: =IF($R29>0,ECMs!E8,"") -> 19.54658495 | F29: =IF($R29>0,ECMs!L8,"") -> 0.7526012161 | G29: =IF($R29>0,ECMs!M8,"") -> -0.01189506702 | H29: =IF($R29>0,ECMs!N8,"") -> 0 | I29: =IF($R29>0,INDEX(ECMs!AM8:BG8,1,MATCH($J$1,ECMs!$AM$3:$BG$3,0)),"") -> 0.08524235522 | J29: =IF($R29>0,INDEX(ECMs!R8:AL8,MATCH($J$1,ECMs!$R$3:$AL$3,0)),"") -> 1 | K29: =IF($R29>0,IFERROR(INDEX(Inventory!$F$5:$NS$67,MATCH(A29,Inventory!$A$5:$A$67,0),MATCH($C29&J$1,Inventory!$F$4:$NS$4&Inventory!$F$3:$NS$3,0)),""),"") -> 0.7426788769 | L29: 0 | M29: -22.50922764 | N29: 1405.383247 | O29: 1424.15945 | P29: 0.05805283355 | Q29: =IF(P29="","",ECMs!O8) -> 0.04311461322 | R29: =ECMs!D8*INDEX(ECMs!AM8:BG8,1,MATCH($J$1,ECMs!$AM$3:$BG$3,0))*INDEX(ECMs!R8:AL8,MATCH($J$1,ECMs!$R$3:$AL$3,0)) -> 0.03849449573
A30: 6 | B30: =IF($R30>0,ECMs!B9,"") -> HighBay Lighting 2 Shift | C30: =IF($R30>0,ECMs!C9,"") -> Lighting | D30: =IF($R30>0,ECMs!D9,"") -> 0.4515888331 | E30: =IF($R30>0,ECMs!E9,"") -> 11.43683162 | F30: =IF($R30>0,ECMs!L9,"") -> 0.4405669869 | G30: =IF($R30>0,ECMs!M9,"") -> -0.01189506702 | H30: =IF($R30>0,ECMs!N9,"") -> 0 | I30: =IF($R30>0,INDEX(ECMs!AM9:BG9,1,MATCH($J$1,ECMs!$AM$3:$BG$3,0)),"") -> 0.142070592 | J30: =IF($R30>0,INDEX(ECMs!R9:AL9,MATCH($J$1,ECMs!$R$3:$AL$3,0)),"") -> 1 | K30: =IF($R30>0,IFERROR(INDEX(Inventory!$F$5:$NS$67,MATCH(A30,Inventory!$A$5:$A$67,0),MATCH($C30&J$1,Inventory!$F$4:$NS$4&Inventory!$F$3:$NS$3,0)),""),"") -> 0.879355554 | L30: 0 | M30: -37.5153794 | N30: 2773.364554 | O30: 1389.486721 | P30: 0.04114734762 | Q30: =IF(P30="","",ECMs!O9) -> 0.03618314866 | R30: =ECMs!D9*INDEX(ECMs!AM9:BG9,1,MATCH($J$1,ECMs!$AM$3:$BG$3,0))*INDEX(ECMs!R9:AL9,MATCH($J$1,ECMs!$R$3:$AL$3,0)) -> 0.06415749288
A31: 7 | B31: =IF($R31>0,ECMs!B10,"") -> HighBay Lighting 3 Shift | C31: =IF($R31>0,ECMs!C10,"") -> Lighting | D31: =IF($R31>0,ECMs!D10,"") -> 0.4515888331 | E31: =IF($R31>0,ECMs!E10,"") -> 6.381647596 | F31: =IF($R31>0,ECMs!L10,"") -> 0.2462405067 | G31: =IF($R31>0,ECMs!M10,"") -> -0.01189506702 | H31: =IF($R31>0,ECMs!N10,"") -> 0 | I31: =IF($R31>0,INDEX(ECMs!AM10:BG10,1,MATCH($J$1,ECMs!$AM$3:$BG$3,0)),"") -> 0.05682823682 | J31: =IF($R31>0,INDEX(ECMs!R10:AL10,MATCH($J$1,ECMs!$R$3:$AL$3,0)),"") -> 1 | K31: =IF($R31>0,IFERROR(INDEX(Inventory!$F$5:$NS$67,MATCH(A31,Inventory!$A$5:$A$67,0),MATCH($C31&J$1,Inventory!$F$4:$NS$4&Inventory!$F$3:$NS$3,0)),""),"") -> 0.9025168411 | L31: 0 | M31: -15.00615176 | N31: 1138.564807 | O31: 310.6432615 | P31: 0.03568612403 | Q31: =IF(P31="","",ECMs!O10) -> 0.03220732794 | R31: =ECMs!D10*INDEX(ECMs!AM10:BG10,1,MATCH($J$1,ECMs!$AM$3:$BG$3,0))*INDEX(ECMs!R10:AL10,MATCH($J$1,ECMs!$R$3:$AL$3,0)) -> 0.02566299715
... 35 more rows

Sheet Wastewater
B1: Resource Assessment Worksheet -- Industrial | H1: Wastewater | J1: Wastewater
B2: Year: | C2: ='Program Summary'!C2 -> 2041 | E2: Territory: | F2: ='Program Summary'!E2 -> Region | G2: MWh: | H2: =HLOOKUP(ReportYear,Forecast,MATCH($H$1,Forecast!$A$4:$A$25,0)) -> 1252537.035
B3: Date of Run: | C3: ='Program Summary'!C3 -> 2020-05-02T16:52:03.780 | F3: Penetration Assumption | H3: ='Program Summary'!G3 -> Technical
B4: Process Shares
A5: 1 | B5: Pumps | C5: =VLOOKUP($J$1,EndUse,MATCH($B5,EndUses,0),FALSE) -> 0.44
A6: 2 | B6: Fans and Blowers | C6: 0.3
A7: 3 | B7: Compressed Air | C7: 0
A8: 4 | B8: Material Handling | C8: 0
A9: 5 | B9: Material Processing | C9: 0
A10: 6 | B10: Low Temp Refer | C10: 0
A11: 7 | B11: Med Temp Refer | C11: 0
A12: 8 | B12: Pollution Control | C12: 0
A13: 9 | B13: Other Motors | C13: 0.15
A14: 10 | B14: Drying and Curing | C14: 0
A15: 11 | B15: Heat Treating | C15: 0
A16: 12 | B16: Heating | C16: 0
A17: 13 | B17: Melting and Casting | C17: 0
A18: 14 | B18: HVAC | C18: 0
A19: 15 | B19: Lighting | C19: 0.05
A20: 16 | B20: Other | C20: 0.06
A21: 17 | B21: All Electric | C21: =SUM(C5:C20) -> 1
A22: 18 | B22: All Motors | C22: =SUM(C5:C14,0.8*C18) -> 0.89
B24: Conservation Measure | C24: End Use | D24: % Savings | E24: Lifetime | F24: First Cost (2016$/kWh) | G24: Annual O&M Cost (2016$/kWh) | H24: Annual Non-Energy Benefit (2016$/kWh) | I24: Measure Applicability | J24: Achievability | K24: Inventory Factor | L24: Annual Non-Energy Benefit ($1000) | M24: Annual O&M Cost (1000$) | N24: Potential Savings (MWh/yr) | O24: Initial Cost (1000$) | P24: Levelized Cost (2016$/kWh) Installation-Order-Specific | Q24: Levelized Cost (2016$/kWh) Installation-Order-Indpendent | R24: % Savings * Applicability * Achievability
A25: 1 | B25: =IF($R25>0,ECMs!B4,"") ->  | C25: =IF($R25>0,ECMs!C4,"") ->  | D25: =IF($R25>0,ECMs!D4,"") ->  | E25: =IF($R25>0,ECMs!E4,"") ->  | F25: =IF($R25>0,ECMs!L4,"") ->  | G25: =IF($R25>0,ECMs!M4,"") ->  | H25: =IF($R25>0,ECMs!N4,"") ->  | I25: =IF($R25>0,INDEX(ECMs!AM4:BG4,1,MATCH($J$1,ECMs!$AM$3:$BG$3,0)),"") ->  | J25: =IF($R25>0,INDEX(ECMs!R4:AL4,MATCH($J$1,ECMs!$R$3:$AL$3,0)),"") ->  | K25: =IF($R25>0,IFERROR(INDEX(Inventory!$F$5:$NS$67,MATCH(A25,Inventory!$A$5:$A$67,0),MATCH($C25&J$1,Inventory!$F$4:$NS$4&Inventory!$F$3:$NS$3,0)),""),"") ->  | L25: =IFERROR(H25*N25/K25,"") ->  | M25: =IFERROR(G25*N25/K25,"") ->  | N25: =IFERROR(INDEX($B$5:$C$22,MATCH(C25,B$5:B$22,0),2)*D25*I25*J25*K25*$H$2,"") ->  | O25: =IFERROR(F25*N25/K25,"") ->  | P25: =IFERROR(PMT(Discount_rate,E25,-(O25+PV(Discount_rate,E25,L25-M25)))/N25,"") ->  | Q25: =IF(P25="","",ECMs!O4) ->  | R25: =ECMs!D4*INDEX(ECMs!AM4:BG4,1,MATCH($J$1,ECMs!$AM$3:$BG$3,0))*INDEX(ECMs!R4:AL4,MATCH($J$1,ECMs!$R$3:$AL$3,0)) -> 0
A26: 2 | B26: =IF($R26>0,ECMs!B5,"") ->  | C26: =IF($R26>0,ECMs!C5,"") ->  | D26: =IF($R26>0,ECMs!D5,"") ->  | E26: =IF($R26>0,ECMs!E5,"") ->  | F26: =IF($R26>0,ECMs!L5,"") ->  | G26: =IF($R26>0,ECMs!M5,"") ->  | H26: =IF($R26>0,ECMs!N5,"") ->  | I26: =IF($R26>0,INDEX(ECMs!AM5:BG5,1,MATCH($J$1,ECMs!$AM$3:$BG$3,0)),"") ->  | J26: =IF($R26>0,INDEX(ECMs!R5:AL5,MATCH($J$1,ECMs!$R$3:$AL$3,0)),"") ->  | K26: =IF($R26>0,IFERROR(INDEX(Inventory!$F$5:$NS$67,MATCH(A26,Inventory!$A$5:$A$67,0),MATCH($C26&J$1,Inventory!$F$4:$NS$4&Inventory!$F$3:$NS$3,0)),""),"") ->  | L26: =IFERROR(H26*N26/K26,"") ->  | M26: =IFERROR(G26*N26/K26,"") ->  | N26: =IFERROR(INDEX($B$5:$C$22,MATCH(C26,B$5:B$22,0),2)*D26*I26*J26*K26*$H$2,"") ->  | O26: =IFERROR(F26*N26/K26,"") ->  | Q26: =IF(P26="","",ECMs!O5) ->  | R26: =ECMs!D5*INDEX(ECMs!AM5:BG5,1,MATCH($J$1,ECMs!$AM$3:$BG$3,0))*INDEX(ECMs!R5:AL5,MATCH($J$1,ECMs!$R$3:$AL$3,0)) -> 0
A27: 3 | B27: =IF($R27>0,ECMs!B6,"") ->  | C27: =IF($R27>0,ECMs!C6,"") ->  | D27: =IF($R27>0,ECMs!D6,"") ->  | E27: =IF($R27>0,ECMs!E6,"") ->  | F27: =IF($R27>0,ECMs!L6,"") ->  | G27: =IF($R27>0,ECMs!M6,"") ->  | H27: =IF($R27>0,ECMs!N6,"") ->  | I27: =IF($R27>0,INDEX(ECMs!AM6:BG6,1,MATCH($J$1,ECMs!$AM$3:$BG$3,0)),"") ->  | J27: =IF($R27>0,INDEX(ECMs!R6:AL6,MATCH($J$1,ECMs!$R$3:$AL$3,0)),"") ->  | K27: =IF($R27>0,IFERROR(INDEX(Inventory!$F$5:$NS$67,MATCH(A27,Inventory!$A$5:$A$67,0),MATCH($C27&J$1,Inventory!$F$4:$NS$4&Inventory!$F$3:$NS$3,0)),""),"") ->  | Q27: =IF(P27="","",ECMs!O6) ->  | R27: =ECMs!D6*INDEX(ECMs!AM6:BG6,1,MATCH($J$1,ECMs!$AM$3:$BG$3,0))*INDEX(ECMs!R6:AL6,MATCH($J$1,ECMs!$R$3:$AL$3,0)) -> 0
A28: 4 | B28: =IF($R28>0,ECMs!B7,"") ->  | C28: =IF($R28>0,ECMs!C7,"") ->  | D28: =IF($R28>0,ECMs!D7,"") ->  | E28: =IF($R28>0,ECMs!E7,"") ->  | F28: =IF($R28>0,ECMs!L7,"") ->  | G28: =IF($R28>0,ECMs!M7,"") ->  | H28: =IF($R28>0,ECMs!N7,"") ->  | I28: =IF($R28>0,INDEX(ECMs!AM7:BG7,1,MATCH($J$1,ECMs!$AM$3:$BG$3,0)),"") ->  | J28: =IF($R28>0,INDEX(ECMs!R7:AL7,MATCH($J$1,ECMs!$R$3:$AL$3,0)),"") ->  | K28: =IF($R28>0,IFERROR(INDEX(Inventory!$F$5:$NS$67,MATCH(A28,Inventory!$A$5:$A$67,0),MATCH($C28&J$1,Inventory!$F$4:$NS$4&Inventory!$F$3:$NS$3,0)),""),"") ->  | Q28: =IF(P28="","",ECMs!O7) ->  | R28: =ECMs!D7*INDEX(ECMs!AM7:BG7,1,MATCH($J$1,ECMs!$AM$3:$BG$3,0))*INDEX(ECMs!R7:AL7,MATCH($J$1,ECMs!$R$3:$AL$3,0)) -> 0
A29: 5 | B29: =IF($R29>0,ECMs!B8,"") -> HighBay Lighting 1 Shift | C29: =IF($R29>0,ECMs!C8,"") -> Lighting | D29: =IF($R29>0,ECMs!D8,"") -> 0.4515888331 | E29: =IF($R29>0,ECMs!E8,"") -> 19.54658495 | F29: =IF($R29>0,ECMs!L8,"") -> 0.7526012161 | G29: =IF($R29>0,ECMs!M8,"") -> -0.01189506702 | H29: =IF($R29>0,ECMs!N8,"") -> 0 | I29: =IF($R29>0,INDEX(ECMs!AM8:BG8,1,MATCH($J$1,ECMs!$AM$3:$BG$3,0)),"") -> 0.08524235522 | J29: =IF($R29>0,INDEX(ECMs!R8:AL8,MATCH($J$1,ECMs!$R$3:$AL$3,0)),"") -> 1 | K29: =IF($R29>0,IFERROR(INDEX(Inventory!$F$5:$NS$67,MATCH(A29,Inventory!$A$5:$A$67,0),MATCH($C29&J$1,Inventory!$F$4:$NS$4&Inventory!$F$3:$NS$3,0)),""),"") -> 0.8229383063 | L29: 0 | M29: -28.67649763 | N29: 1983.93068 | O29: 1814.362791 | P29: 0.05239106369 | Q29: =IF(P29="","",ECMs!O8) -> 0.04311461322 | R29: =ECMs!D8*INDEX(ECMs!AM8:BG8,1,MATCH($J$1,ECMs!$AM$3:$BG$3,0))*INDEX(ECMs!R8:AL8,MATCH($J$1,ECMs!$R$3:$AL$3,0)) -> 0.03849449573
A30: 6 | B30: =IF($R30>0,ECMs!B9,"") -> HighBay Lighting 2 Shift | C30: =IF($R30>0,ECMs!C9,"") -> Lighting | D30: =IF($R30>0,ECMs!D9,"") -> 0.4515888331 | E30: =IF($R30>0,ECMs!E9,"") -> 11.43683162 | F30: =IF($R30>0,ECMs!L9,"") -> 0.4405669869 | G30: =IF($R30>0,ECMs!M9,"") -> -0.01189506702 | H30: =IF($R30>0,ECMs!N9,"") -> 0 | I30: =IF($R30>0,INDEX(ECMs!AM9:BG9,1,MATCH($J$1,ECMs!$AM$3:$BG$3,0)),"") -> 0.142070592 | J30: =IF($R30>0,INDEX(ECMs!R9:AL9,MATCH($J$1,ECMs!$R$3:$AL$3,0)),"") -> 1 | K30: =IF($R30>0,IFERROR(INDEX(Inventory!$F$5:$NS$67,MATCH(A30,Inventory!$A$5:$A$67,0),MATCH($C30&J$1,Inventory!$F$4:$NS$4&Inventory!$F$3:$NS$3,0)),""),"") -> 0.879355554 | L30: 0 | M30: -47.79416272 | N30: 3533.234607 | O30: 1770.190133 | P30: 0.04114734762 | Q30: =IF(P30="","",ECMs!O9) -> 0.03618314866 | R30: =ECMs!D9*INDEX(ECMs!AM9:BG9,1,MATCH($J$1,ECMs!$AM$3:$BG$3,0))*INDEX(ECMs!R9:AL9,MATCH($J$1,ECMs!$R$3:$AL$3,0)) -> 0.06415749288
A31: 7 | B31: =IF($R31>0,ECMs!B10,"") -> HighBay Lighting 3 Shift | C31: =IF($R31>0,ECMs!C10,"") -> Lighting | D31: =IF($R31>0,ECMs!D10,"") -> 0.4515888331 | E31: =IF($R31>0,ECMs!E10,"") -> 6.381647596 | F31: =IF($R31>0,ECMs!L10,"") -> 0.2462405067 | G31: =IF($R31>0,ECMs!M10,"") -> -0.01189506702 | H31: =IF($R31>0,ECMs!N10,"") -> 0 | I31: =IF($R31>0,INDEX(ECMs!AM10:BG10,1,MATCH($J$1,ECMs!$AM$3:$BG$3,0)),"") -> 0.05682823682 | J31: =IF($R31>0,INDEX(ECMs!R10:AL10,MATCH($J$1,ECMs!$R$3:$AL$3,0)),"") -> 1 | K31: =IF($R31>0,IFERROR(INDEX(Inventory!$F$5:$NS$67,MATCH(A31,Inventory!$A$5:$A$67,0),MATCH($C31&J$1,Inventory!$F$4:$NS$4&Inventory!$F$3:$NS$3,0)),""),"") -> 0.9025168411 | L31: 0 | M31: -19.11766509 | N31: 1450.518495 | O31: 395.7559492 | P31: 0.03568612403 | Q31: =IF(P31="","",ECMs!O10) -> 0.03220732794 | R31: =ECMs!D10*INDEX(ECMs!AM10:BG10,1,MATCH($J$1,ECMs!$AM$3:$BG$3,0))*INDEX(ECMs!R10:AL10,MATCH($J$1,ECMs!$R$3:$AL$3,0)) -> 0.02566299715
... 35 more rows

Sheet Inventory
A1: Purpose of InventoryFactor is to avoid double counting of already achieved measures | F1: Inventory of remaining load (by EndUse in each Segment) sorted so most cost-effective measures are installed first
E3: segment--> | F3: MechPulp | G3: =F3 -> MechPulp | H3: =G3 -> MechPulp | I3: MechPulp | J3: MechPulp | K3: MechPulp | L3: MechPulp | M3: MechPulp | N3: MechPulp | O3: MechPulp | P3: MechPulp | Q3: MechPulp | R3: MechPulp | S3: MechPulp | T3: MechPulp | U3: MechPulp | V3: MechPulp | W3: MechPulp | X3: KraftPulp | Y3: =X3 -> KraftPulp | Z3: =Y3 -> KraftPulp | AA3: KraftPulp | AB3: KraftPulp | AC3: KraftPulp | AD3: KraftPulp | AE3: KraftPulp | AF3: KraftPulp | AG3: KraftPulp | AH3: KraftPulp | AI3: KraftPulp | AJ3: KraftPulp | AK3: KraftPulp | AL3: KraftPulp | AM3: KraftPulp | AN3: KraftPulp | AO3: KraftPulp | AP3: Paper | AQ3: =AP3 -> Paper | AR3: =AQ3 -> Paper | AS3: Paper | AT3: Paper | AU3: Paper | AV3: Paper | AW3: Paper | AX3: Paper | AY3: Paper | AZ3: Paper | BA3: Paper | BB3: Paper | BC3: Paper | BD3: Paper | BE3: Paper | BF3: Paper | BG3: Paper | BH3: Foundries | BI3: =BH3 -> Foundries | BJ3: =BI3 -> Foundries | BK3: Foundries | BL3: Foundries | BM3: Foundries | BN3: Foundries | BO3: Foundries | BP3: Foundries | BQ3: Foundries | BR3: Foundries | BS3: Foundries | BT3: Foundries | BU3: Foundries | BV3: Foundries | BW3: Foundries | BX3: Foundries | BY3: Foundries | BZ3: FrozenFood | CA3: =BZ3 -> FrozenFood | CB3: =CA3 -> FrozenFood | CC3: FrozenFood | CD3: FrozenFood | CE3: FrozenFood | CF3: FrozenFood | CG3: FrozenFood | CH3: FrozenFood | CI3: FrozenFood | CJ3: FrozenFood | CK3: FrozenFood | CL3: FrozenFood | CM3: FrozenFood | CN3: FrozenFood | CO3: FrozenFood | CP3: FrozenFood | CQ3: FrozenFood | CR3: OtherFood | CS3: =CR3 -> OtherFood | CT3: =CS3 -> OtherFood | CU3: OtherFood | CV3: OtherFood | CW3: OtherFood | CX3: OtherFood | CY3: OtherFood | CZ3: OtherFood | DA3: OtherFood | DB3: OtherFood | DC3: OtherFood | DD3: OtherFood | DE3: OtherFood | DF3: OtherFood | DG3: OtherFood | DH3: OtherFood | DI3: OtherFood | DJ3: Lumber | DK3: =DJ3 -> Lumber | DL3: =DK3 -> Lumber | DM3: Lumber | DN3: Lumber | DO3: Lumber | DP3: Lumber | DQ3: Lumber | DR3: Lumber | DS3: Lumber | DT3: Lumber | DU3: Lumber | DV3: Lumber | DW3: Lumber | DX3: Lumber | DY3: Lumber | DZ3: Lumber | EA3: Lumber | EB3: Panel | EC3: =EB3 -> Panel | ED3: =EC3 -> Panel | EE3: Panel | EF3: Panel | EG3: Panel | EH3: Panel | EI3: Panel | EJ3: Panel | EK3: Panel | EL3: Panel | EM3: Panel | EN3: Panel | EO3: Panel | EP3: Panel | EQ3: Panel | ER3: Panel | ES3: Panel | ET3: Wood | EU3: =ET3 -> Wood | EV3: =EU3 -> Wood | EW3: Wood | EX3: Wood | EY3: Wood | EZ3: Wood | FA3: Wood | FB3: Wood | FC3: Wood | FD3: Wood | FE3: Wood | FF3: Wood | FG3: Wood | FH3: Wood | FI3: Wood | FJ3: Wood | FK3: Wood | FL3: Cement | FM3: =FL3 -> Cement | FN3: =FM3 -> Cement | FO3: Cement | FP3: Cement | FQ3: Cement | FR3: Cement | FS3: Cement | FT3: Cement | FU3: Cement | FV3: Cement | FW3: Cement | FX3: Cement | FY3: Cement | FZ3: Cement | GA3: Cement | GB3: Cement | GC3: Cement | GD3: ElecFab | GE3: =GD3 -> ElecFab | GF3: =GE3 -> ElecFab | GG3: ElecFab | GH3: ElecFab | GI3: ElecFab | GJ3: ElecFab | GK3: ElecFab | GL3: ElecFab | GM3: ElecFab | GN3: ElecFab | GO3: ElecFab | GP3: ElecFab | GQ3: ElecFab | GR3: ElecFab | GS3: ElecFab | GT3: ElecFab | GU3: ElecFab | GV3: Silicon | GW3: =GV3 -> Silicon | GX3: =GW3 -> Silicon | GY3: Silicon | GZ3: Silicon | HA3: Silicon | HB3: Silicon | HC3: Silicon | HD3: Silicon | HE3: Silicon | HF3: Silicon | HG3: Silicon | HH3: Silicon | HI3: Silicon | HJ3: Silicon | HK3: Silicon | HL3: Silicon | HM3: Silicon | HN3: MetalFab | HO3: =HN3 -> MetalFab | HP3: =HO3 -> MetalFab | HQ3: MetalFab | HR3: MetalFab | HS3: MetalFab | HT3: MetalFab | HU3: MetalFab | HV3: MetalFab | HW3: MetalFab | HX3: MetalFab | HY3: MetalFab | HZ3: MetalFab | IA3: MetalFab | IB3: MetalFab | IC3: MetalFab | ID3: MetalFab | IE3: MetalFab | IF3: Transportation | IG3: =IF3 -> Transportation | IH3: =IG3 -> Transportation | II3: Transportation | IJ3: Transportation | IK3: Transportation | IL3: Transportation | IM3: Transportation | IN3: Transportation | IO3: Transportation | IP3: Transportation | IQ3: Transportation | IR3: Transportation | IS3: Transportation | IT3: Transportation | IU3: Transportation | IV3: Transportation | IW3: Transportation | IX3: Refinery | IY3: =IX3 -> Refinery | IZ3: =IY3 -> Refinery | JA3: Refinery | JB3: Refinery | JC3: Refinery | JD3: Refinery | JE3: Refinery | JF3: Refinery | JG3: Refinery | JH3: Refinery | JI3: Refinery | JJ3: Refinery | JK3: Refinery | JL3: Refinery | JM3: Refinery | JN3: Refinery | JO3: Refinery | JP3: ColdStorage | JQ3: =JP3 -> ColdStorage | JR3: =JQ3 -> ColdStorage | JS3: ColdStorage | JT3: ColdStorage | JU3: ColdStorage | JV3: ColdStorage | JW3: ColdStorage | JX3: ColdStorage | JY3: ColdStorage | JZ3: ColdStorage | KA3: ColdStorage | KB3: ColdStorage | KC3: ColdStorage | KD3: ColdStorage | KE3: ColdStorage | KF3: ColdStorage | KG3: ColdStorage | KH3: FruitStorage | KI3: =KH3 -> FruitStorage | KJ3: =KI3 -> FruitStorage | KK3: FruitStorage | KL3: FruitStorage | KM3: FruitStorage | KN3: FruitStorage | KO3: FruitStorage | KP3: FruitStorage | KQ3: FruitStorage | KR3: FruitStorage | KS3: FruitStorage | KT3: FruitStorage | KU3: FruitStorage | KV3: FruitStorage | KW3: FruitStorage | KX3: FruitStorage | KY3: FruitStorage | KZ3: Chemical | LA3: =KZ3 -> Chemical | LB3: =LA3 -> Chemical | LC3: Chemical | LD3: Chemical | LE3: Chemical | LF3: Chemical | LG3: Chemical | LH3: Chemical | LI3: Chemical | LJ3: Chemical | LK3: Chemical | LL3: Chemical | LM3: Chemical | LN3: Chemical | LO3: Chemical | LP3: Chemical | LQ3: Chemical | LR3: MiscManf | LS3: =LR3 -> MiscManf | LT3: =LS3 -> MiscManf | LU3: MiscManf | LV3: MiscManf | LW3: MiscManf | LX3: MiscManf | LY3: MiscManf | LZ3: MiscManf | MA3: MiscManf | MB3: MiscManf | MC3: MiscManf | MD3: MiscManf | ME3: MiscManf | MF3: MiscManf | MG3: MiscManf | MH3: MiscManf | MI3: MiscManf | MJ3: WaterSupply | MK3: =MJ3 -> WaterSupply | ML3: =MK3 -> WaterSupply | MM3: WaterSupply | MN3: WaterSupply | MO3: WaterSupply | MP3: WaterSupply | MQ3: WaterSupply | MR3: WaterSupply | MS3: WaterSupply | MT3: WaterSupply | MU3: WaterSupply | MV3: WaterSupply | MW3: WaterSupply | MX3: WaterSupply | MY3: WaterSupply | MZ3: WaterSupply | NA3: WaterSupply | NB3: Wastewater | NC3: =NB3 -> Wastewater | ND3: =NC3 -> Wastewater | NE3: Wastewater | NF3: Wastewater | NG3: Wastewater | NH3: Wastewater | NI3: Wastewater | NJ3: Wastewater | NK3: Wastewater | NL3: Wastewater | NM3: Wastewater | NN3: Wastewater | NO3: Wastewater | NP3: Wastewater | NQ3: Wastewater | NR3: Wastewater | NS3: Wastewater
A4: ECM No. | B4: Conservation Measure | C4: End Use | D4: Levelized Cost (2016$/kWh) | E4: end use--> | F4: Pumps | G4: Fans and Blowers | H4: Compressed Air | I4: Material Handling | J4: Material Processing | K4: Low Temp Refer | L4: Med Temp Refer | M4: Pollution Control | N4: Other Motors | O4: Drying and Curing | P4: Heat Treating | Q4: Heating | R4: Melting and Casting | S4: HVAC | T4: Lighting | U4: Other | V4: All Electric | W4: All Motors | X4: Pumps | Y4: Fans and Blowers | Z4: Compressed Air | AA4: Material Handling | AB4: Material Processing | AC4: Low Temp Refer | AD4: Med Temp Refer | AE4: Pollution Control | AF4: Other Motors | AG4: Drying and Curing | AH4: Heat Treating | AI4: Heating | AJ4: Melting and Casting | AK4: HVAC | AL4: Lighting | AM4: Other | AN4: All Electric | AO4: All Motors | AP4: Pumps | AQ4: Fans and Blowers | AR4: Compressed Air | AS4: Material Handling | AT4: Material Processing | AU4: Low Temp Refer | AV4: Med Temp Refer | AW4: Pollution Control | AX4: Other Motors | AY4: Drying and Curing | AZ4: Heat Treating | BA4: Heating | BB4: Melting and Casting | BC4: HVAC | BD4: Lighting | BE4: Other | BF4: All Electric | BG4: All Motors | BH4: Pumps | BI4: Fans and Blowers | BJ4: Compressed Air | BK4: Material Handling | BL4: Material Processing | BM4: Low Temp Refer | BN4: Med Temp Refer | BO4: Pollution Control | BP4: Other Motors | BQ4: Drying and Curing | BR4: Heat Treating | BS4: Heating | BT4: Melting and Casting | BU4: HVAC | BV4: Lighting | BW4: Other | BX4: All Electric | BY4: All Motors | BZ4: Pumps | CA4: Fans and Blowers | CB4: Compressed Air | CC4: Material Handling | CD4: Material Processing | CE4: Low Temp Refer | CF4: Med Temp Refer | CG4: Pollution Control | CH4: Other Motors | CI4: Drying and Curing | CJ4: Heat Treating | CK4: Heating | CL4: Melting and Casting | CM4: HVAC | CN4: Lighting | CO4: Other | CP4: All Electric | CQ4: All Motors | CR4: Pumps | CS4: Fans and Blowers | CT4: Compressed Air | CU4: Material Handling | CV4: Material Processing | CW4: Low Temp Refer | CX4: Med Temp Refer | CY4: Pollution Control | CZ4: Other Motors | DA4: Drying and Curing | DB4: Heat Treating | DC4: Heating | DD4: Melting and Casting | DE4: HVAC | DF4: Lighting | DG4: Other | DH4: All Electric | DI4: All Motors | DJ4: Pumps | DK4: Fans and Blowers | DL4: Compressed Air | DM4: Material Handling | DN4: Material Processing | DO4: Low Temp Refer | DP4: Med Temp Refer | DQ4: Pollution Control | DR4: Other Motors | DS4: Drying and Curing | DT4: Heat Treating | DU4: Heating | DV4: Melting and Casting | DW4: HVAC | DX4: Lighting | DY4: Other | DZ4: All Electric | EA4: All Motors | EB4: Pumps | EC4: Fans and Blowers | ED4: Compressed Air | EE4: Material Handling | EF4: Material Processing | EG4: Low Temp Refer | EH4: Med Temp Refer | EI4: Pollution Control | EJ4: Other Motors | EK4: Drying and Curing | EL4: Heat Treating | EM4: Heating | EN4: Melting and Casting | EO4: HVAC | EP4: Lighting | EQ4: Other | ER4: All Electric | ES4: All Motors | ET4: Pumps | EU4: Fans and Blowers | EV4: Compressed Air | EW4: Material Handling | EX4: Material Processing | EY4: Low Temp Refer | EZ4: Med Temp Refer | FA4: Pollution Control | FB4: Other Motors | FC4: Drying and Curing | FD4: Heat Treating | FE4: Heating | FF4: Melting and Casting | FG4: HVAC | FH4: Lighting | FI4: Other | FJ4: All Electric | FK4: All Motors | FL4: Pumps | FM4: Fans and Blowers | FN4: Compressed Air | FO4: Material Handling | FP4: Material Processing | FQ4: Low Temp Refer | FR4: Med Temp Refer | FS4: Pollution Control | FT4: Other Motors | FU4: Drying and Curing | FV4: Heat Treating | FW4: Heating | FX4: Melting and Casting | FY4: HVAC | FZ4: Lighting | GA4: Other | GB4: All Electric | GC4: All Motors | GD4: Pumps | GE4: Fans and Blowers | GF4: Compressed Air | GG4: Material Handling | GH4: Material Processing | GI4: Low Temp Refer | GJ4: Med Temp Refer | GK4: Pollution Control | GL4: Other Motors | GM4: Drying and Curing | GN4: Heat Treating | GO4: Heating | GP4: Melting and Casting | GQ4: HVAC | GR4: Lighting | GS4: Other | GT4: All Electric | GU4: All Motors | GV4: Pumps | GW4: Fans and Blowers | GX4: Compressed Air | GY4: Material Handling | GZ4: Material Processing | HA4: Low Temp Refer | HB4: Med Temp Refer | HC4: Pollution Control | HD4: Other Motors | HE4: Drying and Curing | HF4: Heat Treating | HG4: Heating | HH4: Melting and Casting | HI4: HVAC | HJ4: Lighting | HK4: Other | HL4: All Electric | HM4: All Motors | HN4: Pumps | HO4: Fans and Blowers | HP4: Compressed Air | HQ4: Material Handling | HR4: Material Processing | HS4: Low Temp Refer | HT4: Med Temp Refer | HU4: Pollution Control | HV4: Other Motors | HW4: Drying and Curing | HX4: Heat Treating | HY4: Heating | HZ4: Melting and Casting | IA4: HVAC | IB4: Lighting | IC4: Other | ID4: All Electric | IE4: All Motors | IF4: Pumps | IG4: Fans and Blowers | IH4: Compressed Air | II4: Material Handling | IJ4: Material Processing | IK4: Low Temp Refer | IL4: Med Temp Refer | IM4: Pollution Control | IN4: Other Motors | IO4: Drying and Curing | IP4: Heat Treating | IQ4: Heating | IR4: Melting and Casting | IS4: HVAC | IT4: Lighting | IU4: Other | IV4: All Electric | IW4: All Motors | IX4: Pumps | IY4: Fans and Blowers | IZ4: Compressed Air | JA4: Material Handling | JB4: Material Processing | JC4: Low Temp Refer | JD4: Med Temp Refer | JE4: Pollution Control | JF4: Other Motors | JG4: Drying and Curing | JH4: Heat Treating | JI4: Heating | JJ4: Melting and Casting | JK4: HVAC | JL4: Lighting | JM4: Other | JN4: All Electric | JO4: All Motors | JP4: Pumps | JQ4: Fans and Blowers | JR4: Compressed Air | JS4: Material Handling | JT4: Material Processing | JU4: Low Temp Refer | JV4: Med Temp Refer | JW4: Pollution Control | JX4: Other Motors | JY4: Drying and Curing | JZ4: Heat Treating | KA4: Heating | KB4: Melting and Casting | KC4: HVAC | KD4: Lighting | KE4: Other | KF4: All Electric | KG4: All Motors | KH4: Pumps | KI4: Fans and Blowers | KJ4: Compressed Air | KK4: Material Handling | KL4: Material Processing | KM4: Low Temp Refer | KN4: Med Temp Refer | KO4: Pollution Control | KP4: Other Motors | KQ4: Drying and Curing | KR4: Heat Treating | KS4: Heating | KT4: Melting and Casting | KU4: HVAC | KV4: Lighting | KW4: Other | KX4: All Electric | KY4: All Motors | KZ4: Pumps | LA4: Fans and Blowers | LB4: Compressed Air | LC4: Material Handling | LD4: Material Processing | LE4: Low Temp Refer | LF4: Med Temp Refer | LG4: Pollution Control | LH4: Other Motors | LI4: Drying and Curing | LJ4: Heat Treating | LK4: Heating | LL4: Melting and Casting | LM4: HVAC | LN4: Lighting | LO4: Other | LP4: All Electric | LQ4: All Motors | LR4: Pumps | LS4: Fans and Blowers | LT4: Compressed Air | LU4: Material Handling | LV4: Material Processing | LW4: Low Temp Refer | LX4: Med Temp Refer | LY4: Pollution Control | LZ4: Other Motors | MA4: Drying and Curing | MB4: Heat Treating | MC4: Heating | MD4: Melting and Casting | ME4: HVAC | MF4: Lighting | MG4: Other | MH4: All Electric | MI4: All Motors | MJ4: Pumps | MK4: Fans and Blowers | ML4: Compressed Air | MM4: Material Handling | MN4: Material Processing | MO4: Low Temp Refer | MP4: Med Temp Refer | MQ4: Pollution Control | MR4: Other Motors | MS4: Drying and Curing | MT4: Heat Treating | MU4: Heating | MV4: Melting and Casting | MW4: HVAC | MX4: Lighting | MY4: Other | MZ4: All Electric | NA4: All Motors | NB4: Pumps | NC4: Fans and Blowers | ND4: Compressed Air | NE4: Material Handling | NF4: Material Processing | NG4: Low Temp Refer | NH4: Med Temp Refer | NI4: Pollution Control | NJ4: Other Motors | NK4: Drying and Curing | NL4: Heat Treating | NM4: Heating | NN4: Melting and Casting | NO4: HVAC | NP4: Lighting | NQ4: Other | NR4: All Electric | NS4: All Motors | NV4: Weighted Inventory Factor
A5: =INDEX(ECM_Table,MATCH(ROW()-ROW($A$4),ECMs!$Q$4:$Q$66,0),1) -> 47 | B5: =INDEX(ECM_Table,MATCH($A5,ECMs!$A$4:$A$66,0),MATCH(B$4,ECMs!$A$3:$Q$3,0)) -> 0 | C5: =INDEX(ECM_Table,MATCH($A5,ECMs!$A$4:$A$66,0),MATCH(C$4,ECMs!$A$3:$Q$3,0)) -> 0 | D5: =INDEX(ECM_Table,MATCH($A5,ECMs!$A$4:$A$66,0),MATCH(D$4,ECMs!$A$3:$Q$3,0)) ->  | F5: 1 | G5: 1 | H5: 1 | I5: 1 | J5: 1 | K5: 1 | L5: 1 | M5: 1 | N5: 1 | O5: 1 | P5: 1 | Q5: 1 | R5: 1 | S5: 1 | T5: 1 | U5: 1 | V5: =SUMPRODUCT(F5:U5,TRANSPOSE(INDIRECT(V$3&"!$C$5:$C$20"))) -> 1 | W5: =(SUMPRODUCT(F5:N5,TRANSPOSE(INDIRECT(W$3&"!$C$5:$C$13")))+S5*0.8*INDIRECT(W$3&"!$C$18"))/INDIRECT(W$3&"!$C$22") -> 1 | X5: 1 | Y5: 1 | Z5: 1 | AA5: 1 | AB5: 1 | AC5: 1 | AD5: 1 | AE5: 1 | AF5: 1 | AG5: 1 | AH5: 1 | AI5: 1 | AJ5: 1 | AK5: 1 | AL5: 1 | AM5: 1 | AN5: =SUMPRODUCT(X5:AM5,TRANSPOSE(INDIRECT(AN$3&"!$C$5:$C$20"))) -> 1 | AO5: =(SUMPRODUCT(X5:AF5,TRANSPOSE(INDIRECT(AO$3&"!$C$5:$C$13")))+AK5*0.8*INDIRECT(AO$3&"!$C$18"))/INDIRECT(AO$3&"!$C$22") -> 1 | AP5: 1 | AQ5: 1 | AR5: 1 | AS5: 1 | AT5: 1 | AU5: 1 | AV5: 1 | AW5: 1 | AX5: 1 | AY5: 1 | AZ5: 1 | BA5: 1 | BB5: 1 | BC5: 1 | BD5: 1 | BE5: 1 | BF5: =SUMPRODUCT(AP5:BE5,TRANSPOSE(INDIRECT(BF$3&"!$C$5:$C$20"))) -> 1 | BG5: =(SUMPRODUCT(AP5:AX5,TRANSPOSE(INDIRECT(BG$3&"!$C$5:$C$13")))+BC5*0.8*INDIRECT(BG$3&"!$C$18"))/INDIRECT(BG$3&"!$C$22") -> 0.9285714286 | BH5: 1 | BI5: 1 | BJ5: 1 | BK5: 1 | BL5: 1 | BM5: 1 | BN5: 1 | BO5: 1 | BP5: 1 | BQ5: 1 | BR5: 1 | BS5: 1 | BT5: 1 | BU5: 1 | BV5: 1 | BW5: 1 | BX5: =SUMPRODUCT(BH5:BW5,TRANSPOSE(INDIRECT(BX$3&"!$C$5:$C$20"))) -> 1 | BY5: =(SUMPRODUCT(BH5:BP5,TRANSPOSE(INDIRECT(BY$3&"!$C$5:$C$13")))+BU5*0.8*INDIRECT(BY$3&"!$C$18"))/INDIRECT(BY$3&"!$C$22") -> 1 | BZ5: 1 | CA5: 1 | CB5: 1 | CC5: 1 | CD5: 1 | CE5: 1 | CF5: 1 | CG5: 1 | CH5: 1 | CI5: 1 | CJ5: 1 | CK5: 1 | CL5: 1 | CM5: 1 | CN5: 1 | CO5: 1 | CP5: =SUMPRODUCT(BZ5:CO5,TRANSPOSE(INDIRECT(CP$3&"!$C$5:$C$20"))) -> 1 | CQ5: =(SUMPRODUCT(BZ5:CH5,TRANSPOSE(INDIRECT(CQ$3&"!$C$5:$C$13")))+CM5*0.8*INDIRECT(CQ$3&"!$C$18"))/INDIRECT(CQ$3&"!$C$22") -> 1 | CR5: 1 | CS5: 1 | CT5: 1 | CU5: 1 | CV5: 1 | CW5: 1 | CX5: 1 | CY5: 1 | CZ5: 1 | DA5: 1 | DB5: 1 | DC5: 1 | DD5: 1 | DE5: 1 | DF5: 1 | DG5: 1 | DH5: =SUMPRODUCT(CR5:DG5,TRANSPOSE(INDIRECT(DH$3&"!$C$5:$C$20"))) -> 1 | DI5: =(SUMPRODUCT(CR5:CZ5,TRANSPOSE(INDIRECT(DI$3&"!$C$5:$C$13")))+DE5*0.8*INDIRECT(DI$3&"!$C$18"))/INDIRECT(DI$3&"!$C$22") -> 1 | DJ5: 1 | DK5: 1 | DL5: 1 | DM5: 1 | DN5: 1 | DO5: 1 | DP5: 1 | DQ5: 1 | DR5: 1 | DS5: 1 | DT5: 1 | DU5: 1 | DV5: 1 | DW5: 1 | DX5: 1 | DY5: 1 | DZ5: =SUMPRODUCT(DJ5:DY5,TRANSPOSE(INDIRECT(DZ$3&"!$C$5:$C$20"))) -> 1 | EA5: =(SUMPRODUCT(DJ5:DR5,TRANSPOSE(INDIRECT(EA$3&"!$C$5:$C$13")))+DW5*0.8*INDIRECT(EA$3&"!$C$18"))/INDIRECT(EA$3&"!$C$22") -> 1 | EB5: 1 | EC5: 1 | ED5: 1 | EE5: 1 | EF5: 1 | EG5: 1 | EH5: 1 | EI5: 1 | EJ5: 1 | EK5: 1 | EL5: 1 | EM5: 1 | EN5: 1 | EO5: 1 | EP5: 1 | EQ5: 1 | ER5: =SUMPRODUCT(EB5:EQ5,TRANSPOSE(INDIRECT(ER$3&"!$C$5:$C$20"))) -> 1 | ES5: =(SUMPRODUCT(EB5:EJ5,TRANSPOSE(INDIRECT(ES$3&"!$C$5:$C$13")))+EO5*0.8*INDIRECT(ES$3&"!$C$18"))/INDIRECT(ES$3&"!$C$22") -> 1 | ET5: 1 | EU5: 1 | EV5: 1 | EW5: 1 | EX5: 1 | EY5: 1 | EZ5: 1 | FA5: 1 | FB5: 1 | FC5: 1 | FD5: 1 | FE5: 1 | FF5: 1 | FG5: 1 | FH5: 1 | FI5: 1 | FJ5: =SUMPRODUCT(ET5:FI5,TRANSPOSE(INDIRECT(FJ$3&"!$C$5:$C$20"))) -> 1 | FK5: =(SUMPRODUCT(ET5:FB5,TRANSPOSE(INDIRECT(FK$3&"!$C$5:$C$13")))+FG5*0.8*INDIRECT(FK$3&"!$C$18"))/INDIRECT(FK$3&"!$C$22") -> 1 | FL5: 1 | FM5: 1 | FN5: 1 | FO5: 1 | FP5: 1 | FQ5: 1 | FR5: 1 | FS5: 1 | FT5: 1 | FU5: 1 | FV5: 1 | FW5: 1 | FX5: 1 | FY5: 1 | FZ5: 1 | GA5: 1 | GB5: =SUMPRODUCT(FL5:GA5,TRANSPOSE(INDIRECT(GB$3&"!$C$5:$C$20"))) -> 1 | GC5: =(SUMPRODUCT(FL5:FT5,TRANSPOSE(INDIRECT(GC$3&"!$C$5:$C$13")))+FY5*0.8*INDIRECT(GC$3&"!$C$18"))/INDIRECT(GC$3&"!$C$22") -> 1 | GD5: 1 | GE5: 1 | GF5: 1 | GG5: 1 | GH5: 1 | GI5: 1 | GJ5: 1 | GK5: 1 | GL5: 1 | GM5: 1 | GN5: 1 | GO5: 1 | GP5: 1 | GQ5: 1 | GR5: 1 | GS5: 1 | GT5: =SUMPRODUCT(GD5:GS5,TRANSPOSE(INDIRECT(GT$3&"!$C$5:$C$20"))) -> 1 | GU5: =(SUMPRODUCT(GD5:GL5,TRANSPOSE(INDIRECT(GU$3&"!$C$5:$C$13")))+GQ5*0.8*INDIRECT(GU$3&"!$C$18"))/INDIRECT(GU$3&"!$C$22") -> 1 | GV5: 1 | GW5: 1 | GX5: 1 | GY5: 1 | GZ5: 1 | HA5: 1 | HB5: 1 | HC5: 1 | HD5: 1 | HE5: 1 | HF5: 1 | HG5: 1 | HH5: 1 | HI5: 1 | HJ5: 1 | HK5: 1 | HL5: =SUMPRODUCT(GV5:HK5,TRANSPOSE(INDIRECT(HL$3&"!$C$5:$C$20"))) -> 1 | HM5: =(SUMPRODUCT(GV5:HD5,TRANSPOSE(INDIRECT(HM$3&"!$C$5:$C$13")))+HI5*0.8*INDIRECT(HM$3&"!$C$18"))/INDIRECT(HM$3&"!$C$22") -> 0.9581589958 | HN5: 1 | HO5: 1 | HP5: 1 | HQ5: 1 | HR5: 1 | HS5: 1 | HT5: 1 | HU5: 1 | HV5: 1 | HW5: 1 | HX5: 1 | HY5: 1 | HZ5: 1 | IA5: 1 | IB5: 1 | IC5: 1 | ID5: =SUMPRODUCT(HN5:IC5,TRANSPOSE(INDIRECT(ID$3&"!$C$5:$C$20"))) -> 1 | IE5: =(SUMPRODUCT(HN5:HV5,TRANSPOSE(INDIRECT(IE$3&"!$C$5:$C$13")))+IA5*0.8*INDIRECT(IE$3&"!$C$18"))/INDIRECT(IE$3&"!$C$22") -> 0.9874055416 | IF5: 1 | IG5: 1 | IH5: 1 | II5: 1 | IJ5: 1 | IK5: 1 | IL5: 1 | IM5: 1 | IN5: 1 | IO5: 1 | IP5: 1 | IQ5: 1 | IR5: 1 | IS5: 1 | IT5: 1 | IU5: 1 | IV5: =SUMPRODUCT(IF5:IU5,TRANSPOSE(INDIRECT(IV$3&"!$C$5:$C$20"))) -> 1 | IW5: =(SUMPRODUCT(IF5:IN5,TRANSPOSE(INDIRECT(IW$3&"!$C$5:$C$13")))+IS5*0.8*INDIRECT(IW$3&"!$C$18"))/INDIRECT(IW$3&"!$C$22") -> 1 | IX5: 1 | IY5: 1 | IZ5: 1 | JA5: 1 | JB5: 1 | JC5: 1 | JD5: 1 | JE5: 1 | JF5: 1 | JG5: 1 | JH5: 1 | JI5: 1 | JJ5: 1 | JK5: 1 | JL5: 1 | JM5: 1 | JN5: =SUMPRODUCT(IX5:JM5,TRANSPOSE(INDIRECT(JN$3&"!$C$5:$C$20"))) -> 1 | JO5: =(SUMPRODUCT(IX5:JF5,TRANSPOSE(INDIRECT(JO$3&"!$C$5:$C$13")))+JK5*0.8*INDIRECT(JO$3&"!$C$18"))/INDIRECT(JO$3&"!$C$22") -> 1 | JP5: 1 | JQ5: 1 | JR5: 1 | JS5: 1 | JT5: 1 | JU5: 1 | JV5: 1 | JW5: 1 | JX5: 1 | JY5: 1 | JZ5: 1 | KA5: 1 | KB5: 1 | KC5: 1 | KD5: 1 | KE5: 1 | KF5: =SUMPRODUCT(JP5:KE5,TRANSPOSE(INDIRECT(KF$3&"!$C$5:$C$20"))) -> 1 | KG5: =(SUMPRODUCT(JP5:JX5,TRANSPOSE(INDIRECT(KG$3&"!$C$5:$C$13")))+KC5*0.8*INDIRECT(KG$3&"!$C$18"))/INDIRECT(KG$3&"!$C$22") -> 1 | KH5: 1 | KI5: 1 | KJ5: 1 | KK5: 1 | KL5: 1 | KM5: 1 | KN5: 1 | KO5: 1 | KP5: 1 | KQ5: 1 | KR5: 1 | KS5: 1 | KT5: 1 | KU5: 1 | KV5: 1 | KW5: 1 | KX5: =SUMPRODUCT(KH5:KW5,TRANSPOSE(INDIRECT(KX$3&"!$C$5:$C$20"))) -> 1 | KY5: =(SUMPRODUCT(KH5:KP5,TRANSPOSE(INDIRECT(KY$3&"!$C$5:$C$13")))+KU5*0.8*INDIRECT(KY$3&"!$C$18"))/INDIRECT(KY$3&"!$C$22") -> 0.9998571513 | KZ5: 1 | LA5: 1 | LB5: 1 | LC5: 1 | LD5: 1 | LE5: 1 | LF5: 1 | LG5: 1 | LH5: 1 | LI5: 1 | LJ5: 1 | LK5: 1 | LL5: 1 | LM5: 1 | LN5: 1 | LO5: 1 | LP5: =SUMPRODUCT(KZ5:LO5,TRANSPOSE(INDIRECT(LP$3&"!$C$5:$C$20"))) -> 1 | LQ5: =(SUMPRODUCT(KZ5:LH5,TRANSPOSE(INDIRECT(LQ$3&"!$C$5:$C$13")))+LM5*0.8*INDIRECT(LQ$3&"!$C$18"))/INDIRECT(LQ$3&"!$C$22") -> 1 | LR5: 1 | LS5: 1 | LT5: 1 | LU5: 1 | LV5: 1 | LW5: 1 | LX5: 1 | LY5: 1 | LZ5: 1 | MA5: 1 | MB5: 1 | MC5: 1 | MD5: 1 | ME5: 1 | MF5: 1 | MG5: 1 | MH5: =SUMPRODUCT(LR5:MG5,TRANSPOSE(INDIRECT(MH$3&"!$C$5:$C$20"))) -> 1 | MI5: =(SUMPRODUCT(LR5:LZ5,TRANSPOSE(INDIRECT(MI$3&"!$C$5:$C$13")))+ME5*0.8*INDIRECT(MI$3&"!$C$18"))/INDIRECT(MI$3&"!$C$22") -> 0.9048913043 | MJ5: 1 | MK5: 1 | ML5: 1 | MM5: 1 | MN5: 1 | MO5: 1 | MP5: 1 | MQ5: 1 | MR5: 1 | MS5: 1 | MT5: 1 | MU5: 1 | MV5: 1 | MW5: 1 | MX5: 1 | MY5: 1 | MZ5: =SUMPRODUCT(MJ5:MY5,TRANSPOSE(INDIRECT(MZ$3&"!$C$5:$C$20"))) -> 1 | NA5: =(SUMPRODUCT(MJ5:MR5,TRANSPOSE(INDIRECT(NA$3&"!$C$5:$C$13")))+MW5*0.8*INDIRECT(NA$3&"!$C$18"))/INDIRECT(NA$3&"!$C$22") -> 1 | NB5: 1 | NC5: 1 | ND5: 1 | NE5: 1 | NF5: 1 | NG5: 1 | NH5: 1 | NI5: 1 | NJ5: 1 | NK5: 1 | NL5: 1 | NM5: 1 | NN5: 1 | NO5: 1 | NP5: 1 | NQ5: 1 | NR5: =SUMPRODUCT(NB5:NQ5,TRANSPOSE(INDIRECT(NR$3&"!$C$5:$C$20"))) -> 1 | NS5: =(SUMPRODUCT(NB5:NJ5,TRANSPOSE(INDIRECT(NS$3&"!$C$5:$C$13")))+NO5*0.8*INDIRECT(NS$3&"!$C$18"))/INDIRECT(NS$3&"!$C$22") -> 1 | NV5: =SUMPRODUCT(F5:NS5,$F$70:$NS$70)/21 -> 1
